Workbook

Sheet Contest Rules
B1: Excel Datavis Contest - Chandoo.org - 2014
B3: Contest Rules
P4: Texas
C5: Make a dashboard or set of charts.
C6: Help us understand state to state migration trends and interesting facts
C7: Use any standard Excel feature (no add-ins, no Power Pivot etc.)
C8: You can use Macros & VBA to add interaction to charts. (Code must be commented clearly and sources should be credited)
C9: You can add additional demographic or economic data as long as,
C10: You use publicly available data sources
C11: You provide links to the data sources and credit them
C12: Examples: Percaptia income, weather or living conditions
C13: You may ignore the Margin of Error data (provided in extreme right in the data tables).
C14: You may submit more than one entry. For voting & selecting winners only 1 entry from each individual is considered.
B16: Important Dates
C18: Contest start date | E18: 9th of April, 2014
C19: Last date for submission | E19: 20th of April, 2014 | G19: =DATE(2014,4,20)-TODAY() -> 4
B21: How to submit your entry?
C23: Email
C24: Send to: chandoo.d@gmail.com
C25: Subject: Datavis contest 2014
C26: Include: Your workbook, Your name, Email Address & Version of Excel used to make it
C28: Facebook
C29: Join chandoo.org fan page (Click here)
C30: Send your entry as a message (with workbook as attachment)
C31: Include: Your workbook, Your name, Email Address & Version of Excel used to make it
B33: What do you get?
C34: First prize
C35: iPad (Latest version) 16 GB
C37: Second prize
C38: iPad Mini (latest version) 16 GB
C40: Third prize (2 nos)
C41: Samsung Galaxy Tab 3
B43: How winners are selected
C44: Winners will be selected by voting and a panel of judges (to be revealed). If there is a tie, Judges' decision will be given more weightage.
B46: Fine Print
C47: Prizes will be delivered thru Amazon.com. If you are located in a country where shipping Amazon goods is not possible (or prohibitively expensive) you will be offered a choice of either getting money payment or purchase from a local website. You also agree that Chandoo.org reserves the right to showcase your files, share them, use them in courses & training programs or any other publication as deemed fit. You agree to share the copy-right of your workbook with Chandoo.org indefinetly for no compensation. Chandoo.org may get in touch with you if we need any clarifications or we are unable to use your file. Chandoo.org reserves the right to disqualify a contest entry based on sole discretion.
C48: For updates on rules, dates & policies, please click below link:
C49: http://chandoo.org/wp/2014/04/09/visualize-state-migration-contest/

Sheet 2012 (hidden)
A2: Table 1. State-to-State Migration Flows*: 2012
A3: Dataset: 2012 American Community Survey 1-Year Estimates
A4: Universe: Population 1 year and over
A5: Source: http://www.census.gov/hhes/migration/files/acs/st-to-st/State_to_State_Migrations_Table_2012.xls
I6: ESTIMATES | BJ6: Margin of Error
A7: Current residence in -- | C7: Population 1 year and over | E7: Same residence 1 year ago | G7: Different residence, same state 1 year ago | I7: 1 | J7: 2 | K7: 3 | L7: 4 | M7: 5 | N7: 6 | O7: 7 | P7: 8 | Q7: 9 | R7: 10 | S7: 11 | T7: 12 | U7: 13 | V7: 14 | W7: 15 | X7: 16 | Y7: 17 | Z7: 18 | AA7: 19 | AB7: 20 | AC7: 21 | AD7: 22 | AE7: 23 | AF7: 24 | AG7: 25 | AH7: 26 | AI7: 27 | AJ7: 28 | AK7: 29 | AL7: 30 | AM7: 31 | AN7: 32 | AO7: 33 | AP7: 34 | AQ7: 35 | AR7: 36 | AS7: 37 | AT7: 38 | AU7: 39 | AV7: 40 | AW7: 41 | AX7: 42 | AY7: 43 | AZ7: 44 | BA7: 45 | BB7: 46 | BC7: 47 | BD7: 48 | BE7: 49 | BF7: 50 | BG7: 51 | BH7: 52 | BI7: 53 | BJ7: 1 | BK7: 2 | BL7: 3 | BM7: 4 | BN7: 5 | BO7: 6 | BP7: 7 | BQ7: 8 | BR7: 9 | BS7: 10 | BT7: 11 | BU7: 12 | BV7: 13 | BW7: 14 | BX7: 15 | BY7: 16 | BZ7: 17 | CA7: 18 | CB7: 19 | CC7: 20 | CD7: 21 | CE7: 22 | CF7: 23 | CG7: 24 | CH7: 25 | CI7: 26 | CJ7: 27 | CK7: 28 | CL7: 29 | CM7: 30 | CN7: 31 | CO7: 32 | CP7: 33 | CQ7: 34 | CR7: 35 | CS7: 36 | CT7: 37 | CU7: 38 | CV7: 39 | CW7: 40 | CX7: 41 | CY7: 42 | CZ7: 43 | DA7: 44 | DB7: 45 | DC7: 46 | DD7: 47 | DE7: 48 | DF7: 49 | DG7: 50 | DH7: 51 | DI7: 52 | DJ7: 53
I8: State of Residence Last year (Estimate) | BJ8: State of Residence Last year (Margin of Error)
C9: Estimate | D9: MOE | E9: Estimate | F9: MOE | G9: Estimate | H9: MOE | I9: TOTAL | J9: Alabama | K9: Alaska | L9: Arizona | M9: Arkansas | N9: California | O9: Colorado | P9: Connecticut | Q9: Delaware | R9: District of Columbia | S9: Florida | T9: Georgia | U9: Hawaii | V9: Idaho | W9: Illinois | X9: Indiana | Y9: Iowa | Z9: Kansas | AA9: Kentucky | AB9: Louisiana | AC9: Maine | AD9: Maryland | AE9: Massachusetts | AF9: Michigan | AG9: Minnesota | AH9: Mississippi | AI9: Missouri | AJ9: Montana | AK9: Nebraska | AL9: Nevada | AM9: New Hampshire | AN9: New Jersey | AO9: New Mexico | AP9: New York | AQ9: North Carolina | AR9: North Dakota | AS9: Ohio | AT9: Oklahoma | AU9: Oregon | AV9: Pennsylvania | AW9: Rhode Island | AX9: South Carolina | AY9: South Dakota | AZ9: Tennessee | BA9: Texas | BB9: Utah | BC9: Vermont | BD9: Virginia | BE9: Washington | BF9: West Virginia | BG9: Wisconsin | BH9: Wyoming | BI9: Puerto Rico | BJ9: TOTAL | BK9: Alabama | BL9: Alaska | BM9: Arizona | BN9: Arkansas | BO9: California | BP9: Colorado | BQ9: Connecticut | BR9: Delaware | BS9: District of Columbia | BT9: Florida | BU9: Georgia | BV9: Hawaii | BW9: Idaho | BX9: Illinois | BY9: Indiana | BZ9: Iowa | CA9: Kansas | CB9: Kentucky | CC9: Louisiana | CD9: Maine | CE9: Maryland | CF9: Massachusetts | CG9: Michigan | CH9: Minnesota | CI9: Mississippi | CJ9: Missouri | CK9: Montana | CL9: Nebraska | CM9: Nevada | CN9: New Hampshire | CO9: New Jersey | CP9: New Mexico | CQ9: New York | CR9: North Carolina | CS9: North Dakota | CT9: Ohio | CU9: Oklahoma | CV9: Oregon | CW9: Pennsylvania | CX9: Rhode Island | CY9: South Carolina | CZ9: South Dakota | DA9: Tennessee | DB9: Texas | DC9: Utah | DD9: Vermont | DE9: Virginia | DF9: Washington | DG9: West Virginia | DH9: Wisconsin | DI9: Wyoming | DJ9: Puerto Rico
A10: United States | B10: 2 | C10: 310212755 | D10: 25814 | E10: 263612596 | F10: 229733 | G10: 37696597 | H10: 211307 | I10: 7070345 | J10: 109210 | K10: 84068 | L10: 206842 | M10: 64967 | N10: 566986 | O10: 161530 | P10: 87023 | Q10: 25149 | R10: 59513 | S10: 428325 | T10: 252262 | U10: 61509 | V10: 55191 | W10: 277953 | X10: 144597 | Y10: 73325 | Z10: 93134 | AA10: 103004 | AB10: 95956 | AC10: 38574 | AD10: 157664 | AE10: 158156 | AF10: 175733 | AG10: 115946 | AH10: 66947 | AI10: 142754 | AJ10: 33832 | AK10: 48816 | AL10: 98882 | AM10: 38696 | AN10: 219202 | AO10: 63921 | AP10: 405864 | AQ10: 238663 | AR10: 23959 | AS10: 199202 | AT10: 102572 | AU10: 108182 | AV10: 237156 | AW10: 30498 | AX10: 127418 | AY10: 22534 | AZ10: 163843 | BA10: 402187 | BB10: 82165 | BC10: 20056 | BD10: 238540 | BE10: 180462 | BF10: 47425 | BG10: 97724 | BH10: 32228 | BI10: 74500 | BJ10: 58599 | BK10: 9027 | BL10: 7600 | BM10: 12859 | BN10: 6563 | BO10: 19755 | BP10: 10348 | BQ10: 5968 | BR10: 3775 | BS10: 6154 | BT10: 18406 | BU10: 12868 | BV10: 6100 | BW10: 6257 | BX10: 12722 | BY10: 8929 | BZ10: 6129 | CA10: 7286 | CB10: 7490 | CC10: 7745 | CD10: 5351 | CE10: 9686 | CF10: 10755 | CG10: 9302 | CH10: 8402 | CI10: 7206 | CJ10: 9402 | CK10: 4879 | CL10: 4967 | CM10: 9332 | CN10: 3364 | CO10: 11087 | CP10: 5867 | CQ10: 15692 | CR10: 13414 | CS10: 3373 | CT10: 10288 | CU10: 9213 | CV10: 7867 | CW10: 10246 | CX10: 3414 | CY10: 8502 | CZ10: 2998 | DA10: 8717 | DB10: 15471 | DC10: 8304 | DD10: 2967 | DE10: 11611 | DF10: 9674 | DG10: 5262 | DH10: 5859 | DI10: 5150 | DJ10: 8156
A11: Alabama | B11: 3 | C11: 4764428 | D11: 3589 | E11: 4054260 | F11: 21464 | G11: 590326 | H11: 19701 | I11: 104600 | J11: N/A | K11: 1004 | L11: 962 | M11: 660 | N11: 3077 | O11: 1386 | P11: 284 | Q11: 42 | R11: 162 | S11: 11244 | T11: 19920 | U11: 627 | V11: 493 | W11: 2722 | X11: 1347 | Y11: 345 | Z11: 865 | AA11: 2495 | AB11: 3104 | AC11: 67 | AD11: 1513 | AE11: 334 | AF11: 2298 | AG11: 752 | AH11: 4952 | AI11: 1555 | AJ11: 101 | AK11: 151 | AL11: 1009 | AM11: 161 | AN11: 1702 | AO11: 459 | AP11: 2709 | AQ11: 5133 | AR11: 228 | AS11: 1411 | AT11: 194 | AU11: 200 | AV11: 1837 | AW11: 0 | AX11: 2811 | AY11: 518 | AZ11: 10539 | BA11: 7468 | BB11: 579 | BC11: 0 | BD11: 3170 | BE11: 1034 | BF11: 128 | BG11: 760 | BH11: 88 | BI11: 619 | BJ11: 8482 | BK11: N/A | BL11: 829 | BM11: 583 | BN11: 382 | BO11: 1037 | BP11: 1393 | BQ11: 256 | BR11: 68 | BS11: 195 | BT11: 2476 | BU11: 3636 | BV11: 477 | BW11: 456 | BX11: 1030 | BY11: 536 | BZ11: 337 | CA11: 760 | CB11: 981 | CC11: 1216 | CD11: 82 | CE11: 847 | CF11: 272 | CG11: 881 | CH11: 716 | CI11: 1703 | CJ11: 836 | CK11: 132 | CL11: 167 | CM11: 824 | CN11: 166 | CO11: 1200 | CP11: 576 | CQ11: 1188 | CR11: 1788 | CS11: 194 | CT11: 576 | CU11: 157 | CV11: 169 | CW11: 736 | CX11: 184 | CY11: 1951 | CZ11: 758 | DA11: 2731 | DB11: 2136 | DC11: 713 | DD11: 184 | DE11: 1577 | DF11: 684 | DG11: 156 | DH11: 605 | DI11: 107 | DJ11: 551
A12: Alaska | B12: 4 | C12: 721186 | D12: 1290 | E12: 592551 | F12: 8741 | G12: 90613 | H12: 7239 | I12: 33415 | J12: 1097 | K12: N/A | L12: 1520 | M12: 196 | N12: 3494 | O12: 556 | P12: 0 | Q12: 0 | R12: 356 | S12: 1991 | T12: 928 | U12: 1376 | V12: 538 | W12: 58 | X12: 260 | Y12: 13 | Z12: 221 | AA12: 161 | AB12: 120 | AC12: 66 | AD12: 508 | AE12: 297 | AF12: 563 | AG12: 192 | AH12: 56 | AI12: 819 | AJ12: 371 | AK12: 1195 | AL12: 803 | AM12: 118 | AN12: 116 | AO12: 263 | AP12: 736 | AQ12: 920 | AR12: 264 | AS12: 1316 | AT12: 335 | AU12: 3174 | AV12: 255 | AW12: 0 | AX12: 384 | AY12: 99 | AZ12: 451 | BA12: 1488 | BB12: 330 | BC12: 79 | BD12: 1265 | BE12: 3725 | BF12: 0 | BG12: 206 | BH12: 136 | BI12: 25 | BJ12: 4385 | BK12: 825 | BL12: N/A | BM12: 1441 | BN12: 202 | BO12: 1643 | BP12: 279 | BQ12: 143 | BR12: 143 | BS12: 459 | BT12: 942 | BU12: 894 | BV12: 805 | BW12: 387 | BX12: 118 | BY12: 235 | BZ12: 24 | CA12: 272 | CB12: 196 | CC12: 145 | CD12: 62 | CE12: 591 | CF12: 289 | CG12: 426 | CH12: 191 | CI12: 76 | CJ12: 628 | CK12: 334 | CL12: 1128 | CM12: 382 | CN12: 206 | CO12: 156 | CP12: 219 | CQ12: 576 | CR12: 784 | CS12: 359 | CT12: 757 | CU12: 252 | CV12: 1510 | CW12: 240 | CX12: 143 | CY12: 394 | CZ12: 123 | DA12: 413 | DB12: 760 | DC12: 347 | DD12: 108 | DE12: 674 | DF12: 1488 | DG12: 143 | DH12: 261 | DI12: 217 | DJ12: 43
A13: Arizona | B13: 5 | C13: 6468907 | D13: 3874 | E13: 5242674 | F13: 32185 | G13: 953789 | H13: 28803 | I13: 232457 | J13: 1331 | K13: 3717 | L13: N/A | M13: 1214 | N13: 44889 | O13: 13790 | P13: 417 | Q13: 246 | R13: 36 | S13: 5553 | T13: 2263 | U13: 2491 | V13: 2934 | W13: 10744 | X13: 2930 | Y13: 2702 | Z13: 2498 | AA13: 1328 | AB13: 724 | AC13: 616 | AD13: 3007 | AE13: 1961 | AF13: 9598 | AG13: 8570 | AH13: 293 | AI13: 2595 | AJ13: 1118 | AK13: 2293 | AL13: 6712 | AM13: 510 | AN13: 2564 | AO13: 6946 | AP13: 7402 | AQ13: 2721 | AR13: 877 | AS13: 7906 | AT13: 1626 | AU13: 8587 | AV13: 4280 | AW13: 614 | AX13: 1070 | AY13: 1472 | AZ13: 5075 | BA13: 14788 | BB13: 5916 | BC13: 207 | BD13: 2763 | BE13: 13247 | BF13: 765 | BG13: 3765 | BH13: 2786 | BI13: 1791 | BJ13: 14183 | BK13: 1286 | BL13: 1505 | BM13: N/A | BN13: 659 | BO13: 5435 | BP13: 6133 | BQ13: 309 | BR13: 215 | BS13: 60 | BT13: 2160 | BU13: 961 | BV13: 1285 | BW13: 1362 | BX13: 2614 | BY13: 1447 | BZ13: 1000 | CA13: 852 | CB13: 997 | CC13: 442 | CD13: 593 | CE13: 1288 | CF13: 1083 | CG13: 3471 | CH13: 3050 | CI13: 215 | CJ13: 1099 | CK13: 536 | CL13: 1037 | CM13: 2202 | CN13: 443 | CO13: 1085 | CP13: 1907 | CQ13: 2615 | CR13: 939 | CS13: 444 | CT13: 2239 | CU13: 838 | CV13: 3200 | CW13: 1395 | CX13: 687 | CY13: 573 | CZ13: 776 | DA13: 1919 | DB13: 3541 | DC13: 1789 | DD13: 291 | DE13: 1031 | DF13: 2448 | DG13: 734 | DH13: 1168 | DI13: 1401 | DJ13: 1662
A14: Arkansas | B14: 6 | C14: 2912680 | D14: 2753 | E14: 2453347 | F14: 16841 | G14: 373046 | H14: 14543 | I14: 76948 | J14: 374 | K14: 855 | L14: 1677 | M14: N/A | N14: 3525 | O14: 603 | P14: 185 | Q14: 0 | R14: 205 | S14: 2682 | T14: 1525 | U14: 0 | V14: 0 | W14: 3576 | X14: 1172 | Y14: 409 | Z14: 1033 | AA14: 1310 | AB14: 3953 | AC14: 17 | AD14: 169 | AE14: 254 | AF14: 1283 | AG14: 295 | AH14: 3689 | AI14: 9105 | AJ14: 258 | AK14: 166 | AL14: 121 | AM14: 0 | AN14: 157 | AO14: 547 | AP14: 2262 | AQ14: 3057 | AR14: 0 | AS14: 1135 | AT14: 9938 | AU14: 193 | AV14: 516 | AW14: 59 | AX14: 52 | AY14: 673 | AZ14: 4195 | BA14: 11767 | BB14: 269 | BC14: 0 | BD14: 1159 | BE14: 251 | BF14: 84 | BG14: 695 | BH14: 1498 | BI14: 0 | BJ14: 7223 | BK14: 293 | BL14: 906 | BM14: 954 | BN14: N/A | BO14: 1202 | BP14: 369 | BQ14: 264 | BR14: 184 | BS14: 232 | BT14: 1052 | BU14: 1006 | BV14: 184 | BW14: 184 | BX14: 1286 | BY14: 587 | BZ14: 330 | CA14: 539 | CB14: 884 | CC14: 1340 | CD14: 39 | CE14: 209 | CF14: 262 | CG14: 607 | CH14: 285 | CI14: 2537 | CJ14: 2916 | CK14: 293 | CL14: 201 | CM14: 161 | CN14: 184 | CO14: 171 | CP14: 482 | CQ14: 1559 | CR14: 2173 | CS14: 184 | CT14: 626 | CU14: 2371 | CV14: 179 | CW14: 475 | CX14: 103 | CY14: 71 | CZ14: 588 | DA14: 1127 | DB14: 2841 | DC14: 216 | DD14: 184 | DE14: 824 | DF14: 226 | DG14: 148 | DH14: 467 | DI14: 2098 | DJ14: 184
A15: California | B15: 7 | C15: 37572738 | D15: 10274 | E15: 31777868 | F15: 67939 | G15: 5046618 | H15: 65422 | I15: 493641 | J15: 2509 | K15: 6995 | L15: 38916 | M15: 3472 | N15: N/A | O15: 15150 | P15: 6764 | Q15: 474 | R15: 3199 | S15: 21004 | T15: 10790 | U15: 11906 | V15: 5331 | W15: 21251 | X15: 5891 | Y15: 2284 | Z15: 2790 | AA15: 3763 | AB15: 5180 | AC15: 1256 | AD15: 7902 | AE15: 14356 | AF15: 8921 | AG15: 8539 | AH15: 2556 | AI15: 6729 | AJ15: 3060 | AK15: 3302 | AL15: 27968 | AM15: 1327 | AN15: 12057 | AO15: 5921 | AP15: 31261 | AQ15: 11195 | AR15: 1827 | AS15: 10653 | AT15: 6671 | AU15: 22724 | AV15: 10466 | AW15: 1648 | AX15: 4110 | AY15: 826 | AZ15: 5802 | BA15: 43005 | BB15: 12172 | BC15: 544 | BD15: 15625 | BE15: 34569 | BF15: 1413 | BG15: 5681 | BH15: 1886 | BI15: 2323 | BJ15: 19652 | BK15: 983 | BL15: 1948 | BM15: 5726 | BN15: 1354 | BO15: N/A | BP15: 2598 | BQ15: 2194 | BR15: 413 | BS15: 1061 | BT15: 3394 | BU15: 2458 | BV15: 2720 | BW15: 1519 | BX15: 3521 | BY15: 1629 | BZ15: 987 | CA15: 984 | CB15: 1292 | CC15: 1525 | CD15: 951 | CE15: 2347 | CF15: 2682 | CG15: 2069 | CH15: 1942 | CI15: 993 | CJ15: 1595 | CK15: 1275 | CL15: 2007 | CM15: 3857 | CN15: 615 | CO15: 2447 | CP15: 2240 | CQ15: 5136 | CR15: 2366 | CS15: 1272 | CT15: 2869 | CU15: 1795 | CV15: 3271 | CW15: 2392 | CX15: 697 | CY15: 1492 | CZ15: 674 | DA15: 1880 | DB15: 5519 | DC15: 2457 | DD15: 345 | DE15: 3457 | DF15: 4540 | DG15: 1135 | DH15: 1716 | DI15: 1117 | DJ15: 1076
A16: Colorado | B16: 8 | C16: 5123944 | D16: 2939 | E16: 4131357 | F16: 21752 | G16: 751921 | H16: 19587 | I16: 205060 | J16: 3108 | K16: 3457 | L16: 10589 | M16: 1043 | N16: 22152 | O16: N/A | P16: 1317 | Q16: 70 | R16: 488 | S16: 8615 | T16: 5834 | U16: 2536 | V16: 2660 | W16: 6374 | X16: 4336 | Y16: 2776 | Z16: 5283 | AA16: 2500 | AB16: 5048 | AC16: 20 | AD16: 2844 | AE16: 5939 | AF16: 3343 | AG16: 2992 | AH16: 835 | AI16: 3771 | AJ16: 2021 | AK16: 4472 | AL16: 3789 | AM16: 679 | AN16: 2464 | AO16: 6520 | AP16: 7250 | AQ16: 4378 | AR16: 1918 | AS16: 4533 | AT16: 4582 | AU16: 2419 | AV16: 3950 | AW16: 137 | AX16: 2383 | AY16: 756 | AZ16: 2535 | BA16: 17355 | BB16: 6398 | BC16: 503 | BD16: 3796 | BE16: 4853 | BF16: 837 | BG16: 3000 | BH16: 5602 | BI16: 1144 | BJ16: 11855 | BK16: 1610 | BL16: 1695 | BM16: 2218 | BN16: 580 | BO16: 4260 | BP16: N/A | BQ16: 677 | BR16: 133 | BS16: 387 | BT16: 1907 | BU16: 2086 | BV16: 1020 | BW16: 1468 | BX16: 1617 | BY16: 2128 | BZ16: 1486 | CA16: 1843 | CB16: 2135 | CC16: 2468 | CD16: 40 | CE16: 1196 | CF16: 2238 | CG16: 1293 | CH16: 909 | CI16: 522 | CJ16: 1262 | CK16: 923 | CL16: 1729 | CM16: 1433 | CN16: 308 | CO16: 1179 | CP16: 1851 | CQ16: 2604 | CR16: 1678 | CS16: 1071 | CT16: 2214 | CU16: 2102 | CV16: 836 | CW16: 1530 | CX16: 153 | CY16: 1479 | CZ16: 553 | DA16: 1135 | DB16: 3352 | DC16: 2035 | DD16: 371 | DE16: 1568 | DF16: 1401 | DG16: 429 | DH16: 1006 | DI16: 2808 | DJ16: 903
A17: Connecticut | B17: 9 | C17: 3555319 | D17: 2447 | E17: 3114940 | F17: 16188 | G17: 334918 | H17: 14546 | I17: 80311 | J17: 46 | K17: 439 | L17: 3167 | M17: 200 | N17: 3161 | O17: 367 | P17: N/A | Q17: 22 | R17: 288 | S17: 6578 | T17: 1702 | U17: 408 | V17: 97 | W17: 912 | X17: 53 | Y17: 0 | Z17: 0 | AA17: 124 | AB17: 909 | AC17: 1224 | AD17: 1752 | AE17: 8743 | AF17: 753 | AG17: 605 | AH17: 276 | AI17: 358 | AJ17: 50 | AK17: 45 | AL17: 172 | AM17: 1009 | AN17: 5665 | AO17: 444 | AP17: 23310 | AQ17: 3379 | AR17: 0 | AS17: 287 | AT17: 415 | AU17: 35 | AV17: 2214 | AW17: 1558 | AX17: 940 | AY17: 0 | AZ17: 260 | BA17: 3279 | BB17: 45 | BC17: 709 | BD17: 1729 | BE17: 1593 | BF17: 174 | BG17: 711 | BH17: 104 | BI17: 3228 | BJ17: 6574 | BK17: 103 | BL17: 511 | BM17: 3028 | BN17: 228 | BO17: 1015 | BP17: 341 | BQ17: N/A | BR17: 36 | BS17: 230 | BT17: 1844 | BU17: 971 | BV17: 476 | BW17: 155 | BX17: 583 | BY17: 90 | BZ17: 193 | CA17: 193 | CB17: 159 | CC17: 733 | CD17: 696 | CE17: 748 | CF17: 1587 | CG17: 539 | CH17: 564 | CI17: 293 | CJ17: 330 | CK17: 91 | CL17: 74 | CM17: 166 | CN17: 551 | CO17: 1490 | CP17: 450 | CQ17: 3774 | CR17: 1609 | CS17: 193 | CT17: 254 | CU17: 411 | CV17: 58 | CW17: 1037 | CX17: 689 | CY17: 665 | CZ17: 193 | DA17: 216 | DB17: 1568 | DC17: 69 | DD17: 556 | DE17: 707 | DF17: 1274 | DG17: 293 | DH17: 684 | DI17: 120 | DJ17: 1540
A18: Delaware | B18: 10 | C18: 906576 | D18: 1624 | E18: 782216 | F18: 9177 | G18: 86003 | H18: 7626 | I18: 34757 | J18: 119 | K18: 692 | L18: 188 | M18: 0 | N18: 2221 | O18: 0 | P18: 1489 | Q18: N/A | R18: 11 | S18: 715 | T18: 179 | U18: 0 | V18: 32 | W18: 567 | X18: 62 | Y18: 30 | Z18: 113 | AA18: 0 | AB18: 178 | AC18: 0 | AD18: 5649 | AE18: 157 | AF18: 227 | AG18: 351 | AH18: 58 | AI18: 80 | AJ18: 0 | AK18: 91 | AL18: 572 | AM18: 99 | AN18: 5846 | AO18: 85 | AP18: 3566 | AQ18: 1349 | AR18: 0 | AS18: 191 | AT18: 0 | AU18: 0 | AV18: 6828 | AW18: 135 | AX18: 298 | AY18: 0 | AZ18: 344 | BA18: 133 | BB18: 166 | BC18: 0 | BD18: 1746 | BE18: 29 | BF18: 161 | BG18: 0 | BH18: 0 | BI18: 56 | BJ18: 4691 | BK18: 164 | BL18: 920 | BM18: 227 | BN18: 182 | BO18: 2189 | BP18: 182 | BQ18: 679 | BR18: N/A | BS18: 21 | BT18: 481 | BU18: 224 | BV18: 182 | BW18: 51 | BX18: 468 | BY18: 80 | BZ18: 49 | CA18: 190 | CB18: 182 | CC18: 266 | CD18: 182 | CE18: 1598 | CF18: 131 | CG18: 233 | CH18: 390 | CI18: 110 | CJ18: 138 | CK18: 182 | CL18: 116 | CM18: 474 | CN18: 127 | CO18: 2122 | CP18: 136 | CQ18: 1751 | CR18: 809 | CS18: 182 | CT18: 201 | CU18: 182 | CV18: 182 | CW18: 1815 | CX18: 185 | CY18: 235 | CZ18: 182 | DA18: 440 | DB18: 158 | DC18: 279 | DD18: 182 | DE18: 910 | DF18: 49 | DG18: 205 | DH18: 182 | DI18: 182 | DJ18: 90
A19: District of Columbia | B19: 11 | C19: 624847 | D19: 948 | E19: 500267 | F19: 6225 | G19: 61992 | H19: 5668 | I19: 53830 | J19: 79 | K19: 1247 | L19: 902 | M19: 35 | N19: 4999 | O19: 677 | P19: 618 | Q19: 78 | R19: N/A | S19: 1705 | T19: 1079 | U19: 38 | V19: 46 | W19: 795 | X19: 469 | Y19: 133 | Z19: 164 | AA19: 112 | AB19: 283 | AC19: 194 | AD19: 14120 | AE19: 1524 | AF19: 944 | AG19: 393 | AH19: 44 | AI19: 337 | AJ19: 0 | AK19: 172 | AL19: 42 | AM19: 197 | AN19: 1451 | AO19: 116 | AP19: 3085 | AQ19: 985 | AR19: 0 | AS19: 651 | AT19: 0 | AU19: 157 | AV19: 1494 | AW19: 635 | AX19: 150 | AY19: 0 | AZ19: 577 | BA19: 1473 | BB19: 116 | BC19: 267 | BD19: 9537 | BE19: 481 | BF19: 293 | BG19: 721 | BH19: 215 | BI19: 0 | BJ19: 5001 | BK19: 138 | BL19: 715 | BM19: 646 | BN19: 59 | BO19: 2108 | BP19: 546 | BQ19: 439 | BR19: 127 | BS19: N/A | BT19: 661 | BU19: 470 | BV19: 87 | BW19: 75 | BX19: 446 | BY19: 379 | BZ19: 221 | CA19: 267 | CB19: 136 | CC19: 295 | CD19: 244 | CE19: 2487 | CF19: 717 | CG19: 670 | CH19: 240 | CI19: 74 | CJ19: 354 | CK19: 197 | CL19: 182 | CM19: 69 | CN19: 183 | CO19: 792 | CP19: 139 | CQ19: 851 | CR19: 503 | CS19: 197 | CT19: 429 | CU19: 197 | CV19: 182 | CW19: 608 | CX19: 596 | CY19: 140 | CZ19: 197 | DA19: 478 | DB19: 826 | DC19: 145 | DD19: 250 | DE19: 1762 | DF19: 358 | DG19: 219 | DH19: 420 | DI19: 303 | DJ19: 197
A20: Florida | B20: 12 | C20: 19114620 | D20: 6877 | E20: 16032617 | F20: 49245 | G20: 2380288 | H20: 44658 | I20: 537148 | J20: 18599 | K20: 10704 | L20: 6473 | M20: 3321 | N20: 20386 | O20: 8766 | P20: 8975 | Q20: 1099 | R20: 780 | S20: N/A | T20: 42754 | U20: 3177 | V20: 1268 | W20: 22565 | X20: 13803 | Y20: 3864 | Z20: 5661 | AA20: 6912 | AB20: 5550 | AC20: 7348 | AD20: 10442 | AE20: 15159 | AF20: 23400 | AG20: 5460 | AH20: 5490 | AI20: 10666 | AJ20: 1758 | AK20: 945 | AL20: 1241 | AM20: 2362 | AN20: 27606 | AO20: 2853 | AP20: 53009 | AQ20: 23133 | AR20: 239 | AS20: 22927 | AT20: 3142 | AU20: 2919 | AV20: 25659 | AW20: 3050 | AX20: 11366 | AY20: 1070 | AZ20: 16275 | BA20: 28564 | BB20: 2499 | BC20: 2747 | BD20: 25697 | BE20: 4943 | BF20: 3533 | BG20: 6216 | BH20: 773 | BI20: 21638 | BJ20: 19784 | BK20: 4762 | BL20: 4327 | BM20: 1865 | BN20: 1136 | BO20: 4221 | BP20: 2537 | BQ20: 1882 | BR20: 608 | BS20: 481 | BT20: N/A | BU20: 6205 | BV20: 2730 | BW20: 923 | BX20: 3828 | BY20: 2852 | BZ20: 1332 | CA20: 3133 | CB20: 1607 | CC20: 2266 | CD20: 3032 | CE20: 2378 | CF20: 2747 | CG20: 3519 | CH20: 2185 | CI20: 3345 | CJ20: 3498 | CK20: 2104 | CL20: 713 | CM20: 515 | CN20: 922 | CO20: 4242 | CP20: 1004 | CQ20: 5886 | CR20: 3843 | CS20: 203 | CT20: 4305 | CU20: 1301 | CV20: 1736 | CW20: 4174 | CX20: 1458 | CY20: 2719 | CZ20: 762 | DA20: 3583 | DB20: 4750 | DC20: 1348 | DD20: 1190 | DE20: 3965 | DF20: 1710 | DG20: 1587 | DH20: 1993 | DI20: 567 | DJ20: 4641
A21: Georgia | B21: 13 | C21: 9796547 | D21: 5863 | E21: 8231384 | F21: 34188 | G21: 1236302 | H21: 31155 | I21: 277466 | J21: 13864 | K21: 2654 | L21: 6657 | M21: 1041 | N21: 14174 | O21: 4710 | P21: 1829 | Q21: 226 | R21: 1352 | S21: 42870 | T21: N/A | U21: 1409 | V21: 936 | W21: 7143 | X21: 5972 | Y21: 1687 | Z21: 1497 | AA21: 6172 | AB21: 4100 | AC21: 222 | AD21: 3619 | AE21: 4153 | AF21: 9949 | AG21: 2237 | AH21: 3280 | AI21: 3377 | AJ21: 251 | AK21: 1283 | AL21: 3783 | AM21: 15 | AN21: 4920 | AO21: 915 | AP21: 13957 | AQ21: 16009 | AR21: 207 | AS21: 7501 | AT21: 3299 | AU21: 453 | AV21: 9076 | AW21: 440 | AX21: 18611 | AY21: 257 | AZ21: 17606 | BA21: 16198 | BB21: 20 | BC21: 84 | BD21: 10702 | BE21: 1965 | BF21: 1237 | BG21: 3441 | BH21: 106 | BI21: 1730 | BJ21: 14075 | BK21: 2903 | BL21: 1444 | BM21: 2675 | BN21: 519 | BO21: 3182 | BP21: 2093 | BQ21: 824 | BR21: 246 | BS21: 994 | BT21: 5472 | BU21: N/A | BV21: 831 | BW21: 797 | BX21: 1833 | BY21: 2678 | BZ21: 1036 | CA21: 707 | CB21: 1972 | CC21: 1490 | CD21: 178 | CE21: 1621 | CF21: 1720 | CG21: 3100 | CH21: 2164 | CI21: 1372 | CJ21: 1479 | CK21: 224 | CL21: 1001 | CM21: 2622 | CN21: 27 | CO21: 1544 | CP21: 512 | CQ21: 3960 | CR21: 2963 | CS21: 250 | CT21: 2501 | CU21: 1818 | CV21: 472 | CW21: 2622 | CX21: 620 | CY21: 3871 | CZ21: 291 | DA21: 4620 | DB21: 3367 | DC21: 35 | DD21: 142 | DE21: 2094 | DF21: 826 | DG21: 625 | DH21: 1725 | DI21: 154 | DJ21: 1190
A22: Hawaii | B22: 14 | C22: 1374852 | D22: 1662 | E22: 1164145 | F22: 10466 | G22: 134827 | H22: 9196 | I22: 55145 | J22: 608 | K22: 1417 | L22: 1865 | M22: 24 | N22: 9756 | O22: 1216 | P22: 191 | Q22: 278 | R22: 230 | S22: 2780 | T22: 1448 | U22: N/A | V22: 404 | W22: 318 | X22: 292 | Y22: 84 | Z22: 1135 | AA22: 485 | AB22: 207 | AC22: 91 | AD22: 2491 | AE22: 1266 | AF22: 321 | AG22: 192 | AH22: 44 | AI22: 944 | AJ22: 131 | AK22: 75 | AL22: 760 | AM22: 85 | AN22: 410 | AO22: 284 | AP22: 2382 | AQ22: 2241 | AR22: 0 | AS22: 884 | AT22: 1095 | AU22: 1763 | AV22: 1087 | AW22: 106 | AX22: 644 | AY22: 459 | AZ22: 1314 | BA22: 3300 | BB22: 2183 | BC22: 0 | BD22: 1393 | BE22: 5920 | BF22: 197 | BG22: 295 | BH22: 50 | BI22: 336 | BJ22: 5749 | BK22: 479 | BL22: 869 | BM22: 695 | BN22: 54 | BO22: 1508 | BP22: 574 | BQ22: 222 | BR22: 253 | BS22: 253 | BT22: 1227 | BU22: 639 | BV22: N/A | BW22: 431 | BX22: 194 | BY22: 261 | BZ22: 98 | CA22: 709 | CB22: 630 | CC22: 183 | CD22: 147 | CE22: 1610 | CF22: 962 | CG22: 189 | CH22: 240 | CI22: 52 | CJ22: 630 | CK22: 172 | CL22: 125 | CM22: 424 | CN22: 119 | CO22: 435 | CP22: 243 | CQ22: 1279 | CR22: 1274 | CS22: 177 | CT22: 995 | CU22: 933 | CV22: 764 | CW22: 770 | CX22: 176 | CY22: 460 | CZ22: 726 | DA22: 675 | DB22: 1887 | DC22: 1283 | DD22: 177 | DE22: 755 | DF22: 1901 | DG22: 330 | DH22: 234 | DI22: 66 | DJ22: 436
A23: Idaho | B23: 15 | C23: 1573036 | D23: 2184 | E23: 1296975 | F23: 12998 | G23: 210151 | H23: 11483 | I23: 59283 | J23: 575 | K23: 1198 | L23: 2424 | M23: 291 | N23: 10280 | O23: 1186 | P23: 44 | Q23: 120 | R23: 116 | S23: 2014 | T23: 583 | U23: 206 | V23: N/A | W23: 532 | X23: 283 | Y23: 90 | Z23: 63 | AA23: 83 | AB23: 54 | AC23: 0 | AD23: 107 | AE23: 338 | AF23: 683 | AG23: 637 | AH23: 87 | AI23: 214 | AJ23: 3800 | AK23: 35 | AL23: 2535 | AM23: 0 | AN23: 214 | AO23: 675 | AP23: 938 | AQ23: 817 | AR23: 0 | AS23: 1018 | AT23: 93 | AU23: 4963 | AV23: 169 | AW23: 0 | AX23: 205 | AY23: 118 | AZ23: 1957 | BA23: 1352 | BB23: 6617 | BC23: 0 | BD23: 269 | BE23: 10398 | BF23: 0 | BG23: 225 | BH23: 677 | BI23: 136 | BJ23: 6040 | BK23: 838 | BL23: 790 | BM23: 1307 | BN23: 268 | BO23: 2708 | BP23: 614 | BQ23: 81 | BR23: 199 | BS23: 124 | BT23: 1608 | BU23: 848 | BV23: 194 | BW23: N/A | BX23: 469 | BY23: 282 | BZ23: 170 | CA23: 69 | CB23: 128 | CC23: 92 | CD23: 187 | CE23: 161 | CF23: 391 | CG23: 777 | CH23: 528 | CI23: 170 | CJ23: 259 | CK23: 2162 | CL23: 60 | CM23: 1031 | CN23: 187 | CO23: 206 | CP23: 554 | CQ23: 554 | CR23: 843 | CS23: 187 | CT23: 753 | CU23: 108 | CV23: 1377 | CW23: 181 | CX23: 187 | CY23: 238 | CZ23: 192 | DA23: 1539 | DB23: 714 | DC23: 3016 | DD23: 187 | DE23: 388 | DF23: 1919 | DG23: 187 | DH23: 272 | DI23: 406 | DJ23: 228
A24: Illinois | B24: 16 | C24: 12725119 | D24: 5939 | E24: 11009321 | F24: 31714 | G24: 1441191 | H24: 27618 | I24: 208755 | J24: 883 | K24: 2250 | L24: 7139 | M24: 1587 | N24: 14940 | O24: 3036 | P24: 955 | Q24: 234 | R24: 1066 | S24: 12687 | T24: 8745 | U24: 869 | V24: 1384 | W24: N/A | X24: 16907 | Y24: 8529 | Z24: 2009 | AA24: 2923 | AB24: 1229 | AC24: 526 | AD24: 1865 | AE24: 3296 | AF24: 12583 | AG24: 6537 | AH24: 2744 | AI24: 13264 | AJ24: 228 | AK24: 1302 | AL24: 1478 | AM24: 283 | AN24: 2366 | AO24: 1359 | AP24: 7561 | AQ24: 3761 | AR24: 196 | AS24: 6872 | AT24: 1491 | AU24: 954 | AV24: 4588 | AW24: 462 | AX24: 1583 | AY24: 394 | AZ24: 4648 | BA24: 16780 | BB24: 1154 | BC24: 156 | BD24: 4311 | BE24: 2704 | BF24: 1221 | BG24: 14414 | BH24: 302 | BI24: 2049 | BJ24: 10844 | BK24: 478 | BL24: 1511 | BM24: 2314 | BN24: 643 | BO24: 2770 | BP24: 1235 | BQ24: 634 | BR24: 228 | BS24: 615 | BT24: 2735 | BU24: 3894 | BV24: 593 | BW24: 868 | BX24: N/A | BY24: 2654 | BZ24: 1959 | CA24: 988 | CB24: 1049 | CC24: 561 | CD24: 347 | CE24: 755 | CF24: 1088 | CG24: 3412 | CH24: 1781 | CI24: 1178 | CJ24: 3449 | CK24: 183 | CL24: 637 | CM24: 817 | CN24: 255 | CO24: 1097 | CP24: 1078 | CQ24: 2307 | CR24: 1150 | CS24: 184 | CT24: 1834 | CU24: 860 | CV24: 517 | CW24: 1506 | CX24: 478 | CY24: 875 | CZ24: 444 | DA24: 1468 | DB24: 3035 | DC24: 495 | DD24: 133 | DE24: 1212 | DF24: 971 | DG24: 1224 | DH24: 2249 | DI24: 309 | DJ24: 1480
A25: Indiana | B25: 17 | C25: 6457067 | D25: 4184 | E25: 5493090 | F25: 26865 | G25: 805228 | H25: 22224 | I25: 134137 | J25: 1625 | K25: 479 | L25: 2763 | M25: 564 | N25: 6033 | O25: 1225 | P25: 823 | Q25: 639 | R25: 1045 | S25: 11472 | T25: 2258 | U25: 856 | V25: 186 | W25: 28436 | X25: N/A | Y25: 1678 | Z25: 1624 | AA25: 11177 | AB25: 736 | AC25: 0 | AD25: 1050 | AE25: 837 | AF25: 11017 | AG25: 1543 | AH25: 1948 | AI25: 4526 | AJ25: 134 | AK25: 591 | AL25: 1011 | AM25: 0 | AN25: 1537 | AO25: 219 | AP25: 2316 | AQ25: 2665 | AR25: 113 | AS25: 11235 | AT25: 1198 | AU25: 387 | AV25: 2419 | AW25: 0 | AX25: 1414 | AY25: 111 | AZ25: 3547 | BA25: 4490 | BB25: 105 | BC25: 0 | BD25: 1932 | BE25: 258 | BF25: 507 | BG25: 1727 | BH25: 1681 | BI25: 136 | BJ25: 9664 | BK25: 788 | BL25: 429 | BM25: 1095 | BN25: 753 | BO25: 1477 | BP25: 531 | BQ25: 595 | BR25: 831 | BS25: 733 | BT25: 2864 | BU25: 1176 | BV25: 998 | BW25: 176 | BX25: 4261 | BY25: N/A | BZ25: 860 | CA25: 785 | CB25: 2929 | CC25: 416 | CD25: 184 | CE25: 648 | CF25: 590 | CG25: 2594 | CH25: 732 | CI25: 1655 | CJ25: 1802 | CK25: 191 | CL25: 541 | CM25: 549 | CN25: 184 | CO25: 1034 | CP25: 245 | CQ25: 724 | CR25: 884 | CS25: 164 | CT25: 2192 | CU25: 725 | CV25: 239 | CW25: 1101 | CX25: 184 | CY25: 901 | CZ25: 147 | DA25: 1422 | DB25: 1562 | DC25: 124 | DD25: 184 | DE25: 1101 | DF25: 221 | DG25: 345 | DH25: 769 | DI25: 2023 | DJ25: 194
A26: Iowa | B26: 18 | C26: 3035469 | D26: 2721 | E26: 2585979 | F26: 14093 | G26: 362938 | H26: 11238 | I26: 75760 | J26: 503 | K26: 951 | L26: 1590 | M26: 451 | N26: 3268 | O26: 3252 | P26: 112 | Q26: 0 | R26: 151 | S26: 4335 | T26: 596 | U26: 521 | V26: 290 | W26: 11969 | X26: 1716 | Y26: N/A | Z26: 918 | AA26: 819 | AB26: 763 | AC26: 78 | AD26: 419 | AE26: 585 | AF26: 946 | AG26: 7505 | AH26: 751 | AI26: 4168 | AJ26: 452 | AK26: 7698 | AL26: 681 | AM26: 56 | AN26: 1018 | AO26: 114 | AP26: 1230 | AQ26: 734 | AR26: 833 | AS26: 1127 | AT26: 1465 | AU26: 348 | AV26: 451 | AW26: 0 | AX26: 943 | AY26: 1158 | AZ26: 1148 | BA26: 3553 | BB26: 886 | BC26: 0 | BD26: 268 | BE26: 919 | BF26: 22 | BG26: 3607 | BH26: 392 | BI26: 786 | BJ26: 5982 | BK26: 400 | BL26: 814 | BM26: 803 | BN26: 237 | BO26: 1296 | BP26: 1250 | BQ26: 135 | BR26: 151 | BS26: 155 | BT26: 2060 | BU26: 481 | BV26: 476 | BW26: 218 | BX26: 2313 | BY26: 1097 | BZ26: N/A | CA26: 500 | CB26: 609 | CC26: 568 | CD26: 125 | CE26: 287 | CF26: 520 | CG26: 497 | CH26: 1826 | CI26: 621 | CJ26: 1021 | CK26: 305 | CL26: 1806 | CM26: 602 | CN26: 93 | CO26: 767 | CP26: 188 | CQ26: 819 | CR26: 428 | CS26: 617 | CT26: 692 | CU26: 974 | CV26: 302 | CW26: 353 | CX26: 151 | CY26: 556 | CZ26: 441 | DA26: 871 | DB26: 1275 | DC26: 880 | DD26: 151 | DE26: 200 | DF26: 485 | DG26: 41 | DH26: 849 | DI26: 316 | DJ26: 1190
A27: Kansas | B27: 19 | C27: 2848708 | D27: 2507 | E27: 2361899 | F27: 16878 | G27: 381695 | H27: 15902 | I27: 88284 | J27: 853 | K27: 333 | L27: 3094 | M27: 2158 | N27: 5411 | O27: 3746 | P27: 210 | Q27: 0 | R27: 456 | S27: 3118 | T27: 1896 | U27: 149 | V27: 456 | W27: 1702 | X27: 1679 | Y27: 1527 | Z27: N/A | AA27: 617 | AB27: 438 | AC27: 211 | AD27: 282 | AE27: 187 | AF27: 1125 | AG27: 682 | AH27: 452 | AI27: 21022 | AJ27: 300 | AK27: 4126 | AL27: 851 | AM27: 0 | AN27: 267 | AO27: 1029 | AP27: 571 | AQ27: 813 | AR27: 261 | AS27: 1310 | AT27: 8408 | AU27: 848 | AV27: 918 | AW27: 18 | AX27: 556 | AY27: 154 | AZ27: 1542 | BA27: 8468 | BB27: 97 | BC27: 70 | BD27: 1705 | BE27: 3265 | BF27: 139 | BG27: 486 | BH27: 278 | BI27: 82 | BJ27: 7145 | BK27: 609 | BL27: 407 | BM27: 1630 | BN27: 890 | BO27: 2012 | BP27: 1360 | BQ27: 208 | BR27: 165 | BS27: 737 | BT27: 1380 | BU27: 1395 | BV27: 156 | BW27: 356 | BX27: 582 | BY27: 839 | BZ27: 860 | CA27: N/A | CB27: 476 | CC27: 408 | CD27: 225 | CE27: 282 | CF27: 203 | CG27: 682 | CH27: 367 | CI27: 501 | CJ27: 3073 | CK27: 326 | CL27: 1245 | CM27: 606 | CN27: 165 | CO27: 228 | CP27: 627 | CQ27: 367 | CR27: 476 | CS27: 263 | CT27: 638 | CU27: 2299 | CV27: 557 | CW27: 672 | CX27: 31 | CY27: 375 | CZ27: 195 | DA27: 825 | DB27: 2434 | DC27: 106 | DD27: 138 | DE27: 853 | DF27: 1675 | DG27: 132 | DH27: 530 | DI27: 239 | DJ27: 147
A28: Kentucky | B28: 20 | C28: 4328626 | D28: 2851 | E28: 3676472 | F28: 15304 | G28: 521511 | H28: 14825 | I28: 112787 | J28: 4137 | K28: 304 | L28: 1103 | M28: 518 | N28: 3415 | O28: 712 | P28: 246 | Q28: 706 | R28: 254 | S28: 9232 | T28: 4173 | U28: 647 | V28: 50 | W28: 4445 | X28: 12203 | Y28: 238 | Z28: 602 | AA28: N/A | AB28: 666 | AC28: 46 | AD28: 1120 | AE28: 419 | AF28: 7302 | AG28: 605 | AH28: 646 | AI28: 2381 | AJ28: 0 | AK28: 723 | AL28: 301 | AM28: 84 | AN28: 496 | AO28: 554 | AP28: 5239 | AQ28: 3643 | AR28: 122 | AS28: 17041 | AT28: 577 | AU28: 298 | AV28: 2226 | AW28: 0 | AX28: 1347 | AY28: 0 | AZ28: 10064 | BA28: 3345 | BB28: 464 | BC28: 45 | BD28: 3319 | BE28: 1988 | BF28: 3346 | BG28: 1395 | BH28: 0 | BI28: 170 | BJ28: 7854 | BK28: 1628 | BL28: 370 | BM28: 715 | BN28: 299 | BO28: 1157 | BP28: 572 | BQ28: 290 | BR28: 774 | BS28: 262 | BT28: 2697 | BU28: 1184 | BV28: 665 | BW28: 91 | BX28: 1359 | BY28: 2150 | BZ28: 257 | CA28: 464 | CB28: N/A | CC28: 294 | CD28: 80 | CE28: 615 | CF28: 285 | CG28: 1809 | CH28: 346 | CI28: 467 | CJ28: 1021 | CK28: 181 | CL28: 588 | CM28: 294 | CN28: 103 | CO28: 551 | CP28: 348 | CQ28: 1774 | CR28: 1903 | CS28: 192 | CT28: 3384 | CU28: 437 | CV28: 212 | CW28: 964 | CX28: 181 | CY28: 671 | CZ28: 181 | DA28: 2378 | DB28: 1420 | DC28: 360 | DD28: 81 | DE28: 1111 | DF28: 998 | DG28: 1472 | DH28: 845 | DI28: 181 | DJ28: 197
A29: Louisiana | B29: 21 | C29: 4545914 | D29: 4612 | E29: 3912023 | F29: 21791 | G29: 528406 | H29: 20131 | I29: 91215 | J29: 2329 | K29: 403 | L29: 2021 | M29: 3645 | N29: 5139 | O29: 1433 | P29: 164 | Q29: 0 | R29: 596 | S29: 6534 | T29: 4478 | U29: 378 | V29: 265 | W29: 1229 | X29: 1359 | Y29: 544 | Z29: 420 | AA29: 1649 | AB29: N/A | AC29: 251 | AD29: 642 | AE29: 549 | AF29: 1080 | AG29: 330 | AH29: 6791 | AI29: 1591 | AJ29: 428 | AK29: 745 | AL29: 931 | AM29: 11 | AN29: 975 | AO29: 150 | AP29: 2786 | AQ29: 2284 | AR29: 64 | AS29: 1115 | AT29: 2159 | AU29: 195 | AV29: 1239 | AW29: 737 | AX29: 1914 | AY29: 0 | AZ29: 2348 | BA29: 24488 | BB29: 277 | BC29: 45 | BD29: 1857 | BE29: 1581 | BF29: 238 | BG29: 682 | BH29: 146 | BI29: 655 | BJ29: 6941 | BK29: 1114 | BL29: 467 | BM29: 1191 | BN29: 2324 | BO29: 1438 | BP29: 1002 | BQ29: 149 | BR29: 193 | BS29: 517 | BT29: 2276 | BU29: 1559 | BV29: 283 | BW29: 242 | BX29: 466 | BY29: 954 | BZ29: 447 | CA29: 392 | CB29: 1224 | CC29: N/A | CD29: 334 | CE29: 701 | CF29: 354 | CG29: 782 | CH29: 324 | CI29: 1938 | CJ29: 684 | CK29: 524 | CL29: 538 | CM29: 682 | CN29: 21 | CO29: 575 | CP29: 188 | CQ29: 1105 | CR29: 1152 | CS29: 113 | CT29: 773 | CU29: 1365 | CV29: 232 | CW29: 616 | CX29: 695 | CY29: 1377 | CZ29: 193 | DA29: 1546 | DB29: 4076 | DC29: 288 | DD29: 72 | DE29: 1033 | DF29: 631 | DG29: 271 | DH29: 474 | DI29: 216 | DJ29: 507
A30: Maine | B30: 22 | C30: 1315586 | D30: 1384 | E30: 1132344 | F30: 9895 | G30: 151438 | H30: 9223 | I30: 27523 | J30: 129 | K30: 38 | L30: 230 | M30: 0 | N30: 1610 | O30: 314 | P30: 1468 | Q30: 234 | R30: 32 | S30: 2926 | T30: 511 | U30: 0 | V30: 143 | W30: 195 | X30: 0 | Y30: 7 | Z30: 277 | AA30: 482 | AB30: 15 | AC30: N/A | AD30: 325 | AE30: 3887 | AF30: 116 | AG30: 430 | AH30: 79 | AI30: 69 | AJ30: 0 | AK30: 82 | AL30: 35 | AM30: 3655 | AN30: 405 | AO30: 272 | AP30: 2519 | AQ30: 1112 | AR30: 0 | AS30: 628 | AT30: 79 | AU30: 215 | AV30: 976 | AW30: 1024 | AX30: 173 | AY30: 0 | AZ30: 985 | BA30: 496 | BB30: 200 | BC30: 349 | BD30: 573 | BE30: 118 | BF30: 51 | BG30: 0 | BH30: 59 | BI30: 38 | BJ30: 3132 | BK30: 172 | BL30: 48 | BM30: 170 | BN30: 155 | BO30: 860 | BP30: 287 | BQ30: 620 | BR30: 299 | BS30: 55 | BT30: 1292 | BU30: 538 | BV30: 155 | BW30: 128 | BX30: 277 | BY30: 155 | BZ30: 16 | CA30: 401 | CB30: 521 | CC30: 30 | CD30: N/A | CE30: 263 | CF30: 1167 | CG30: 123 | CH30: 359 | CI30: 134 | CJ30: 112 | CK30: 155 | CL30: 136 | CM30: 56 | CN30: 1077 | CO30: 281 | CP30: 320 | CQ30: 1180 | CR30: 574 | CS30: 155 | CT30: 368 | CU30: 115 | CV30: 255 | CW30: 600 | CX30: 656 | CY30: 143 | CZ30: 155 | DA30: 1062 | DB30: 381 | DC30: 183 | DD30: 340 | DE30: 408 | DF30: 137 | DG30: 85 | DH30: 155 | DI30: 81 | DJ30: 69
A31: Maryland | B31: 23 | C31: 5816472 | D31: 3717 | E31: 5068457 | F31: 21604 | G31: 549973 | H31: 20595 | I31: 154983 | J31: 1261 | K31: 1947 | L31: 760 | M31: 136 | N31: 8614 | O31: 1071 | P31: 881 | Q31: 4100 | R31: 21213 | S31: 9610 | T31: 4610 | U31: 610 | V31: 429 | W31: 3621 | X31: 1210 | Y31: 569 | Z31: 1726 | AA31: 715 | AB31: 606 | AC31: 332 | AD31: N/A | AE31: 3977 | AF31: 2167 | AG31: 1422 | AH31: 581 | AI31: 256 | AJ31: 0 | AK31: 132 | AL31: 330 | AM31: 1124 | AN31: 6260 | AO31: 638 | AP31: 11736 | AQ31: 7507 | AR31: 116 | AS31: 2522 | AT31: 463 | AU31: 378 | AV31: 15485 | AW31: 82 | AX31: 2297 | AY31: 0 | AZ31: 1800 | BA31: 5612 | BB31: 1061 | BC31: 589 | BD31: 20579 | BE31: 1431 | BF31: 1957 | BG31: 460 | BH31: 0 | BI31: 294 | BJ31: 8958 | BK31: 713 | BL31: 1123 | BM31: 359 | BN31: 159 | BO31: 2155 | BP31: 609 | BQ31: 516 | BR31: 1303 | BS31: 3437 | BT31: 2515 | BU31: 2430 | BV31: 474 | BW31: 444 | BX31: 1647 | BY31: 709 | BZ31: 389 | CA31: 1123 | CB31: 602 | CC31: 441 | CD31: 261 | CE31: N/A | CF31: 1805 | CG31: 973 | CH31: 707 | CI31: 706 | CJ31: 199 | CK31: 190 | CL31: 152 | CM31: 258 | CN31: 820 | CO31: 2244 | CP31: 453 | CQ31: 2585 | CR31: 2284 | CS31: 94 | CT31: 1035 | CU31: 447 | CV31: 426 | CW31: 2922 | CX31: 95 | CY31: 1139 | CZ31: 190 | DA31: 986 | DB31: 1271 | DC31: 831 | DD31: 598 | DE31: 2668 | DF31: 884 | DG31: 799 | DH31: 371 | DI31: 190 | DJ31: 249
A32: Massachusetts | B32: 24 | C32: 6580641 | D32: 3587 | E32: 5752166 | F32: 19793 | G32: 626380 | H32: 17354 | I32: 142577 | J32: 636 | K32: 890 | L32: 1972 | M32: 394 | N32: 12770 | O32: 980 | P32: 10525 | Q32: 506 | R32: 379 | S32: 12890 | T32: 2789 | U32: 1108 | V32: 188 | W32: 2886 | X32: 677 | Y32: 151 | Z32: 565 | AA32: 52 | AB32: 1556 | AC32: 3907 | AD32: 2381 | AE32: N/A | AF32: 1337 | AG32: 966 | AH32: 155 | AI32: 453 | AJ32: 49 | AK32: 182 | AL32: 787 | AM32: 13331 | AN32: 8046 | AO32: 521 | AP32: 19467 | AQ32: 2514 | AR32: 81 | AS32: 1829 | AT32: 297 | AU32: 1528 | AV32: 8236 | AW32: 6863 | AX32: 2477 | AY32: 194 | AZ32: 823 | BA32: 3694 | BB32: 1027 | BC32: 2534 | BD32: 4098 | BE32: 1653 | BF32: 385 | BG32: 584 | BH32: 264 | BI32: 4056 | BJ32: 7863 | BK32: 622 | BL32: 600 | BM32: 979 | BN32: 340 | BO32: 2994 | BP32: 438 | BQ32: 2062 | BR32: 505 | BS32: 219 | BT32: 2568 | BU32: 1129 | BV32: 564 | BW32: 164 | BX32: 1041 | BY32: 497 | BZ32: 251 | CA32: 429 | CB32: 87 | CC32: 742 | CD32: 1349 | CE32: 895 | CF32: N/A | CG32: 680 | CH32: 367 | CI32: 186 | CJ32: 218 | CK32: 81 | CL32: 189 | CM32: 544 | CN32: 2144 | CO32: 1874 | CP32: 364 | CQ32: 2432 | CR32: 1003 | CS32: 133 | CT32: 772 | CU32: 206 | CV32: 1359 | CW32: 1924 | CX32: 1317 | CY32: 1120 | CZ32: 326 | DA32: 342 | DB32: 1078 | DC32: 666 | DD32: 913 | DE32: 1470 | DF32: 696 | DG32: 569 | DH32: 445 | DI32: 404 | DJ32: 1883
A33: Michigan | B33: 25 | C33: 9778980 | D33: 4263 | E33: 8330990 | F33: 24803 | G33: 1268105 | H33: 23226 | I33: 133981 | J33: 2341 | K33: 1152 | L33: 7168 | M33: 906 | N33: 8085 | O33: 2363 | P33: 798 | Q33: 114 | R33: 274 | S33: 13146 | T33: 4270 | U33: 291 | V33: 242 | W33: 10047 | X33: 10976 | Y33: 993 | Z33: 805 | AA33: 3409 | AB33: 1284 | AC33: 261 | AD33: 2201 | AE33: 1720 | AF33: N/A | AG33: 1127 | AH33: 922 | AI33: 2206 | AJ33: 218 | AK33: 113 | AL33: 1354 | AM33: 446 | AN33: 1617 | AO33: 1318 | AP33: 5731 | AQ33: 3912 | AR33: 265 | AS33: 11318 | AT33: 705 | AU33: 811 | AV33: 2739 | AW33: 68 | AX33: 1822 | AY33: 66 | AZ33: 3259 | BA33: 8638 | BB33: 819 | BC33: 60 | BD33: 3057 | BE33: 2146 | BF33: 353 | BG33: 4768 | BH33: 1277 | BI33: 782 | BJ33: 8566 | BK33: 1013 | BL33: 685 | BM33: 3100 | BN33: 559 | BO33: 1721 | BP33: 967 | BQ33: 506 | BR33: 164 | BS33: 282 | BT33: 3306 | BU33: 1652 | BV33: 238 | BW33: 371 | BX33: 1702 | BY33: 2324 | BZ33: 495 | CA33: 608 | CB33: 1388 | CC33: 662 | CD33: 218 | CE33: 1094 | CF33: 764 | CG33: N/A | CH33: 512 | CI33: 671 | CJ33: 695 | CK33: 171 | CL33: 137 | CM33: 715 | CN33: 342 | CO33: 721 | CP33: 685 | CQ33: 1680 | CR33: 1056 | CS33: 202 | CT33: 2251 | CU33: 307 | CV33: 440 | CW33: 686 | CX33: 114 | CY33: 797 | CZ33: 77 | DA33: 997 | DB33: 2574 | DC33: 534 | DD33: 120 | DE33: 855 | DF33: 839 | DG33: 279 | DH33: 1111 | DI33: 862 | DJ33: 797
A34: Minnesota | B34: 26 | C34: 5315228 | D34: 2787 | E34: 4536303 | F34: 18312 | G34: 653012 | H34: 17074 | I34: 101042 | J34: 1299 | K34: 523 | L34: 3065 | M34: 375 | N34: 8086 | O34: 3565 | P34: 696 | Q34: 0 | R34: 310 | S34: 2372 | T34: 2235 | U34: 1277 | V34: 575 | W34: 5896 | X34: 2026 | Y34: 7220 | Z34: 924 | AA34: 57 | AB34: 791 | AC34: 187 | AD34: 1841 | AE34: 814 | AF34: 2212 | AG34: N/A | AH34: 202 | AI34: 1709 | AJ34: 1257 | AK34: 992 | AL34: 932 | AM34: 0 | AN34: 1038 | AO34: 322 | AP34: 1849 | AQ34: 1745 | AR34: 6672 | AS34: 2635 | AT34: 1212 | AU34: 781 | AV34: 1106 | AW34: 299 | AX34: 1705 | AY34: 3442 | AZ34: 1738 | BA34: 4001 | BB34: 429 | BC34: 77 | BD34: 1037 | BE34: 1685 | BF34: 0 | BG34: 17618 | BH34: 213 | BI34: 134 | BJ34: 6534 | BK34: 919 | BL34: 312 | BM34: 861 | BN34: 222 | BO34: 2263 | BP34: 1095 | BQ34: 360 | BR34: 139 | BS34: 353 | BT34: 752 | BU34: 1482 | BV34: 1179 | BW34: 531 | BX34: 1405 | BY34: 1057 | BZ34: 1774 | CA34: 513 | CB34: 103 | CC34: 858 | CD34: 136 | CE34: 2080 | CF34: 434 | CG34: 822 | CH34: N/A | CI34: 323 | CJ34: 750 | CK34: 900 | CL34: 477 | CM34: 542 | CN34: 139 | CO34: 546 | CP34: 224 | CQ34: 732 | CR34: 956 | CS34: 1485 | CT34: 1248 | CU34: 894 | CV34: 513 | CW34: 570 | CX34: 226 | CY34: 1448 | CZ34: 990 | DA34: 1141 | DB34: 1244 | DC34: 312 | DD34: 126 | DE34: 434 | DF34: 678 | DG34: 139 | DH34: 2358 | DI34: 213 | DJ34: 136
A35: Mississippi | B35: 27 | C35: 2947696 | D35: 2744 | E35: 2529377 | F35: 17940 | G35: 339807 | H35: 16126 | I35: 73500 | J35: 5141 | K35: 0 | L35: 710 | M35: 2680 | N35: 4371 | O35: 799 | P35: 106 | Q35: 0 | R35: 97 | S35: 4676 | T35: 2669 | U35: 184 | V35: 586 | W35: 2703 | X35: 1200 | Y35: 160 | Z35: 400 | AA35: 446 | AB35: 8588 | AC35: 163 | AD35: 379 | AE35: 67 | AF35: 1768 | AG35: 568 | AH35: N/A | AI35: 2634 | AJ35: 166 | AK35: 138 | AL35: 526 | AM35: 60 | AN35: 2127 | AO35: 86 | AP35: 1492 | AQ35: 1709 | AR35: 98 | AS35: 896 | AT35: 562 | AU35: 465 | AV35: 613 | AW35: 185 | AX35: 596 | AY35: 79 | AZ35: 11643 | BA35: 7230 | BB35: 454 | BC35: 0 | BD35: 1929 | BE35: 433 | BF35: 0 | BG35: 611 | BH35: 307 | BI35: 81 | BJ35: 7080 | BK35: 1870 | BL35: 198 | BM35: 509 | BN35: 1447 | BO35: 1070 | BP35: 426 | BQ35: 147 | BR35: 198 | BS35: 164 | BT35: 1396 | BU35: 865 | BV35: 191 | BW35: 597 | BX35: 933 | BY35: 621 | BZ35: 275 | CA35: 339 | CB35: 276 | CC35: 2293 | CD35: 167 | CE35: 262 | CF35: 113 | CG35: 1071 | CH35: 385 | CI35: N/A | CJ35: 1581 | CK35: 168 | CL35: 159 | CM35: 342 | CN35: 117 | CO35: 1495 | CP35: 102 | CQ35: 660 | CR35: 609 | CS35: 118 | CT35: 703 | CU35: 352 | CV35: 768 | CW35: 434 | CX35: 229 | CY35: 469 | CZ35: 129 | DA35: 2856 | DB35: 2491 | DC35: 724 | DD35: 198 | DE35: 1285 | DF35: 309 | DG35: 198 | DH35: 521 | DI35: 287 | DJ35: 108
A36: Missouri | B36: 28 | C36: 5951913 | D36: 3866 | E36: 4965459 | F36: 21306 | G36: 801093 | H36: 19635 | I36: 162930 | J36: 1333 | K36: 2186 | L36: 2297 | M36: 9434 | N36: 10717 | O36: 3798 | P36: 410 | Q36: 234 | R36: 144 | S36: 8374 | T36: 3451 | U36: 2114 | V36: 596 | W36: 22001 | X36: 4184 | Y36: 5956 | Z36: 20218 | AA36: 2291 | AB36: 1178 | AC36: 996 | AD36: 1246 | AE36: 810 | AF36: 2964 | AG36: 2798 | AH36: 1110 | AI36: N/A | AJ36: 511 | AK36: 1999 | AL36: 836 | AM36: 35 | AN36: 960 | AO36: 451 | AP36: 2834 | AQ36: 3988 | AR36: 636 | AS36: 3557 | AT36: 5298 | AU36: 1186 | AV36: 1535 | AW36: 361 | AX36: 2856 | AY36: 527 | AZ36: 3122 | BA36: 9278 | BB36: 3287 | BC36: 318 | BD36: 2609 | BE36: 2312 | BF36: 148 | BG36: 2636 | BH36: 810 | BI36: 826 | BJ36: 8034 | BK36: 768 | BL36: 1289 | BM36: 741 | BN36: 2224 | BO36: 2409 | BP36: 1371 | BQ36: 331 | BR36: 314 | BS36: 172 | BT36: 1990 | BU36: 1391 | BV36: 1271 | BW36: 478 | BX36: 2893 | BY36: 1267 | BZ36: 1324 | CA36: 3673 | CB36: 1067 | CC36: 651 | CD36: 1247 | CE36: 717 | CF36: 486 | CG36: 1169 | CH36: 1265 | CI36: 532 | CJ36: N/A | CK36: 506 | CL36: 833 | CM36: 366 | CN36: 58 | CO36: 536 | CP36: 309 | CQ36: 918 | CR36: 1420 | CS36: 462 | CT36: 1317 | CU36: 2199 | CV36: 899 | CW36: 639 | CX36: 582 | CY36: 1625 | CZ36: 542 | DA36: 1350 | DB36: 2841 | DC36: 1733 | DD36: 413 | DE36: 1081 | DF36: 1093 | DG36: 181 | DH36: 999 | DI36: 452 | DJ36: 958
A37: Montana | B37: 29 | C37: 995544 | D37: 947 | E37: 829489 | F37: 8669 | G37: 126463 | H37: 7466 | I37: 37690 | J37: 31 | K37: 726 | L37: 1548 | M37: 63 | N37: 5428 | O37: 2135 | P37: 0 | Q37: 0 | R37: 0 | S37: 1875 | T37: 292 | U37: 556 | V37: 3385 | W37: 542 | X37: 163 | Y37: 415 | Z37: 224 | AA37: 367 | AB37: 0 | AC37: 225 | AD37: 33 | AE37: 97 | AF37: 822 | AG37: 481 | AH37: 32 | AI37: 447 | AJ37: N/A | AK37: 108 | AL37: 968 | AM37: 115 | AN37: 156 | AO37: 259 | AP37: 482 | AQ37: 1082 | AR37: 977 | AS37: 402 | AT37: 1018 | AU37: 2950 | AV37: 457 | AW37: 0 | AX37: 230 | AY37: 191 | AZ37: 45 | BA37: 1393 | BB37: 260 | BC37: 87 | BD37: 156 | BE37: 4783 | BF37: 0 | BG37: 750 | BH37: 934 | BI37: 0 | BJ37: 4305 | BK37: 55 | BL37: 442 | BM37: 938 | BN37: 102 | BO37: 2229 | BP37: 896 | BQ37: 157 | BR37: 157 | BS37: 157 | BT37: 1029 | BU37: 270 | BV37: 572 | BW37: 1349 | BX37: 371 | BY37: 164 | BZ37: 384 | CA37: 268 | CB37: 352 | CC37: 157 | CD37: 269 | CE37: 65 | CF37: 109 | CG37: 760 | CH37: 297 | CI37: 58 | CJ37: 385 | CK37: N/A | CL37: 149 | CM37: 499 | CN37: 177 | CO37: 198 | CP37: 178 | CQ37: 371 | CR37: 808 | CS37: 604 | CT37: 332 | CU37: 948 | CV37: 1687 | CW37: 362 | CX37: 157 | CY37: 304 | CZ37: 142 | DA37: 40 | DB37: 612 | DC37: 261 | DD37: 135 | DE37: 153 | DF37: 1555 | DG37: 157 | DH37: 425 | DI37: 387 | DJ37: 157
A38: Nebraska | B38: 30 | C38: 1829420 | D38: 2101 | E38: 1540361 | F38: 9074 | G38: 237937 | H38: 9736 | I38: 43266 | J38: 245 | K38: 626 | L38: 2406 | M38: 363 | N38: 3438 | O38: 2023 | P38: 0 | Q38: 0 | R38: 0 | S38: 1368 | T38: 786 | U38: 165 | V38: 315 | W38: 1193 | X38: 290 | Y38: 6815 | Z38: 3103 | AA38: 131 | AB38: 411 | AC38: 68 | AD38: 129 | AE38: 195 | AF38: 258 | AG38: 1489 | AH38: 176 | AI38: 2223 | AJ38: 108 | AK38: N/A | AL38: 233 | AM38: 0 | AN38: 524 | AO38: 158 | AP38: 318 | AQ38: 874 | AR38: 497 | AS38: 563 | AT38: 587 | AU38: 106 | AV38: 702 | AW38: 0 | AX38: 456 | AY38: 2507 | AZ38: 232 | BA38: 3130 | BB38: 229 | BC38: 79 | BD38: 1076 | BE38: 1327 | BF38: 111 | BG38: 316 | BH38: 917 | BI38: 0 | BJ38: 4512 | BK38: 275 | BL38: 531 | BM38: 1120 | BN38: 317 | BO38: 1425 | BP38: 791 | BQ38: 149 | BR38: 149 | BS38: 149 | BT38: 978 | BU38: 482 | BV38: 149 | BW38: 374 | BX38: 546 | BY38: 214 | BZ38: 2803 | CA38: 822 | CB38: 133 | CC38: 371 | CD38: 90 | CE38: 126 | CF38: 112 | CG38: 197 | CH38: 1049 | CI38: 132 | CJ38: 836 | CK38: 156 | CL38: N/A | CM38: 178 | CN38: 149 | CO38: 363 | CP38: 187 | CQ38: 246 | CR38: 414 | CS38: 492 | CT38: 373 | CU38: 408 | CV38: 113 | CW38: 528 | CX38: 149 | CY38: 381 | CZ38: 677 | DA38: 184 | DB38: 1218 | DC38: 230 | DD38: 131 | DE38: 758 | DF38: 673 | DG38: 152 | DH38: 218 | DI38: 371 | DJ38: 149
A39: Nevada | B39: 31 | C39: 2725280 | D39: 3005 | E39: 2105070 | F39: 21984 | G39: 481496 | H39: 19389 | I39: 124285 | J39: 761 | K39: 2161 | L39: 8748 | M39: 353 | N39: 49978 | O39: 6402 | P39: 143 | Q39: 373 | R39: 468 | S39: 3381 | T39: 745 | U39: 2053 | V39: 1503 | W39: 2822 | X39: 362 | Y39: 714 | Z39: 1202 | AA39: 952 | AB39: 421 | AC39: 209 | AD39: 934 | AE39: 318 | AF39: 1235 | AG39: 1157 | AH39: 783 | AI39: 694 | AJ39: 1086 | AK39: 714 | AL39: N/A | AM39: 175 | AN39: 912 | AO39: 1138 | AP39: 3521 | AQ39: 767 | AR39: 702 | AS39: 1407 | AT39: 1520 | AU39: 3101 | AV39: 1601 | AW39: 336 | AX39: 480 | AY39: 0 | AZ39: 1699 | BA39: 5484 | BB39: 4605 | BC39: 121 | BD39: 1135 | BE39: 2997 | BF39: 100 | BG39: 1046 | BH39: 766 | BI39: 237 | BJ39: 9956 | BK39: 724 | BL39: 1047 | BM39: 2540 | BN39: 404 | BO39: 7637 | BP39: 2736 | BQ39: 181 | BR39: 521 | BS39: 759 | BT39: 1488 | BU39: 477 | BV39: 949 | BW39: 743 | BX39: 1412 | BY39: 341 | BZ39: 592 | CA39: 1085 | CB39: 651 | CC39: 296 | CD39: 286 | CE39: 689 | CF39: 267 | CG39: 574 | CH39: 718 | CI39: 658 | CJ39: 516 | CK39: 605 | CL39: 551 | CM39: N/A | CN39: 230 | CO39: 600 | CP39: 665 | CQ39: 1460 | CR39: 589 | CS39: 661 | CT39: 791 | CU39: 1384 | CV39: 1186 | CW39: 1078 | CX39: 548 | CY39: 403 | CZ39: 200 | DA39: 822 | DB39: 1772 | DC39: 1899 | DD39: 222 | DE39: 832 | DF39: 1103 | DG39: 161 | DH39: 666 | DI39: 706 | DJ39: 356
A40: New Hampshire | B40: 32 | C40: 1309203 | D40: 1504 | E40: 1127376 | F40: 9730 | G40: 125118 | H40: 9101 | I40: 50484 | J40: 0 | K40: 437 | L40: 440 | M40: 0 | N40: 1514 | O40: 572 | P40: 1345 | Q40: 0 | R40: 101 | S40: 2746 | T40: 470 | U40: 43 | V40: 20 | W40: 673 | X40: 297 | Y40: 53 | Z40: 102 | AA40: 284 | AB40: 7 | AC40: 6118 | AD40: 33 | AE40: 18990 | AF40: 426 | AG40: 0 | AH40: 0 | AI40: 289 | AJ40: 0 | AK40: 110 | AL40: 0 | AM40: N/A | AN40: 591 | AO40: 223 | AP40: 2905 | AQ40: 1609 | AR40: 0 | AS40: 324 | AT40: 186 | AU40: 208 | AV40: 890 | AW40: 1248 | AX40: 323 | AY40: 0 | AZ40: 77 | BA40: 2150 | BB40: 557 | BC40: 2960 | BD40: 660 | BE40: 113 | BF40: 80 | BG40: 239 | BH40: 71 | BI40: 75 | BJ40: 5282 | BK40: 181 | BL40: 378 | BM40: 413 | BN40: 181 | BO40: 935 | BP40: 637 | BQ40: 478 | BR40: 181 | BS40: 131 | BT40: 1312 | BU40: 324 | BV40: 78 | BW40: 38 | BX40: 608 | BY40: 365 | BZ40: 89 | CA40: 161 | CB40: 250 | CC40: 13 | CD40: 1749 | CE40: 57 | CF40: 3350 | CG40: 441 | CH40: 181 | CI40: 181 | CJ40: 262 | CK40: 181 | CL40: 136 | CM40: 181 | CN40: N/A | CO40: 330 | CP40: 279 | CQ40: 1027 | CR40: 1456 | CS40: 181 | CT40: 240 | CU40: 266 | CV40: 299 | CW40: 561 | CX40: 819 | CY40: 257 | CZ40: 181 | DA40: 133 | DB40: 1715 | DC40: 762 | DD40: 1339 | DE40: 433 | DF40: 119 | DG40: 131 | DH40: 277 | DI40: 120 | DJ40: 123
A41: New Jersey | B41: 33 | C41: 8772744 | D41: 4541 | E41: 7929570 | F41: 23298 | G41: 655465 | H41: 21808 | I41: 130223 | J41: 779 | K41: 359 | L41: 1328 | M41: 57 | N41: 4330 | O41: 380 | P41: 3466 | Q41: 1921 | R41: 840 | S41: 10649 | T41: 3002 | U41: 22 | V41: 113 | W41: 2052 | X41: 1039 | Y41: 357 | Z41: 426 | AA41: 631 | AB41: 339 | AC41: 430 | AD41: 3474 | AE41: 4907 | AF41: 324 | AG41: 570 | AH41: 106 | AI41: 384 | AJ41: 67 | AK41: 35 | AL41: 908 | AM41: 126 | AN41: N/A | AO41: 45 | AP41: 40495 | AQ41: 3236 | AR41: 55 | AS41: 1452 | AT41: 1540 | AU41: 760 | AV41: 23597 | AW41: 429 | AX41: 2372 | AY41: 581 | AZ41: 1400 | BA41: 2509 | BB41: 425 | BC41: 35 | BD41: 5024 | BE41: 1847 | BF41: 297 | BG41: 680 | BH41: 23 | BI41: 2574 | BJ41: 7649 | BK41: 509 | BL41: 437 | BM41: 704 | BN41: 70 | BO41: 1070 | BP41: 264 | BQ41: 1711 | BR41: 1383 | BS41: 637 | BT41: 2430 | BU41: 1032 | BV41: 41 | BW41: 134 | BX41: 874 | BY41: 559 | BZ41: 405 | CA41: 405 | CB41: 614 | CC41: 343 | CD41: 388 | CE41: 1241 | CF41: 1730 | CG41: 191 | CH41: 429 | CI41: 165 | CJ41: 363 | CK41: 112 | CL41: 58 | CM41: 526 | CN41: 219 | CO41: N/A | CP41: 75 | CQ41: 4293 | CR41: 1238 | CS41: 93 | CT41: 596 | CU41: 1537 | CV41: 587 | CW41: 2976 | CX41: 410 | CY41: 1386 | CZ41: 644 | DA41: 612 | DB41: 1335 | DC41: 341 | DD41: 57 | DE41: 1899 | DF41: 1244 | DG41: 201 | DH41: 457 | DI41: 30 | DJ41: 1462
A42: New Mexico | B42: 34 | C42: 2060595 | D42: 2119 | E42: 1769341 | F42: 11461 | G42: 226243 | H42: 12069 | I42: 54693 | J42: 787 | K42: 320 | L42: 6391 | M42: 410 | N42: 4536 | O42: 4780 | P42: 280 | Q42: 100 | R42: 25 | S42: 4707 | T42: 192 | U42: 168 | V42: 355 | W42: 790 | X42: 660 | Y42: 384 | Z42: 672 | AA42: 159 | AB42: 790 | AC42: 57 | AD42: 505 | AE42: 303 | AF42: 602 | AG42: 284 | AH42: 451 | AI42: 1216 | AJ42: 139 | AK42: 194 | AL42: 604 | AM42: 268 | AN42: 252 | AO42: N/A | AP42: 1111 | AQ42: 335 | AR42: 41 | AS42: 1178 | AT42: 1076 | AU42: 932 | AV42: 822 | AW42: 0 | AX42: 325 | AY42: 509 | AZ42: 338 | BA42: 11955 | BB42: 1382 | BC42: 81 | BD42: 1560 | BE42: 1251 | BF42: 0 | BG42: 321 | BH42: 95 | BI42: 429 | BJ42: 5877 | BK42: 509 | BL42: 264 | BM42: 1673 | BN42: 286 | BO42: 1440 | BP42: 1546 | BQ42: 250 | BR42: 136 | BS42: 51 | BT42: 2184 | BU42: 184 | BV42: 127 | BW42: 352 | BX42: 530 | BY42: 524 | BZ42: 331 | CA42: 537 | CB42: 160 | CC42: 883 | CD42: 80 | CE42: 355 | CF42: 298 | CG42: 490 | CH42: 428 | CI42: 630 | CJ42: 793 | CK42: 162 | CL42: 220 | CM42: 853 | CN42: 259 | CO42: 271 | CP42: N/A | CQ42: 618 | CR42: 373 | CS42: 82 | CT42: 1049 | CU42: 568 | CV42: 481 | CW42: 666 | CX42: 185 | CY42: 260 | CZ42: 547 | DA42: 274 | DB42: 2917 | DC42: 889 | DD42: 103 | DE42: 1330 | DF42: 575 | DG42: 185 | DH42: 514 | DI42: 100 | DJ42: 466
A43: New York | B43: 35 | C43: 19352153 | D43: 6112 | E43: 17202134 | F43: 34343 | G43: 1723117 | H43: 30910 | I43: 270053 | J43: 1364 | K43: 4002 | L43: 4146 | M43: 247 | N43: 24623 | O43: 3596 | P43: 14595 | Q43: 477 | R43: 3936 | S43: 27392 | T43: 7592 | U43: 1598 | V43: 607 | W43: 8017 | X43: 3040 | Y43: 955 | Z43: 1437 | AA43: 1753 | AB43: 1083 | AC43: 1345 | AD43: 7321 | AE43: 15073 | AF43: 5191 | AG43: 1059 | AH43: 773 | AI43: 3310 | AJ43: 421 | AK43: 78 | AL43: 600 | AM43: 2760 | AN43: 42574 | AO43: 646 | AP43: N/A | AQ43: 10544 | AR43: 77 | AS43: 4625 | AT43: 1327 | AU43: 1055 | AV43: 22895 | AW43: 3222 | AX43: 5952 | AY43: 0 | AZ43: 1279 | BA43: 11231 | BB43: 622 | BC43: 2764 | BD43: 7939 | BE43: 2614 | BF43: 921 | BG43: 979 | BH43: 396 | BI43: 7321 | BJ43: 11861 | BK43: 864 | BL43: 2016 | BM43: 2468 | BN43: 203 | BO43: 2557 | BP43: 976 | BQ43: 2921 | BR43: 284 | BS43: 1392 | BT43: 3450 | BU43: 1925 | BV43: 734 | BW43: 472 | BX43: 2204 | BY43: 1128 | BZ43: 658 | CA43: 906 | CB43: 808 | CC43: 465 | CD43: 536 | CE43: 1575 | CF43: 2292 | CG43: 1445 | CH43: 631 | CI43: 800 | CJ43: 1260 | CK43: 424 | CL43: 108 | CM43: 382 | CN43: 1059 | CO43: 4802 | CP43: 445 | CQ43: N/A | CR43: 2568 | CS43: 129 | CT43: 1103 | CU43: 652 | CV43: 716 | CW43: 3206 | CX43: 1538 | CY43: 1542 | CZ43: 185 | DA43: 624 | DB43: 2384 | DC43: 489 | DD43: 1025 | DE43: 2109 | DF43: 840 | DG43: 689 | DH43: 507 | DI43: 370 | DJ43: 1791
A44: North Carolina | B44: 36 | C44: 9640490 | D44: 5097 | E44: 8167830 | F44: 27074 | G44: 1149080 | H44: 24801 | I44: 273149 | J44: 4329 | K44: 1458 | L44: 3493 | M44: 861 | N44: 13883 | O44: 4790 | P44: 4914 | Q44: 2180 | R44: 1801 | S44: 26365 | T44: 16823 | U44: 1566 | V44: 334 | W44: 6378 | X44: 4532 | Y44: 775 | Z44: 1595 | AA44: 1531 | AB44: 919 | AC44: 1259 | AD44: 9005 | AE44: 3710 | AF44: 6161 | AG44: 1523 | AH44: 2377 | AI44: 2623 | AJ44: 244 | AK44: 628 | AL44: 1627 | AM44: 754 | AN44: 11468 | AO44: 1138 | AP44: 19891 | AQ44: N/A | AR44: 206 | AS44: 9337 | AT44: 1263 | AU44: 1333 | AV44: 12179 | AW44: 290 | AX44: 25532 | AY44: 351 | AZ44: 9230 | BA44: 12638 | BB44: 1189 | BC44: 445 | BD44: 26759 | BE44: 5915 | BF44: 2677 | BG44: 2266 | BH44: 604 | BI44: 2025 | BJ44: 13136 | BK44: 1544 | BL44: 925 | BM44: 1189 | BN44: 649 | BO44: 2813 | BP44: 2047 | BQ44: 1990 | BR44: 1732 | BS44: 687 | BT44: 3750 | BU44: 2851 | BV44: 921 | BW44: 256 | BX44: 2177 | BY44: 2259 | BZ44: 524 | CA44: 748 | CB44: 794 | CC44: 758 | CD44: 972 | CE44: 2221 | CF44: 1158 | CG44: 2547 | CH44: 838 | CI44: 1092 | CJ44: 1742 | CK44: 306 | CL44: 628 | CM44: 807 | CN44: 525 | CO44: 4262 | CP44: 705 | CQ44: 3951 | CR44: N/A | CS44: 232 | CT44: 2484 | CU44: 753 | CV44: 772 | CW44: 2356 | CX44: 198 | CY44: 4732 | CZ44: 186 | DA44: 2122 | DB44: 2381 | DC44: 1040 | DD44: 291 | DE44: 4229 | DF44: 2630 | DG44: 985 | DH44: 980 | DI44: 687 | DJ44: 1218
A45: North Dakota | B45: 37 | C45: 689838 | D45: 1379 | E45: 563978 | F45: 6361 | G45: 84294 | H45: 5380 | I45: 38213 | J45: 83 | K45: 70 | L45: 1571 | M45: 0 | N45: 999 | O45: 546 | P45: 65 | Q45: 0 | R45: 70 | S45: 950 | T45: 98 | U45: 160 | V45: 540 | W45: 799 | X45: 55 | Y45: 458 | Z45: 161 | AA45: 22 | AB45: 18 | AC45: 98 | AD45: 232 | AE45: 187 | AF45: 757 | AG45: 15257 | AH45: 72 | AI45: 1490 | AJ45: 1776 | AK45: 950 | AL45: 854 | AM45: 0 | AN45: 140 | AO45: 161 | AP45: 331 | AQ45: 231 | AR45: N/A | AS45: 6 | AT45: 280 | AU45: 724 | AV45: 114 | AW45: 244 | AX45: 14 | AY45: 1754 | AZ45: 746 | BA45: 1414 | BB45: 43 | BC45: 758 | BD45: 403 | BE45: 1604 | BF45: 0 | BG45: 543 | BH45: 365 | BI45: 0 | BJ45: 3616 | BK45: 142 | BL45: 105 | BM45: 788 | BN45: 141 | BO45: 460 | BP45: 293 | BQ45: 100 | BR45: 141 | BS45: 112 | BT45: 860 | BU45: 154 | BV45: 148 | BW45: 521 | BX45: 523 | BY45: 77 | BZ45: 316 | CA45: 122 | CB45: 44 | CC45: 27 | CD45: 176 | CE45: 311 | CF45: 281 | CG45: 571 | CH45: 2266 | CI45: 109 | CJ45: 1346 | CK45: 709 | CL45: 764 | CM45: 572 | CN45: 141 | CO45: 231 | CP45: 228 | CQ45: 331 | CR45: 243 | CS45: N/A | CT45: 14 | CU45: 260 | CV45: 529 | CW45: 157 | CX45: 255 | CY45: 28 | CZ45: 822 | DA45: 694 | DB45: 756 | DC45: 60 | DD45: 1014 | DE45: 309 | DF45: 796 | DG45: 141 | DH45: 327 | DI45: 269 | DJ45: 141
A46: Ohio | B46: 38 | C46: 11414635 | D46: 5725 | E46: 9735390 | F46: 29715 | G46: 1440815 | H46: 28423 | I46: 196391 | J46: 3705 | K46: 2207 | L46: 4929 | M46: 884 | N46: 8995 | O46: 3180 | P46: 1355 | Q46: 1079 | R46: 985 | S46: 16366 | T46: 8052 | U46: 1198 | V46: 412 | W46: 9510 | X46: 13534 | Y46: 1039 | Z46: 1166 | AA46: 13227 | AB46: 2214 | AC46: 1189 | AD46: 5026 | AE46: 2189 | AF46: 16336 | AG46: 1122 | AH46: 1017 | AI46: 3026 | AJ46: 276 | AK46: 1052 | AL46: 907 | AM46: 189 | AN46: 4703 | AO46: 1361 | AP46: 8732 | AQ46: 5498 | AR46: 453 | AS46: N/A | AT46: 858 | AU46: 432 | AV46: 14147 | AW46: 435 | AX46: 2445 | AY46: 47 | AZ46: 3542 | BA46: 11760 | BB46: 197 | BC46: 364 | BD46: 3193 | BE46: 2862 | BF46: 7820 | BG46: 974 | BH46: 202 | BI46: 1403 | BJ46: 9611 | BK46: 2297 | BL46: 1757 | BM46: 1912 | BN46: 604 | BO46: 1803 | BP46: 1230 | BQ46: 887 | BR46: 696 | BS46: 722 | BT46: 2560 | BU46: 2973 | BV46: 591 | BW46: 295 | BX46: 2157 | BY46: 2157 | BZ46: 765 | CA46: 617 | CB46: 2976 | CC46: 1011 | CD46: 889 | CE46: 2570 | CF46: 808 | CG46: 2656 | CH46: 597 | CI46: 865 | CJ46: 1068 | CK46: 292 | CL46: 656 | CM46: 525 | CN46: 156 | CO46: 2119 | CP46: 817 | CQ46: 1741 | CR46: 1525 | CS46: 346 | CT46: N/A | CU46: 417 | CV46: 307 | CW46: 2612 | CX46: 384 | CY46: 1029 | CZ46: 76 | DA46: 1429 | DB46: 2739 | DC46: 211 | DD46: 350 | DE46: 1055 | DF46: 2150 | DG46: 2219 | DH46: 725 | DI46: 210 | DJ46: 910
A47: Oklahoma | B47: 39 | C47: 3762311 | D47: 2764 | E47: 3107367 | F47: 14635 | G47: 531347 | H47: 12812 | I47: 108972 | J47: 1030 | K47: 1279 | L47: 2974 | M47: 5777 | N47: 8950 | O47: 4717 | P47: 0 | Q47: 380 | R47: 151 | S47: 5011 | T47: 2581 | U47: 189 | V47: 905 | W47: 1100 | X47: 1490 | Y47: 1088 | Z47: 7065 | AA47: 1354 | AB47: 2562 | AC47: 167 | AD47: 750 | AE47: 1233 | AF47: 1347 | AG47: 906 | AH47: 1850 | AI47: 5210 | AJ47: 798 | AK47: 300 | AL47: 1101 | AM47: 549 | AN47: 1523 | AO47: 1244 | AP47: 1981 | AQ47: 1961 | AR47: 308 | AS47: 1148 | AT47: N/A | AU47: 1261 | AV47: 494 | AW47: 0 | AX47: 569 | AY47: 108 | AZ47: 2471 | BA47: 25508 | BB47: 2588 | BC47: 197 | BD47: 1749 | BE47: 1574 | BF47: 368 | BG47: 1061 | BH47: 45 | BI47: 0 | BJ47: 6570 | BK47: 467 | BL47: 600 | BM47: 1435 | BN47: 1187 | BO47: 2184 | BP47: 1556 | BQ47: 149 | BR47: 288 | BS47: 148 | BT47: 1525 | BU47: 935 | BV47: 295 | BW47: 600 | BX47: 487 | BY47: 936 | BZ47: 689 | CA47: 1535 | CB47: 898 | CC47: 1354 | CD47: 260 | CE47: 685 | CF47: 906 | CG47: 671 | CH47: 469 | CI47: 752 | CJ47: 1349 | CK47: 710 | CL47: 208 | CM47: 799 | CN47: 383 | CO47: 748 | CP47: 712 | CQ47: 936 | CR47: 912 | CS47: 340 | CT47: 533 | CU47: N/A | CV47: 771 | CW47: 285 | CX47: 149 | CY47: 346 | CZ47: 154 | DA47: 1035 | DB47: 2960 | DC47: 1465 | DD47: 316 | DE47: 829 | DF47: 575 | DG47: 298 | DH47: 758 | DI47: 68 | DJ47: 149
A48: Oregon | B48: 40 | C48: 3857465 | D48: 2984 | E48: 3158450 | F48: 19251 | G48: 560673 | H48: 17729 | I48: 118925 | J48: 373 | K48: 2513 | L48: 7954 | M48: 165 | N48: 31862 | O48: 4472 | P48: 381 | Q48: 0 | R48: 696 | S48: 1660 | T48: 1032 | U48: 2501 | V48: 5093 | W48: 1676 | X48: 1380 | Y48: 834 | Z48: 556 | AA48: 202 | AB48: 227 | AC48: 446 | AD48: 457 | AE48: 760 | AF48: 570 | AG48: 1792 | AH48: 186 | AI48: 403 | AJ48: 2192 | AK48: 570 | AL48: 5935 | AM48: 39 | AN48: 385 | AO48: 920 | AP48: 2379 | AQ48: 1482 | AR48: 42 | AS48: 1411 | AT48: 725 | AU48: N/A | AV48: 904 | AW48: 177 | AX48: 461 | AY48: 119 | AZ48: 802 | BA48: 3347 | BB48: 4793 | BC48: 367 | BD48: 676 | BE48: 21224 | BF48: 593 | BG48: 426 | BH48: 765 | BI48: 152 | BJ48: 7769 | BK48: 425 | BL48: 953 | BM48: 2060 | BN48: 158 | BO48: 3767 | BP48: 2133 | BQ48: 457 | BR48: 193 | BS48: 919 | BT48: 620 | BU48: 523 | BV48: 813 | BW48: 1880 | BX48: 1192 | BY48: 1000 | BZ48: 781 | CA48: 534 | CB48: 261 | CC48: 229 | CD48: 353 | CE48: 422 | CF48: 604 | CG48: 338 | CH48: 799 | CI48: 237 | CJ48: 269 | CK48: 968 | CL48: 448 | CM48: 2774 | CN48: 65 | CO48: 327 | CP48: 676 | CQ48: 1032 | CR48: 1046 | CS48: 85 | CT48: 789 | CU48: 546 | CV48: N/A | CW48: 535 | CX48: 214 | CY48: 364 | CZ48: 143 | DA48: 583 | DB48: 1277 | DC48: 2328 | DD48: 435 | DE48: 510 | DF48: 3153 | DG48: 502 | DH48: 284 | DI48: 664 | DJ48: 177
A49: Pennsylvania | B49: 41 | C49: 12630082 | D49: 4558 | E49: 11107110 | F49: 28998 | G49: 1252378 | H49: 26347 | I49: 215500 | J49: 1926 | K49: 1658 | L49: 3529 | M49: 573 | N49: 7772 | O49: 2574 | P49: 3311 | Q49: 4814 | R49: 2921 | S49: 14631 | T49: 4337 | U49: 245 | V49: 359 | W49: 3749 | X49: 1599 | Y49: 125 | Z49: 967 | AA49: 1233 | AB49: 694 | AC49: 988 | AD49: 17529 | AE49: 5900 | AF49: 2642 | AG49: 1169 | AH49: 55 | AI49: 1171 | AJ49: 135 | AK49: 214 | AL49: 1600 | AM49: 1138 | AN49: 33791 | AO49: 1001 | AP49: 32898 | AQ49: 6380 | AR49: 166 | AS49: 14319 | AT49: 378 | AU49: 234 | AV49: N/A | AW49: 771 | AX49: 3023 | AY49: 159 | AZ49: 1273 | BA49: 6768 | BB49: 1276 | BC49: 1012 | BD49: 11960 | BE49: 1787 | BF49: 6762 | BG49: 1550 | BH49: 434 | BI49: 7847 | BJ49: 8872 | BK49: 1318 | BL49: 857 | BM49: 1256 | BN49: 315 | BO49: 1558 | BP49: 1488 | BQ49: 905 | BR49: 1468 | BS49: 830 | BT49: 2565 | BU49: 1703 | BV49: 180 | BW49: 350 | BX49: 1137 | BY49: 680 | BZ49: 177 | CA49: 860 | CB49: 604 | CC49: 431 | CD49: 675 | CE49: 3084 | CF49: 1368 | CG49: 1235 | CH49: 588 | CI49: 49 | CJ49: 575 | CK49: 169 | CL49: 187 | CM49: 999 | CN49: 609 | CO49: 4576 | CP49: 740 | CQ49: 4482 | CR49: 1734 | CS49: 195 | CT49: 2479 | CU49: 253 | CV49: 220 | CW49: N/A | CX49: 472 | CY49: 869 | CZ49: 206 | DA49: 533 | DB49: 1688 | DC49: 804 | DD49: 873 | DE49: 2213 | DF49: 1202 | DG49: 2075 | DH49: 722 | DI49: 439 | DJ49: 2646
A50: Rhode Island | B50: 42 | C50: 1040527 | D50: 1533 | E50: 899551 | F50: 9890 | G50: 101165 | H50: 8498 | I50: 33446 | J50: 20 | K50: 0 | L50: 93 | M50: 0 | N50: 2146 | O50: 332 | P50: 4170 | Q50: 0 | R50: 313 | S50: 2752 | T50: 168 | U50: 120 | V50: 0 | W50: 385 | X50: 0 | Y50: 0 | Z50: 27 | AA50: 286 | AB50: 24 | AC50: 279 | AD50: 482 | AE50: 11253 | AF50: 230 | AG50: 131 | AH50: 0 | AI50: 210 | AJ50: 0 | AK50: 188 | AL50: 25 | AM50: 611 | AN50: 1219 | AO50: 36 | AP50: 3603 | AQ50: 478 | AR50: 0 | AS50: 63 | AT50: 0 | AU50: 139 | AV50: 735 | AW50: N/A | AX50: 481 | AY50: 0 | AZ50: 120 | BA50: 823 | BB50: 0 | BC50: 53 | BD50: 1008 | BE50: 287 | BF50: 0 | BG50: 135 | BH50: 21 | BI50: 116 | BJ50: 3551 | BK50: 44 | BL50: 200 | BM50: 151 | BN50: 200 | BO50: 811 | BP50: 315 | BQ50: 1101 | BR50: 200 | BS50: 381 | BT50: 1143 | BU50: 211 | BV50: 145 | BW50: 200 | BX50: 382 | BY50: 200 | BZ50: 200 | CA50: 47 | CB50: 405 | CC50: 45 | CD50: 249 | CE50: 325 | CF50: 1937 | CG50: 169 | CH50: 131 | CI50: 200 | CJ50: 158 | CK50: 200 | CL50: 250 | CM50: 48 | CN50: 385 | CO50: 641 | CP50: 58 | CQ50: 1335 | CR50: 508 | CS50: 200 | CT50: 80 | CU50: 200 | CV50: 235 | CW50: 552 | CX50: N/A | CY50: 609 | CZ50: 200 | DA50: 199 | DB50: 433 | DC50: 200 | DD50: 76 | DE50: 569 | DF50: 320 | DG50: 200 | DH50: 124 | DI50: 32 | DJ50: 186
A51: South Carolina | B51: 43 | C51: 4668886 | D51: 3434 | E51: 3929626 | F51: 20572 | G51: 564350 | H51: 20053 | I51: 156705 | J51: 1665 | K51: 1244 | L51: 2222 | M51: 839 | N51: 5979 | O51: 1915 | P51: 1590 | Q51: 697 | R51: 435 | S51: 11552 | T51: 18570 | U51: 638 | V51: 198 | W51: 2125 | X51: 3802 | Y51: 643 | Z51: 1064 | AA51: 1924 | AB51: 2709 | AC51: 2077 | AD51: 3565 | AE51: 2313 | AF51: 2966 | AG51: 757 | AH51: 1407 | AI51: 1884 | AJ51: 93 | AK51: 158 | AL51: 1025 | AM51: 917 | AN51: 6517 | AO51: 1052 | AP51: 10746 | AQ51: 24764 | AR51: 656 | AS51: 4388 | AT51: 555 | AU51: 255 | AV51: 6497 | AW51: 538 | AX51: N/A | AY51: 816 | AZ51: 3550 | BA51: 5351 | BB51: 566 | BC51: 298 | BD51: 9377 | BE51: 1629 | BF51: 1345 | BG51: 832 | BH51: 0 | BI51: 1070 | BJ51: 9611 | BK51: 635 | BL51: 1016 | BM51: 1160 | BN51: 526 | BO51: 1473 | BP51: 1059 | BQ51: 729 | BR51: 492 | BS51: 352 | BT51: 2367 | BU51: 3616 | BV51: 493 | BW51: 321 | BX51: 1128 | BY51: 1911 | BZ51: 437 | CA51: 855 | CB51: 991 | CC51: 2265 | CD51: 942 | CE51: 1205 | CF51: 826 | CG51: 1289 | CH51: 582 | CI51: 802 | CJ51: 724 | CK51: 127 | CL51: 165 | CM51: 834 | CN51: 696 | CO51: 2181 | CP51: 1085 | CQ51: 3642 | CR51: 3907 | CS51: 650 | CT51: 1326 | CU51: 354 | CV51: 202 | CW51: 2067 | CX51: 332 | CY51: N/A | CZ51: 1252 | DA51: 1136 | DB51: 1482 | DC51: 425 | DD51: 244 | DE51: 3040 | DF51: 1165 | DG51: 720 | DH51: 570 | DI51: 197 | DJ51: 890
A52: South Dakota | B52: 44 | C52: 821669 | D52: 1036 | E52: 676014 | F52: 7752 | G52: 115606 | H52: 7423 | I52: 26051 | J52: 0 | K52: 855 | L52: 435 | M52: 227 | N52: 1494 | O52: 1744 | P52: 2 | Q52: 0 | R52: 0 | S52: 970 | T52: 122 | U52: 8 | V52: 78 | W52: 74 | X52: 210 | Y52: 2441 | Z52: 403 | AA52: 0 | AB52: 0 | AC52: 0 | AD52: 60 | AE52: 61 | AF52: 892 | AG52: 3568 | AH52: 34 | AI52: 474 | AJ52: 248 | AK52: 2175 | AL52: 135 | AM52: 0 | AN52: 0 | AO52: 175 | AP52: 371 | AQ52: 240 | AR52: 1725 | AS52: 64 | AT52: 21 | AU52: 667 | AV52: 515 | AW52: 0 | AX52: 158 | AY52: N/A | AZ52: 507 | BA52: 1715 | BB52: 388 | BC52: 5 | BD52: 340 | BE52: 1026 | BF52: 131 | BG52: 314 | BH52: 979 | BI52: 134 | BJ52: 2891 | BK52: 147 | BL52: 1127 | BM52: 333 | BN52: 354 | BO52: 663 | BP52: 839 | BQ52: 4 | BR52: 147 | BS52: 147 | BT52: 638 | BU52: 130 | BV52: 13 | BW52: 104 | BX52: 102 | BY52: 289 | BZ52: 932 | CA52: 295 | CB52: 147 | CC52: 147 | CD52: 147 | CE52: 65 | CF52: 101 | CG52: 747 | CH52: 1023 | CI52: 48 | CJ52: 274 | CK52: 208 | CL52: 801 | CM52: 171 | CN52: 147 | CO52: 147 | CP52: 187 | CQ52: 317 | CR52: 220 | CS52: 823 | CT52: 77 | CU52: 36 | CV52: 583 | CW52: 633 | CX52: 147 | CY52: 159 | CZ52: N/A | DA52: 346 | DB52: 1067 | DC52: 372 | DD52: 9 | DE52: 300 | DF52: 681 | DG52: 216 | DH52: 413 | DI52: 735 | DJ52: 235
A53: Tennessee | B53: 45 | C53: 6378278 | D53: 4412 | E53: 5396833 | F53: 24470 | G53: 783077 | H53: 21860 | I53: 177098 | J53: 12116 | K53: 1281 | L53: 2250 | M53: 3306 | N53: 8396 | O53: 2473 | P53: 936 | Q53: 176 | R53: 180 | S53: 15641 | T53: 16012 | U53: 1058 | V53: 787 | W53: 7094 | X53: 5591 | Y53: 617 | Z53: 2630 | AA53: 13202 | AB53: 2452 | AC53: 1040 | AD53: 1743 | AE53: 1525 | AF53: 4507 | AG53: 1178 | AH53: 10568 | AI53: 2694 | AJ53: 308 | AK53: 432 | AL53: 735 | AM53: 271 | AN53: 783 | AO53: 751 | AP53: 6279 | AQ53: 5904 | AR53: 7 | AS53: 6200 | AT53: 2495 | AU53: 1080 | AV53: 3329 | AW53: 26 | AX53: 4300 | AY53: 0 | AZ53: N/A | BA53: 8716 | BB53: 784 | BC53: 133 | BD53: 8008 | BE53: 1876 | BF53: 3248 | BG53: 1622 | BH53: 358 | BI53: 717 | BJ53: 10625 | BK53: 3309 | BL53: 847 | BM53: 907 | BN53: 1731 | BO53: 2447 | BP53: 1156 | BQ53: 900 | BR53: 222 | BS53: 203 | BT53: 3639 | BU53: 3114 | BV53: 1052 | BW53: 817 | BX53: 1891 | BY53: 2209 | BZ53: 556 | CA53: 1972 | CB53: 2695 | CC53: 1206 | CD53: 589 | CE53: 867 | CF53: 706 | CG53: 1434 | CH53: 896 | CI53: 2321 | CJ53: 1254 | CK53: 278 | CL53: 389 | CM53: 443 | CN53: 287 | CO53: 507 | CP53: 640 | CQ53: 2008 | CR53: 1834 | CS53: 16 | CT53: 1742 | CU53: 1410 | CV53: 589 | CW53: 999 | CX53: 55 | CY53: 1280 | CZ53: 193 | DA53: N/A | DB53: 2938 | DC53: 1131 | DD53: 133 | DE53: 2159 | DF53: 852 | DG53: 1760 | DH53: 727 | DI53: 382 | DJ53: 499
A54: Texas | B54: 46 | C54: 25711791 | D54: 10124 | E54: 21354247 | F54: 60947 | G54: 3656070 | H54: 53747 | I54: 507752 | J54: 9993 | K54: 6759 | L54: 18908 | M54: 13781 | N54: 62702 | O54: 16616 | P54: 2769 | Q54: 181 | R54: 1189 | S54: 31259 | T54: 20362 | U54: 5040 | V54: 2387 | W54: 19672 | X54: 8264 | Y54: 4934 | Z54: 12699 | AA54: 6040 | AB54: 29348 | AC54: 1293 | AD54: 4969 | AE54: 4813 | AF54: 9501 | AG54: 2803 | AH54: 6402 | AI54: 12319 | AJ54: 1813 | AK54: 4794 | AL54: 8266 | AM54: 761 | AN54: 6797 | AO54: 16762 | AP54: 20274 | AQ54: 22660 | AR54: 989 | AS54: 8728 | AT54: 26284 | AU54: 3827 | AV54: 10449 | AW54: 1763 | AX54: 4470 | AY54: 1264 | AZ54: 10368 | BA54: N/A | BB54: 4610 | BC54: 113 | BD54: 17734 | BE54: 11630 | BF54: 1729 | BG54: 4192 | BH54: 2472 | BI54: 4435 | BJ54: 20202 | BK54: 3132 | BL54: 2614 | BM54: 3870 | BN54: 3771 | BO54: 8792 | BP54: 3638 | BQ54: 1124 | BR54: 168 | BS54: 610 | BT54: 6252 | BU54: 3365 | BV54: 2386 | BW54: 1190 | BX54: 3645 | BY54: 2734 | BZ54: 2063 | CA54: 3202 | CB54: 2224 | CC54: 5712 | CD54: 1284 | CE54: 2026 | CF54: 1584 | CG54: 2273 | CH54: 948 | CI54: 2032 | CJ54: 2205 | CK54: 986 | CL54: 2045 | CM54: 4162 | CN54: 749 | CO54: 2141 | CP54: 3127 | CQ54: 4211 | CR54: 6953 | CS54: 542 | CT54: 1739 | CU54: 4418 | CV54: 1684 | CW54: 2158 | CX54: 1605 | CY54: 1665 | CZ54: 757 | DA54: 2623 | DB54: N/A | DC54: 2045 | DD54: 135 | DE54: 4904 | DF54: 2741 | DG54: 938 | DH54: 1322 | DI54: 1676 | DJ54: 1611
A55: Utah | B55: 47 | C55: 2805440 | D55: 2571 | E55: 2324019 | F55: 16852 | G55: 373980 | H55: 16586 | I55: 87870 | J55: 126 | K55: 2819 | L55: 7966 | M55: 361 | N55: 15286 | O55: 5350 | P55: 142 | Q55: 0 | R55: 0 | S55: 2428 | T55: 1142 | U55: 1436 | V55: 5129 | W55: 1588 | X55: 475 | Y55: 2791 | Z55: 398 | AA55: 217 | AB55: 345 | AC55: 380 | AD55: 613 | AE55: 1503 | AF55: 1670 | AG55: 385 | AH55: 284 | AI55: 1553 | AJ55: 1057 | AK55: 489 | AL55: 5391 | AM55: 507 | AN55: 437 | AO55: 686 | AP55: 2129 | AQ55: 842 | AR55: 175 | AS55: 1875 | AT55: 1338 | AU55: 4089 | AV55: 944 | AW55: 351 | AX55: 60 | AY55: 47 | AZ55: 863 | BA55: 3605 | BB55: N/A | BC55: 39 | BD55: 1369 | BE55: 3529 | BF55: 0 | BG55: 1445 | BH55: 2216 | BI55: 239 | BJ55: 7490 | BK55: 171 | BL55: 1292 | BM55: 2419 | BN55: 402 | BO55: 2837 | BP55: 1845 | BQ55: 168 | BR55: 181 | BS55: 181 | BT55: 1105 | BU55: 622 | BV55: 876 | BW55: 1135 | BX55: 802 | BY55: 296 | BZ55: 2779 | CA55: 333 | CB55: 221 | CC55: 313 | CD55: 339 | CE55: 361 | CF55: 1343 | CG55: 1210 | CH55: 300 | CI55: 229 | CJ55: 769 | CK55: 729 | CL55: 384 | CM55: 1743 | CN55: 442 | CO55: 322 | CP55: 505 | CQ55: 924 | CR55: 611 | CS55: 218 | CT55: 881 | CU55: 691 | CV55: 2693 | CW55: 450 | CX55: 571 | CY55: 100 | CZ55: 74 | DA55: 529 | DB55: 1278 | DC55: N/A | DD55: 63 | DE55: 668 | DF55: 1319 | DG55: 181 | DH55: 1512 | DI55: 715 | DJ55: 190
A56: Vermont | B56: 48 | C56: 620224 | D56: 821 | E56: 532237 | F56: 5326 | G56: 61242 | H56: 5294 | I56: 24431 | J56: 16 | K56: 93 | L56: 127 | M56: 0 | N56: 1112 | O56: 382 | P56: 1626 | Q56: 0 | R56: 116 | S56: 966 | T56: 56 | U56: 6 | V56: 0 | W56: 230 | X56: 68 | Y56: 30 | Z56: 0 | AA56: 1243 | AB56: 73 | AC56: 883 | AD56: 862 | AE56: 3318 | AF56: 284 | AG56: 315 | AH56: 0 | AI56: 23 | AJ56: 147 | AK56: 0 | AL56: 17 | AM56: 2893 | AN56: 833 | AO56: 74 | AP56: 4780 | AQ56: 328 | AR56: 0 | AS56: 214 | AT56: 11 | AU56: 26 | AV56: 935 | AW56: 341 | AX56: 124 | AY56: 39 | AZ56: 193 | BA56: 493 | BB56: 81 | BC56: N/A | BD56: 728 | BE56: 98 | BF56: 0 | BG56: 151 | BH56: 96 | BI56: 0 | BJ56: 2713 | BK56: 23 | BL56: 153 | BM56: 165 | BN56: 143 | BO56: 537 | BP56: 296 | BQ56: 540 | BR56: 143 | BS56: 134 | BT56: 519 | BU56: 81 | BV56: 10 | BW56: 143 | BX56: 221 | BY56: 81 | BZ56: 43 | CA56: 143 | CB56: 1690 | CC56: 105 | CD56: 546 | CE56: 396 | CF56: 657 | CG56: 246 | CH56: 349 | CI56: 143 | CJ56: 26 | CK56: 189 | CL56: 143 | CM56: 37 | CN56: 812 | CO56: 364 | CP56: 89 | CQ56: 921 | CR56: 248 | CS56: 143 | CT56: 247 | CU56: 13 | CV56: 38 | CW56: 525 | CX56: 220 | CY56: 208 | CZ56: 66 | DA56: 185 | DB56: 334 | DC56: 96 | DD56: N/A | DE56: 427 | DF56: 109 | DG56: 143 | DH56: 115 | DI56: 102 | DJ56: 143
A57: Virginia | B57: 49 | C57: 8085389 | D57: 4754 | E57: 6857430 | F57: 25550 | G57: 915242 | H57: 24032 | I57: 250653 | J57: 2515 | K57: 1906 | L57: 2420 | M57: 445 | N57: 14780 | O57: 5352 | P57: 2725 | Q57: 2279 | R57: 10964 | S57: 19574 | T57: 9535 | U57: 3823 | V57: 652 | W57: 7089 | X57: 2663 | Y57: 221 | Z57: 1144 | AA57: 3908 | AB57: 1638 | AC57: 1144 | AD57: 23925 | AE57: 3767 | AF57: 2982 | AG57: 2294 | AH57: 1344 | AI57: 1914 | AJ57: 658 | AK57: 357 | AL57: 973 | AM57: 535 | AN57: 9073 | AO57: 947 | AP57: 15893 | AQ57: 25575 | AR57: 852 | AS57: 5622 | AT57: 2810 | AU57: 1541 | AV57: 14190 | AW57: 1605 | AX57: 7936 | AY57: 35 | AZ57: 6189 | BA57: 12944 | BB57: 2092 | BC57: 423 | BD57: N/A | BE57: 4160 | BF57: 3839 | BG57: 1258 | BH57: 143 | BI57: 516 | BJ57: 11997 | BK57: 990 | BL57: 1287 | BM57: 1030 | BN57: 319 | BO57: 2760 | BP57: 1834 | BQ57: 1001 | BR57: 1465 | BS57: 4084 | BT57: 3694 | BU57: 1889 | BV57: 1460 | BW57: 411 | BX57: 3237 | BY57: 1228 | BZ57: 209 | CA57: 669 | CB57: 1422 | CC57: 936 | CD57: 689 | CE57: 4264 | CF57: 1503 | CG57: 1136 | CH57: 1414 | CI57: 730 | CJ57: 837 | CK57: 433 | CL57: 313 | CM57: 522 | CN57: 398 | CO57: 2029 | CP57: 637 | CQ57: 3260 | CR57: 4182 | CS57: 1019 | CT57: 1519 | CU57: 1873 | CV57: 1069 | CW57: 2998 | CX57: 731 | CY57: 2435 | CZ57: 57 | DA57: 1858 | DB57: 2828 | DC57: 994 | DD57: 437 | DE57: N/A | DF57: 1420 | DG57: 1234 | DH57: 880 | DI57: 166 | DJ57: 466
A58: Washington | B58: 50 | C58: 6815763 | D58: 3864 | E58: 5648199 | F58: 25225 | G58: 904695 | H58: 24285 | I58: 215494 | J58: 1507 | K58: 4328 | L58: 8362 | M58: 1413 | N58: 45597 | O58: 5195 | P58: 2901 | Q58: 100 | R58: 773 | S58: 9370 | T58: 6363 | U58: 5239 | V58: 10604 | W58: 4298 | X58: 1089 | Y58: 1159 | Z58: 2544 | AA58: 1368 | AB58: 1646 | AC58: 532 | AD58: 1191 | AE58: 2911 | AF58: 3470 | AG58: 2703 | AH58: 615 | AI58: 2802 | AJ58: 2919 | AK58: 682 | AL58: 5671 | AM58: 309 | AN58: 2300 | AO58: 872 | AP58: 5562 | AQ58: 4088 | AR58: 217 | AS58: 3192 | AT58: 1223 | AU58: 25525 | AV58: 3397 | AW58: 97 | AX58: 2727 | AY58: 94 | AZ58: 3206 | BA58: 14196 | BB58: 5298 | BC58: 223 | BD58: 3839 | BE58: N/A | BF58: 215 | BG58: 1168 | BH58: 394 | BI58: 1025 | BJ58: 12552 | BK58: 730 | BL58: 1682 | BM58: 2641 | BN58: 1121 | BO58: 5884 | BP58: 2150 | BQ58: 1138 | BR58: 164 | BS58: 528 | BT58: 2417 | BU58: 2288 | BV58: 2393 | BW58: 2191 | BX58: 1727 | BY58: 521 | BZ58: 845 | CA58: 1029 | CB58: 911 | CC58: 915 | CD58: 655 | CE58: 923 | CF58: 1011 | CG58: 1605 | CH58: 1971 | CI58: 444 | CJ58: 1017 | CK58: 1013 | CL58: 456 | CM58: 2919 | CN58: 248 | CO58: 1441 | CP58: 527 | CQ58: 1947 | CR58: 1854 | CS58: 200 | CT58: 1400 | CU58: 768 | CV58: 4052 | CW58: 1799 | CX58: 162 | CY58: 1542 | CZ58: 155 | DA58: 1819 | DB58: 3417 | DC58: 1995 | DD58: 216 | DE58: 1320 | DF58: N/A | DG58: 271 | DH58: 638 | DI58: 495 | DJ58: 878
A59: West Virginia | B59: 51 | C59: 1837518 | D59: 2090 | E59: 1613322 | F59: 11785 | G59: 174112 | H59: 11396 | I59: 47125 | J59: 477 | K59: 306 | L59: 79 | M59: 0 | N59: 1231 | O59: 104 | P59: 143 | Q59: 674 | R59: 294 | S59: 1919 | T59: 1108 | U59: 166 | V59: 181 | W59: 220 | X59: 328 | Y59: 68 | Z59: 39 | AA59: 2249 | AB59: 90 | AC59: 35 | AD59: 5352 | AE59: 164 | AF59: 778 | AG59: 20 | AH59: 0 | AI59: 59 | AJ59: 0 | AK59: 0 | AL59: 229 | AM59: 129 | AN59: 1213 | AO59: 81 | AP59: 1721 | AQ59: 4683 | AR59: 175 | AS59: 6757 | AT59: 520 | AU59: 118 | AV59: 5208 | AW59: 0 | AX59: 1098 | AY59: 36 | AZ59: 1061 | BA59: 622 | BB59: 0 | BC59: 54 | BD59: 6317 | BE59: 297 | BF59: N/A | BG59: 470 | BH59: 252 | BI59: 79 | BJ59: 4317 | BK59: 339 | BL59: 455 | BM59: 129 | BN59: 182 | BO59: 516 | BP59: 114 | BQ59: 177 | BR59: 525 | BS59: 194 | BT59: 666 | BU59: 483 | BV59: 277 | BW59: 250 | BX59: 190 | BY59: 406 | BZ59: 111 | CA59: 64 | CB59: 1019 | CC59: 88 | CD59: 74 | CE59: 1897 | CF59: 191 | CG59: 581 | CH59: 37 | CI59: 182 | CJ59: 76 | CK59: 182 | CL59: 182 | CM59: 268 | CN59: 147 | CO59: 679 | CP59: 90 | CQ59: 965 | CR59: 1933 | CS59: 215 | CT59: 1474 | CU59: 447 | CV59: 207 | CW59: 1699 | CX59: 182 | CY59: 671 | CZ59: 65 | DA59: 513 | DB59: 415 | DC59: 182 | DD59: 89 | DE59: 1774 | DF59: 285 | DG59: N/A | DH59: 555 | DI59: 395 | DJ59: 123
A60: Wisconsin | B60: 52 | C60: 5660677 | D60: 3351 | E60: 4849945 | F60: 15530 | G60: 693737 | H60: 15440 | I60: 99192 | J60: 323 | K60: 236 | L60: 3257 | M60: 253 | N60: 5347 | O60: 1600 | P60: 657 | Q60: 296 | R60: 15 | S60: 4937 | T60: 970 | U60: 333 | V60: 360 | W60: 22285 | X60: 2480 | Y60: 4161 | Z60: 1160 | AA60: 635 | AB60: 598 | AC60: 233 | AD60: 1306 | AE60: 489 | AF60: 3917 | AG60: 18965 | AH60: 238 | AI60: 1263 | AJ60: 784 | AK60: 324 | AL60: 1163 | AM60: 3 | AN60: 606 | AO60: 526 | AP60: 2033 | AQ60: 2939 | AR60: 284 | AS60: 2610 | AT60: 289 | AU60: 945 | AV60: 1563 | AW60: 144 | AX60: 1053 | AY60: 329 | AZ60: 1051 | BA60: 2765 | BB60: 900 | BC60: 62 | BD60: 1267 | BE60: 1208 | BF60: 0 | BG60: N/A | BH60: 30 | BI60: 975 | BJ60: 6959 | BK60: 262 | BL60: 193 | BM60: 1696 | BN60: 216 | BO60: 2126 | BP60: 604 | BQ60: 432 | BR60: 475 | BS60: 25 | BT60: 1590 | BU60: 396 | BV60: 416 | BW60: 231 | BX60: 3020 | BY60: 1136 | BZ60: 1283 | CA60: 1199 | CB60: 502 | CC60: 403 | CD60: 195 | CE60: 586 | CF60: 356 | CG60: 1160 | CH60: 2405 | CI60: 211 | CJ60: 681 | CK60: 512 | CL60: 240 | CM60: 682 | CN60: 7 | CO60: 477 | CP60: 553 | CQ60: 980 | CR60: 1454 | CS60: 318 | CT60: 1053 | CU60: 204 | CV60: 601 | CW60: 750 | CX60: 157 | CY60: 675 | CZ60: 220 | DA60: 638 | DB60: 1112 | DC60: 1091 | DD60: 88 | DE60: 916 | DF60: 416 | DG60: 145 | DH60: N/A | DI60: 46 | DJ60: 943
A61: Wyoming | B61: 53 | C61: 569734 | D61: 1083 | E61: 459226 | F61: 7512 | G61: 77324 | H61: 6960 | I61: 31149 | J61: 260 | K61: 590 | L61: 2014 | M61: 244 | N61: 2035 | O61: 5599 | P61: 0 | Q61: 0 | R61: 0 | S61: 733 | T61: 166 | U61: 0 | V61: 745 | W61: 905 | X61: 179 | Y61: 259 | Z61: 539 | AA61: 4 | AB61: 88 | AC61: 0 | AD61: 294 | AE61: 548 | AF61: 965 | AG61: 290 | AH61: 136 | AI61: 244 | AJ61: 1901 | AK61: 1216 | AL61: 355 | AM61: 0 | AN61: 121 | AO61: 604 | AP61: 231 | AQ61: 459 | AR61: 338 | AS61: 819 | AT61: 964 | AU61: 893 | AV61: 230 | AW61: 0 | AX61: 122 | AY61: 1175 | AZ61: 4 | BA61: 1427 | BB61: 1710 | BC61: 0 | BD61: 138 | BE61: 1323 | BF61: 0 | BG61: 282 | BH61: N/A | BI61: 16 | BJ61: 3430 | BK61: 284 | BL61: 661 | BM61: 1234 | BN61: 405 | BO61: 720 | BP61: 1618 | BQ61: 185 | BR61: 185 | BS61: 185 | BT61: 572 | BU61: 173 | BV61: 185 | BW61: 481 | BX61: 823 | BY61: 179 | BZ61: 273 | CA61: 412 | CB61: 10 | CC61: 100 | CD61: 185 | CE61: 304 | CF61: 638 | CG61: 730 | CH61: 240 | CI61: 229 | CJ61: 257 | CK61: 789 | CL61: 559 | CM61: 304 | CN61: 185 | CO61: 147 | CP61: 658 | CQ61: 252 | CR61: 399 | CS61: 300 | CT61: 447 | CU61: 670 | CV61: 605 | CW61: 254 | CX61: 185 | CY61: 201 | CZ61: 730 | DA61: 7 | DB61: 920 | DC61: 948 | DD61: 185 | DE61: 169 | DF61: 785 | DG61: 185 | DH61: 210 | DI61: N/A | DJ61: 27
A62: Puerto Rico | B62: 54 | C62: 3628402 | D62: 2934 | E62: 3366593 | F62: 12125 | G62: 238042 | H62: 11523 | I62: 20044 | J62: 8 | K62: 57 | L62: 54 | M62: 93 | N62: 519 | O62: 0 | P62: 370 | Q62: 0 | R62: 0 | S62: 4192 | T62: 232 | U62: 110 | V62: 0 | W62: 1021 | X62: 121 | Y62: 0 | Z62: 143 | AA62: 37 | AB62: 59 | AC62: 0 | AD62: 108 | AE62: 2258 | AF62: 435 | AG62: 0 | AH62: 0 | AI62: 0 | AJ62: 0 | AK62: 0 | AL62: 0 | AM62: 0 | AN62: 1922 | AO62: 28 | AP62: 2314 | AQ62: 638 | AR62: 0 | AS62: 328 | AT62: 0 | AU62: 0 | AV62: 2313 | AW62: 624 | AX62: 4 | AY62: 0 | AZ62: 15 | BA62: 360 | BB62: 0 | BC62: 0 | BD62: 684 | BE62: 0 | BF62: 8 | BG62: 989 | BH62: 0 | BI62: N/A | BJ62: 2902 | BK62: 15 | BL62: 94 | BM62: 90 | BN62: 158 | BO62: 484 | BP62: 214 | BQ62: 365 | BR62: 214 | BS62: 214 | BT62: 1203 | BU62: 300 | BV62: 172 | BW62: 214 | BX62: 602 | BY62: 153 | BZ62: 214 | CA62: 240 | CB62: 72 | CC62: 101 | CD62: 214 | CE62: 177 | CF62: 1289 | CG62: 451 | CH62: 214 | CI62: 214 | CJ62: 214 | CK62: 214 | CL62: 214 | CM62: 214 | CN62: 214 | CO62: 1129 | CP62: 48 | CQ62: 761 | CR62: 565 | CS62: 214 | CT62: 499 | CU62: 214 | CV62: 214 | CW62: 1063 | CX62: 688 | CY62: 7 | CZ62: 214 | DA62: 31 | DB62: 291 | DC62: 214 | DD62: 214 | DE62: 777 | DF62: 214 | DG62: 15 | DH62: 654 | DI62: 214 | DJ62: N/A
J63: 218428 | K63: 168193 | L63: 413738 | M63: 130027 | N63: 1134491 | O63: 323060 | P63: 174416 | Q63: 50298 | R63: 119026 | S63: 860842 | T63: 504756 | U63: 123128 | V63: 110382 | W63: 556927 | X63: 289315 | Y63: 146650 | Z63: 186411 | AA63: 206045 | AB63: 191971 | AC63: 77148 | AD63: 315436 | AE63: 318570 | AF63: 351901 | AG63: 231892 | AH63: 133894 | AI63: 285508 | AJ63: 67664 | AK63: 97632 | AL63: 197764 | AM63: 77392 | AN63: 440326 | AO63: 127870 | AP63: 814042 | AQ63: 477964 | AR63: 47918 | AS63: 398732 | AT63: 205144 | AU63: 216364 | AV63: 476625 | AW63: 61620 | AX63: 254840 | AY63: 45068 | AZ63: 327701 | BA63: 804734 | BB63: 164330 | BC63: 40112 | BD63: 477764 | BE63: 360924 | BF63: 94858 | BG63: 196437 | BH63: 64456 | BI63: 149000
J64: 23 | K64: 32 | L64: 11 | M64: 37 | N64: 1 | O64: 16 | P64: 31 | Q64: 49 | R64: 40 | S64: 2 | T64: 6 | U64: 39 | V64: 41 | W64: 5 | X64: 19 | Y64: 35 | Z64: 30 | AA64: 25 | AB64: 29 | AC64: 45 | AD64: 18 | AE64: 17 | AF64: 14 | AG64: 22 | AH64: 36 | AI64: 20 | AJ64: 46 | AK64: 42 | AL64: 27 | AM64: 44 | AN64: 10 | AO64: 38 | AP64: 3 | AQ64: 7 | AR64: 50 | AS64: 12 | AT64: 26 | AU64: 24 | AV64: 9 | AW64: 48 | AX64: 21 | AY64: 51 | AZ64: 15 | BA64: 4 | BB64: 33 | BC64: 52 | BD64: 8 | BE64: 13 | BF64: 43 | BG64: 28 | BH64: 47 | BI64: 34
I66: 1 | J66: 1.5 | K66: 2 | L66: 2.5 | M66: 3 | N66: 3.5 | O66: 4 | P66: 4.5 | Q66: 5 | R66: 5.5 | S66: 6 | T66: 6.5 | U66: 7 | V66: 7.5 | W66: 8 | X66: 8.5 | Y66: 9 | Z66: 9.5 | AA66: 10 | AB66: 10.5 | AC66: 11 | AD66: 11.5 | AE66: 12 | AF66: 12.5 | AG66: 13 | AH66: 13.5 | AI66: 14 | AJ66: 14.5 | AK66: 15 | AL66: 15.5 | AM66: 16 | AN66: 16.5 | AO66: 17 | AP66: 17.5 | AQ66: 18 | AR66: 18.5 | AS66: 19 | AT66: 19.5 | AU66: 20 | AV66: 20.5 | AW66: 21 | AX66: 21.5 | AY66: 22 | AZ66: 22.5 | BA66: 23 | BB66: 23.5 | BC66: 24 | BD66: 24.5 | BE66: 25 | BF66: 25.5 | BG66: 26 | BH66: 26.5 | BI66: 27 | BJ66: 27.5 | BK66: 28 | BL66: 28.5 | BM66: 29 | BN66: 29.5 | BO66: 30 | BP66: 30.5 | BQ66: 31 | BR66: 31.5 | BS66: 32 | BT66: 32.5 | BU66: 33 | BV66: 33.5 | BW66: 34 | BX66: 34.5 | BY66: 35 | BZ66: 35.5 | CA66: 36 | CB66: 36.5 | CC66: 37 | CD66: 37.5 | CE66: 38 | CF66: 38.5 | CG66: 39 | CH66: 39.5 | CI66: 40 | CJ66: 40.5 | CK66: 41 | CL66: 41.5 | CM66: 42 | CN66: 42.5 | CO66: 43 | CP66: 43.5 | CQ66: 44 | CR66: 44.5 | CS66: 45 | CT66: 45.5 | CU66: 46 | CV66: 46.5 | CW66: 47 | CX66: 47.5 | CY66: 48 | CZ66: 48.5 | DA66: 49 | DB66: 49.5 | DC66: 50 | DD66: 50.5 | DE66: 51 | DF66: 51.5 | DG66: 52 | DH66: 52.5 | DI66: 53 | DJ66: 53.5
I67: Estimate | J67: MOE | K67: Estimate | L67: MOE | M67: Estimate | N67: MOE | O67: Estimate | P67: MOE | Q67: Estimate | R67: MOE | S67: Estimate | T67: MOE | U67: Estimate | V67: MOE | W67: Estimate | X67: MOE | Y67: Estimate | Z67: MOE | AA67: Estimate | AB67: MOE | AC67: Estimate | AD67: MOE | AE67: Estimate | AF67: MOE | AG67: Estimate | AH67: MOE | AI67: Estimate | AJ67: MOE | AK67: Estimate | AL67: MOE | AM67: Estimate | AN67: MOE | AO67: Estimate | AP67: MOE | AQ67: Estimate | AR67: MOE | AS67: Estimate | AT67: MOE | AU67: Estimate | AV67: MOE | AW67: Estimate | AX67: MOE | AY67: Estimate | AZ67: MOE | BA67: Estimate | BB67: MOE | BC67: Estimate | BD67: MOE | BE67: Estimate | BF67: MOE | BG67: Estimate | BH67: MOE | BI67: Estimate | BJ67: MOE | BK67: Estimate | BL67: MOE | BM67: Estimate | BN67: MOE | BO67: Estimate | BP67: MOE | BQ67: Estimate | BR67: MOE | BS67: Estimate | BT67: MOE | BU67: Estimate | BV67: MOE | BW67: Estimate | BX67: MOE | BY67: Estimate | BZ67: MOE | CA67: Estimate | CB67: MOE | CC67: Estimate | CD67: MOE | CE67: Estimate | CF67: MOE | CG67: Estimate | CH67: MOE | CI67: Estimate | CJ67: MOE | CK67: Estimate | CL67: MOE | CM67: Estimate | CN67: MOE | CO67: Estimate | CP67: MOE | CQ67: Estimate | CR67: MOE | CS67: Estimate | CT67: MOE | CU67: Estimate | CV67: MOE | CW67: Estimate | CX67: MOE | CY67: Estimate | CZ67: MOE | DA67: Estimate | DB67: MOE | DC67: Estimate | DD67: MOE | DE67: Estimate | DF67: MOE | DG67: Estimate | DH67: MOE | DI67: Estimate | DJ67: MOE
I68: 7070345 | J68: 58599 | K68: 109210 | L68: 9027 | M68: 84068 | N68: 7600 | O68: 206842 | P68: 12859 | Q68: 64967 | R68: 6563 | S68: 566986 | T68: 19755 | U68: 161530 | V68: 10348 | W68: 87023 | X68: 5968 | Y68: 25149 | Z68: 3775 | AA68: 59513 | AB68: 6154 | AC68: 428325 | AD68: 18406 | AE68: 252262 | AF68: 12868 | AG68: 61509 | AH68: 6100 | AI68: 55191 | AJ68: 6257 | AK68: 277953 | AL68: 12722 | AM68: 144597 | AN68: 8929 | AO68: 73325 | AP68: 6129 | AQ68: 93134 | AR68: 7286 | AS68: 103004 | AT68: 7490 | AU68: 95956 | AV68: 7745 | AW68: 38574 | AX68: 5351 | AY68: 157664 | AZ68: 9686 | BA68: 158156 | BB68: 10755 | BC68: 175733 | BD68: 9302 | BE68: 115946 | BF68: 8402 | BG68: 66947 | BH68: 7206 | BI68: 142754 | BJ68: 9402 | BK68: 33832 | BL68: 4879 | BM68: 48816 | BN68: 4967 | BO68: 98882 | BP68: 9332 | BQ68: 38696 | BR68: 3364 | BS68: 219202 | BT68: 11087 | BU68: 63921 | BV68: 5867 | BW68: 405864 | BX68: 15692 | BY68: 238663 | BZ68: 13414 | CA68: 23959 | CB68: 3373 | CC68: 199202 | CD68: 10288 | CE68: 102572 | CF68: 9213 | CG68: 108182 | CH68: 7867 | CI68: 237156 | CJ68: 10246 | CK68: 30498 | CL68: 3414 | CM68: 127418 | CN68: 8502 | CO68: 22534 | CP68: 2998 | CQ68: 163843 | CR68: 8717 | CS68: 402187 | CT68: 15471 | CU68: 82165 | CV68: 8304 | CW68: 20056 | CX68: 2967 | CY68: 238540 | CZ68: 11611 | DA68: 180462 | DB68: 9674 | DC68: 47425 | DD68: 5262 | DE68: 97724 | DF68: 5859 | DG68: 32228 | DH68: 5150 | DI68: 74500 | DJ68: 8156
I69: 104600 | J69: 8482 | K69: N/A | L69: N/A | M69: 1004 | N69: 829 | O69: 962 | P69: 583 | Q69: 660 | R69: 382 | S69: 3077 | T69: 1037 | U69: 1386 | V69: 1393 | W69: 284 | X69: 256 | Y69: 42 | Z69: 68 | AA69: 162 | AB69: 195 | AC69: 11244 | AD69: 2476 | AE69: 19920 | AF69: 3636 | AG69: 627 | AH69: 477 | AI69: 493 | AJ69: 456 | AK69: 2722 | AL69: 1030 | AM69: 1347 | AN69: 536 | AO69: 345 | AP69: 337 | AQ69: 865 | AR69: 760 | AS69: 2495 | AT69: 981 | AU69: 3104 | AV69: 1216 | AW69: 67 | AX69: 82 | AY69: 1513 | AZ69: 847 | BA69: 334 | BB69: 272 | BC69: 2298 | BD69: 881 | BE69: 752 | BF69: 716 | BG69: 4952 | BH69: 1703 | BI69: 1555 | BJ69: 836 | BK69: 101 | BL69: 132 | BM69: 151 | BN69: 167 | BO69: 1009 | BP69: 824 | BQ69: 161 | BR69: 166 | BS69: 1702 | BT69: 1200 | BU69: 459 | BV69: 576 | BW69: 2709 | BX69: 1188 | BY69: 5133 | BZ69: 1788 | CA69: 228 | CB69: 194 | CC69: 1411 | CD69: 576 | CE69: 194 | CF69: 157 | CG69: 200 | CH69: 169 | CI69: 1837 | CJ69: 736 | CK69: 0 | CL69: 184 | CM69: 2811 | CN69: 1951 | CO69: 518 | CP69: 758 | CQ69: 10539 | CR69: 2731 | CS69: 7468 | CT69: 2136 | CU69: 579 | CV69: 713 | CW69: 0 | CX69: 184 | CY69: 3170 | CZ69: 1577 | DA69: 1034 | DB69: 684 | DC69: 128 | DD69: 156 | DE69: 760 | DF69: 605 | DG69: 88 | DH69: 107 | DI69: 619 | DJ69: 551
I70: 33415 | J70: 4385 | K70: 1097 | L70: 825 | M70: N/A | N70: N/A | O70: 1520 | P70: 1441 | Q70: 196 | R70: 202 | S70: 3494 | T70: 1643 | U70: 556 | V70: 279 | W70: 0 | X70: 143 | Y70: 0 | Z70: 143 | AA70: 356 | AB70: 459 | AC70: 1991 | AD70: 942 | AE70: 928 | AF70: 894 | AG70: 1376 | AH70: 805 | AI70: 538 | AJ70: 387 | AK70: 58 | AL70: 118 | AM70: 260 | AN70: 235 | AO70: 13 | AP70: 24 | AQ70: 221 | AR70: 272 | AS70: 161 | AT70: 196 | AU70: 120 | AV70: 145 | AW70: 66 | AX70: 62 | AY70: 508 | AZ70: 591 | BA70: 297 | BB70: 289 | BC70: 563 | BD70: 426 | BE70: 192 | BF70: 191 | BG70: 56 | BH70: 76 | BI70: 819 | BJ70: 628 | BK70: 371 | BL70: 334 | BM70: 1195 | BN70: 1128 | BO70: 803 | BP70: 382 | BQ70: 118 | BR70: 206 | BS70: 116 | BT70: 156 | BU70: 263 | BV70: 219 | BW70: 736 | BX70: 576 | BY70: 920 | BZ70: 784 | CA70: 264 | CB70: 359 | CC70: 1316 | CD70: 757 | CE70: 335 | CF70: 252 | CG70: 3174 | CH70: 1510 | CI70: 255 | CJ70: 240 | CK70: 0 | CL70: 143 | CM70: 384 | CN70: 394 | CO70: 99 | CP70: 123 | CQ70: 451 | CR70: 413 | CS70: 1488 | CT70: 760 | CU70: 330 | CV70: 347 | CW70: 79 | CX70: 108 | CY70: 1265 | CZ70: 674 | DA70: 3725 | DB70: 1488 | DC70: 0 | DD70: 143 | DE70: 206 | DF70: 261 | DG70: 136 | DH70: 217 | DI70: 25 | DJ70: 43
I71: 232457 | J71: 14183 | K71: 1331 | L71: 1286 | M71: 3717 | N71: 1505 | O71: N/A | P71: N/A | Q71: 1214 | R71: 659 | S71: 44889 | T71: 5435 | U71: 13790 | V71: 6133 | W71: 417 | X71: 309 | Y71: 246 | Z71: 215 | AA71: 36 | AB71: 60 | AC71: 5553 | AD71: 2160 | AE71: 2263 | AF71: 961 | AG71: 2491 | AH71: 1285 | AI71: 2934 | AJ71: 1362 | AK71: 10744 | AL71: 2614 | AM71: 2930 | AN71: 1447 | AO71: 2702 | AP71: 1000 | AQ71: 2498 | AR71: 852 | AS71: 1328 | AT71: 997 | AU71: 724 | AV71: 442 | AW71: 616 | AX71: 593 | AY71: 3007 | AZ71: 1288 | BA71: 1961 | BB71: 1083 | BC71: 9598 | BD71: 3471 | BE71: 8570 | BF71: 3050 | BG71: 293 | BH71: 215 | BI71: 2595 | BJ71: 1099 | BK71: 1118 | BL71: 536 | BM71: 2293 | BN71: 1037 | BO71: 6712 | BP71: 2202 | BQ71: 510 | BR71: 443 | BS71: 2564 | BT71: 1085 | BU71: 6946 | BV71: 1907 | BW71: 7402 | BX71: 2615 | BY71: 2721 | BZ71: 939 | CA71: 877 | CB71: 444 | CC71: 7906 | CD71: 2239 | CE71: 1626 | CF71: 838 | CG71: 8587 | CH71: 3200 | CI71: 4280 | CJ71: 1395 | CK71: 614 | CL71: 687 | CM71: 1070 | CN71: 573 | CO71: 1472 | CP71: 776 | CQ71: 5075 | CR71: 1919 | CS71: 14788 | CT71: 3541 | CU71: 5916 | CV71: 1789 | CW71: 207 | CX71: 291 | CY71: 2763 | CZ71: 1031 | DA71: 13247 | DB71: 2448 | DC71: 765 | DD71: 734 | DE71: 3765 | DF71: 1168 | DG71: 2786 | DH71: 1401 | DI71: 1791 | DJ71: 1662
I72: 76948 | J72: 7223 | K72: 374 | L72: 293 | M72: 855 | N72: 906 | O72: 1677 | P72: 954 | Q72: N/A | R72: N/A | S72: 3525 | T72: 1202 | U72: 603 | V72: 369 | W72: 185 | X72: 264 | Y72: 0 | Z72: 184 | AA72: 205 | AB72: 232 | AC72: 2682 | AD72: 1052 | AE72: 1525 | AF72: 1006 | AG72: 0 | AH72: 184 | AI72: 0 | AJ72: 184 | AK72: 3576 | AL72: 1286 | AM72: 1172 | AN72: 587 | AO72: 409 | AP72: 330 | AQ72: 1033 | AR72: 539 | AS72: 1310 | AT72: 884 | AU72: 3953 | AV72: 1340 | AW72: 17 | AX72: 39 | AY72: 169 | AZ72: 209 | BA72: 254 | BB72: 262 | BC72: 1283 | BD72: 607 | BE72: 295 | BF72: 285 | BG72: 3689 | BH72: 2537 | BI72: 9105 | BJ72: 2916 | BK72: 258 | BL72: 293 | BM72: 166 | BN72: 201 | BO72: 121 | BP72: 161 | BQ72: 0 | BR72: 184 | BS72: 157 | BT72: 171 | BU72: 547 | BV72: 482 | BW72: 2262 | BX72: 1559 | BY72: 3057 | BZ72: 2173 | CA72: 0 | CB72: 184 | CC72: 1135 | CD72: 626 | CE72: 9938 | CF72: 2371 | CG72: 193 | CH72: 179 | CI72: 516 | CJ72: 475 | CK72: 59 | CL72: 103 | CM72: 52 | CN72: 71 | CO72: 673 | CP72: 588 | CQ72: 4195 | CR72: 1127 | CS72: 11767 | CT72: 2841 | CU72: 269 | CV72: 216 | CW72: 0 | CX72: 184 | CY72: 1159 | CZ72: 824 | DA72: 251 | DB72: 226 | DC72: 84 | DD72: 148 | DE72: 695 | DF72: 467 | DG72: 1498 | DH72: 2098 | DI72: 0 | DJ72: 184
I73: 493641 | J73: 19652 | K73: 2509 | L73: 983 | M73: 6995 | N73: 1948 | O73: 38916 | P73: 5726 | Q73: 3472 | R73: 1354 | S73: N/A | T73: N/A | U73: 15150 | V73: 2598 | W73: 6764 | X73: 2194 | Y73: 474 | Z73: 413 | AA73: 3199 | AB73: 1061 | AC73: 21004 | AD73: 3394 | AE73: 10790 | AF73: 2458 | AG73: 11906 | AH73: 2720 | AI73: 5331 | AJ73: 1519 | AK73: 21251 | AL73: 3521 | AM73: 5891 | AN73: 1629 | AO73: 2284 | AP73: 987 | AQ73: 2790 | AR73: 984 | AS73: 3763 | AT73: 1292 | AU73: 5180 | AV73: 1525 | AW73: 1256 | AX73: 951 | AY73: 7902 | AZ73: 2347 | BA73: 14356 | BB73: 2682 | BC73: 8921 | BD73: 2069 | BE73: 8539 | BF73: 1942 | BG73: 2556 | BH73: 993 | BI73: 6729 | BJ73: 1595 | BK73: 3060 | BL73: 1275 | BM73: 3302 | BN73: 2007 | BO73: 27968 | BP73: 3857 | BQ73: 1327 | BR73: 615 | BS73: 12057 | BT73: 2447 | BU73: 5921 | BV73: 2240 | BW73: 31261 | BX73: 5136 | BY73: 11195 | BZ73: 2366 | CA73: 1827 | CB73: 1272 | CC73: 10653 | CD73: 2869 | CE73: 6671 | CF73: 1795 | CG73: 22724 | CH73: 3271 | CI73: 10466 | CJ73: 2392 | CK73: 1648 | CL73: 697 | CM73: 4110 | CN73: 1492 | CO73: 826 | CP73: 674 | CQ73: 5802 | CR73: 1880 | CS73: 43005 | CT73: 5519 | CU73: 12172 | CV73: 2457 | CW73: 544 | CX73: 345 | CY73: 15625 | CZ73: 3457 | DA73: 34569 | DB73: 4540 | DC73: 1413 | DD73: 1135 | DE73: 5681 | DF73: 1716 | DG73: 1886 | DH73: 1117 | DI73: 2323 | DJ73: 1076
I74: 205060 | J74: 11855 | K74: 3108 | L74: 1610 | M74: 3457 | N74: 1695 | O74: 10589 | P74: 2218 | Q74: 1043 | R74: 580 | S74: 22152 | T74: 4260 | U74: N/A | V74: N/A | W74: 1317 | X74: 677 | Y74: 70 | Z74: 133 | AA74: 488 | AB74: 387 | AC74: 8615 | AD74: 1907 | AE74: 5834 | AF74: 2086 | AG74: 2536 | AH74: 1020 | AI74: 2660 | AJ74: 1468 | AK74: 6374 | AL74: 1617 | AM74: 4336 | AN74: 2128 | AO74: 2776 | AP74: 1486 | AQ74: 5283 | AR74: 1843 | AS74: 2500 | AT74: 2135 | AU74: 5048 | AV74: 2468 | AW74: 20 | AX74: 40 | AY74: 2844 | AZ74: 1196 | BA74: 5939 | BB74: 2238 | BC74: 3343 | BD74: 1293 | BE74: 2992 | BF74: 909 | BG74: 835 | BH74: 522 | BI74: 3771 | BJ74: 1262 | BK74: 2021 | BL74: 923 | BM74: 4472 | BN74: 1729 | BO74: 3789 | BP74: 1433 | BQ74: 679 | BR74: 308 | BS74: 2464 | BT74: 1179 | BU74: 6520 | BV74: 1851 | BW74: 7250 | BX74: 2604 | BY74: 4378 | BZ74: 1678 | CA74: 1918 | CB74: 1071 | CC74: 4533 | CD74: 2214 | CE74: 4582 | CF74: 2102 | CG74: 2419 | CH74: 836 | CI74: 3950 | CJ74: 1530 | CK74: 137 | CL74: 153 | CM74: 2383 | CN74: 1479 | CO74: 756 | CP74: 553 | CQ74: 2535 | CR74: 1135 | CS74: 17355 | CT74: 3352 | CU74: 6398 | CV74: 2035 | CW74: 503 | CX74: 371 | CY74: 3796 | CZ74: 1568 | DA74: 4853 | DB74: 1401 | DC74: 837 | DD74: 429 | DE74: 3000 | DF74: 1006 | DG74: 5602 | DH74: 2808 | DI74: 1144 | DJ74: 903
I75: 80311 | J75: 6574 | K75: 46 | L75: 103 | M75: 439 | N75: 511 | O75: 3167 | P75: 3028 | Q75: 200 | R75: 228 | S75: 3161 | T75: 1015 | U75: 367 | V75: 341 | W75: N/A | X75: N/A | Y75: 22 | Z75: 36 | AA75: 288 | AB75: 230 | AC75: 6578 | AD75: 1844 | AE75: 1702 | AF75: 971 | AG75: 408 | AH75: 476 | AI75: 97 | AJ75: 155 | AK75: 912 | AL75: 583 | AM75: 53 | AN75: 90 | AO75: 0 | AP75: 193 | AQ75: 0 | AR75: 193 | AS75: 124 | AT75: 159 | AU75: 909 | AV75: 733 | AW75: 1224 | AX75: 696 | AY75: 1752 | AZ75: 748 | BA75: 8743 | BB75: 1587 | BC75: 753 | BD75: 539 | BE75: 605 | BF75: 564 | BG75: 276 | BH75: 293 | BI75: 358 | BJ75: 330 | BK75: 50 | BL75: 91 | BM75: 45 | BN75: 74 | BO75: 172 | BP75: 166 | BQ75: 1009 | BR75: 551 | BS75: 5665 | BT75: 1490 | BU75: 444 | BV75: 450 | BW75: 23310 | BX75: 3774 | BY75: 3379 | BZ75: 1609 | CA75: 0 | CB75: 193 | CC75: 287 | CD75: 254 | CE75: 415 | CF75: 411 | CG75: 35 | CH75: 58 | CI75: 2214 | CJ75: 1037 | CK75: 1558 | CL75: 689 | CM75: 940 | CN75: 665 | CO75: 0 | CP75: 193 | CQ75: 260 | CR75: 216 | CS75: 3279 | CT75: 1568 | CU75: 45 | CV75: 69 | CW75: 709 | CX75: 556 | CY75: 1729 | CZ75: 707 | DA75: 1593 | DB75: 1274 | DC75: 174 | DD75: 293 | DE75: 711 | DF75: 684 | DG75: 104 | DH75: 120 | DI75: 3228 | DJ75: 1540
I76: 34757 | J76: 4691 | K76: 119 | L76: 164 | M76: 692 | N76: 920 | O76: 188 | P76: 227 | Q76: 0 | R76: 182 | S76: 2221 | T76: 2189 | U76: 0 | V76: 182 | W76: 1489 | X76: 679 | Y76: N/A | Z76: N/A | AA76: 11 | AB76: 21 | AC76: 715 | AD76: 481 | AE76: 179 | AF76: 224 | AG76: 0 | AH76: 182 | AI76: 32 | AJ76: 51 | AK76: 567 | AL76: 468 | AM76: 62 | AN76: 80 | AO76: 30 | AP76: 49 | AQ76: 113 | AR76: 190 | AS76: 0 | AT76: 182 | AU76: 178 | AV76: 266 | AW76: 0 | AX76: 182 | AY76: 5649 | AZ76: 1598 | BA76: 157 | BB76: 131 | BC76: 227 | BD76: 233 | BE76: 351 | BF76: 390 | BG76: 58 | BH76: 110 | BI76: 80 | BJ76: 138 | BK76: 0 | BL76: 182 | BM76: 91 | BN76: 116 | BO76: 572 | BP76: 474 | BQ76: 99 | BR76: 127 | BS76: 5846 | BT76: 2122 | BU76: 85 | BV76: 136 | BW76: 3566 | BX76: 1751 | BY76: 1349 | BZ76: 809 | CA76: 0 | CB76: 182 | CC76: 191 | CD76: 201 | CE76: 0 | CF76: 182 | CG76: 0 | CH76: 182 | CI76: 6828 | CJ76: 1815 | CK76: 135 | CL76: 185 | CM76: 298 | CN76: 235 | CO76: 0 | CP76: 182 | CQ76: 344 | CR76: 440 | CS76: 133 | CT76: 158 | CU76: 166 | CV76: 279 | CW76: 0 | CX76: 182 | CY76: 1746 | CZ76: 910 | DA76: 29 | DB76: 49 | DC76: 161 | DD76: 205 | DE76: 0 | DF76: 182 | DG76: 0 | DH76: 182 | DI76: 56 | DJ76: 90
I77: 53830 | J77: 5001 | K77: 79 | L77: 138 | M77: 1247 | N77: 715 | O77: 902 | P77: 646 | Q77: 35 | R77: 59 | S77: 4999 | T77: 2108 | U77: 677 | V77: 546 | W77: 618 | X77: 439 | Y77: 78 | Z77: 127 | AA77: N/A | AB77: N/A | AC77: 1705 | AD77: 661 | AE77: 1079 | AF77: 470 | AG77: 38 | AH77: 87 | AI77: 46 | AJ77: 75 | AK77: 795 | AL77: 446 | AM77: 469 | AN77: 379 | AO77: 133 | AP77: 221 | AQ77: 164 | AR77: 267 | AS77: 112 | AT77: 136 | AU77: 283 | AV77: 295 | AW77: 194 | AX77: 244 | AY77: 14120 | AZ77: 2487 | BA77: 1524 | BB77: 717 | BC77: 944 | BD77: 670 | BE77: 393 | BF77: 240 | BG77: 44 | BH77: 74 | BI77: 337 | BJ77: 354 | BK77: 0 | BL77: 197 | BM77: 172 | BN77: 182 | BO77: 42 | BP77: 69 | BQ77: 197 | BR77: 183 | BS77: 1451 | BT77: 792 | BU77: 116 | BV77: 139 | BW77: 3085 | BX77: 851 | BY77: 985 | BZ77: 503 | CA77: 0 | CB77: 197 | CC77: 651 | CD77: 429 | CE77: 0 | CF77: 197 | CG77: 157 | CH77: 182 | CI77: 1494 | CJ77: 608 | CK77: 635 | CL77: 596 | CM77: 150 | CN77: 140 | CO77: 0 | CP77: 197 | CQ77: 577 | CR77: 478 | CS77: 1473 | CT77: 826 | CU77: 116 | CV77: 145 | CW77: 267 | CX77: 250 | CY77: 9537 | CZ77: 1762 | DA77: 481 | DB77: 358 | DC77: 293 | DD77: 219 | DE77: 721 | DF77: 420 | DG77: 215 | DH77: 303 | DI77: 0 | DJ77: 197
I78: 537148 | J78: 19784 | K78: 18599 | L78: 4762 | M78: 10704 | N78: 4327 | O78: 6473 | P78: 1865 | Q78: 3321 | R78: 1136 | S78: 20386 | T78: 4221 | U78: 8766 | V78: 2537 | W78: 8975 | X78: 1882 | Y78: 1099 | Z78: 608 | AA78: 780 | AB78: 481 | AC78: N/A | AD78: N/A | AE78: 42754 | AF78: 6205 | AG78: 3177 | AH78: 2730 | AI78: 1268 | AJ78: 923 | AK78: 22565 | AL78: 3828 | AM78: 13803 | AN78: 2852 | AO78: 3864 | AP78: 1332 | AQ78: 5661 | AR78: 3133 | AS78: 6912 | AT78: 1607 | AU78: 5550 | AV78: 2266 | AW78: 7348 | AX78: 3032 | AY78: 10442 | AZ78: 2378 | BA78: 15159 | BB78: 2747 | BC78: 23400 | BD78: 3519 | BE78: 5460 | BF78: 2185 | BG78: 5490 | BH78: 3345 | BI78: 10666 | BJ78: 3498 | BK78: 1758 | BL78: 2104 | BM78: 945 | BN78: 713 | BO78: 1241 | BP78: 515 | BQ78: 2362 | BR78: 922 | BS78: 27606 | BT78: 4242 | BU78: 2853 | BV78: 1004 | BW78: 53009 | BX78: 5886 | BY78: 23133 | BZ78: 3843 | CA78: 239 | CB78: 203 | CC78: 22927 | CD78: 4305 | CE78: 3142 | CF78: 1301 | CG78: 2919 | CH78: 1736 | CI78: 25659 | CJ78: 4174 | CK78: 3050 | CL78: 1458 | CM78: 11366 | CN78: 2719 | CO78: 1070 | CP78: 762 | CQ78: 16275 | CR78: 3583 | CS78: 28564 | CT78: 4750 | CU78: 2499 | CV78: 1348 | CW78: 2747 | CX78: 1190 | CY78: 25697 | CZ78: 3965 | DA78: 4943 | DB78: 1710 | DC78: 3533 | DD78: 1587 | DE78: 6216 | DF78: 1993 | DG78: 773 | DH78: 567 | DI78: 21638 | DJ78: 4641
I79: 277466 | J79: 14075 | K79: 13864 | L79: 2903 | M79: 2654 | N79: 1444 | O79: 6657 | P79: 2675 | Q79: 1041 | R79: 519 | S79: 14174 | T79: 3182 | U79: 4710 | V79: 2093 | W79: 1829 | X79: 824 | Y79: 226 | Z79: 246 | AA79: 1352 | AB79: 994 | AC79: 42870 | AD79: 5472 | AE79: N/A | AF79: N/A | AG79: 1409 | AH79: 831 | AI79: 936 | AJ79: 797 | AK79: 7143 | AL79: 1833 | AM79: 5972 | AN79: 2678 | AO79: 1687 | AP79: 1036 | AQ79: 1497 | AR79: 707 | AS79: 6172 | AT79: 1972 | AU79: 4100 | AV79: 1490 | AW79: 222 | AX79: 178 | AY79: 3619 | AZ79: 1621 | BA79: 4153 | BB79: 1720 | BC79: 9949 | BD79: 3100 | BE79: 2237 | BF79: 2164 | BG79: 3280 | BH79: 1372 | BI79: 3377 | BJ79: 1479 | BK79: 251 | BL79: 224 | BM79: 1283 | BN79: 1001 | BO79: 3783 | BP79: 2622 | BQ79: 15 | BR79: 27 | BS79: 4920 | BT79: 1544 | BU79: 915 | BV79: 512 | BW79: 13957 | BX79: 3960 | BY79: 16009 | BZ79: 2963 | CA79: 207 | CB79: 250 | CC79: 7501 | CD79: 2501 | CE79: 3299 | CF79: 1818 | CG79: 453 | CH79: 472 | CI79: 9076 | CJ79: 2622 | CK79: 440 | CL79: 620 | CM79: 18611 | CN79: 3871 | CO79: 257 | CP79: 291 | CQ79: 17606 | CR79: 4620 | CS79: 16198 | CT79: 3367 | CU79: 20 | CV79: 35 | CW79: 84 | CX79: 142 | CY79: 10702 | CZ79: 2094 | DA79: 1965 | DB79: 826 | DC79: 1237 | DD79: 625 | DE79: 3441 | DF79: 1725 | DG79: 106 | DH79: 154 | DI79: 1730 | DJ79: 1190
I80: 55145 | J80: 5749 | K80: 608 | L80: 479 | M80: 1417 | N80: 869 | O80: 1865 | P80: 695 | Q80: 24 | R80: 54 | S80: 9756 | T80: 1508 | U80: 1216 | V80: 574 | W80: 191 | X80: 222 | Y80: 278 | Z80: 253 | AA80: 230 | AB80: 253 | AC80: 2780 | AD80: 1227 | AE80: 1448 | AF80: 639 | AG80: N/A | AH80: N/A | AI80: 404 | AJ80: 431 | AK80: 318 | AL80: 194 | AM80: 292 | AN80: 261 | AO80: 84 | AP80: 98 | AQ80: 1135 | AR80: 709 | AS80: 485 | AT80: 630 | AU80: 207 | AV80: 183 | AW80: 91 | AX80: 147 | AY80: 2491 | AZ80: 1610 | BA80: 1266 | BB80: 962 | BC80: 321 | BD80: 189 | BE80: 192 | BF80: 240 | BG80: 44 | BH80: 52 | BI80: 944 | BJ80: 630 | BK80: 131 | BL80: 172 | BM80: 75 | BN80: 125 | BO80: 760 | BP80: 424 | BQ80: 85 | BR80: 119 | BS80: 410 | BT80: 435 | BU80: 284 | BV80: 243 | BW80: 2382 | BX80: 1279 | BY80: 2241 | BZ80: 1274 | CA80: 0 | CB80: 177 | CC80: 884 | CD80: 995 | CE80: 1095 | CF80: 933 | CG80: 1763 | CH80: 764 | CI80: 1087 | CJ80: 770 | CK80: 106 | CL80: 176 | CM80: 644 | CN80: 460 | CO80: 459 | CP80: 726 | CQ80: 1314 | CR80: 675 | CS80: 3300 | CT80: 1887 | CU80: 2183 | CV80: 1283 | CW80: 0 | CX80: 177 | CY80: 1393 | CZ80: 755 | DA80: 5920 | DB80: 1901 | DC80: 197 | DD80: 330 | DE80: 295 | DF80: 234 | DG80: 50 | DH80: 66 | DI80: 336 | DJ80: 436
I81: 59283 | J81: 6040 | K81: 575 | L81: 838 | M81: 1198 | N81: 790 | O81: 2424 | P81: 1307 | Q81: 291 | R81: 268 | S81: 10280 | T81: 2708 | U81: 1186 | V81: 614 | W81: 44 | X81: 81 | Y81: 120 | Z81: 199 | AA81: 116 | AB81: 124 | AC81: 2014 | AD81: 1608 | AE81: 583 | AF81: 848 | AG81: 206 | AH81: 194 | AI81: N/A | AJ81: N/A | AK81: 532 | AL81: 469 | AM81: 283 | AN81: 282 | AO81: 90 | AP81: 170 | AQ81: 63 | AR81: 69 | AS81: 83 | AT81: 128 | AU81: 54 | AV81: 92 | AW81: 0 | AX81: 187 | AY81: 107 | AZ81: 161 | BA81: 338 | BB81: 391 | BC81: 683 | BD81: 777 | BE81: 637 | BF81: 528 | BG81: 87 | BH81: 170 | BI81: 214 | BJ81: 259 | BK81: 3800 | BL81: 2162 | BM81: 35 | BN81: 60 | BO81: 2535 | BP81: 1031 | BQ81: 0 | BR81: 187 | BS81: 214 | BT81: 206 | BU81: 675 | BV81: 554 | BW81: 938 | BX81: 554 | BY81: 817 | BZ81: 843 | CA81: 0 | CB81: 187 | CC81: 1018 | CD81: 753 | CE81: 93 | CF81: 108 | CG81: 4963 | CH81: 1377 | CI81: 169 | CJ81: 181 | CK81: 0 | CL81: 187 | CM81: 205 | CN81: 238 | CO81: 118 | CP81: 192 | CQ81: 1957 | CR81: 1539 | CS81: 1352 | CT81: 714 | CU81: 6617 | CV81: 3016 | CW81: 0 | CX81: 187 | CY81: 269 | CZ81: 388 | DA81: 10398 | DB81: 1919 | DC81: 0 | DD81: 187 | DE81: 225 | DF81: 272 | DG81: 677 | DH81: 406 | DI81: 136 | DJ81: 228
I82: 208755 | J82: 10844 | K82: 883 | L82: 478 | M82: 2250 | N82: 1511 | O82: 7139 | P82: 2314 | Q82: 1587 | R82: 643 | S82: 14940 | T82: 2770 | U82: 3036 | V82: 1235 | W82: 955 | X82: 634 | Y82: 234 | Z82: 228 | AA82: 1066 | AB82: 615 | AC82: 12687 | AD82: 2735 | AE82: 8745 | AF82: 3894 | AG82: 869 | AH82: 593 | AI82: 1384 | AJ82: 868 | AK82: N/A | AL82: N/A | AM82: 16907 | AN82: 2654 | AO82: 8529 | AP82: 1959 | AQ82: 2009 | AR82: 988 | AS82: 2923 | AT82: 1049 | AU82: 1229 | AV82: 561 | AW82: 526 | AX82: 347 | AY82: 1865 | AZ82: 755 | BA82: 3296 | BB82: 1088 | BC82: 12583 | BD82: 3412 | BE82: 6537 | BF82: 1781 | BG82: 2744 | BH82: 1178 | BI82: 13264 | BJ82: 3449 | BK82: 228 | BL82: 183 | BM82: 1302 | BN82: 637 | BO82: 1478 | BP82: 817 | BQ82: 283 | BR82: 255 | BS82: 2366 | BT82: 1097 | BU82: 1359 | BV82: 1078 | BW82: 7561 | BX82: 2307 | BY82: 3761 | BZ82: 1150 | CA82: 196 | CB82: 184 | CC82: 6872 | CD82: 1834 | CE82: 1491 | CF82: 860 | CG82: 954 | CH82: 517 | CI82: 4588 | CJ82: 1506 | CK82: 462 | CL82: 478 | CM82: 1583 | CN82: 875 | CO82: 394 | CP82: 444 | CQ82: 4648 | CR82: 1468 | CS82: 16780 | CT82: 3035 | CU82: 1154 | CV82: 495 | CW82: 156 | CX82: 133 | CY82: 4311 | CZ82: 1212 | DA82: 2704 | DB82: 971 | DC82: 1221 | DD82: 1224 | DE82: 14414 | DF82: 2249 | DG82: 302 | DH82: 309 | DI82: 2049 | DJ82: 1480
I83: 134137 | J83: 9664 | K83: 1625 | L83: 788 | M83: 479 | N83: 429 | O83: 2763 | P83: 1095 | Q83: 564 | R83: 753 | S83: 6033 | T83: 1477 | U83: 1225 | V83: 531 | W83: 823 | X83: 595 | Y83: 639 | Z83: 831 | AA83: 1045 | AB83: 733 | AC83: 11472 | AD83: 2864 | AE83: 2258 | AF83: 1176 | AG83: 856 | AH83: 998 | AI83: 186 | AJ83: 176 | AK83: 28436 | AL83: 4261 | AM83: N/A | AN83: N/A | AO83: 1678 | AP83: 860 | AQ83: 1624 | AR83: 785 | AS83: 11177 | AT83: 2929 | AU83: 736 | AV83: 416 | AW83: 0 | AX83: 184 | AY83: 1050 | AZ83: 648 | BA83: 837 | BB83: 590 | BC83: 11017 | BD83: 2594 | BE83: 1543 | BF83: 732 | BG83: 1948 | BH83: 1655 | BI83: 4526 | BJ83: 1802 | BK83: 134 | BL83: 191 | BM83: 591 | BN83: 541 | BO83: 1011 | BP83: 549 | BQ83: 0 | BR83: 184 | BS83: 1537 | BT83: 1034 | BU83: 219 | BV83: 245 | BW83: 2316 | BX83: 724 | BY83: 2665 | BZ83: 884 | CA83: 113 | CB83: 164 | CC83: 11235 | CD83: 2192 | CE83: 1198 | CF83: 725 | CG83: 387 | CH83: 239 | CI83: 2419 | CJ83: 1101 | CK83: 0 | CL83: 184 | CM83: 1414 | CN83: 901 | CO83: 111 | CP83: 147 | CQ83: 3547 | CR83: 1422 | CS83: 4490 | CT83: 1562 | CU83: 105 | CV83: 124 | CW83: 0 | CX83: 184 | CY83: 1932 | CZ83: 1101 | DA83: 258 | DB83: 221 | DC83: 507 | DD83: 345 | DE83: 1727 | DF83: 769 | DG83: 1681 | DH83: 2023 | DI83: 136 | DJ83: 194
I84: 75760 | J84: 5982 | K84: 503 | L84: 400 | M84: 951 | N84: 814 | O84: 1590 | P84: 803 | Q84: 451 | R84: 237 | S84: 3268 | T84: 1296 | U84: 3252 | V84: 1250 | W84: 112 | X84: 135 | Y84: 0 | Z84: 151 | AA84: 151 | AB84: 155 | AC84: 4335 | AD84: 2060 | AE84: 596 | AF84: 481 | AG84: 521 | AH84: 476 | AI84: 290 | AJ84: 218 | AK84: 11969 | AL84: 2313 | AM84: 1716 | AN84: 1097 | AO84: N/A | AP84: N/A | AQ84: 918 | AR84: 500 | AS84: 819 | AT84: 609 | AU84: 763 | AV84: 568 | AW84: 78 | AX84: 125 | AY84: 419 | AZ84: 287 | BA84: 585 | BB84: 520 | BC84: 946 | BD84: 497 | BE84: 7505 | BF84: 1826 | BG84: 751 | BH84: 621 | BI84: 4168 | BJ84: 1021 | BK84: 452 | BL84: 305 | BM84: 7698 | BN84: 1806 | BO84: 681 | BP84: 602 | BQ84: 56 | BR84: 93 | BS84: 1018 | BT84: 767 | BU84: 114 | BV84: 188 | BW84: 1230 | BX84: 819 | BY84: 734 | BZ84: 428 | CA84: 833 | CB84: 617 | CC84: 1127 | CD84: 692 | CE84: 1465 | CF84: 974 | CG84: 348 | CH84: 302 | CI84: 451 | CJ84: 353 | CK84: 0 | CL84: 151 | CM84: 943 | CN84: 556 | CO84: 1158 | CP84: 441 | CQ84: 1148 | CR84: 871 | CS84: 3553 | CT84: 1275 | CU84: 886 | CV84: 880 | CW84: 0 | CX84: 151 | CY84: 268 | CZ84: 200 | DA84: 919 | DB84: 485 | DC84: 22 | DD84: 41 | DE84: 3607 | DF84: 849 | DG84: 392 | DH84: 316 | DI84: 786 | DJ84: 1190
I85: 88284 | J85: 7145 | K85: 853 | L85: 609 | M85: 333 | N85: 407 | O85: 3094 | P85: 1630 | Q85: 2158 | R85: 890 | S85: 5411 | T85: 2012 | U85: 3746 | V85: 1360 | W85: 210 | X85: 208 | Y85: 0 | Z85: 165 | AA85: 456 | AB85: 737 | AC85: 3118 | AD85: 1380 | AE85: 1896 | AF85: 1395 | AG85: 149 | AH85: 156 | AI85: 456 | AJ85: 356 | AK85: 1702 | AL85: 582 | AM85: 1679 | AN85: 839 | AO85: 1527 | AP85: 860 | AQ85: N/A | AR85: N/A | AS85: 617 | AT85: 476 | AU85: 438 | AV85: 408 | AW85: 211 | AX85: 225 | AY85: 282 | AZ85: 282 | BA85: 187 | BB85: 203 | BC85: 1125 | BD85: 682 | BE85: 682 | BF85: 367 | BG85: 452 | BH85: 501 | BI85: 21022 | BJ85: 3073 | BK85: 300 | BL85: 326 | BM85: 4126 | BN85: 1245 | BO85: 851 | BP85: 606 | BQ85: 0 | BR85: 165 | BS85: 267 | BT85: 228 | BU85: 1029 | BV85: 627 | BW85: 571 | BX85: 367 | BY85: 813 | BZ85: 476 | CA85: 261 | CB85: 263 | CC85: 1310 | CD85: 638 | CE85: 8408 | CF85: 2299 | CG85: 848 | CH85: 557 | CI85: 918 | CJ85: 672 | CK85: 18 | CL85: 31 | CM85: 556 | CN85: 375 | CO85: 154 | CP85: 195 | CQ85: 1542 | CR85: 825 | CS85: 8468 | CT85: 2434 | CU85: 97 | CV85: 106 | CW85: 70 | CX85: 138 | CY85: 1705 | CZ85: 853 | DA85: 3265 | DB85: 1675 | DC85: 139 | DD85: 132 | DE85: 486 | DF85: 530 | DG85: 278 | DH85: 239 | DI85: 82 | DJ85: 147
I86: 112787 | J86: 7854 | K86: 4137 | L86: 1628 | M86: 304 | N86: 370 | O86: 1103 | P86: 715 | Q86: 518 | R86: 299 | S86: 3415 | T86: 1157 | U86: 712 | V86: 572 | W86: 246 | X86: 290 | Y86: 706 | Z86: 774 | AA86: 254 | AB86: 262 | AC86: 9232 | AD86: 2697 | AE86: 4173 | AF86: 1184 | AG86: 647 | AH86: 665 | AI86: 50 | AJ86: 91 | AK86: 4445 | AL86: 1359 | AM86: 12203 | AN86: 2150 | AO86: 238 | AP86: 257 | AQ86: 602 | AR86: 464 | AS86: N/A | AT86: N/A | AU86: 666 | AV86: 294 | AW86: 46 | AX86: 80 | AY86: 1120 | AZ86: 615 | BA86: 419 | BB86: 285 | BC86: 7302 | BD86: 1809 | BE86: 605 | BF86: 346 | BG86: 646 | BH86: 467 | BI86: 2381 | BJ86: 1021 | BK86: 0 | BL86: 181 | BM86: 723 | BN86: 588 | BO86: 301 | BP86: 294 | BQ86: 84 | BR86: 103 | BS86: 496 | BT86: 551 | BU86: 554 | BV86: 348 | BW86: 5239 | BX86: 1774 | BY86: 3643 | BZ86: 1903 | CA86: 122 | CB86: 192 | CC86: 17041 | CD86: 3384 | CE86: 577 | CF86: 437 | CG86: 298 | CH86: 212 | CI86: 2226 | CJ86: 964 | CK86: 0 | CL86: 181 | CM86: 1347 | CN86: 671 | CO86: 0 | CP86: 181 | CQ86: 10064 | CR86: 2378 | CS86: 3345 | CT86: 1420 | CU86: 464 | CV86: 360 | CW86: 45 | CX86: 81 | CY86: 3319 | CZ86: 1111 | DA86: 1988 | DB86: 998 | DC86: 3346 | DD86: 1472 | DE86: 1395 | DF86: 845 | DG86: 0 | DH86: 181 | DI86: 170 | DJ86: 197
I87: 91215 | J87: 6941 | K87: 2329 | L87: 1114 | M87: 403 | N87: 467 | O87: 2021 | P87: 1191 | Q87: 3645 | R87: 2324 | S87: 5139 | T87: 1438 | U87: 1433 | V87: 1002 | W87: 164 | X87: 149 | Y87: 0 | Z87: 193 | AA87: 596 | AB87: 517 | AC87: 6534 | AD87: 2276 | AE87: 4478 | AF87: 1559 | AG87: 378 | AH87: 283 | AI87: 265 | AJ87: 242 | AK87: 1229 | AL87: 466 | AM87: 1359 | AN87: 954 | AO87: 544 | AP87: 447 | AQ87: 420 | AR87: 392 | AS87: 1649 | AT87: 1224 | AU87: N/A | AV87: N/A | AW87: 251 | AX87: 334 | AY87: 642 | AZ87: 701 | BA87: 549 | BB87: 354 | BC87: 1080 | BD87: 782 | BE87: 330 | BF87: 324 | BG87: 6791 | BH87: 1938 | BI87: 1591 | BJ87: 684 | BK87: 428 | BL87: 524 | BM87: 745 | BN87: 538 | BO87: 931 | BP87: 682 | BQ87: 11 | BR87: 21 | BS87: 975 | BT87: 575 | BU87: 150 | BV87: 188 | BW87: 2786 | BX87: 1105 | BY87: 2284 | BZ87: 1152 | CA87: 64 | CB87: 113 | CC87: 1115 | CD87: 773 | CE87: 2159 | CF87: 1365 | CG87: 195 | CH87: 232 | CI87: 1239 | CJ87: 616 | CK87: 737 | CL87: 695 | CM87: 1914 | CN87: 1377 | CO87: 0 | CP87: 193 | CQ87: 2348 | CR87: 1546 | CS87: 24488 | CT87: 4076 | CU87: 277 | CV87: 288 | CW87: 45 | CX87: 72 | CY87: 1857 | CZ87: 1033 | DA87: 1581 | DB87: 631 | DC87: 238 | DD87: 271 | DE87: 682 | DF87: 474 | DG87: 146 | DH87: 216 | DI87: 655 | DJ87: 507
I88: 27523 | J88: 3132 | K88: 129 | L88: 172 | M88: 38 | N88: 48 | O88: 230 | P88: 170 | Q88: 0 | R88: 155 | S88: 1610 | T88: 860 | U88: 314 | V88: 287 | W88: 1468 | X88: 620 | Y88: 234 | Z88: 299 | AA88: 32 | AB88: 55 | AC88: 2926 | AD88: 1292 | AE88: 511 | AF88: 538 | AG88: 0 | AH88: 155 | AI88: 143 | AJ88: 128 | AK88: 195 | AL88: 277 | AM88: 0 | AN88: 155 | AO88: 7 | AP88: 16 | AQ88: 277 | AR88: 401 | AS88: 482 | AT88: 521 | AU88: 15 | AV88: 30 | AW88: N/A | AX88: N/A | AY88: 325 | AZ88: 263 | BA88: 3887 | BB88: 1167 | BC88: 116 | BD88: 123 | BE88: 430 | BF88: 359 | BG88: 79 | BH88: 134 | BI88: 69 | BJ88: 112 | BK88: 0 | BL88: 155 | BM88: 82 | BN88: 136 | BO88: 35 | BP88: 56 | BQ88: 3655 | BR88: 1077 | BS88: 405 | BT88: 281 | BU88: 272 | BV88: 320 | BW88: 2519 | BX88: 1180 | BY88: 1112 | BZ88: 574 | CA88: 0 | CB88: 155 | CC88: 628 | CD88: 368 | CE88: 79 | CF88: 115 | CG88: 215 | CH88: 255 | CI88: 976 | CJ88: 600 | CK88: 1024 | CL88: 656 | CM88: 173 | CN88: 143 | CO88: 0 | CP88: 155 | CQ88: 985 | CR88: 1062 | CS88: 496 | CT88: 381 | CU88: 200 | CV88: 183 | CW88: 349 | CX88: 340 | CY88: 573 | CZ88: 408 | DA88: 118 | DB88: 137 | DC88: 51 | DD88: 85 | DE88: 0 | DF88: 155 | DG88: 59 | DH88: 81 | DI88: 38 | DJ88: 69
I89: 154983 | J89: 8958 | K89: 1261 | L89: 713 | M89: 1947 | N89: 1123 | O89: 760 | P89: 359 | Q89: 136 | R89: 159 | S89: 8614 | T89: 2155 | U89: 1071 | V89: 609 | W89: 881 | X89: 516 | Y89: 4100 | Z89: 1303 | AA89: 21213 | AB89: 3437 | AC89: 9610 | AD89: 2515 | AE89: 4610 | AF89: 2430 | AG89: 610 | AH89: 474 | AI89: 429 | AJ89: 444 | AK89: 3621 | AL89: 1647 | AM89: 1210 | AN89: 709 | AO89: 569 | AP89: 389 | AQ89: 1726 | AR89: 1123 | AS89: 715 | AT89: 602 | AU89: 606 | AV89: 441 | AW89: 332 | AX89: 261 | AY89: N/A | AZ89: N/A | BA89: 3977 | BB89: 1805 | BC89: 2167 | BD89: 973 | BE89: 1422 | BF89: 707 | BG89: 581 | BH89: 706 | BI89: 256 | BJ89: 199 | BK89: 0 | BL89: 190 | BM89: 132 | BN89: 152 | BO89: 330 | BP89: 258 | BQ89: 1124 | BR89: 820 | BS89: 6260 | BT89: 2244 | BU89: 638 | BV89: 453 | BW89: 11736 | BX89: 2585 | BY89: 7507 | BZ89: 2284 | CA89: 116 | CB89: 94 | CC89: 2522 | CD89: 1035 | CE89: 463 | CF89: 447 | CG89: 378 | CH89: 426 | CI89: 15485 | CJ89: 2922 | CK89: 82 | CL89: 95 | CM89: 2297 | CN89: 1139 | CO89: 0 | CP89: 190 | CQ89: 1800 | CR89: 986 | CS89: 5612 | CT89: 1271 | CU89: 1061 | CV89: 831 | CW89: 589 | CX89: 598 | CY89: 20579 | CZ89: 2668 | DA89: 1431 | DB89: 884 | DC89: 1957 | DD89: 799 | DE89: 460 | DF89: 371 | DG89: 0 | DH89: 190 | DI89: 294 | DJ89: 249
I90: 142577 | J90: 7863 | K90: 636 | L90: 622 | M90: 890 | N90: 600 | O90: 1972 | P90: 979 | Q90: 394 | R90: 340 | S90: 12770 | T90: 2994 | U90: 980 | V90: 438 | W90: 10525 | X90: 2062 | Y90: 506 | Z90: 505 | AA90: 379 | AB90: 219 | AC90: 12890 | AD90: 2568 | AE90: 2789 | AF90: 1129 | AG90: 1108 | AH90: 564 | AI90: 188 | AJ90: 164 | AK90: 2886 | AL90: 1041 | AM90: 677 | AN90: 497 | AO90: 151 | AP90: 251 | AQ90: 565 | AR90: 429 | AS90: 52 | AT90: 87 | AU90: 1556 | AV90: 742 | AW90: 3907 | AX90: 1349 | AY90: 2381 | AZ90: 895 | BA90: N/A | BB90: N/A | BC90: 1337 | BD90: 680 | BE90: 966 | BF90: 367 | BG90: 155 | BH90: 186 | BI90: 453 | BJ90: 218 | BK90: 49 | BL90: 81 | BM90: 182 | BN90: 189 | BO90: 787 | BP90: 544 | BQ90: 13331 | BR90: 2144 | BS90: 8046 | BT90: 1874 | BU90: 521 | BV90: 364 | BW90: 19467 | BX90: 2432 | BY90: 2514 | BZ90: 1003 | CA90: 81 | CB90: 133 | CC90: 1829 | CD90: 772 | CE90: 297 | CF90: 206 | CG90: 1528 | CH90: 1359 | CI90: 8236 | CJ90: 1924 | CK90: 6863 | CL90: 1317 | CM90: 2477 | CN90: 1120 | CO90: 194 | CP90: 326 | CQ90: 823 | CR90: 342 | CS90: 3694 | CT90: 1078 | CU90: 1027 | CV90: 666 | CW90: 2534 | CX90: 913 | CY90: 4098 | CZ90: 1470 | DA90: 1653 | DB90: 696 | DC90: 385 | DD90: 569 | DE90: 584 | DF90: 445 | DG90: 264 | DH90: 404 | DI90: 4056 | DJ90: 1883
I91: 133981 | J91: 8566 | K91: 2341 | L91: 1013 | M91: 1152 | N91: 685 | O91: 7168 | P91: 3100 | Q91: 906 | R91: 559 | S91: 8085 | T91: 1721 | U91: 2363 | V91: 967 | W91: 798 | X91: 506 | Y91: 114 | Z91: 164 | AA91: 274 | AB91: 282 | AC91: 13146 | AD91: 3306 | AE91: 4270 | AF91: 1652 | AG91: 291 | AH91: 238 | AI91: 242 | AJ91: 371 | AK91: 10047 | AL91: 1702 | AM91: 10976 | AN91: 2324 | AO91: 993 | AP91: 495 | AQ91: 805 | AR91: 608 | AS91: 3409 | AT91: 1388 | AU91: 1284 | AV91: 662 | AW91: 261 | AX91: 218 | AY91: 2201 | AZ91: 1094 | BA91: 1720 | BB91: 764 | BC91: N/A | BD91: N/A | BE91: 1127 | BF91: 512 | BG91: 922 | BH91: 671 | BI91: 2206 | BJ91: 695 | BK91: 218 | BL91: 171 | BM91: 113 | BN91: 137 | BO91: 1354 | BP91: 715 | BQ91: 446 | BR91: 342 | BS91: 1617 | BT91: 721 | BU91: 1318 | BV91: 685 | BW91: 5731 | BX91: 1680 | BY91: 3912 | BZ91: 1056 | CA91: 265 | CB91: 202 | CC91: 11318 | CD91: 2251 | CE91: 705 | CF91: 307 | CG91: 811 | CH91: 440 | CI91: 2739 | CJ91: 686 | CK91: 68 | CL91: 114 | CM91: 1822 | CN91: 797 | CO91: 66 | CP91: 77 | CQ91: 3259 | CR91: 997 | CS91: 8638 | CT91: 2574 | CU91: 819 | CV91: 534 | CW91: 60 | CX91: 120 | CY91: 3057 | CZ91: 855 | DA91: 2146 | DB91: 839 | DC91: 353 | DD91: 279 | DE91: 4768 | DF91: 1111 | DG91: 1277 | DH91: 862 | DI91: 782 | DJ91: 797
I92: 101042 | J92: 6534 | K92: 1299 | L92: 919 | M92: 523 | N92: 312 | O92: 3065 | P92: 861 | Q92: 375 | R92: 222 | S92: 8086 | T92: 2263 | U92: 3565 | V92: 1095 | W92: 696 | X92: 360 | Y92: 0 | Z92: 139 | AA92: 310 | AB92: 353 | AC92: 2372 | AD92: 752 | AE92: 2235 | AF92: 1482 | AG92: 1277 | AH92: 1179 | AI92: 575 | AJ92: 531 | AK92: 5896 | AL92: 1405 | AM92: 2026 | AN92: 1057 | AO92: 7220 | AP92: 1774 | AQ92: 924 | AR92: 513 | AS92: 57 | AT92: 103 | AU92: 791 | AV92: 858 | AW92: 187 | AX92: 136 | AY92: 1841 | AZ92: 2080 | BA92: 814 | BB92: 434 | BC92: 2212 | BD92: 822 | BE92: N/A | BF92: N/A | BG92: 202 | BH92: 323 | BI92: 1709 | BJ92: 750 | BK92: 1257 | BL92: 900 | BM92: 992 | BN92: 477 | BO92: 932 | BP92: 542 | BQ92: 0 | BR92: 139 | BS92: 1038 | BT92: 546 | BU92: 322 | BV92: 224 | BW92: 1849 | BX92: 732 | BY92: 1745 | BZ92: 956 | CA92: 6672 | CB92: 1485 | CC92: 2635 | CD92: 1248 | CE92: 1212 | CF92: 894 | CG92: 781 | CH92: 513 | CI92: 1106 | CJ92: 570 | CK92: 299 | CL92: 226 | CM92: 1705 | CN92: 1448 | CO92: 3442 | CP92: 990 | CQ92: 1738 | CR92: 1141 | CS92: 4001 | CT92: 1244 | CU92: 429 | CV92: 312 | CW92: 77 | CX92: 126 | CY92: 1037 | CZ92: 434 | DA92: 1685 | DB92: 678 | DC92: 0 | DD92: 139 | DE92: 17618 | DF92: 2358 | DG92: 213 | DH92: 213 | DI92: 134 | DJ92: 136
I93: 73500 | J93: 7080 | K93: 5141 | L93: 1870 | M93: 0 | N93: 198 | O93: 710 | P93: 509 | Q93: 2680 | R93: 1447 | S93: 4371 | T93: 1070 | U93: 799 | V93: 426 | W93: 106 | X93: 147 | Y93: 0 | Z93: 198 | AA93: 97 | AB93: 164 | AC93: 4676 | AD93: 1396 | AE93: 2669 | AF93: 865 | AG93: 184 | AH93: 191 | AI93: 586 | AJ93: 597 | AK93: 2703 | AL93: 933 | AM93: 1200 | AN93: 621 | AO93: 160 | AP93: 275 | AQ93: 400 | AR93: 339 | AS93: 446 | AT93: 276 | AU93: 8588 | AV93: 2293 | AW93: 163 | AX93: 167 | AY93: 379 | AZ93: 262 | BA93: 67 | BB93: 113 | BC93: 1768 | BD93: 1071 | BE93: 568 | BF93: 385 | BG93: N/A | BH93: N/A | BI93: 2634 | BJ93: 1581 | BK93: 166 | BL93: 168 | BM93: 138 | BN93: 159 | BO93: 526 | BP93: 342 | BQ93: 60 | BR93: 117 | BS93: 2127 | BT93: 1495 | BU93: 86 | BV93: 102 | BW93: 1492 | BX93: 660 | BY93: 1709 | BZ93: 609 | CA93: 98 | CB93: 118 | CC93: 896 | CD93: 703 | CE93: 562 | CF93: 352 | CG93: 465 | CH93: 768 | CI93: 613 | CJ93: 434 | CK93: 185 | CL93: 229 | CM93: 596 | CN93: 469 | CO93: 79 | CP93: 129 | CQ93: 11643 | CR93: 2856 | CS93: 7230 | CT93: 2491 | CU93: 454 | CV93: 724 | CW93: 0 | CX93: 198 | CY93: 1929 | CZ93: 1285 | DA93: 433 | DB93: 309 | DC93: 0 | DD93: 198 | DE93: 611 | DF93: 521 | DG93: 307 | DH93: 287 | DI93: 81 | DJ93: 108
I94: 162930 | J94: 8034 | K94: 1333 | L94: 768 | M94: 2186 | N94: 1289 | O94: 2297 | P94: 741 | Q94: 9434 | R94: 2224 | S94: 10717 | T94: 2409 | U94: 3798 | V94: 1371 | W94: 410 | X94: 331 | Y94: 234 | Z94: 314 | AA94: 144 | AB94: 172 | AC94: 8374 | AD94: 1990 | AE94: 3451 | AF94: 1391 | AG94: 2114 | AH94: 1271 | AI94: 596 | AJ94: 478 | AK94: 22001 | AL94: 2893 | AM94: 4184 | AN94: 1267 | AO94: 5956 | AP94: 1324 | AQ94: 20218 | AR94: 3673 | AS94: 2291 | AT94: 1067 | AU94: 1178 | AV94: 651 | AW94: 996 | AX94: 1247 | AY94: 1246 | AZ94: 717 | BA94: 810 | BB94: 486 | BC94: 2964 | BD94: 1169 | BE94: 2798 | BF94: 1265 | BG94: 1110 | BH94: 532 | BI94: N/A | BJ94: N/A | BK94: 511 | BL94: 506 | BM94: 1999 | BN94: 833 | BO94: 836 | BP94: 366 | BQ94: 35 | BR94: 58 | BS94: 960 | BT94: 536 | BU94: 451 | BV94: 309 | BW94: 2834 | BX94: 918 | BY94: 3988 | BZ94: 1420 | CA94: 636 | CB94: 462 | CC94: 3557 | CD94: 1317 | CE94: 5298 | CF94: 2199 | CG94: 1186 | CH94: 899 | CI94: 1535 | CJ94: 639 | CK94: 361 | CL94: 582 | CM94: 2856 | CN94: 1625 | CO94: 527 | CP94: 542 | CQ94: 3122 | CR94: 1350 | CS94: 9278 | CT94: 2841 | CU94: 3287 | CV94: 1733 | CW94: 318 | CX94: 413 | CY94: 2609 | CZ94: 1081 | DA94: 2312 | DB94: 1093 | DC94: 148 | DD94: 181 | DE94: 2636 | DF94: 999 | DG94: 810 | DH94: 452 | DI94: 826 | DJ94: 958
I95: 37690 | J95: 4305 | K95: 31 | L95: 55 | M95: 726 | N95: 442 | O95: 1548 | P95: 938 | Q95: 63 | R95: 102 | S95: 5428 | T95: 2229 | U95: 2135 | V95: 896 | W95: 0 | X95: 157 | Y95: 0 | Z95: 157 | AA95: 0 | AB95: 157 | AC95: 1875 | AD95: 1029 | AE95: 292 | AF95: 270 | AG95: 556 | AH95: 572 | AI95: 3385 | AJ95: 1349 | AK95: 542 | AL95: 371 | AM95: 163 | AN95: 164 | AO95: 415 | AP95: 384 | AQ95: 224 | AR95: 268 | AS95: 367 | AT95: 352 | AU95: 0 | AV95: 157 | AW95: 225 | AX95: 269 | AY95: 33 | AZ95: 65 | BA95: 97 | BB95: 109 | BC95: 822 | BD95: 760 | BE95: 481 | BF95: 297 | BG95: 32 | BH95: 58 | BI95: 447 | BJ95: 385 | BK95: N/A | BL95: N/A | BM95: 108 | BN95: 149 | BO95: 968 | BP95: 499 | BQ95: 115 | BR95: 177 | BS95: 156 | BT95: 198 | BU95: 259 | BV95: 178 | BW95: 482 | BX95: 371 | BY95: 1082 | BZ95: 808 | CA95: 977 | CB95: 604 | CC95: 402 | CD95: 332 | CE95: 1018 | CF95: 948 | CG95: 2950 | CH95: 1687 | CI95: 457 | CJ95: 362 | CK95: 0 | CL95: 157 | CM95: 230 | CN95: 304 | CO95: 191 | CP95: 142 | CQ95: 45 | CR95: 40 | CS95: 1393 | CT95: 612 | CU95: 260 | CV95: 261 | CW95: 87 | CX95: 135 | CY95: 156 | CZ95: 153 | DA95: 4783 | DB95: 1555 | DC95: 0 | DD95: 157 | DE95: 750 | DF95: 425 | DG95: 934 | DH95: 387 | DI95: 0 | DJ95: 157
I96: 43266 | J96: 4512 | K96: 245 | L96: 275 | M96: 626 | N96: 531 | O96: 2406 | P96: 1120 | Q96: 363 | R96: 317 | S96: 3438 | T96: 1425 | U96: 2023 | V96: 791 | W96: 0 | X96: 149 | Y96: 0 | Z96: 149 | AA96: 0 | AB96: 149 | AC96: 1368 | AD96: 978 | AE96: 786 | AF96: 482 | AG96: 165 | AH96: 149 | AI96: 315 | AJ96: 374 | AK96: 1193 | AL96: 546 | AM96: 290 | AN96: 214 | AO96: 6815 | AP96: 2803 | AQ96: 3103 | AR96: 822 | AS96: 131 | AT96: 133 | AU96: 411 | AV96: 371 | AW96: 68 | AX96: 90 | AY96: 129 | AZ96: 126 | BA96: 195 | BB96: 112 | BC96: 258 | BD96: 197 | BE96: 1489 | BF96: 1049 | BG96: 176 | BH96: 132 | BI96: 2223 | BJ96: 836 | BK96: 108 | BL96: 156 | BM96: N/A | BN96: N/A | BO96: 233 | BP96: 178 | BQ96: 0 | BR96: 149 | BS96: 524 | BT96: 363 | BU96: 158 | BV96: 187 | BW96: 318 | BX96: 246 | BY96: 874 | BZ96: 414 | CA96: 497 | CB96: 492 | CC96: 563 | CD96: 373 | CE96: 587 | CF96: 408 | CG96: 106 | CH96: 113 | CI96: 702 | CJ96: 528 | CK96: 0 | CL96: 149 | CM96: 456 | CN96: 381 | CO96: 2507 | CP96: 677 | CQ96: 232 | CR96: 184 | CS96: 3130 | CT96: 1218 | CU96: 229 | CV96: 230 | CW96: 79 | CX96: 131 | CY96: 1076 | CZ96: 758 | DA96: 1327 | DB96: 673 | DC96: 111 | DD96: 152 | DE96: 316 | DF96: 218 | DG96: 917 | DH96: 371 | DI96: 0 | DJ96: 149
I97: 124285 | J97: 9956 | K97: 761 | L97: 724 | M97: 2161 | N97: 1047 | O97: 8748 | P97: 2540 | Q97: 353 | R97: 404 | S97: 49978 | T97: 7637 | U97: 6402 | V97: 2736 | W97: 143 | X97: 181 | Y97: 373 | Z97: 521 | AA97: 468 | AB97: 759 | AC97: 3381 | AD97: 1488 | AE97: 745 | AF97: 477 | AG97: 2053 | AH97: 949 | AI97: 1503 | AJ97: 743 | AK97: 2822 | AL97: 1412 | AM97: 362 | AN97: 341 | AO97: 714 | AP97: 592 | AQ97: 1202 | AR97: 1085 | AS97: 952 | AT97: 651 | AU97: 421 | AV97: 296 | AW97: 209 | AX97: 286 | AY97: 934 | AZ97: 689 | BA97: 318 | BB97: 267 | BC97: 1235 | BD97: 574 | BE97: 1157 | BF97: 718 | BG97: 783 | BH97: 658 | BI97: 694 | BJ97: 516 | BK97: 1086 | BL97: 605 | BM97: 714 | BN97: 551 | BO97: N/A | BP97: N/A | BQ97: 175 | BR97: 230 | BS97: 912 | BT97: 600 | BU97: 1138 | BV97: 665 | BW97: 3521 | BX97: 1460 | BY97: 767 | BZ97: 589 | CA97: 702 | CB97: 661 | CC97: 1407 | CD97: 791 | CE97: 1520 | CF97: 1384 | CG97: 3101 | CH97: 1186 | CI97: 1601 | CJ97: 1078 | CK97: 336 | CL97: 548 | CM97: 480 | CN97: 403 | CO97: 0 | CP97: 200 | CQ97: 1699 | CR97: 822 | CS97: 5484 | CT97: 1772 | CU97: 4605 | CV97: 1899 | CW97: 121 | CX97: 222 | CY97: 1135 | CZ97: 832 | DA97: 2997 | DB97: 1103 | DC97: 100 | DD97: 161 | DE97: 1046 | DF97: 666 | DG97: 766 | DH97: 706 | DI97: 237 | DJ97: 356
I98: 50484 | J98: 5282 | K98: 0 | L98: 181 | M98: 437 | N98: 378 | O98: 440 | P98: 413 | Q98: 0 | R98: 181 | S98: 1514 | T98: 935 | U98: 572 | V98: 637 | W98: 1345 | X98: 478 | Y98: 0 | Z98: 181 | AA98: 101 | AB98: 131 | AC98: 2746 | AD98: 1312 | AE98: 470 | AF98: 324 | AG98: 43 | AH98: 78 | AI98: 20 | AJ98: 38 | AK98: 673 | AL98: 608 | AM98: 297 | AN98: 365 | AO98: 53 | AP98: 89 | AQ98: 102 | AR98: 161 | AS98: 284 | AT98: 250 | AU98: 7 | AV98: 13 | AW98: 6118 | AX98: 1749 | AY98: 33 | AZ98: 57 | BA98: 18990 | BB98: 3350 | BC98: 426 | BD98: 441 | BE98: 0 | BF98: 181 | BG98: 0 | BH98: 181 | BI98: 289 | BJ98: 262 | BK98: 0 | BL98: 181 | BM98: 110 | BN98: 136 | BO98: 0 | BP98: 181 | BQ98: N/A | BR98: N/A | BS98: 591 | BT98: 330 | BU98: 223 | BV98: 279 | BW98: 2905 | BX98: 1027 | BY98: 1609 | BZ98: 1456 | CA98: 0 | CB98: 181 | CC98: 324 | CD98: 240 | CE98: 186 | CF98: 266 | CG98: 208 | CH98: 299 | CI98: 890 | CJ98: 561 | CK98: 1248 | CL98: 819 | CM98: 323 | CN98: 257 | CO98: 0 | CP98: 181 | CQ98: 77 | CR98: 133 | CS98: 2150 | CT98: 1715 | CU98: 557 | CV98: 762 | CW98: 2960 | CX98: 1339 | CY98: 660 | CZ98: 433 | DA98: 113 | DB98: 119 | DC98: 80 | DD98: 131 | DE98: 239 | DF98: 277 | DG98: 71 | DH98: 120 | DI98: 75 | DJ98: 123
I99: 130223 | J99: 7649 | K99: 779 | L99: 509 | M99: 359 | N99: 437 | O99: 1328 | P99: 704 | Q99: 57 | R99: 70 | S99: 4330 | T99: 1070 | U99: 380 | V99: 264 | W99: 3466 | X99: 1711 | Y99: 1921 | Z99: 1383 | AA99: 840 | AB99: 637 | AC99: 10649 | AD99: 2430 | AE99: 3002 | AF99: 1032 | AG99: 22 | AH99: 41 | AI99: 113 | AJ99: 134 | AK99: 2052 | AL99: 874 | AM99: 1039 | AN99: 559 | AO99: 357 | AP99: 405 | AQ99: 426 | AR99: 405 | AS99: 631 | AT99: 614 | AU99: 339 | AV99: 343 | AW99: 430 | AX99: 388 | AY99: 3474 | AZ99: 1241 | BA99: 4907 | BB99: 1730 | BC99: 324 | BD99: 191 | BE99: 570 | BF99: 429 | BG99: 106 | BH99: 165 | BI99: 384 | BJ99: 363 | BK99: 67 | BL99: 112 | BM99: 35 | BN99: 58 | BO99: 908 | BP99: 526 | BQ99: 126 | BR99: 219 | BS99: N/A | BT99: N/A | BU99: 45 | BV99: 75 | BW99: 40495 | BX99: 4293 | BY99: 3236 | BZ99: 1238 | CA99: 55 | CB99: 93 | CC99: 1452 | CD99: 596 | CE99: 1540 | CF99: 1537 | CG99: 760 | CH99: 587 | CI99: 23597 | CJ99: 2976 | CK99: 429 | CL99: 410 | CM99: 2372 | CN99: 1386 | CO99: 581 | CP99: 644 | CQ99: 1400 | CR99: 612 | CS99: 2509 | CT99: 1335 | CU99: 425 | CV99: 341 | CW99: 35 | CX99: 57 | CY99: 5024 | CZ99: 1899 | DA99: 1847 | DB99: 1244 | DC99: 297 | DD99: 201 | DE99: 680 | DF99: 457 | DG99: 23 | DH99: 30 | DI99: 2574 | DJ99: 1462
I100: 54693 | J100: 5877 | K100: 787 | L100: 509 | M100: 320 | N100: 264 | O100: 6391 | P100: 1673 | Q100: 410 | R100: 286 | S100: 4536 | T100: 1440 | U100: 4780 | V100: 1546 | W100: 280 | X100: 250 | Y100: 100 | Z100: 136 | AA100: 25 | AB100: 51 | AC100: 4707 | AD100: 2184 | AE100: 192 | AF100: 184 | AG100: 168 | AH100: 127 | AI100: 355 | AJ100: 352 | AK100: 790 | AL100: 530 | AM100: 660 | AN100: 524 | AO100: 384 | AP100: 331 | AQ100: 672 | AR100: 537 | AS100: 159 | AT100: 160 | AU100: 790 | AV100: 883 | AW100: 57 | AX100: 80 | AY100: 505 | AZ100: 355 | BA100: 303 | BB100: 298 | BC100: 602 | BD100: 490 | BE100: 284 | BF100: 428 | BG100: 451 | BH100: 630 | BI100: 1216 | BJ100: 793 | BK100: 139 | BL100: 162 | BM100: 194 | BN100: 220 | BO100: 604 | BP100: 853 | BQ100: 268 | BR100: 259 | BS100: 252 | BT100: 271 | BU100: N/A | BV100: N/A | BW100: 1111 | BX100: 618 | BY100: 335 | BZ100: 373 | CA100: 41 | CB100: 82 | CC100: 1178 | CD100: 1049 | CE100: 1076 | CF100: 568 | CG100: 932 | CH100: 481 | CI100: 822 | CJ100: 666 | CK100: 0 | CL100: 185 | CM100: 325 | CN100: 260 | CO100: 509 | CP100: 547 | CQ100: 338 | CR100: 274 | CS100: 11955 | CT100: 2917 | CU100: 1382 | CV100: 889 | CW100: 81 | CX100: 103 | CY100: 1560 | CZ100: 1330 | DA100: 1251 | DB100: 575 | DC100: 0 | DD100: 185 | DE100: 321 | DF100: 514 | DG100: 95 | DH100: 100 | DI100: 429 | DJ100: 466
I101: 270053 | J101: 11861 | K101: 1364 | L101: 864 | M101: 4002 | N101: 2016 | O101: 4146 | P101: 2468 | Q101: 247 | R101: 203 | S101: 24623 | T101: 2557 | U101: 3596 | V101: 976 | W101: 14595 | X101: 2921 | Y101: 477 | Z101: 284 | AA101: 3936 | AB101: 1392 | AC101: 27392 | AD101: 3450 | AE101: 7592 | AF101: 1925 | AG101: 1598 | AH101: 734 | AI101: 607 | AJ101: 472 | AK101: 8017 | AL101: 2204 | AM101: 3040 | AN101: 1128 | AO101: 955 | AP101: 658 | AQ101: 1437 | AR101: 906 | AS101: 1753 | AT101: 808 | AU101: 1083 | AV101: 465 | AW101: 1345 | AX101: 536 | AY101: 7321 | AZ101: 1575 | BA101: 15073 | BB101: 2292 | BC101: 5191 | BD101: 1445 | BE101: 1059 | BF101: 631 | BG101: 773 | BH101: 800 | BI101: 3310 | BJ101: 1260 | BK101: 421 | BL101: 424 | BM101: 78 | BN101: 108 | BO101: 600 | BP101: 382 | BQ101: 2760 | BR101: 1059 | BS101: 42574 | BT101: 4802 | BU101: 646 | BV101: 445 | BW101: N/A | BX101: N/A | BY101: 10544 | BZ101: 2568 | CA101: 77 | CB101: 129 | CC101: 4625 | CD101: 1103 | CE101: 1327 | CF101: 652 | CG101: 1055 | CH101: 716 | CI101: 22895 | CJ101: 3206 | CK101: 3222 | CL101: 1538 | CM101: 5952 | CN101: 1542 | CO101: 0 | CP101: 185 | CQ101: 1279 | CR101: 624 | CS101: 11231 | CT101: 2384 | CU101: 622 | CV101: 489 | CW101: 2764 | CX101: 1025 | CY101: 7939 | CZ101: 2109 | DA101: 2614 | DB101: 840 | DC101: 921 | DD101: 689 | DE101: 979 | DF101: 507 | DG101: 396 | DH101: 370 | DI101: 7321 | DJ101: 1791
I102: 273149 | J102: 13136 | K102: 4329 | L102: 1544 | M102: 1458 | N102: 925 | O102: 3493 | P102: 1189 | Q102: 861 | R102: 649 | S102: 13883 | T102: 2813 | U102: 4790 | V102: 2047 | W102: 4914 | X102: 1990 | Y102: 2180 | Z102: 1732 | AA102: 1801 | AB102: 687 | AC102: 26365 | AD102: 3750 | AE102: 16823 | AF102: 2851 | AG102: 1566 | AH102: 921 | AI102: 334 | AJ102: 256 | AK102: 6378 | AL102: 2177 | AM102: 4532 | AN102: 2259 | AO102: 775 | AP102: 524 | AQ102: 1595 | AR102: 748 | AS102: 1531 | AT102: 794 | AU102: 919 | AV102: 758 | AW102: 1259 | AX102: 972 | AY102: 9005 | AZ102: 2221 | BA102: 3710 | BB102: 1158 | BC102: 6161 | BD102: 2547 | BE102: 1523 | BF102: 838 | BG102: 2377 | BH102: 1092 | BI102: 2623 | BJ102: 1742 | BK102: 244 | BL102: 306 | BM102: 628 | BN102: 628 | BO102: 1627 | BP102: 807 | BQ102: 754 | BR102: 525 | BS102: 11468 | BT102: 4262 | BU102: 1138 | BV102: 705 | BW102: 19891 | BX102: 3951 | BY102: N/A | BZ102: N/A | CA102: 206 | CB102: 232 | CC102: 9337 | CD102: 2484 | CE102: 1263 | CF102: 753 | CG102: 1333 | CH102: 772 | CI102: 12179 | CJ102: 2356 | CK102: 290 | CL102: 198 | CM102: 25532 | CN102: 4732 | CO102: 351 | CP102: 186 | CQ102: 9230 | CR102: 2122 | CS102: 12638 | CT102: 2381 | CU102: 1189 | CV102: 1040 | CW102: 445 | CX102: 291 | CY102: 26759 | CZ102: 4229 | DA102: 5915 | DB102: 2630 | DC102: 2677 | DD102: 985 | DE102: 2266 | DF102: 980 | DG102: 604 | DH102: 687 | DI102: 2025 | DJ102: 1218
I103: 38213 | J103: 3616 | K103: 83 | L103: 142 | M103: 70 | N103: 105 | O103: 1571 | P103: 788 | Q103: 0 | R103: 141 | S103: 999 | T103: 460 | U103: 546 | V103: 293 | W103: 65 | X103: 100 | Y103: 0 | Z103: 141 | AA103: 70 | AB103: 112 | AC103: 950 | AD103: 860 | AE103: 98 | AF103: 154 | AG103: 160 | AH103: 148 | AI103: 540 | AJ103: 521 | AK103: 799 | AL103: 523 | AM103: 55 | AN103: 77 | AO103: 458 | AP103: 316 | AQ103: 161 | AR103: 122 | AS103: 22 | AT103: 44 | AU103: 18 | AV103: 27 | AW103: 98 | AX103: 176 | AY103: 232 | AZ103: 311 | BA103: 187 | BB103: 281 | BC103: 757 | BD103: 571 | BE103: 15257 | BF103: 2266 | BG103: 72 | BH103: 109 | BI103: 1490 | BJ103: 1346 | BK103: 1776 | BL103: 709 | BM103: 950 | BN103: 764 | BO103: 854 | BP103: 572 | BQ103: 0 | BR103: 141 | BS103: 140 | BT103: 231 | BU103: 161 | BV103: 228 | BW103: 331 | BX103: 331 | BY103: 231 | BZ103: 243 | CA103: N/A | CB103: N/A | CC103: 6 | CD103: 14 | CE103: 280 | CF103: 260 | CG103: 724 | CH103: 529 | CI103: 114 | CJ103: 157 | CK103: 244 | CL103: 255 | CM103: 14 | CN103: 28 | CO103: 1754 | CP103: 822 | CQ103: 746 | CR103: 694 | CS103: 1414 | CT103: 756 | CU103: 43 | CV103: 60 | CW103: 758 | CX103: 1014 | CY103: 403 | CZ103: 309 | DA103: 1604 | DB103: 796 | DC103: 0 | DD103: 141 | DE103: 543 | DF103: 327 | DG103: 365 | DH103: 269 | DI103: 0 | DJ103: 141
I104: 196391 | J104: 9611 | K104: 3705 | L104: 2297 | M104: 2207 | N104: 1757 | O104: 4929 | P104: 1912 | Q104: 884 | R104: 604 | S104: 8995 | T104: 1803 | U104: 3180 | V104: 1230 | W104: 1355 | X104: 887 | Y104: 1079 | Z104: 696 | AA104: 985 | AB104: 722 | AC104: 16366 | AD104: 2560 | AE104: 8052 | AF104: 2973 | AG104: 1198 | AH104: 591 | AI104: 412 | AJ104: 295 | AK104: 9510 | AL104: 2157 | AM104: 13534 | AN104: 2157 | AO104: 1039 | AP104: 765 | AQ104: 1166 | AR104: 617 | AS104: 13227 | AT104: 2976 | AU104: 2214 | AV104: 1011 | AW104: 1189 | AX104: 889 | AY104: 5026 | AZ104: 2570 | BA104: 2189 | BB104: 808 | BC104: 16336 | BD104: 2656 | BE104: 1122 | BF104: 597 | BG104: 1017 | BH104: 865 | BI104: 3026 | BJ104: 1068 | BK104: 276 | BL104: 292 | BM104: 1052 | BN104: 656 | BO104: 907 | BP104: 525 | BQ104: 189 | BR104: 156 | BS104: 4703 | BT104: 2119 | BU104: 1361 | BV104: 817 | BW104: 8732 | BX104: 1741 | BY104: 5498 | BZ104: 1525 | CA104: 453 | CB104: 346 | CC104: N/A | CD104: N/A | CE104: 858 | CF104: 417 | CG104: 432 | CH104: 307 | CI104: 14147 | CJ104: 2612 | CK104: 435 | CL104: 384 | CM104: 2445 | CN104: 1029 | CO104: 47 | CP104: 76 | CQ104: 3542 | CR104: 1429 | CS104: 11760 | CT104: 2739 | CU104: 197 | CV104: 211 | CW104: 364 | CX104: 350 | CY104: 3193 | CZ104: 1055 | DA104: 2862 | DB104: 2150 | DC104: 7820 | DD104: 2219 | DE104: 974 | DF104: 725 | DG104: 202 | DH104: 210 | DI104: 1403 | DJ104: 910
I105: 108972 | J105: 6570 | K105: 1030 | L105: 467 | M105: 1279 | N105: 600 | O105: 2974 | P105: 1435 | Q105: 5777 | R105: 1187 | S105: 8950 | T105: 2184 | U105: 4717 | V105: 1556 | W105: 0 | X105: 149 | Y105: 380 | Z105: 288 | AA105: 151 | AB105: 148 | AC105: 5011 | AD105: 1525 | AE105: 2581 | AF105: 935 | AG105: 189 | AH105: 295 | AI105: 905 | AJ105: 600 | AK105: 1100 | AL105: 487 | AM105: 1490 | AN105: 936 | AO105: 1088 | AP105: 689 | AQ105: 7065 | AR105: 1535 | AS105: 1354 | AT105: 898 | AU105: 2562 | AV105: 1354 | AW105: 167 | AX105: 260 | AY105: 750 | AZ105: 685 | BA105: 1233 | BB105: 906 | BC105: 1347 | BD105: 671 | BE105: 906 | BF105: 469 | BG105: 1850 | BH105: 752 | BI105: 5210 | BJ105: 1349 | BK105: 798 | BL105: 710 | BM105: 300 | BN105: 208 | BO105: 1101 | BP105: 799 | BQ105: 549 | BR105: 383 | BS105: 1523 | BT105: 748 | BU105: 1244 | BV105: 712 | BW105: 1981 | BX105: 936 | BY105: 1961 | BZ105: 912 | CA105: 308 | CB105: 340 | CC105: 1148 | CD105: 533 | CE105: N/A | CF105: N/A | CG105: 1261 | CH105: 771 | CI105: 494 | CJ105: 285 | CK105: 0 | CL105: 149 | CM105: 569 | CN105: 346 | CO105: 108 | CP105: 154 | CQ105: 2471 | CR105: 1035 | CS105: 25508 | CT105: 2960 | CU105: 2588 | CV105: 1465 | CW105: 197 | CX105: 316 | CY105: 1749 | CZ105: 829 | DA105: 1574 | DB105: 575 | DC105: 368 | DD105: 298 | DE105: 1061 | DF105: 758 | DG105: 45 | DH105: 68 | DI105: 0 | DJ105: 149
I106: 118925 | J106: 7769 | K106: 373 | L106: 425 | M106: 2513 | N106: 953 | O106: 7954 | P106: 2060 | Q106: 165 | R106: 158 | S106: 31862 | T106: 3767 | U106: 4472 | V106: 2133 | W106: 381 | X106: 457 | Y106: 0 | Z106: 193 | AA106: 696 | AB106: 919 | AC106: 1660 | AD106: 620 | AE106: 1032 | AF106: 523 | AG106: 2501 | AH106: 813 | AI106: 5093 | AJ106: 1880 | AK106: 1676 | AL106: 1192 | AM106: 1380 | AN106: 1000 | AO106: 834 | AP106: 781 | AQ106: 556 | AR106: 534 | AS106: 202 | AT106: 261 | AU106: 227 | AV106: 229 | AW106: 446 | AX106: 353 | AY106: 457 | AZ106: 422 | BA106: 760 | BB106: 604 | BC106: 570 | BD106: 338 | BE106: 1792 | BF106: 799 | BG106: 186 | BH106: 237 | BI106: 403 | BJ106: 269 | BK106: 2192 | BL106: 968 | BM106: 570 | BN106: 448 | BO106: 5935 | BP106: 2774 | BQ106: 39 | BR106: 65 | BS106: 385 | BT106: 327 | BU106: 920 | BV106: 676 | BW106: 2379 | BX106: 1032 | BY106: 1482 | BZ106: 1046 | CA106: 42 | CB106: 85 | CC106: 1411 | CD106: 789 | CE106: 725 | CF106: 546 | CG106: N/A | CH106: N/A | CI106: 904 | CJ106: 535 | CK106: 177 | CL106: 214 | CM106: 461 | CN106: 364 | CO106: 119 | CP106: 143 | CQ106: 802 | CR106: 583 | CS106: 3347 | CT106: 1277 | CU106: 4793 | CV106: 2328 | CW106: 367 | CX106: 435 | CY106: 676 | CZ106: 510 | DA106: 21224 | DB106: 3153 | DC106: 593 | DD106: 502 | DE106: 426 | DF106: 284 | DG106: 765 | DH106: 664 | DI106: 152 | DJ106: 177
I107: 215500 | J107: 8872 | K107: 1926 | L107: 1318 | M107: 1658 | N107: 857 | O107: 3529 | P107: 1256 | Q107: 573 | R107: 315 | S107: 7772 | T107: 1558 | U107: 2574 | V107: 1488 | W107: 3311 | X107: 905 | Y107: 4814 | Z107: 1468 | AA107: 2921 | AB107: 830 | AC107: 14631 | AD107: 2565 | AE107: 4337 | AF107: 1703 | AG107: 245 | AH107: 180 | AI107: 359 | AJ107: 350 | AK107: 3749 | AL107: 1137 | AM107: 1599 | AN107: 680 | AO107: 125 | AP107: 177 | AQ107: 967 | AR107: 860 | AS107: 1233 | AT107: 604 | AU107: 694 | AV107: 431 | AW107: 988 | AX107: 675 | AY107: 17529 | AZ107: 3084 | BA107: 5900 | BB107: 1368 | BC107: 2642 | BD107: 1235 | BE107: 1169 | BF107: 588 | BG107: 55 | BH107: 49 | BI107: 1171 | BJ107: 575 | BK107: 135 | BL107: 169 | BM107: 214 | BN107: 187 | BO107: 1600 | BP107: 999 | BQ107: 1138 | BR107: 609 | BS107: 33791 | BT107: 4576 | BU107: 1001 | BV107: 740 | BW107: 32898 | BX107: 4482 | BY107: 6380 | BZ107: 1734 | CA107: 166 | CB107: 195 | CC107: 14319 | CD107: 2479 | CE107: 378 | CF107: 253 | CG107: 234 | CH107: 220 | CI107: N/A | CJ107: N/A | CK107: 771 | CL107: 472 | CM107: 3023 | CN107: 869 | CO107: 159 | CP107: 206 | CQ107: 1273 | CR107: 533 | CS107: 6768 | CT107: 1688 | CU107: 1276 | CV107: 804 | CW107: 1012 | CX107: 873 | CY107: 11960 | CZ107: 2213 | DA107: 1787 | DB107: 1202 | DC107: 6762 | DD107: 2075 | DE107: 1550 | DF107: 722 | DG107: 434 | DH107: 439 | DI107: 7847 | DJ107: 2646
I108: 33446 | J108: 3551 | K108: 20 | L108: 44 | M108: 0 | N108: 200 | O108: 93 | P108: 151 | Q108: 0 | R108: 200 | S108: 2146 | T108: 811 | U108: 332 | V108: 315 | W108: 4170 | X108: 1101 | Y108: 0 | Z108: 200 | AA108: 313 | AB108: 381 | AC108: 2752 | AD108: 1143 | AE108: 168 | AF108: 211 | AG108: 120 | AH108: 145 | AI108: 0 | AJ108: 200 | AK108: 385 | AL108: 382 | AM108: 0 | AN108: 200 | AO108: 0 | AP108: 200 | AQ108: 27 | AR108: 47 | AS108: 286 | AT108: 405 | AU108: 24 | AV108: 45 | AW108: 279 | AX108: 249 | AY108: 482 | AZ108: 325 | BA108: 11253 | BB108: 1937 | BC108: 230 | BD108: 169 | BE108: 131 | BF108: 131 | BG108: 0 | BH108: 200 | BI108: 210 | BJ108: 158 | BK108: 0 | BL108: 200 | BM108: 188 | BN108: 250 | BO108: 25 | BP108: 48 | BQ108: 611 | BR108: 385 | BS108: 1219 | BT108: 641 | BU108: 36 | BV108: 58 | BW108: 3603 | BX108: 1335 | BY108: 478 | BZ108: 508 | CA108: 0 | CB108: 200 | CC108: 63 | CD108: 80 | CE108: 0 | CF108: 200 | CG108: 139 | CH108: 235 | CI108: 735 | CJ108: 552 | CK108: N/A | CL108: N/A | CM108: 481 | CN108: 609 | CO108: 0 | CP108: 200 | CQ108: 120 | CR108: 199 | CS108: 823 | CT108: 433 | CU108: 0 | CV108: 200 | CW108: 53 | CX108: 76 | CY108: 1008 | CZ108: 569 | DA108: 287 | DB108: 320 | DC108: 0 | DD108: 200 | DE108: 135 | DF108: 124 | DG108: 21 | DH108: 32 | DI108: 116 | DJ108: 186
I109: 156705 | J109: 9611 | K109: 1665 | L109: 635 | M109: 1244 | N109: 1016 | O109: 2222 | P109: 1160 | Q109: 839 | R109: 526 | S109: 5979 | T109: 1473 | U109: 1915 | V109: 1059 | W109: 1590 | X109: 729 | Y109: 697 | Z109: 492 | AA109: 435 | AB109: 352 | AC109: 11552 | AD109: 2367 | AE109: 18570 | AF109: 3616 | AG109: 638 | AH109: 493 | AI109: 198 | AJ109: 321 | AK109: 2125 | AL109: 1128 | AM109: 3802 | AN109: 1911 | AO109: 643 | AP109: 437 | AQ109: 1064 | AR109: 855 | AS109: 1924 | AT109: 991 | AU109: 2709 | AV109: 2265 | AW109: 2077 | AX109: 942 | AY109: 3565 | AZ109: 1205 | BA109: 2313 | BB109: 826 | BC109: 2966 | BD109: 1289 | BE109: 757 | BF109: 582 | BG109: 1407 | BH109: 802 | BI109: 1884 | BJ109: 724 | BK109: 93 | BL109: 127 | BM109: 158 | BN109: 165 | BO109: 1025 | BP109: 834 | BQ109: 917 | BR109: 696 | BS109: 6517 | BT109: 2181 | BU109: 1052 | BV109: 1085 | BW109: 10746 | BX109: 3642 | BY109: 24764 | BZ109: 3907 | CA109: 656 | CB109: 650 | CC109: 4388 | CD109: 1326 | CE109: 555 | CF109: 354 | CG109: 255 | CH109: 202 | CI109: 6497 | CJ109: 2067 | CK109: 538 | CL109: 332 | CM109: N/A | CN109: N/A | CO109: 816 | CP109: 1252 | CQ109: 3550 | CR109: 1136 | CS109: 5351 | CT109: 1482 | CU109: 566 | CV109: 425 | CW109: 298 | CX109: 244 | CY109: 9377 | CZ109: 3040 | DA109: 1629 | DB109: 1165 | DC109: 1345 | DD109: 720 | DE109: 832 | DF109: 570 | DG109: 0 | DH109: 197 | DI109: 1070 | DJ109: 890
I110: 26051 | J110: 2891 | K110: 0 | L110: 147 | M110: 855 | N110: 1127 | O110: 435 | P110: 333 | Q110: 227 | R110: 354 | S110: 1494 | T110: 663 | U110: 1744 | V110: 839 | W110: 2 | X110: 4 | Y110: 0 | Z110: 147 | AA110: 0 | AB110: 147 | AC110: 970 | AD110: 638 | AE110: 122 | AF110: 130 | AG110: 8 | AH110: 13 | AI110: 78 | AJ110: 104 | AK110: 74 | AL110: 102 | AM110: 210 | AN110: 289 | AO110: 2441 | AP110: 932 | AQ110: 403 | AR110: 295 | AS110: 0 | AT110: 147 | AU110: 0 | AV110: 147 | AW110: 0 | AX110: 147 | AY110: 60 | AZ110: 65 | BA110: 61 | BB110: 101 | BC110: 892 | BD110: 747 | BE110: 3568 | BF110: 1023 | BG110: 34 | BH110: 48 | BI110: 474 | BJ110: 274 | BK110: 248 | BL110: 208 | BM110: 2175 | BN110: 801 | BO110: 135 | BP110: 171 | BQ110: 0 | BR110: 147 | BS110: 0 | BT110: 147 | BU110: 175 | BV110: 187 | BW110: 371 | BX110: 317 | BY110: 240 | BZ110: 220 | CA110: 1725 | CB110: 823 | CC110: 64 | CD110: 77 | CE110: 21 | CF110: 36 | CG110: 667 | CH110: 583 | CI110: 515 | CJ110: 633 | CK110: 0 | CL110: 147 | CM110: 158 | CN110: 159 | CO110: N/A | CP110: N/A | CQ110: 507 | CR110: 346 | CS110: 1715 | CT110: 1067 | CU110: 388 | CV110: 372 | CW110: 5 | CX110: 9 | CY110: 340 | CZ110: 300 | DA110: 1026 | DB110: 681 | DC110: 131 | DD110: 216 | DE110: 314 | DF110: 413 | DG110: 979 | DH110: 735 | DI110: 134 | DJ110: 235
I111: 177098 | J111: 10625 | K111: 12116 | L111: 3309 | M111: 1281 | N111: 847 | O111: 2250 | P111: 907 | Q111: 3306 | R111: 1731 | S111: 8396 | T111: 2447 | U111: 2473 | V111: 1156 | W111: 936 | X111: 900 | Y111: 176 | Z111: 222 | AA111: 180 | AB111: 203 | AC111: 15641 | AD111: 3639 | AE111: 16012 | AF111: 3114 | AG111: 1058 | AH111: 1052 | AI111: 787 | AJ111: 817 | AK111: 7094 | AL111: 1891 | AM111: 5591 | AN111: 2209 | AO111: 617 | AP111: 556 | AQ111: 2630 | AR111: 1972 | AS111: 13202 | AT111: 2695 | AU111: 2452 | AV111: 1206 | AW111: 1040 | AX111: 589 | AY111: 1743 | AZ111: 867 | BA111: 1525 | BB111: 706 | BC111: 4507 | BD111: 1434 | BE111: 1178 | BF111: 896 | BG111: 10568 | BH111: 2321 | BI111: 2694 | BJ111: 1254 | BK111: 308 | BL111: 278 | BM111: 432 | BN111: 389 | BO111: 735 | BP111: 443 | BQ111: 271 | BR111: 287 | BS111: 783 | BT111: 507 | BU111: 751 | BV111: 640 | BW111: 6279 | BX111: 2008 | BY111: 5904 | BZ111: 1834 | CA111: 7 | CB111: 16 | CC111: 6200 | CD111: 1742 | CE111: 2495 | CF111: 1410 | CG111: 1080 | CH111: 589 | CI111: 3329 | CJ111: 999 | CK111: 26 | CL111: 55 | CM111: 4300 | CN111: 1280 | CO111: 0 | CP111: 193 | CQ111: N/A | CR111: N/A | CS111: 8716 | CT111: 2938 | CU111: 784 | CV111: 1131 | CW111: 133 | CX111: 133 | CY111: 8008 | CZ111: 2159 | DA111: 1876 | DB111: 852 | DC111: 3248 | DD111: 1760 | DE111: 1622 | DF111: 727 | DG111: 358 | DH111: 382 | DI111: 717 | DJ111: 499
I112: 507752 | J112: 20202 | K112: 9993 | L112: 3132 | M112: 6759 | N112: 2614 | O112: 18908 | P112: 3870 | Q112: 13781 | R112: 3771 | S112: 62702 | T112: 8792 | U112: 16616 | V112: 3638 | W112: 2769 | X112: 1124 | Y112: 181 | Z112: 168 | AA112: 1189 | AB112: 610 | AC112: 31259 | AD112: 6252 | AE112: 20362 | AF112: 3365 | AG112: 5040 | AH112: 2386 | AI112: 2387 | AJ112: 1190 | AK112: 19672 | AL112: 3645 | AM112: 8264 | AN112: 2734 | AO112: 4934 | AP112: 2063 | AQ112: 12699 | AR112: 3202 | AS112: 6040 | AT112: 2224 | AU112: 29348 | AV112: 5712 | AW112: 1293 | AX112: 1284 | AY112: 4969 | AZ112: 2026 | BA112: 4813 | BB112: 1584 | BC112: 9501 | BD112: 2273 | BE112: 2803 | BF112: 948 | BG112: 6402 | BH112: 2032 | BI112: 12319 | BJ112: 2205 | BK112: 1813 | BL112: 986 | BM112: 4794 | BN112: 2045 | BO112: 8266 | BP112: 4162 | BQ112: 761 | BR112: 749 | BS112: 6797 | BT112: 2141 | BU112: 16762 | BV112: 3127 | BW112: 20274 | BX112: 4211 | BY112: 22660 | BZ112: 6953 | CA112: 989 | CB112: 542 | CC112: 8728 | CD112: 1739 | CE112: 26284 | CF112: 4418 | CG112: 3827 | CH112: 1684 | CI112: 10449 | CJ112: 2158 | CK112: 1763 | CL112: 1605 | CM112: 4470 | CN112: 1665 | CO112: 1264 | CP112: 757 | CQ112: 10368 | CR112: 2623 | CS112: N/A | CT112: N/A | CU112: 4610 | CV112: 2045 | CW112: 113 | CX112: 135 | CY112: 17734 | CZ112: 4904 | DA112: 11630 | DB112: 2741 | DC112: 1729 | DD112: 938 | DE112: 4192 | DF112: 1322 | DG112: 2472 | DH112: 1676 | DI112: 4435 | DJ112: 1611
I113: 87870 | J113: 7490 | K113: 126 | L113: 171 | M113: 2819 | N113: 1292 | O113: 7966 | P113: 2419 | Q113: 361 | R113: 402 | S113: 15286 | T113: 2837 | U113: 5350 | V113: 1845 | W113: 142 | X113: 168 | Y113: 0 | Z113: 181 | AA113: 0 | AB113: 181 | AC113: 2428 | AD113: 1105 | AE113: 1142 | AF113: 622 | AG113: 1436 | AH113: 876 | AI113: 5129 | AJ113: 1135 | AK113: 1588 | AL113: 802 | AM113: 475 | AN113: 296 | AO113: 2791 | AP113: 2779 | AQ113: 398 | AR113: 333 | AS113: 217 | AT113: 221 | AU113: 345 | AV113: 313 | AW113: 380 | AX113: 339 | AY113: 613 | AZ113: 361 | BA113: 1503 | BB113: 1343 | BC113: 1670 | BD113: 1210 | BE113: 385 | BF113: 300 | BG113: 284 | BH113: 229 | BI113: 1553 | BJ113: 769 | BK113: 1057 | BL113: 729 | BM113: 489 | BN113: 384 | BO113: 5391 | BP113: 1743 | BQ113: 507 | BR113: 442 | BS113: 437 | BT113: 322 | BU113: 686 | BV113: 505 | BW113: 2129 | BX113: 924 | BY113: 842 | BZ113: 611 | CA113: 175 | CB113: 218 | CC113: 1875 | CD113: 881 | CE113: 1338 | CF113: 691 | CG113: 4089 | CH113: 2693 | CI113: 944 | CJ113: 450 | CK113: 351 | CL113: 571 | CM113: 60 | CN113: 100 | CO113: 47 | CP113: 74 | CQ113: 863 | CR113: 529 | CS113: 3605 | CT113: 1278 | CU113: N/A | CV113: N/A | CW113: 39 | CX113: 63 | CY113: 1369 | CZ113: 668 | DA113: 3529 | DB113: 1319 | DC113: 0 | DD113: 181 | DE113: 1445 | DF113: 1512 | DG113: 2216 | DH113: 715 | DI113: 239 | DJ113: 190
I114: 24431 | J114: 2713 | K114: 16 | L114: 23 | M114: 93 | N114: 153 | O114: 127 | P114: 165 | Q114: 0 | R114: 143 | S114: 1112 | T114: 537 | U114: 382 | V114: 296 | W114: 1626 | X114: 540 | Y114: 0 | Z114: 143 | AA114: 116 | AB114: 134 | AC114: 966 | AD114: 519 | AE114: 56 | AF114: 81 | AG114: 6 | AH114: 10 | AI114: 0 | AJ114: 143 | AK114: 230 | AL114: 221 | AM114: 68 | AN114: 81 | AO114: 30 | AP114: 43 | AQ114: 0 | AR114: 143 | AS114: 1243 | AT114: 1690 | AU114: 73 | AV114: 105 | AW114: 883 | AX114: 546 | AY114: 862 | AZ114: 396 | BA114: 3318 | BB114: 657 | BC114: 284 | BD114: 246 | BE114: 315 | BF114: 349 | BG114: 0 | BH114: 143 | BI114: 23 | BJ114: 26 | BK114: 147 | BL114: 189 | BM114: 0 | BN114: 143 | BO114: 17 | BP114: 37 | BQ114: 2893 | BR114: 812 | BS114: 833 | BT114: 364 | BU114: 74 | BV114: 89 | BW114: 4780 | BX114: 921 | BY114: 328 | BZ114: 248 | CA114: 0 | CB114: 143 | CC114: 214 | CD114: 247 | CE114: 11 | CF114: 13 | CG114: 26 | CH114: 38 | CI114: 935 | CJ114: 525 | CK114: 341 | CL114: 220 | CM114: 124 | CN114: 208 | CO114: 39 | CP114: 66 | CQ114: 193 | CR114: 185 | CS114: 493 | CT114: 334 | CU114: 81 | CV114: 96 | CW114: N/A | CX114: N/A | CY114: 728 | CZ114: 427 | DA114: 98 | DB114: 109 | DC114: 0 | DD114: 143 | DE114: 151 | DF114: 115 | DG114: 96 | DH114: 102 | DI114: 0 | DJ114: 143
I115: 250653 | J115: 11997 | K115: 2515 | L115: 990 | M115: 1906 | N115: 1287 | O115: 2420 | P115: 1030 | Q115: 445 | R115: 319 | S115: 14780 | T115: 2760 | U115: 5352 | V115: 1834 | W115: 2725 | X115: 1001 | Y115: 2279 | Z115: 1465 | AA115: 10964 | AB115: 4084 | AC115: 19574 | AD115: 3694 | AE115: 9535 | AF115: 1889 | AG115: 3823 | AH115: 1460 | AI115: 652 | AJ115: 411 | AK115: 7089 | AL115: 3237 | AM115: 2663 | AN115: 1228 | AO115: 221 | AP115: 209 | AQ115: 1144 | AR115: 669 | AS115: 3908 | AT115: 1422 | AU115: 1638 | AV115: 936 | AW115: 1144 | AX115: 689 | AY115: 23925 | AZ115: 4264 | BA115: 3767 | BB115: 1503 | BC115: 2982 | BD115: 1136 | BE115: 2294 | BF115: 1414 | BG115: 1344 | BH115: 730 | BI115: 1914 | BJ115: 837 | BK115: 658 | BL115: 433 | BM115: 357 | BN115: 313 | BO115: 973 | BP115: 522 | BQ115: 535 | BR115: 398 | BS115: 9073 | BT115: 2029 | BU115: 947 | BV115: 637 | BW115: 15893 | BX115: 3260 | BY115: 25575 | BZ115: 4182 | CA115: 852 | CB115: 1019 | CC115: 5622 | CD115: 1519 | CE115: 2810 | CF115: 1873 | CG115: 1541 | CH115: 1069 | CI115: 14190 | CJ115: 2998 | CK115: 1605 | CL115: 731 | CM115: 7936 | CN115: 2435 | CO115: 35 | CP115: 57 | CQ115: 6189 | CR115: 1858 | CS115: 12944 | CT115: 2828 | CU115: 2092 | CV115: 994 | CW115: 423 | CX115: 437 | CY115: N/A | CZ115: N/A | DA115: 4160 | DB115: 1420 | DC115: 3839 | DD115: 1234 | DE115: 1258 | DF115: 880 | DG115: 143 | DH115: 166 | DI115: 516 | DJ115: 466
I116: 215494 | J116: 12552 | K116: 1507 | L116: 730 | M116: 4328 | N116: 1682 | O116: 8362 | P116: 2641 | Q116: 1413 | R116: 1121 | S116: 45597 | T116: 5884 | U116: 5195 | V116: 2150 | W116: 2901 | X116: 1138 | Y116: 100 | Z116: 164 | AA116: 773 | AB116: 528 | AC116: 9370 | AD116: 2417 | AE116: 6363 | AF116: 2288 | AG116: 5239 | AH116: 2393 | AI116: 10604 | AJ116: 2191 | AK116: 4298 | AL116: 1727 | AM116: 1089 | AN116: 521 | AO116: 1159 | AP116: 845 | AQ116: 2544 | AR116: 1029 | AS116: 1368 | AT116: 911 | AU116: 1646 | AV116: 915 | AW116: 532 | AX116: 655 | AY116: 1191 | AZ116: 923 | BA116: 2911 | BB116: 1011 | BC116: 3470 | BD116: 1605 | BE116: 2703 | BF116: 1971 | BG116: 615 | BH116: 444 | BI116: 2802 | BJ116: 1017 | BK116: 2919 | BL116: 1013 | BM116: 682 | BN116: 456 | BO116: 5671 | BP116: 2919 | BQ116: 309 | BR116: 248 | BS116: 2300 | BT116: 1441 | BU116: 872 | BV116: 527 | BW116: 5562 | BX116: 1947 | BY116: 4088 | BZ116: 1854 | CA116: 217 | CB116: 200 | CC116: 3192 | CD116: 1400 | CE116: 1223 | CF116: 768 | CG116: 25525 | CH116: 4052 | CI116: 3397 | CJ116: 1799 | CK116: 97 | CL116: 162 | CM116: 2727 | CN116: 1542 | CO116: 94 | CP116: 155 | CQ116: 3206 | CR116: 1819 | CS116: 14196 | CT116: 3417 | CU116: 5298 | CV116: 1995 | CW116: 223 | CX116: 216 | CY116: 3839 | CZ116: 1320 | DA116: N/A | DB116: N/A | DC116: 215 | DD116: 271 | DE116: 1168 | DF116: 638 | DG116: 394 | DH116: 495 | DI116: 1025 | DJ116: 878
I117: 47125 | J117: 4317 | K117: 477 | L117: 339 | M117: 306 | N117: 455 | O117: 79 | P117: 129 | Q117: 0 | R117: 182 | S117: 1231 | T117: 516 | U117: 104 | V117: 114 | W117: 143 | X117: 177 | Y117: 674 | Z117: 525 | AA117: 294 | AB117: 194 | AC117: 1919 | AD117: 666 | AE117: 1108 | AF117: 483 | AG117: 166 | AH117: 277 | AI117: 181 | AJ117: 250 | AK117: 220 | AL117: 190 | AM117: 328 | AN117: 406 | AO117: 68 | AP117: 111 | AQ117: 39 | AR117: 64 | AS117: 2249 | AT117: 1019 | AU117: 90 | AV117: 88 | AW117: 35 | AX117: 74 | AY117: 5352 | AZ117: 1897 | BA117: 164 | BB117: 191 | BC117: 778 | BD117: 581 | BE117: 20 | BF117: 37 | BG117: 0 | BH117: 182 | BI117: 59 | BJ117: 76 | BK117: 0 | BL117: 182 | BM117: 0 | BN117: 182 | BO117: 229 | BP117: 268 | BQ117: 129 | BR117: 147 | BS117: 1213 | BT117: 679 | BU117: 81 | BV117: 90 | BW117: 1721 | BX117: 965 | BY117: 4683 | BZ117: 1933 | CA117: 175 | CB117: 215 | CC117: 6757 | CD117: 1474 | CE117: 520 | CF117: 447 | CG117: 118 | CH117: 207 | CI117: 5208 | CJ117: 1699 | CK117: 0 | CL117: 182 | CM117: 1098 | CN117: 671 | CO117: 36 | CP117: 65 | CQ117: 1061 | CR117: 513 | CS117: 622 | CT117: 415 | CU117: 0 | CV117: 182 | CW117: 54 | CX117: 89 | CY117: 6317 | CZ117: 1774 | DA117: 297 | DB117: 285 | DC117: N/A | DD117: N/A | DE117: 470 | DF117: 555 | DG117: 252 | DH117: 395 | DI117: 79 | DJ117: 123
I118: 99192 | J118: 6959 | K118: 323 | L118: 262 | M118: 236 | N118: 193 | O118: 3257 | P118: 1696 | Q118: 253 | R118: 216 | S118: 5347 | T118: 2126 | U118: 1600 | V118: 604 | W118: 657 | X118: 432 | Y118: 296 | Z118: 475 | AA118: 15 | AB118: 25 | AC118: 4937 | AD118: 1590 | AE118: 970 | AF118: 396 | AG118: 333 | AH118: 416 | AI118: 360 | AJ118: 231 | AK118: 22285 | AL118: 3020 | AM118: 2480 | AN118: 1136 | AO118: 4161 | AP118: 1283 | AQ118: 1160 | AR118: 1199 | AS118: 635 | AT118: 502 | AU118: 598 | AV118: 403 | AW118: 233 | AX118: 195 | AY118: 1306 | AZ118: 586 | BA118: 489 | BB118: 356 | BC118: 3917 | BD118: 1160 | BE118: 18965 | BF118: 2405 | BG118: 238 | BH118: 211 | BI118: 1263 | BJ118: 681 | BK118: 784 | BL118: 512 | BM118: 324 | BN118: 240 | BO118: 1163 | BP118: 682 | BQ118: 3 | BR118: 7 | BS118: 606 | BT118: 477 | BU118: 526 | BV118: 553 | BW118: 2033 | BX118: 980 | BY118: 2939 | BZ118: 1454 | CA118: 284 | CB118: 318 | CC118: 2610 | CD118: 1053 | CE118: 289 | CF118: 204 | CG118: 945 | CH118: 601 | CI118: 1563 | CJ118: 750 | CK118: 144 | CL118: 157 | CM118: 1053 | CN118: 675 | CO118: 329 | CP118: 220 | CQ118: 1051 | CR118: 638 | CS118: 2765 | CT118: 1112 | CU118: 900 | CV118: 1091 | CW118: 62 | CX118: 88 | CY118: 1267 | CZ118: 916 | DA118: 1208 | DB118: 416 | DC118: 0 | DD118: 145 | DE118: N/A | DF118: N/A | DG118: 30 | DH118: 46 | DI118: 975 | DJ118: 943
I119: 31149 | J119: 3430 | K119: 260 | L119: 284 | M119: 590 | N119: 661 | O119: 2014 | P119: 1234 | Q119: 244 | R119: 405 | S119: 2035 | T119: 720 | U119: 5599 | V119: 1618 | W119: 0 | X119: 185 | Y119: 0 | Z119: 185 | AA119: 0 | AB119: 185 | AC119: 733 | AD119: 572 | AE119: 166 | AF119: 173 | AG119: 0 | AH119: 185 | AI119: 745 | AJ119: 481 | AK119: 905 | AL119: 823 | AM119: 179 | AN119: 179 | AO119: 259 | AP119: 273 | AQ119: 539 | AR119: 412 | AS119: 4 | AT119: 10 | AU119: 88 | AV119: 100 | AW119: 0 | AX119: 185 | AY119: 294 | AZ119: 304 | BA119: 548 | BB119: 638 | BC119: 965 | BD119: 730 | BE119: 290 | BF119: 240 | BG119: 136 | BH119: 229 | BI119: 244 | BJ119: 257 | BK119: 1901 | BL119: 789 | BM119: 1216 | BN119: 559 | BO119: 355 | BP119: 304 | BQ119: 0 | BR119: 185 | BS119: 121 | BT119: 147 | BU119: 604 | BV119: 658 | BW119: 231 | BX119: 252 | BY119: 459 | BZ119: 399 | CA119: 338 | CB119: 300 | CC119: 819 | CD119: 447 | CE119: 964 | CF119: 670 | CG119: 893 | CH119: 605 | CI119: 230 | CJ119: 254 | CK119: 0 | CL119: 185 | CM119: 122 | CN119: 201 | CO119: 1175 | CP119: 730 | CQ119: 4 | CR119: 7 | CS119: 1427 | CT119: 920 | CU119: 1710 | CV119: 948 | CW119: 0 | CX119: 185 | CY119: 138 | CZ119: 169 | DA119: 1323 | DB119: 785 | DC119: 0 | DD119: 185 | DE119: 282 | DF119: 210 | DG119: N/A | DH119: N/A | DI119: 16 | DJ119: 27
I120: 20044 | J120: 2902 | K120: 8 | L120: 15 | M120: 57 | N120: 94 | O120: 54 | P120: 90 | Q120: 93 | R120: 158 | S120: 519 | T120: 484 | U120: 0 | V120: 214 | W120: 370 | X120: 365 | Y120: 0 | Z120: 214 | AA120: 0 | AB120: 214 | AC120: 4192 | AD120: 1203 | AE120: 232 | AF120: 300 | AG120: 110 | AH120: 172 | AI120: 0 | AJ120: 214 | AK120: 1021 | AL120: 602 | AM120: 121 | AN120: 153 | AO120: 0 | AP120: 214 | AQ120: 143 | AR120: 240 | AS120: 37 | AT120: 72 | AU120: 59 | AV120: 101 | AW120: 0 | AX120: 214 | AY120: 108 | AZ120: 177 | BA120: 2258 | BB120: 1289 | BC120: 435 | BD120: 451 | BE120: 0 | BF120: 214 | BG120: 0 | BH120: 214 | BI120: 0 | BJ120: 214 | BK120: 0 | BL120: 214 | BM120: 0 | BN120: 214 | BO120: 0 | BP120: 214 | BQ120: 0 | BR120: 214 | BS120: 1922 | BT120: 1129 | BU120: 28 | BV120: 48 | BW120: 2314 | BX120: 761 | BY120: 638 | BZ120: 565 | CA120: 0 | CB120: 214 | CC120: 328 | CD120: 499 | CE120: 0 | CF120: 214 | CG120: 0 | CH120: 214 | CI120: 2313 | CJ120: 1063 | CK120: 624 | CL120: 688 | CM120: 4 | CN120: 7 | CO120: 0 | CP120: 214 | CQ120: 15 | CR120: 31 | CS120: 360 | CT120: 291 | CU120: 0 | CV120: 214 | CW120: 0 | CX120: 214 | CY120: 684 | CZ120: 777 | DA120: 0 | DB120: 214 | DC120: 8 | DD120: 15 | DE120: 989 | DF120: 654 | DG120: 0 | DH120: 214 | DI120: N/A | DJ120: N/A

Sheet 2011 (hidden)
B2: Table 2 State-to-State Migration Flows*: 2011
B3: Dataset: 2011 American Community Survey 1-Year Estimates
B4: Universe: Population 1 year and over
B5: Source: http://www.census.gov/hhes/migration/files/acs/st-to-st/State_to_State_Migrations_Table_2011.xls
I6: ESTIMATES | BJ6: Margin of Error
B7: Current residence in -- | C7: Population 1 year and over | E7: Same residence 1 year ago | G7: Different residence, same state 1 year ago | I7: 1 | J7: 2 | K7: 3 | L7: 4 | M7: 5 | N7: 6 | O7: 7 | P7: 8 | Q7: 9 | R7: 10 | S7: 11 | T7: 12 | U7: 13 | V7: 14 | W7: 15 | X7: 16 | Y7: 17 | Z7: 18 | AA7: 19 | AB7: 20 | AC7: 21 | AD7: 22 | AE7: 23 | AF7: 24 | AG7: 25 | AH7: 26 | AI7: 27 | AJ7: 28 | AK7: 29 | AL7: 30 | AM7: 31 | AN7: 32 | AO7: 33 | AP7: 34 | AQ7: 35 | AR7: 36 | AS7: 37 | AT7: 38 | AU7: 39 | AV7: 40 | AW7: 41 | AX7: 42 | AY7: 43 | AZ7: 44 | BA7: 45 | BB7: 46 | BC7: 47 | BD7: 48 | BE7: 49 | BF7: 50 | BG7: 51 | BH7: 52 | BI7: 53 | BJ7: 1 | BK7: 2 | BL7: 3 | BM7: 4 | BN7: 5 | BO7: 6 | BP7: 7 | BQ7: 8 | BR7: 9 | BS7: 10 | BT7: 11 | BU7: 12 | BV7: 13 | BW7: 14 | BX7: 15 | BY7: 16 | BZ7: 17 | CA7: 18 | CB7: 19 | CC7: 20 | CD7: 21 | CE7: 22 | CF7: 23 | CG7: 24 | CH7: 25 | CI7: 26 | CJ7: 27 | CK7: 28 | CL7: 29 | CM7: 30 | CN7: 31 | CO7: 32 | CP7: 33 | CQ7: 34 | CR7: 35 | CS7: 36 | CT7: 37 | CU7: 38 | CV7: 39 | CW7: 40 | CX7: 41 | CY7: 42 | CZ7: 43 | DA7: 44 | DB7: 45 | DC7: 46 | DD7: 47 | DE7: 48 | DF7: 49 | DG7: 50 | DH7: 51 | DI7: 52 | DJ7: 53
I8: State of Residence Last year (Estimate) | BJ8: State of Residence Last year (Margin of Error)
C9: Estimate | D9: MOE | E9: Estimate | F9: MOE | G9: Estimate | H9: MOE | I9: TOTAL | J9: Alabama | K9: Alaska | L9: Arizona | M9: Arkansas | N9: California | O9: Colorado | P9: Connecticut | Q9: Delaware | R9: District of Columbia | S9: Florida | T9: Georgia | U9: Hawaii | V9: Idaho | W9: Illinois | X9: Indiana | Y9: Iowa | Z9: Kansas | AA9: Kentucky | AB9: Louisiana | AC9: Maine | AD9: Maryland | AE9: Massachusetts | AF9: Michigan | AG9: Minnesota | AH9: Mississippi | AI9: Missouri | AJ9: Montana | AK9: Nebraska | AL9: Nevada | AM9: New Hampshire | AN9: New Jersey | AO9: New Mexico | AP9: New York | AQ9: North Carolina | AR9: North Dakota | AS9: Ohio | AT9: Oklahoma | AU9: Oregon | AV9: Pennsylvania | AW9: Rhode Island | AX9: South Carolina | AY9: South Dakota | AZ9: Tennessee | BA9: Texas | BB9: Utah | BC9: Vermont | BD9: Virginia | BE9: Washington | BF9: West Virginia | BG9: Wisconsin | BH9: Wyoming | BI9: Puerto Rico | BJ9: TOTAL | BK9: Alabama | BL9: Alaska | BM9: Arizona | BN9: Arkansas | BO9: California | BP9: Colorado | BQ9: Connecticut | BR9: Delaware | BS9: District of Columbia | BT9: Florida | BU9: Georgia | BV9: Hawaii | BW9: Idaho | BX9: Illinois | BY9: Indiana | BZ9: Iowa | CA9: Kansas | CB9: Kentucky | CC9: Louisiana | CD9: Maine | CE9: Maryland | CF9: Massachusetts | CG9: Michigan | CH9: Minnesota | CI9: Mississippi | CJ9: Missouri | CK9: Montana | CL9: Nebraska | CM9: Nevada | CN9: New Hampshire | CO9: New Jersey | CP9: New Mexico | CQ9: New York | CR9: North Carolina | CS9: North Dakota | CT9: Ohio | CU9: Oklahoma | CV9: Oregon | CW9: Pennsylvania | CX9: Rhode Island | CY9: South Carolina | CZ9: South Dakota | DA9: Tennessee | DB9: Texas | DC9: Utah | DD9: Vermont | DE9: Virginia | DF9: Washington | DG9: West Virginia | DH9: Wisconsin | DI9: Wyoming | DJ9: Puerto Rico
B10: United States | C10: 307900319 | D10: 29996 | E10: 261087925 | F10: 263315 | G10: 37998701 | H10: 233440 | I10: 6987416 | J10: 106806 | K10: 88850 | L10: 211816 | M10: 77226 | N10: 562343 | O10: 160623 | P10: 91295 | Q10: 26631 | R10: 49732 | S10: 437202 | T10: 248892 | U10: 61940 | V10: 57831 | W10: 269008 | X10: 143228 | Y10: 74516 | Z10: 94180 | AA10: 99256 | AB10: 86593 | AC10: 33729 | AD10: 165041 | AE10: 145869 | AF10: 186505 | AG10: 103253 | AH10: 68597 | AI10: 138404 | AJ10: 31204 | AK10: 52809 | AL10: 115943 | AM10: 43277 | AN10: 216369 | AO10: 61431 | AP10: 377800 | AQ10: 225147 | AR10: 26563 | AS10: 206049 | AT10: 81009 | AU10: 109795 | AV10: 215127 | AW10: 31065 | AX10: 121426 | AY10: 29383 | AZ10: 154243 | BA10: 404839 | BB10: 73211 | BC10: 18172 | BD10: 229227 | BE10: 190644 | BF10: 45956 | BG10: 105370 | BH10: 31991 | BI10: 76218 | BJ10: 77858 | BK10: 10575 | BL10: 10161 | BM10: 17644 | BN10: 6899 | BO10: 20646 | BP10: 10427 | BQ10: 7653 | BR10: 3629 | BS10: 4949 | BT10: 19015 | BU10: 13318 | BV10: 7295 | BW10: 7401 | BX10: 13750 | BY10: 10568 | BZ10: 6398 | CA10: 10699 | CB10: 7329 | CC10: 8952 | CD10: 4154 | CE10: 11278 | CF10: 10414 | CG10: 13304 | CH10: 6978 | CI10: 7559 | CJ10: 11145 | CK10: 4179 | CL10: 6362 | CM10: 8686 | CN10: 4875 | CO10: 12474 | CP10: 5579 | CQ10: 15333 | CR10: 14191 | CS10: 3090 | CT10: 11406 | CU10: 8616 | CV10: 8590 | CW10: 11482 | CX10: 4192 | CY10: 9952 | CZ10: 4358 | DA10: 9679 | DB10: 17998 | DC10: 7130 | DD10: 2845 | DE10: 11582 | DF10: 11567 | DG10: 5684 | DH10: 8011 | DI10: 4631 | DJ10: 8799
B11: Alabama | C11: 4745278 | D11: 4078 | E11: 4024442 | F11: 22751 | G11: 588293 | H11: 20366 | I11: 117726 | J11: N/A | K11: 1771 | L11: 1677 | M11: 1642 | N11: 3389 | O11: 348 | P11: 2921 | Q11: 232 | R11: 399 | S11: 20063 | T11: 19346 | U11: 1259 | V11: 137 | W11: 6991 | X11: 1434 | Y11: 30 | Z11: 842 | AA11: 2686 | AB11: 2413 | AC11: 626 | AD11: 1606 | AE11: 112 | AF11: 2797 | AG11: 327 | AH11: 3945 | AI11: 1086 | AJ11: 317 | AK11: 770 | AL11: 257 | AM11: 64 | AN11: 1996 | AO11: 119 | AP11: 1108 | AQ11: 2697 | AR11: 284 | AS11: 2596 | AT11: 973 | AU11: 169 | AV11: 1075 | AW11: 0 | AX11: 2036 | AY11: 90 | AZ11: 8710 | BA11: 7973 | BB11: 300 | BC11: 66 | BD11: 4935 | BE11: 2621 | BF11: 65 | BG11: 417 | BH11: 9 | BI11: 569 | BJ11: 9414 | BK11: N/A | BL11: 1098 | BM11: 1060 | BN11: 1063 | BO11: 1286 | BP11: 295 | BQ11: 3231 | BR11: 301 | BS11: 359 | BT11: 4141 | BU11: 3711 | BV11: 1292 | BW11: 173 | BX11: 3376 | BY11: 634 | BZ11: 52 | CA11: 632 | CB11: 856 | CC11: 972 | CD11: 378 | CE11: 987 | CF11: 146 | CG11: 1250 | CH11: 342 | CI11: 1492 | CJ11: 536 | CK11: 463 | CL11: 638 | CM11: 333 | CN11: 109 | CO11: 2284 | CP11: 184 | CQ11: 442 | CR11: 1820 | CS11: 333 | CT11: 958 | CU11: 840 | CV11: 182 | CW11: 474 | CX11: 190 | CY11: 973 | CZ11: 98 | DA11: 2300 | DB11: 2240 | DC11: 390 | DD11: 108 | DE11: 2151 | DF11: 1272 | DG11: 110 | DH11: 457 | DI11: 15 | DJ11: 601
B12: Alaska | C12: 711962 | D12: 1401 | E12: 571857 | F12: 8892 | G12: 100280 | H12: 8388 | I12: 35084 | J12: 93 | K12: N/A | L12: 2467 | M12: 190 | N12: 3098 | O12: 1583 | P12: 138 | Q12: 11 | R12: 140 | S12: 1188 | T12: 556 | U12: 1366 | V12: 475 | W12: 985 | X12: 181 | Y12: 319 | Z12: 750 | AA12: 237 | AB12: 1077 | AC12: 0 | AD12: 216 | AE12: 141 | AF12: 771 | AG12: 593 | AH12: 554 | AI12: 921 | AJ12: 248 | AK12: 5 | AL12: 532 | AM12: 520 | AN12: 128 | AO12: 226 | AP12: 940 | AQ12: 470 | AR12: 0 | AS12: 319 | AT12: 616 | AU12: 2161 | AV12: 378 | AW12: 0 | AX12: 186 | AY12: 301 | AZ12: 388 | BA12: 2492 | BB12: 662 | BC12: 68 | BD12: 1488 | BE12: 4548 | BF12: 89 | BG12: 23 | BH12: 246 | BI12: 1044 | BJ12: 4168 | BK12: 113 | BL12: N/A | BM12: 1902 | BN12: 258 | BO12: 1921 | BP12: 727 | BQ12: 167 | BR12: 24 | BS12: 220 | BT12: 476 | BU12: 419 | BV12: 703 | BW12: 253 | BX12: 686 | BY12: 156 | BZ12: 374 | CA12: 741 | CB12: 354 | CC12: 1276 | CD12: 149 | CE12: 155 | CF12: 120 | CG12: 435 | CH12: 568 | CI12: 904 | CJ12: 1014 | CK12: 185 | CL12: 12 | CM12: 485 | CN12: 744 | CO12: 136 | CP12: 188 | CQ12: 613 | CR12: 404 | CS12: 149 | CT12: 286 | CU12: 733 | CV12: 841 | CW12: 371 | CX12: 149 | CY12: 182 | CZ12: 343 | DA12: 308 | DB12: 1105 | DC12: 731 | DD12: 105 | DE12: 1112 | DF12: 1520 | DG12: 75 | DH12: 35 | DI12: 272 | DJ12: 962
B13: Arizona | C13: 6402301 | D13: 5660 | E13: 5107496 | F13: 39045 | G13: 1028366 | H13: 36556 | I13: 222877 | J13: 833 | K13: 5001 | L13: N/A | M13: 1066 | N13: 49635 | O13: 10189 | P13: 1875 | Q13: 0 | R13: 389 | S13: 3732 | T13: 2206 | U13: 2199 | V13: 2190 | W13: 10035 | X13: 5855 | Y13: 4526 | Z13: 1708 | AA13: 2134 | AB13: 844 | AC13: 0 | AD13: 1918 | AE13: 743 | AF13: 9396 | AG13: 3297 | AH13: 1226 | AI13: 3872 | AJ13: 2431 | AK13: 1393 | AL13: 8756 | AM13: 228 | AN13: 3379 | AO13: 4610 | AP13: 3880 | AQ13: 2548 | AR13: 1159 | AS13: 4682 | AT13: 3219 | AU13: 4613 | AV13: 3436 | AW13: 72 | AX13: 1774 | AY13: 1657 | AZ13: 1680 | BA13: 12688 | BB13: 10577 | BC13: 0 | BD13: 2233 | BE13: 13940 | BF13: 70 | BG13: 6473 | BH13: 2510 | BI13: 871 | BJ13: 14358 | BK13: 587 | BL13: 2214 | BM13: N/A | BN13: 740 | BO13: 8755 | BP13: 2958 | BQ13: 1213 | BR13: 229 | BS13: 389 | BT13: 1842 | BU13: 1147 | BV13: 1109 | BW13: 1183 | BX13: 4129 | BY13: 1956 | BZ13: 1745 | CA13: 883 | CB13: 1257 | CC13: 867 | CD13: 229 | CE13: 1096 | CF13: 430 | CG13: 5283 | CH13: 1064 | CI13: 1492 | CJ13: 1689 | CK13: 1191 | CL13: 798 | CM13: 3417 | CN13: 229 | CO13: 1757 | CP13: 1448 | CQ13: 1363 | CR13: 1269 | CS13: 891 | CT13: 2116 | CU13: 1761 | CV13: 1465 | CW13: 1476 | CX13: 131 | CY13: 1932 | CZ13: 1589 | DA13: 647 | DB13: 2976 | DC13: 3336 | DD13: 229 | DE13: 1094 | DF13: 5479 | DG13: 118 | DH13: 2066 | DI13: 1288 | DJ13: 639
B14: Arkansas | C14: 2906632 | D14: 2928 | E14: 2421746 | F14: 18606 | G14: 405831 | H14: 18050 | I14: 69845 | J14: 691 | K14: 560 | L14: 439 | M14: N/A | N14: 4077 | O14: 746 | P14: 519 | Q14: 79 | R14: 0 | S14: 3067 | T14: 1446 | U14: 13 | V14: 179 | W14: 3684 | X14: 1362 | Y14: 851 | Z14: 2008 | AA14: 213 | AB14: 2120 | AC14: 30 | AD14: 133 | AE14: 781 | AF14: 1881 | AG14: 232 | AH14: 1731 | AI14: 7314 | AJ14: 713 | AK14: 332 | AL14: 641 | AM14: 52 | AN14: 341 | AO14: 775 | AP14: 674 | AQ14: 1664 | AR14: 214 | AS14: 174 | AT14: 3761 | AU14: 632 | AV14: 567 | AW14: 0 | AX14: 235 | AY14: 0 | AZ14: 6462 | BA14: 14767 | BB14: 0 | BC14: 0 | BD14: 1245 | BE14: 1477 | BF14: 24 | BG14: 687 | BH14: 252 | BI14: 529 | BJ14: 7292 | BK14: 573 | BL14: 669 | BM14: 381 | BN14: N/A | BO14: 2327 | BP14: 451 | BQ14: 654 | BR14: 141 | BS14: 192 | BT14: 1273 | BU14: 759 | BV14: 27 | BW14: 271 | BX14: 2143 | BY14: 1007 | BZ14: 773 | CA14: 1142 | CB14: 311 | CC14: 1015 | CD14: 53 | CE14: 176 | CF14: 901 | CG14: 1130 | CH14: 396 | CI14: 864 | CJ14: 2602 | CK14: 858 | CL14: 417 | CM14: 525 | CN14: 69 | CO14: 220 | CP14: 680 | CQ14: 362 | CR14: 1220 | CS14: 248 | CT14: 176 | CU14: 1456 | CV14: 587 | CW14: 628 | CX14: 192 | CY14: 269 | CZ14: 192 | DA14: 2269 | DB14: 2746 | DC14: 192 | DD14: 192 | DE14: 769 | DF14: 636 | DG14: 45 | DH14: 632 | DI14: 399 | DJ14: 507
B15: California | C15: 37222678 | D15: 9999 | E15: 31213310 | F15: 71183 | G15: 5271168 | H15: 68394 | I15: 468428 | J15: 2087 | K15: 7358 | L15: 35650 | M15: 2648 | N15: N/A | O15: 21245 | P15: 3073 | Q15: 1302 | R15: 3240 | S15: 22094 | T15: 13303 | U15: 9864 | V15: 4796 | W15: 20834 | X15: 4673 | Y15: 3324 | Z15: 2810 | AA15: 1201 | AB15: 3600 | AC15: 1658 | AD15: 7793 | AE15: 10244 | AF15: 12069 | AG15: 5687 | AH15: 2092 | AI15: 7677 | AJ15: 2599 | AK15: 1955 | AL15: 36159 | AM15: 1222 | AN15: 8053 | AO15: 5904 | AP15: 25629 | AQ15: 8708 | AR15: 1392 | AS15: 10474 | AT15: 5113 | AU15: 18165 | AV15: 8550 | AW15: 1103 | AX15: 5758 | AY15: 1004 | AZ15: 8761 | BA15: 37087 | BB15: 8944 | BC15: 745 | BD15: 15753 | BE15: 36481 | BF15: 832 | BG15: 5668 | BH15: 2047 | BI15: 1344 | BJ15: 17921 | BK15: 927 | BL15: 2501 | BM15: 4362 | BN15: 1019 | BO15: N/A | BP15: 3867 | BQ15: 1222 | BR15: 1343 | BS15: 1457 | BT15: 4333 | BU15: 3042 | BV15: 2683 | BW15: 1560 | BX15: 3496 | BY15: 1297 | BZ15: 1701 | CA15: 1256 | CB15: 507 | CC15: 1751 | CD15: 1175 | CE15: 1924 | CF15: 2069 | CG15: 4117 | CH15: 1375 | CI15: 896 | CJ15: 1995 | CK15: 1492 | CL15: 821 | CM15: 5100 | CN15: 869 | CO15: 2169 | CP15: 2207 | CQ15: 3287 | CR15: 2611 | CS15: 898 | CT15: 3555 | CU15: 1763 | CV15: 2845 | CW15: 2017 | CX15: 545 | CY15: 2383 | CZ15: 686 | DA15: 2325 | DB15: 5877 | DC15: 2725 | DD15: 504 | DE15: 2373 | DF15: 6266 | DG15: 463 | DH15: 1495 | DI15: 1810 | DJ15: 635
B16: Colorado | C16: 5048443 | D16: 4037 | E16: 4048042 | F16: 22888 | G16: 763233 | H16: 18937 | I16: 202124 | J16: 2340 | K16: 3191 | L16: 12338 | M16: 1615 | N16: 23234 | O16: N/A | P16: 1567 | Q16: 501 | R16: 298 | S16: 8075 | T16: 3250 | U16: 1852 | V16: 1578 | W16: 6027 | X16: 2116 | Y16: 3510 | Z16: 3718 | AA16: 1361 | AB16: 908 | AC16: 1358 | AD16: 3303 | AE16: 2157 | AF16: 3225 | AG16: 3055 | AH16: 879 | AI16: 4552 | AJ16: 4079 | AK16: 4582 | AL16: 4061 | AM16: 489 | AN16: 2863 | AO16: 8797 | AP16: 3998 | AQ16: 4756 | AR16: 2249 | AS16: 5527 | AT16: 3824 | AU16: 5543 | AV16: 3348 | AW16: 435 | AX16: 718 | AY16: 1340 | AZ16: 3193 | BA16: 22390 | BB16: 3856 | BC16: 914 | BD16: 6281 | BE16: 5524 | BF16: 412 | BG16: 3995 | BH16: 2942 | BI16: 476 | BJ16: 11431 | BK16: 1681 | BL16: 1622 | BM16: 3704 | BN16: 1191 | BO16: 3742 | BP16: N/A | BQ16: 838 | BR16: 556 | BS16: 301 | BT16: 2090 | BU16: 1254 | BV16: 832 | BW16: 766 | BX16: 1536 | BY16: 1289 | BZ16: 1495 | CA16: 1495 | CB16: 1028 | CC16: 550 | CD16: 1235 | CE16: 1416 | CF16: 1085 | CG16: 1061 | CH16: 1092 | CI16: 621 | CJ16: 1382 | CK16: 1579 | CL16: 1961 | CM16: 1432 | CN16: 396 | CO16: 1788 | CP16: 2308 | CQ16: 1621 | CR16: 1686 | CS16: 1245 | CT16: 2388 | CU16: 2137 | CV16: 2105 | CW16: 1302 | CX16: 560 | CY16: 480 | CZ16: 1037 | DA16: 1472 | DB16: 4287 | DC16: 1446 | DD16: 772 | DE16: 2671 | DF16: 2092 | DG16: 490 | DH16: 1774 | DI16: 923 | DJ16: 556
B17: Connecticut | C17: 3548667 | D17: 2644 | E17: 3139496 | F17: 16755 | G17: 316883 | H17: 15392 | I17: 71502 | J17: 101 | K17: 180 | L17: 1387 | M17: 84 | N17: 3699 | O17: 1502 | P17: N/A | Q17: 62 | R17: 607 | S17: 4771 | T17: 2000 | U17: 587 | V17: 133 | W17: 1843 | X17: 168 | Y17: 67 | Z17: 16 | AA17: 0 | AB17: 315 | AC17: 259 | AD17: 1267 | AE17: 8691 | AF17: 692 | AG17: 76 | AH17: 69 | AI17: 365 | AJ17: 206 | AK17: 62 | AL17: 160 | AM17: 1221 | AN17: 3809 | AO17: 265 | AP17: 20015 | AQ17: 1029 | AR17: 0 | AS17: 1383 | AT17: 217 | AU17: 117 | AV17: 3668 | AW17: 1488 | AX17: 997 | AY17: 0 | AZ17: 123 | BA17: 1214 | BB17: 398 | BC17: 608 | BD17: 2555 | BE17: 2255 | BF17: 46 | BG17: 660 | BH17: 65 | BI17: 2105 | BJ17: 6552 | BK17: 120 | BL17: 299 | BM17: 939 | BN17: 178 | BO17: 1455 | BP17: 618 | BQ17: N/A | BR17: 132 | BS17: 373 | BT17: 1275 | BU17: 988 | BV17: 523 | BW17: 224 | BX17: 965 | BY17: 214 | BZ17: 120 | CA17: 36 | CB17: 198 | CC17: 238 | CD17: 193 | CE17: 744 | CF17: 1998 | CG17: 736 | CH17: 120 | CI17: 116 | CJ17: 297 | CK17: 277 | CL17: 103 | CM17: 189 | CN17: 803 | CO17: 1324 | CP17: 225 | CQ17: 4005 | CR17: 593 | CS17: 198 | CT17: 791 | CU17: 211 | CV17: 161 | CW17: 1639 | CX17: 645 | CY17: 476 | CZ17: 198 | DA17: 141 | DB17: 646 | DC17: 359 | DD17: 354 | DE17: 1053 | DF17: 1469 | DG17: 77 | DH17: 898 | DI17: 110 | DJ17: 1756
B18: Delaware | C18: 897187 | D18: 1369 | E18: 775414 | F18: 8584 | G18: 83156 | H18: 6851 | I18: 33912 | J18: 81 | K18: 329 | L18: 541 | M18: 0 | N18: 699 | O18: 169 | P18: 66 | Q18: N/A | R18: 154 | S18: 810 | T18: 639 | U18: 201 | V18: 441 | W18: 34 | X18: 210 | Y18: 0 | Z18: 7 | AA18: 305 | AB18: 0 | AC18: 0 | AD18: 4238 | AE18: 806 | AF18: 43 | AG18: 201 | AH18: 0 | AI18: 713 | AJ18: 0 | AK18: 12 | AL18: 0 | AM18: 0 | AN18: 6297 | AO18: 0 | AP18: 3141 | AQ18: 388 | AR18: 0 | AS18: 664 | AT18: 27 | AU18: 0 | AV18: 8571 | AW18: 131 | AX18: 153 | AY18: 0 | AZ18: 221 | BA18: 883 | BB18: 475 | BC18: 0 | BD18: 1064 | BE18: 482 | BF18: 198 | BG18: 55 | BH18: 463 | BI18: 1008 | BJ18: 3955 | BK18: 135 | BL18: 544 | BM18: 728 | BN18: 192 | BO18: 594 | BP18: 218 | BQ18: 94 | BR18: N/A | BS18: 144 | BT18: 449 | BU18: 422 | BV18: 171 | BW18: 347 | BX18: 35 | BY18: 235 | BZ18: 192 | CA18: 17 | CB18: 391 | CC18: 192 | CD18: 192 | CE18: 1274 | CF18: 558 | CG18: 71 | CH18: 299 | CI18: 192 | CJ18: 684 | CK18: 192 | CL18: 28 | CM18: 192 | CN18: 192 | CO18: 1765 | CP18: 192 | CQ18: 1083 | CR18: 256 | CS18: 192 | CT18: 608 | CU18: 45 | CV18: 192 | CW18: 1728 | CX18: 217 | CY18: 179 | CZ18: 192 | DA18: 259 | DB18: 755 | DC18: 738 | DD18: 192 | DE18: 512 | DF18: 530 | DG18: 174 | DH18: 96 | DI18: 527 | DJ18: 971
B19: District of Columbia | C19: 611608 | D19: 1403 | E19: 489659 | F19: 6701 | G19: 66519 | H19: 6073 | I19: 48066 | J19: 13 | K19: 135 | L19: 43 | M19: 81 | N19: 3797 | O19: 452 | P19: 981 | Q19: 128 | R19: N/A | S19: 1254 | T19: 937 | U19: 372 | V19: 68 | W19: 1397 | X19: 128 | Y19: 241 | Z19: 6 | AA19: 297 | AB19: 0 | AC19: 0 | AD19: 14129 | AE19: 2048 | AF19: 1108 | AG19: 409 | AH19: 83 | AI19: 112 | AJ19: 38 | AK19: 79 | AL19: 238 | AM19: 145 | AN19: 1035 | AO19: 0 | AP19: 2313 | AQ19: 1716 | AR19: 285 | AS19: 306 | AT19: 0 | AU19: 51 | AV19: 1589 | AW19: 50 | AX19: 357 | AY19: 104 | AZ19: 421 | BA19: 1083 | BB19: 75 | BC19: 445 | BD19: 7975 | BE19: 476 | BF19: 120 | BG19: 946 | BH19: 0 | BI19: 0 | BJ19: 4295 | BK19: 29 | BL19: 217 | BM19: 71 | BN19: 93 | BO19: 1233 | BP19: 321 | BQ19: 472 | BR19: 125 | BS19: N/A | BT19: 651 | BU19: 572 | BV19: 396 | BW19: 113 | BX19: 814 | BY19: 147 | BZ19: 284 | CA19: 19 | CB19: 260 | CC19: 200 | CD19: 200 | CE19: 2971 | CF19: 789 | CG19: 554 | CH19: 457 | CI19: 99 | CJ19: 184 | CK19: 64 | CL19: 110 | CM19: 282 | CN19: 139 | CO19: 605 | CP19: 200 | CQ19: 697 | CR19: 760 | CS19: 360 | CT19: 224 | CU19: 200 | CV19: 64 | CW19: 757 | CX19: 63 | CY19: 329 | CZ19: 129 | DA19: 358 | DB19: 491 | DC19: 118 | DD19: 489 | DE19: 1285 | DF19: 300 | DG19: 138 | DH19: 668 | DI19: 200 | DJ19: 200
B20: Florida | C20: 18863948 | D20: 8536 | E20: 15742168 | F20: 59355 | G20: 2454255 | H20: 53419 | I20: 498597 | J20: 12635 | K20: 7405 | L20: 8451 | M20: 3025 | N20: 22420 | O20: 9383 | P20: 11704 | Q20: 1264 | R20: 891 | S20: N/A | T20: 38658 | U20: 3639 | V20: 312 | W20: 19152 | X20: 11472 | Y20: 1846 | Z20: 2661 | AA20: 5441 | AB20: 6094 | AC20: 4689 | AD20: 15410 | AE20: 13701 | AF20: 19640 | AG20: 4663 | AH20: 5175 | AI20: 7114 | AJ20: 559 | AK20: 3857 | AL20: 3527 | AM20: 4324 | AN20: 25206 | AO20: 1376 | AP20: 59288 | AQ20: 23983 | AR20: 514 | AS20: 18191 | AT20: 2600 | AU20: 3315 | AV20: 20821 | AW20: 5002 | AX20: 11953 | AY20: 716 | AZ20: 10451 | BA20: 25532 | BB20: 2343 | BC20: 2019 | BD20: 16614 | BE20: 6339 | BF20: 4964 | BG20: 7412 | BH20: 846 | BI20: 21611 | BJ20: 22483 | BK20: 3566 | BL20: 3412 | BM20: 3258 | BN20: 1241 | BO20: 4065 | BP20: 2988 | BQ20: 3121 | BR20: 949 | BS20: 495 | BT20: N/A | BU20: 6270 | BV20: 2081 | BW20: 268 | BX20: 3962 | BY20: 3254 | BZ20: 1137 | CA20: 1410 | CB20: 1674 | CC20: 2316 | CD20: 2049 | CE20: 3515 | CF20: 3380 | CG20: 3920 | CH20: 1888 | CI20: 1968 | CJ20: 2753 | CK20: 424 | CL20: 2208 | CM20: 1810 | CN20: 1798 | CO20: 6219 | CP20: 781 | CQ20: 7171 | CR20: 5251 | CS20: 600 | CT20: 3264 | CU20: 1168 | CV20: 2046 | CW20: 4267 | CX20: 2668 | CY20: 2956 | CZ20: 1027 | DA20: 4102 | DB20: 4638 | DC20: 1891 | DD20: 1616 | DE20: 3087 | DF20: 2687 | DG20: 2202 | DH20: 2467 | DI20: 725 | DJ20: 5621
B21: Georgia | C21: 9699859 | D21: 5580 | E21: 8095407 | F21: 40769 | G21: 1289450 | H21: 37444 | I21: 271077 | J21: 18799 | K21: 1079 | L21: 4292 | M21: 2112 | N21: 14949 | O21: 2325 | P21: 709 | Q21: 619 | R21: 364 | S21: 42666 | T21: N/A | U21: 1006 | V21: 126 | W21: 6080 | X21: 2442 | Y21: 950 | Z21: 4513 | AA21: 3686 | AB21: 6541 | AC21: 408 | AD21: 3708 | AE21: 4436 | AF21: 6992 | AG21: 1808 | AH21: 5380 | AI21: 2514 | AJ21: 246 | AK21: 4144 | AL21: 774 | AM21: 132 | AN21: 8371 | AO21: 791 | AP21: 14454 | AQ21: 19138 | AR21: 201 | AS21: 6863 | AT21: 1632 | AU21: 727 | AV21: 5791 | AW21: 337 | AX21: 16914 | AY21: 536 | AZ21: 16898 | BA21: 15760 | BB21: 793 | BC21: 361 | BD21: 9438 | BE21: 3701 | BF21: 1340 | BG21: 2727 | BH21: 504 | BI21: 1635 | BJ21: 15123 | BK21: 5015 | BL21: 765 | BM21: 1849 | BN21: 1366 | BO21: 3387 | BP21: 1399 | BQ21: 455 | BR21: 606 | BS21: 283 | BT21: 5232 | BU21: N/A | BV21: 883 | BW21: 139 | BX21: 1774 | BY21: 1297 | BZ21: 528 | CA21: 2909 | CB21: 1708 | CC21: 3121 | CD21: 269 | CE21: 1807 | CF21: 1979 | CG21: 2441 | CH21: 1416 | CI21: 3077 | CJ21: 989 | CK21: 211 | CL21: 3300 | CM21: 559 | CN21: 150 | CO21: 3016 | CP21: 421 | CQ21: 4681 | CR21: 3931 | CS21: 221 | CT21: 1986 | CU21: 1107 | CV21: 472 | CW21: 1896 | CX21: 504 | CY21: 5257 | CZ21: 730 | DA21: 3610 | DB21: 3421 | DC21: 1061 | DD21: 334 | DE21: 3336 | DF21: 1532 | DG21: 778 | DH21: 1401 | DI21: 775 | DJ21: 841
B22: Hawaii | C22: 1357806 | D22: 1803 | E22: 1160948 | F22: 10743 | G22: 122727 | H22: 8676 | I22: 57542 | J22: 1268 | K22: 844 | L22: 2900 | M22: 242 | N22: 10173 | O22: 950 | P22: 731 | Q22: 784 | R22: 222 | S22: 3160 | T22: 2519 | U22: N/A | V22: 112 | W22: 1884 | X22: 402 | Y22: 478 | Z22: 125 | AA22: 18 | AB22: 179 | AC22: 106 | AD22: 341 | AE22: 92 | AF22: 1303 | AG22: 933 | AH22: 371 | AI22: 308 | AJ22: 85 | AK22: 91 | AL22: 1548 | AM22: 107 | AN22: 564 | AO22: 354 | AP22: 4246 | AQ22: 2307 | AR22: 32 | AS22: 970 | AT22: 685 | AU22: 2030 | AV22: 870 | AW22: 58 | AX22: 1681 | AY22: 0 | AZ22: 636 | BA22: 3007 | BB22: 1040 | BC22: 0 | BD22: 2523 | BE22: 3790 | BF22: 312 | BG22: 147 | BH22: 14 | BI22: 238 | BJ22: 5083 | BK22: 846 | BL22: 670 | BM22: 1208 | BN22: 260 | BO22: 2201 | BP22: 493 | BQ22: 739 | BR22: 877 | BS22: 275 | BT22: 1311 | BU22: 956 | BV22: N/A | BW22: 199 | BX22: 728 | BY22: 280 | BZ22: 504 | CA22: 154 | CB22: 36 | CC22: 270 | CD22: 161 | CE22: 212 | CF22: 123 | CG22: 1067 | CH22: 750 | CI22: 391 | CJ22: 219 | CK22: 140 | CL22: 95 | CM22: 795 | CN22: 141 | CO22: 697 | CP22: 366 | CQ22: 2556 | CR22: 1256 | CS22: 54 | CT22: 677 | CU22: 502 | CV22: 1378 | CW22: 468 | CX22: 70 | CY22: 919 | CZ22: 187 | DA22: 1018 | DB22: 1122 | DC22: 872 | DD22: 187 | DE22: 1318 | DF22: 1075 | DG22: 306 | DH22: 159 | DI22: 23 | DJ22: 398
B23: Idaho | C23: 1559637 | D23: 2674 | E23: 1284530 | F23: 13188 | G23: 208434 | H23: 13285 | I23: 60336 | J23: 263 | K23: 4510 | L23: 3543 | M23: 224 | N23: 9021 | O23: 1813 | P23: 0 | Q23: 0 | R23: 0 | S23: 1733 | T23: 275 | U23: 254 | V23: N/A | W23: 390 | X23: 296 | Y23: 318 | Z23: 479 | AA23: 120 | AB23: 51 | AC23: 0 | AD23: 0 | AE23: 396 | AF23: 615 | AG23: 566 | AH23: 62 | AI23: 384 | AJ23: 1602 | AK23: 439 | AL23: 3581 | AM23: 129 | AN23: 84 | AO23: 141 | AP23: 419 | AQ23: 263 | AR23: 1201 | AS23: 260 | AT23: 288 | AU23: 7170 | AV23: 343 | AW23: 0 | AX23: 55 | AY23: 842 | AZ23: 296 | BA23: 1303 | BB23: 6059 | BC23: 0 | BD23: 905 | BE23: 8991 | BF23: 0 | BG23: 165 | BH23: 487 | BI23: 249 | BJ23: 6293 | BK23: 259 | BL23: 2938 | BM23: 1771 | BN23: 188 | BO23: 2484 | BP23: 1022 | BQ23: 195 | BR23: 195 | BS23: 195 | BT23: 1210 | BU23: 234 | BV23: 314 | BW23: N/A | BX23: 342 | BY23: 352 | BZ23: 424 | CA23: 503 | CB23: 170 | CC23: 110 | CD23: 195 | CE23: 195 | CF23: 625 | CG23: 524 | CH23: 352 | CI23: 106 | CJ23: 304 | CK23: 828 | CL23: 591 | CM23: 1400 | CN23: 123 | CO23: 78 | CP23: 229 | CQ23: 399 | CR23: 435 | CS23: 1099 | CT23: 212 | CU23: 243 | CV23: 1894 | CW23: 265 | CX23: 195 | CY23: 90 | CZ23: 1132 | DA23: 356 | DB23: 952 | DC23: 2187 | DD23: 195 | DE23: 707 | DF23: 2313 | DG23: 195 | DH23: 174 | DI23: 340 | DJ23: 412
B24: Illinois | C24: 12718402 | D24: 5792 | E24: 11076528 | F24: 31383 | G24: 1353853 | H24: 28856 | I24: 216204 | J24: 2823 | K24: 4119 | L24: 7657 | M24: 3185 | N24: 13930 | O24: 3271 | P24: 1819 | Q24: 277 | R24: 1440 | S24: 17548 | T24: 6042 | U24: 1269 | V24: 393 | W24: N/A | X24: 23491 | Y24: 8420 | Z24: 2533 | AA24: 5569 | AB24: 1315 | AC24: 693 | AD24: 2565 | AE24: 3507 | AF24: 10274 | AG24: 4496 | AH24: 1521 | AI24: 13889 | AJ24: 304 | AK24: 827 | AL24: 2454 | AM24: 590 | AN24: 3009 | AO24: 1573 | AP24: 6412 | AQ24: 4057 | AR24: 105 | AS24: 8384 | AT24: 1002 | AU24: 792 | AV24: 3012 | AW24: 278 | AX24: 1582 | AY24: 1318 | AZ24: 3223 | BA24: 11011 | BB24: 951 | BC24: 49 | BD24: 5233 | BE24: 3075 | BF24: 352 | BG24: 14507 | BH24: 58 | BI24: 2387 | BJ24: 11862 | BK24: 1526 | BL24: 3153 | BM24: 1987 | BN24: 1513 | BO24: 2863 | BP24: 1390 | BQ24: 959 | BR24: 303 | BS24: 708 | BT24: 3370 | BU24: 2192 | BV24: 735 | BW24: 356 | BX24: N/A | BY24: 5269 | BZ24: 1581 | CA24: 1130 | CB24: 1718 | CC24: 761 | CD24: 510 | CE24: 916 | CF24: 1540 | CG24: 2032 | CH24: 1177 | CI24: 581 | CJ24: 2736 | CK24: 275 | CL24: 520 | CM24: 1187 | CN24: 334 | CO24: 1033 | CP24: 1619 | CQ24: 1874 | CR24: 1663 | CS24: 115 | CT24: 1627 | CU24: 552 | CV24: 426 | CW24: 1197 | CX24: 266 | CY24: 783 | CZ24: 1474 | DA24: 1222 | DB24: 2803 | DC24: 595 | DD24: 81 | DE24: 2524 | DF24: 1254 | DG24: 288 | DH24: 2936 | DI24: 76 | DJ24: 715
B25: Indiana | C25: 6437155 | D25: 3841 | E25: 5478683 | F25: 24180 | G25: 809158 | H25: 21392 | I25: 127874 | J25: 1562 | K25: 371 | L25: 3975 | M25: 2016 | N25: 7649 | O25: 1930 | P25: 1227 | Q25: 79 | R25: 0 | S25: 8595 | T25: 2543 | U25: 1057 | V25: 1368 | W25: 23071 | X25: N/A | Y25: 916 | Z25: 1321 | AA25: 10177 | AB25: 2241 | AC25: 275 | AD25: 480 | AE25: 952 | AF25: 7896 | AG25: 1168 | AH25: 469 | AI25: 1824 | AJ25: 34 | AK25: 622 | AL25: 511 | AM25: 90 | AN25: 651 | AO25: 504 | AP25: 2518 | AQ25: 3038 | AR25: 70 | AS25: 11109 | AT25: 844 | AU25: 505 | AV25: 3998 | AW25: 49 | AX25: 3306 | AY25: 235 | AZ25: 3879 | BA25: 6326 | BB25: 123 | BC25: 530 | BD25: 1486 | BE25: 1028 | BF25: 216 | BG25: 2923 | BH25: 117 | BI25: 132 | BJ25: 8918 | BK25: 1293 | BL25: 324 | BM25: 1427 | BN25: 1321 | BO25: 2229 | BP25: 759 | BQ25: 698 | BR25: 134 | BS25: 190 | BT25: 3053 | BU25: 1176 | BV25: 717 | BW25: 1278 | BX25: 4221 | BY25: N/A | BZ25: 468 | CA25: 946 | CB25: 2220 | CC25: 1537 | CD25: 388 | CE25: 256 | CF25: 703 | CG25: 1777 | CH25: 568 | CI25: 366 | CJ25: 1033 | CK25: 62 | CL25: 491 | CM25: 338 | CN25: 152 | CO25: 348 | CP25: 410 | CQ25: 816 | CR25: 1840 | CS25: 94 | CT25: 2141 | CU25: 522 | CV25: 617 | CW25: 1871 | CX25: 84 | CY25: 1917 | CZ25: 231 | DA25: 1292 | DB25: 2074 | DC25: 127 | DD25: 349 | DE25: 853 | DF25: 744 | DG25: 194 | DH25: 1307 | DI25: 170 | DJ25: 220
B26: Iowa | C26: 3027718 | D26: 2514 | E26: 2573313 | F26: 16682 | G26: 370554 | H26: 15638 | I26: 70405 | J26: 207 | K26: 967 | L26: 1411 | M26: 433 | N26: 3297 | O26: 2891 | P26: 424 | Q26: 0 | R26: 0 | S26: 707 | T26: 1938 | U26: 299 | V26: 161 | W26: 13725 | X26: 349 | Y26: N/A | Z26: 1776 | AA26: 387 | AB26: 228 | AC26: 26 | AD26: 487 | AE26: 466 | AF26: 1687 | AG26: 5634 | AH26: 408 | AI26: 3649 | AJ26: 370 | AK26: 6490 | AL26: 2009 | AM26: 0 | AN26: 185 | AO26: 421 | AP26: 2361 | AQ26: 1760 | AR26: 604 | AS26: 993 | AT26: 532 | AU26: 811 | AV26: 388 | AW26: 65 | AX26: 172 | AY26: 2842 | AZ26: 623 | BA26: 2334 | BB26: 1482 | BC26: 38 | BD26: 720 | BE26: 856 | BF26: 115 | BG26: 2537 | BH26: 140 | BI26: 57 | BJ26: 5539 | BK26: 259 | BL26: 651 | BM26: 726 | BN26: 317 | BO26: 1022 | BP26: 1129 | BQ26: 628 | BR26: 155 | BS26: 155 | BT26: 455 | BU26: 1485 | BV26: 454 | BW26: 175 | BX26: 2238 | BY26: 204 | BZ26: N/A | CA26: 819 | CB26: 303 | CC26: 223 | CD26: 43 | CE26: 319 | CF26: 632 | CG26: 954 | CH26: 1117 | CI26: 306 | CJ26: 1188 | CK26: 338 | CL26: 1780 | CM26: 1634 | CN26: 155 | CO26: 209 | CP26: 347 | CQ26: 1104 | CR26: 1268 | CS26: 377 | CT26: 482 | CU26: 417 | CV26: 476 | CW26: 292 | CX26: 108 | CY26: 200 | CZ26: 965 | DA26: 529 | DB26: 1235 | DC26: 940 | DD26: 71 | DE26: 854 | DF26: 577 | DG26: 181 | DH26: 850 | DI26: 117 | DJ26: 115
B27: Kansas | C27: 2833584 | D27: 2851 | E27: 2372033 | F27: 15236 | G27: 362782 | H27: 14847 | I27: 83640 | J27: 434 | K27: 108 | L27: 2028 | M27: 998 | N27: 4743 | O27: 5030 | P27: 412 | Q27: 74 | R27: 128 | S27: 1581 | T27: 1146 | U27: 287 | V27: 264 | W27: 2760 | X27: 863 | Y27: 1715 | Z27: N/A | AA27: 1167 | AB27: 519 | AC27: 481 | AD27: 3180 | AE27: 28 | AF27: 1947 | AG27: 679 | AH27: 1517 | AI27: 22033 | AJ27: 270 | AK27: 1648 | AL27: 657 | AM27: 27 | AN27: 1189 | AO27: 769 | AP27: 780 | AQ27: 1223 | AR27: 379 | AS27: 1616 | AT27: 5022 | AU27: 285 | AV27: 1494 | AW27: 180 | AX27: 1102 | AY27: 104 | AZ27: 1066 | BA27: 6575 | BB27: 196 | BC27: 0 | BD27: 1986 | BE27: 772 | BF27: 0 | BG27: 893 | BH27: 1285 | BI27: 775 | BJ27: 7144 | BK27: 310 | BL27: 84 | BM27: 858 | BN27: 697 | BO27: 2121 | BP27: 1611 | BQ27: 519 | BR27: 85 | BS27: 141 | BT27: 790 | BU27: 666 | BV27: 282 | BW27: 358 | BX27: 1019 | BY27: 458 | BZ27: 888 | CA27: N/A | CB27: 770 | CC27: 338 | CD27: 527 | CE27: 2454 | CF27: 49 | CG27: 1003 | CH27: 418 | CI27: 1370 | CJ27: 4568 | CK27: 255 | CL27: 701 | CM27: 359 | CN27: 37 | CO27: 724 | CP27: 810 | CQ27: 411 | CR27: 840 | CS27: 558 | CT27: 901 | CU27: 1204 | CV27: 284 | CW27: 1815 | CX27: 261 | CY27: 670 | CZ27: 147 | DA27: 496 | DB27: 1436 | DC27: 265 | DD27: 168 | DE27: 1018 | DF27: 459 | DG27: 168 | DH27: 575 | DI27: 791 | DJ27: 1013
B28: Kentucky | C28: 4316297 | D28: 3382 | E28: 3686232 | F28: 19523 | G28: 505741 | H28: 18525 | I28: 110031 | J28: 925 | K28: 0 | L28: 1818 | M28: 1058 | N28: 2130 | O28: 221 | P28: 176 | Q28: 0 | R28: 201 | S28: 7400 | T28: 2725 | U28: 63 | V28: 36 | W28: 4273 | X28: 11071 | Y28: 536 | Z28: 253 | AA28: N/A | AB28: 1399 | AC28: 71 | AD28: 2076 | AE28: 1019 | AF28: 3178 | AG28: 475 | AH28: 1248 | AI28: 2793 | AJ28: 216 | AK28: 471 | AL28: 1358 | AM28: 52 | AN28: 1289 | AO28: 553 | AP28: 2174 | AQ28: 3916 | AR28: 117 | AS28: 19617 | AT28: 1256 | AU28: 459 | AV28: 1490 | AW28: 640 | AX28: 1387 | AY28: 0 | AZ28: 16852 | BA28: 4661 | BB28: 140 | BC28: 151 | BD28: 5154 | BE28: 1121 | BF28: 1174 | BG28: 581 | BH28: 57 | BI28: 192 | BJ28: 9177 | BK28: 441 | BL28: 189 | BM28: 916 | BN28: 778 | BO28: 1154 | BP28: 197 | BQ28: 251 | BR28: 189 | BS28: 248 | BT28: 1965 | BU28: 892 | BV28: 80 | BW28: 69 | BX28: 1415 | BY28: 2846 | BZ28: 410 | CA28: 212 | CB28: N/A | CC28: 906 | CD28: 137 | CE28: 1444 | CF28: 885 | CG28: 1248 | CH28: 415 | CI28: 868 | CJ28: 1158 | CK28: 238 | CL28: 517 | CM28: 976 | CN28: 84 | CO28: 1472 | CP28: 370 | CQ28: 1660 | CR28: 1965 | CS28: 195 | CT28: 3115 | CU28: 853 | CV28: 328 | CW28: 598 | CX28: 876 | CY28: 814 | CZ28: 189 | DA28: 3762 | DB28: 1468 | DC28: 202 | DD28: 152 | DE28: 1719 | DF28: 614 | DG28: 566 | DH28: 414 | DI28: 93 | DJ28: 262
B29: Louisiana | C29: 4518629 | D29: 3250 | E29: 3865118 | F29: 18789 | G29: 538691 | H29: 17818 | I29: 99138 | J29: 3065 | K29: 288 | L29: 2010 | M29: 2774 | N29: 3957 | O29: 1202 | P29: 358 | Q29: 0 | R29: 195 | S29: 5193 | T29: 4425 | U29: 688 | V29: 230 | W29: 1189 | X29: 1549 | Y29: 468 | Z29: 312 | AA29: 1520 | AB29: N/A | AC29: 120 | AD29: 1221 | AE29: 439 | AF29: 1163 | AG29: 698 | AH29: 10255 | AI29: 1375 | AJ29: 278 | AK29: 176 | AL29: 994 | AM29: 15 | AN29: 453 | AO29: 1028 | AP29: 1360 | AQ29: 2134 | AR29: 277 | AS29: 2641 | AT29: 4235 | AU29: 1531 | AV29: 455 | AW29: 268 | AX29: 1573 | AY29: 37 | AZ29: 2495 | BA29: 30292 | BB29: 179 | BC29: 87 | BD29: 2055 | BE29: 1075 | BF29: 110 | BG29: 339 | BH29: 357 | BI29: 393 | BJ29: 7082 | BK29: 1401 | BL29: 266 | BM29: 1529 | BN29: 1144 | BO29: 898 | BP29: 983 | BQ29: 264 | BR29: 198 | BS29: 168 | BT29: 2120 | BU29: 1541 | BV29: 808 | BW29: 269 | BX29: 417 | BY29: 827 | BZ29: 441 | CA29: 466 | CB29: 1286 | CC29: N/A | CD29: 163 | CE29: 1058 | CF29: 255 | CG29: 875 | CH29: 445 | CI29: 2829 | CJ29: 565 | CK29: 364 | CL29: 198 | CM29: 623 | CN29: 26 | CO29: 269 | CP29: 867 | CQ29: 849 | CR29: 1242 | CS29: 359 | CT29: 2281 | CU29: 3044 | CV29: 1577 | CW29: 473 | CX29: 395 | CY29: 1149 | CZ29: 47 | DA29: 938 | DB29: 5028 | DC29: 275 | DD29: 149 | DE29: 1060 | DF29: 504 | DG29: 123 | DH29: 372 | DI29: 541 | DJ29: 384
B30: Maine | C30: 1315833 | D30: 1456 | E30: 1120364 | F30: 10400 | G30: 157102 | H30: 9401 | I30: 33818 | J30: 634 | K30: 37 | L30: 325 | M30: 38 | N30: 829 | O30: 290 | P30: 2481 | Q30: 238 | R30: 239 | S30: 4304 | T30: 507 | U30: 177 | V30: 0 | W30: 675 | X30: 164 | Y30: 275 | Z30: 523 | AA30: 158 | AB30: 138 | AC30: N/A | AD30: 52 | AE30: 4439 | AF30: 702 | AG30: 296 | AH30: 0 | AI30: 325 | AJ30: 10 | AK30: 0 | AL30: 150 | AM30: 4302 | AN30: 694 | AO30: 144 | AP30: 2589 | AQ30: 1439 | AR30: 19 | AS30: 483 | AT30: 25 | AU30: 471 | AV30: 915 | AW30: 234 | AX30: 587 | AY30: 42 | AZ30: 394 | BA30: 1637 | BB30: 182 | BC30: 612 | BD30: 570 | BE30: 88 | BF30: 43 | BG30: 321 | BH30: 21 | BI30: 65 | BJ30: 4248 | BK30: 541 | BL30: 43 | BM30: 301 | BN30: 67 | BO30: 428 | BP30: 222 | BQ30: 668 | BR30: 228 | BS30: 177 | BT30: 1908 | BU30: 415 | BV30: 214 | BW30: 157 | BX30: 358 | BY30: 157 | BZ30: 452 | CA30: 641 | CB30: 217 | CC30: 218 | CD30: N/A | CE30: 105 | CF30: 1293 | CG30: 703 | CH30: 307 | CI30: 157 | CJ30: 228 | CK30: 18 | CL30: 157 | CM30: 250 | CN30: 1394 | CO30: 498 | CP30: 191 | CQ30: 1633 | CR30: 1059 | CS30: 31 | CT30: 530 | CU30: 48 | CV30: 406 | CW30: 418 | CX30: 282 | CY30: 429 | CZ30: 89 | DA30: 513 | DB30: 1115 | DC30: 202 | DD30: 341 | DE30: 337 | DF30: 131 | DG30: 73 | DH30: 408 | DI30: 37 | DJ30: 64
B31: Maryland | C31: 5759087 | D31: 4326 | E31: 5008452 | F31: 20478 | G31: 553895 | H31: 18323 | I31: 153979 | J31: 228 | K31: 671 | L31: 945 | M31: 423 | N31: 8595 | O31: 1796 | P31: 1608 | Q31: 6652 | R31: 18492 | S31: 7825 | T31: 7113 | U31: 1170 | V31: 389 | W31: 2392 | X31: 1318 | Y31: 110 | Z31: 689 | AA31: 848 | AB31: 860 | AC31: 1526 | AD31: N/A | AE31: 3470 | AF31: 2077 | AG31: 810 | AH31: 1109 | AI31: 1469 | AJ31: 73 | AK31: 0 | AL31: 1105 | AM31: 232 | AN31: 9627 | AO31: 797 | AP31: 9222 | AQ31: 6686 | AR31: 0 | AS31: 3396 | AT31: 845 | AU31: 276 | AV31: 14158 | AW31: 197 | AX31: 2882 | AY31: 0 | AZ31: 1942 | BA31: 3619 | BB31: 223 | BC31: 40 | BD31: 22089 | BE31: 1525 | BF31: 2027 | BG31: 353 | BH31: 80 | BI31: 779 | BJ31: 9033 | BK31: 128 | BL31: 493 | BM31: 604 | BN31: 528 | BO31: 1773 | BP31: 837 | BQ31: 903 | BR31: 1916 | BS31: 3025 | BT31: 1691 | BU31: 1789 | BV31: 815 | BW31: 366 | BX31: 1052 | BY31: 791 | BZ31: 146 | CA31: 551 | CB31: 671 | CC31: 484 | CD31: 1245 | CE31: N/A | CF31: 1341 | CG31: 1273 | CH31: 503 | CI31: 825 | CJ31: 944 | CK31: 103 | CL31: 204 | CM31: 1033 | CN31: 160 | CO31: 1880 | CP31: 676 | CQ31: 2041 | CR31: 2008 | CS31: 204 | CT31: 1110 | CU31: 592 | CV31: 247 | CW31: 3380 | CX31: 162 | CY31: 1696 | CZ31: 204 | DA31: 1093 | DB31: 1102 | DC31: 230 | DD31: 69 | DE31: 3805 | DF31: 611 | DG31: 859 | DH31: 514 | DI31: 132 | DJ31: 654
B32: Massachusetts | C32: 6515057 | D32: 3680 | E32: 5658768 | F32: 20357 | G32: 656441 | H32: 18778 | I32: 139830 | J32: 1201 | K32: 225 | L32: 1017 | M32: 167 | N32: 11556 | O32: 1388 | P32: 9445 | Q32: 399 | R32: 676 | S32: 11396 | T32: 3264 | U32: 733 | V32: 412 | W32: 2991 | X32: 640 | Y32: 138 | Z32: 969 | AA32: 180 | AB32: 977 | AC32: 4006 | AD32: 2762 | AE32: N/A | AF32: 2629 | AG32: 862 | AH32: 356 | AI32: 1261 | AJ32: 596 | AK32: 637 | AL32: 163 | AM32: 12010 | AN32: 8332 | AO32: 199 | AP32: 19431 | AQ32: 3964 | AR32: 61 | AS32: 1757 | AT32: 90 | AU32: 178 | AV32: 6538 | AW32: 10182 | AX32: 1621 | AY32: 44 | AZ32: 371 | BA32: 5203 | BB32: 548 | BC32: 2246 | BD32: 2984 | BE32: 1673 | BF32: 911 | BG32: 441 | BH32: 0 | BI32: 4413 | BJ32: 8282 | BK32: 1083 | BL32: 345 | BM32: 518 | BN32: 201 | BO32: 2290 | BP32: 972 | BQ32: 1884 | BR32: 579 | BS32: 358 | BT32: 2715 | BU32: 1666 | BV32: 860 | BW32: 695 | BX32: 899 | BY32: 456 | BZ32: 136 | CA32: 867 | CB32: 203 | CC32: 1200 | CD32: 1526 | CE32: 2048 | CF32: N/A | CG32: 1245 | CH32: 537 | CI32: 567 | CJ32: 654 | CK32: 719 | CL32: 727 | CM32: 158 | CN32: 2630 | CO32: 1949 | CP32: 276 | CQ32: 3914 | CR32: 1384 | CS32: 111 | CT32: 681 | CU32: 123 | CV32: 220 | CW32: 1883 | CX32: 2144 | CY32: 989 | CZ32: 72 | DA32: 355 | DB32: 1491 | DC32: 411 | DD32: 944 | DE32: 1241 | DF32: 741 | DG32: 855 | DH32: 311 | DI32: 204 | DJ32: 1542
B33: Michigan | C33: 9766574 | D33: 4376 | E33: 8340767 | F33: 29076 | G33: 1242917 | H33: 25401 | I33: 139158 | J33: 3527 | K33: 3456 | L33: 3840 | M33: 2054 | N33: 7793 | O33: 3425 | P33: 1656 | Q33: 0 | R33: 256 | S33: 17712 | T33: 4254 | U33: 630 | V33: 882 | W33: 9897 | X33: 7668 | Y33: 1709 | Z33: 1148 | AA33: 2578 | AB33: 955 | AC33: 599 | AD33: 1035 | AE33: 2861 | AF33: N/A | AG33: 2671 | AH33: 715 | AI33: 2509 | AJ33: 84 | AK33: 439 | AL33: 1215 | AM33: 73 | AN33: 1849 | AO33: 508 | AP33: 6087 | AQ33: 3405 | AR33: 159 | AS33: 11224 | AT33: 917 | AU33: 647 | AV33: 2864 | AW33: 385 | AX33: 2185 | AY33: 571 | AZ33: 3106 | BA33: 9935 | BB33: 642 | BC33: 0 | BD33: 2327 | BE33: 1430 | BF33: 417 | BG33: 4018 | BH33: 841 | BI33: 908 | BJ33: 8465 | BK33: 2060 | BL33: 1793 | BM33: 1382 | BN33: 1024 | BO33: 1752 | BP33: 1462 | BQ33: 1087 | BR33: 167 | BS33: 259 | BT33: 3844 | BU33: 1566 | BV33: 469 | BW33: 675 | BX33: 1863 | BY33: 1841 | BZ33: 1026 | CA33: 867 | CB33: 1158 | CC33: 556 | CD33: 735 | CE33: 431 | CF33: 1135 | CG33: N/A | CH33: 1085 | CI33: 558 | CJ33: 1200 | CK33: 105 | CL33: 312 | CM33: 610 | CN33: 120 | CO33: 779 | CP33: 367 | CQ33: 2170 | CR33: 1427 | CS33: 164 | CT33: 2069 | CU33: 570 | CV33: 324 | CW33: 1095 | CX33: 377 | CY33: 1094 | CZ33: 599 | DA33: 973 | DB33: 2208 | DC33: 582 | DD33: 167 | DE33: 834 | DF33: 669 | DG33: 301 | DH33: 1002 | DI33: 655 | DJ33: 857
B34: Minnesota | C34: 5277329 | D34: 3380 | E34: 4505462 | F34: 20788 | G34: 646176 | H34: 19647 | I34: 101029 | J34: 123 | K34: 893 | L34: 2314 | M34: 951 | N34: 6638 | O34: 2662 | P34: 74 | Q34: 86 | R34: 367 | S34: 2820 | T34: 840 | U34: 901 | V34: 402 | W34: 8209 | X34: 786 | Y34: 6175 | Z34: 606 | AA34: 755 | AB34: 573 | AC34: 321 | AD34: 424 | AE34: 970 | AF34: 5164 | AG34: N/A | AH34: 549 | AI34: 1345 | AJ34: 1457 | AK34: 1936 | AL34: 2682 | AM34: 21 | AN34: 631 | AO34: 540 | AP34: 2416 | AQ34: 845 | AR34: 7574 | AS34: 1961 | AT34: 546 | AU34: 1800 | AV34: 870 | AW34: 0 | AX34: 447 | AY34: 5305 | AZ34: 874 | BA34: 3062 | BB34: 919 | BC34: 177 | BD34: 1034 | BE34: 1413 | BF34: 92 | BG34: 19255 | BH34: 224 | BI34: 54 | BJ34: 7052 | BK34: 150 | BL34: 619 | BM34: 1071 | BN34: 599 | BO34: 2072 | BP34: 1023 | BQ34: 131 | BR34: 143 | BS34: 391 | BT34: 806 | BU34: 467 | BV34: 634 | BW34: 328 | BX34: 2632 | BY34: 470 | BZ34: 1326 | CA34: 324 | CB34: 580 | CC34: 599 | CD34: 343 | CE34: 382 | CF34: 422 | CG34: 2149 | CH34: N/A | CI34: 593 | CJ34: 712 | CK34: 859 | CL34: 821 | CM34: 1858 | CN34: 26 | CO34: 522 | CP34: 319 | CQ34: 913 | CR34: 520 | CS34: 1390 | CT34: 1059 | CU34: 399 | CV34: 1169 | CW34: 509 | CX34: 143 | CY34: 428 | CZ34: 1596 | DA34: 489 | DB34: 1108 | DC34: 742 | DD34: 161 | DE34: 420 | DF34: 656 | DG34: 98 | DH34: 2960 | DI34: 178 | DJ34: 91
B35: Mississippi | C35: 2943021 | D35: 3088 | E35: 2534036 | F35: 16620 | G35: 332934 | H35: 15960 | I35: 68511 | J35: 8922 | K35: 117 | L35: 556 | M35: 2315 | N35: 4723 | O35: 484 | P35: 54 | Q35: 0 | R35: 415 | S35: 6152 | T35: 3136 | U35: 369 | V35: 55 | W35: 2068 | X35: 611 | Y35: 650 | Z35: 66 | AA35: 1626 | AB35: 7139 | AC35: 0 | AD35: 265 | AE35: 1445 | AF35: 1610 | AG35: 614 | AH35: N/A | AI35: 1581 | AJ35: 0 | AK35: 118 | AL35: 84 | AM35: 65 | AN35: 269 | AO35: 1075 | AP35: 364 | AQ35: 483 | AR35: 0 | AS35: 991 | AT35: 566 | AU35: 74 | AV35: 2568 | AW35: 41 | AX35: 398 | AY35: 6 | AZ35: 7683 | BA35: 5243 | BB35: 332 | BC35: 0 | BD35: 1453 | BE35: 286 | BF35: 303 | BG35: 1136 | BH35: 0 | BI35: 318 | BJ35: 5606 | BK35: 2639 | BL35: 102 | BM35: 405 | BN35: 1360 | BO35: 1290 | BP35: 453 | BQ35: 74 | BR35: 206 | BS35: 434 | BT35: 2463 | BU35: 1397 | BV35: 429 | BW35: 82 | BX35: 853 | BY35: 411 | BZ35: 603 | CA35: 90 | CB35: 841 | CC35: 1767 | CD35: 206 | CE35: 239 | CF35: 1561 | CG35: 900 | CH35: 615 | CI35: N/A | CJ35: 973 | CK35: 206 | CL35: 198 | CM35: 141 | CN35: 135 | CO35: 293 | CP35: 1040 | CQ35: 449 | CR35: 299 | CS35: 206 | CT35: 536 | CU35: 362 | CV35: 107 | CW35: 1700 | CX35: 89 | CY35: 320 | CZ35: 15 | DA35: 2248 | DB35: 1807 | DC35: 520 | DD35: 206 | DE35: 805 | DF35: 252 | DG35: 411 | DH35: 1061 | DI35: 206 | DJ35: 411
B36: Missouri | C36: 5937896 | D36: 4110 | E36: 4963040 | F36: 26160 | G36: 801046 | H36: 25054 | I36: 149439 | J36: 1395 | K36: 2043 | L36: 2356 | M36: 6168 | N36: 8386 | O36: 3144 | P36: 1516 | Q36: 0 | R36: 215 | S36: 4513 | T36: 2964 | U36: 871 | V36: 560 | W36: 20161 | X36: 4404 | Y36: 4811 | Z36: 20884 | AA36: 1993 | AB36: 1728 | AC36: 291 | AD36: 716 | AE36: 463 | AF36: 2830 | AG36: 2026 | AH36: 1641 | AI36: N/A | AJ36: 845 | AK36: 4860 | AL36: 1544 | AM36: 769 | AN36: 1114 | AO36: 1016 | AP36: 2904 | AQ36: 3669 | AR36: 977 | AS36: 3240 | AT36: 6073 | AU36: 777 | AV36: 1810 | AW36: 359 | AX36: 267 | AY36: 361 | AZ36: 2676 | BA36: 10293 | BB36: 1697 | BC36: 88 | BD36: 2684 | BE36: 2518 | BF36: 196 | BG36: 1503 | BH36: 1120 | BI36: 709 | BJ36: 9288 | BK36: 654 | BL36: 2471 | BM36: 1028 | BN36: 1528 | BO36: 1909 | BP36: 1163 | BQ36: 1078 | BR36: 184 | BS36: 254 | BT36: 1398 | BU36: 972 | BV36: 517 | BW36: 439 | BX36: 3086 | BY36: 1588 | BZ36: 1405 | CA36: 4170 | CB36: 803 | CC36: 905 | CD36: 295 | CE36: 317 | CF36: 306 | CG36: 1176 | CH36: 809 | CI36: 884 | CJ36: N/A | CK36: 541 | CL36: 1645 | CM36: 830 | CN36: 750 | CO36: 755 | CP36: 718 | CQ36: 1260 | CR36: 1527 | CS36: 446 | CT36: 1684 | CU36: 2312 | CV36: 538 | CW36: 1085 | CX36: 424 | CY36: 237 | CZ36: 296 | DA36: 1056 | DB36: 2994 | DC36: 946 | DD36: 195 | DE36: 1493 | DF36: 843 | DG36: 214 | DH36: 671 | DI36: 900 | DJ36: 463
B37: Montana | C37: 987076 | D37: 1359 | E37: 828254 | F37: 8593 | G37: 122210 | H37: 8386 | I37: 33553 | J37: 449 | K37: 1118 | L37: 1971 | M37: 49 | N37: 3033 | O37: 2856 | P37: 58 | Q37: 365 | R37: 0 | S37: 291 | T37: 231 | U37: 32 | V37: 1543 | W37: 765 | X37: 646 | Y37: 417 | Z37: 845 | AA37: 0 | AB37: 0 | AC37: 71 | AD37: 57 | AE37: 10 | AF37: 353 | AG37: 969 | AH37: 0 | AI37: 158 | AJ37: N/A | AK37: 384 | AL37: 688 | AM37: 0 | AN37: 889 | AO37: 264 | AP37: 422 | AQ37: 1173 | AR37: 360 | AS37: 321 | AT37: 96 | AU37: 1959 | AV37: 840 | AW37: 0 | AX37: 77 | AY37: 227 | AZ37: 266 | BA37: 1329 | BB37: 1232 | BC37: 53 | BD37: 278 | BE37: 3835 | BF37: 14 | BG37: 146 | BH37: 2413 | BI37: 353 | BJ37: 4015 | BK37: 318 | BL37: 921 | BM37: 1358 | BN37: 70 | BO37: 1110 | BP37: 1265 | BQ37: 72 | BR37: 392 | BS37: 165 | BT37: 235 | BU37: 193 | BV37: 35 | BW37: 1005 | BX37: 526 | BY37: 646 | BZ37: 307 | CA37: 492 | CB37: 165 | CC37: 165 | CD37: 127 | CE37: 71 | CF37: 18 | CG37: 295 | CH37: 634 | CI37: 165 | CJ37: 220 | CK37: N/A | CL37: 392 | CM37: 543 | CN37: 165 | CO37: 589 | CP37: 389 | CQ37: 377 | CR37: 982 | CS37: 250 | CT37: 409 | CU37: 127 | CV37: 914 | CW37: 640 | CX37: 165 | CY37: 92 | CZ37: 233 | DA37: 237 | DB37: 643 | DC37: 623 | DD37: 71 | DE37: 288 | DF37: 1160 | DG37: 28 | DH37: 184 | DI37: 1709 | DJ37: 522
B38: Nebraska | C38: 1817126 | D38: 2304 | E38: 1505191 | F38: 11978 | G38: 253269 | H38: 10841 | I38: 52070 | J38: 169 | K38: 721 | L38: 1646 | M38: 161 | N38: 5124 | O38: 3245 | P38: 381 | Q38: 0 | R38: 29 | S38: 1105 | T38: 434 | U38: 275 | V38: 506 | W38: 1415 | X38: 615 | Y38: 9575 | Z38: 3040 | AA38: 352 | AB38: 222 | AC38: 122 | AD38: 318 | AE38: 0 | AF38: 683 | AG38: 1455 | AH38: 424 | AI38: 1848 | AJ38: 64 | AK38: N/A | AL38: 240 | AM38: 0 | AN38: 119 | AO38: 242 | AP38: 544 | AQ38: 829 | AR38: 292 | AS38: 268 | AT38: 1255 | AU38: 1556 | AV38: 252 | AW38: 0 | AX38: 243 | AY38: 2999 | AZ38: 226 | BA38: 5343 | BB38: 734 | BC38: 0 | BD38: 615 | BE38: 835 | BF38: 24 | BG38: 560 | BH38: 965 | BI38: 0 | BJ38: 5507 | BK38: 271 | BL38: 785 | BM38: 898 | BN38: 146 | BO38: 1727 | BP38: 962 | BQ38: 372 | BR38: 155 | BS38: 48 | BT38: 499 | BU38: 358 | BV38: 215 | BW38: 464 | BX38: 777 | BY38: 541 | BZ38: 2602 | CA38: 1210 | CB38: 457 | CC38: 253 | CD38: 127 | CE38: 344 | CF38: 155 | CG38: 435 | CH38: 1009 | CI38: 430 | CJ38: 771 | CK38: 88 | CL38: N/A | CM38: 165 | CN38: 155 | CO38: 101 | CP38: 326 | CQ38: 349 | CR38: 872 | CS38: 213 | CT38: 250 | CU38: 884 | CV38: 1249 | CW38: 179 | CX38: 155 | CY38: 285 | CZ38: 1280 | DA38: 244 | DB38: 2737 | DC38: 507 | DD38: 155 | DE38: 478 | DF38: 593 | DG38: 40 | DH38: 427 | DI38: 421 | DJ38: 155
B39: Nevada | C39: 2688336 | D39: 3578 | E39: 2084668 | F39: 23272 | G39: 480317 | H39: 23514 | I39: 110345 | J39: 280 | K39: 597 | L39: 10142 | M39: 310 | N39: 40114 | O39: 2714 | P39: 189 | Q39: 184 | R39: 983 | S39: 2923 | T39: 1731 | U39: 4093 | V39: 3929 | W39: 1668 | X39: 855 | Y39: 114 | Z39: 602 | AA39: 628 | AB39: 78 | AC39: 49 | AD39: 931 | AE39: 256 | AF39: 1663 | AG39: 1055 | AH39: 203 | AI39: 335 | AJ39: 1137 | AK39: 32 | AL39: N/A | AM39: 0 | AN39: 2118 | AO39: 2136 | AP39: 1516 | AQ39: 1333 | AR39: 0 | AS39: 1354 | AT39: 258 | AU39: 1691 | AV39: 570 | AW39: 86 | AX39: 165 | AY39: 588 | AZ39: 96 | BA39: 7249 | BB39: 3365 | BC39: 0 | BD39: 1740 | BE39: 4680 | BF39: 0 | BG39: 2672 | BH39: 933 | BI39: 153 | BJ39: 9419 | BK39: 330 | BL39: 525 | BM39: 4338 | BN39: 358 | BO39: 5354 | BP39: 1470 | BQ39: 163 | BR39: 226 | BS39: 1261 | BT39: 1608 | BU39: 909 | BV39: 2643 | BW39: 1734 | BX39: 1031 | BY39: 781 | BZ39: 188 | CA39: 734 | CB39: 620 | CC39: 128 | CD39: 80 | CE39: 701 | CF39: 255 | CG39: 831 | CH39: 1329 | CI39: 279 | CJ39: 237 | CK39: 740 | CL39: 37 | CM39: N/A | CN39: 234 | CO39: 1709 | CP39: 1429 | CQ39: 819 | CR39: 895 | CS39: 234 | CT39: 894 | CU39: 254 | CV39: 695 | CW39: 581 | CX39: 148 | CY39: 273 | CZ39: 557 | DA39: 150 | DB39: 3923 | DC39: 2105 | DD39: 234 | DE39: 1369 | DF39: 1646 | DG39: 234 | DH39: 2369 | DI39: 702 | DJ39: 258
B40: New Hampshire | C40: 1305678 | D40: 2046 | E40: 1141236 | F40: 9064 | G40: 122129 | H40: 8186 | I40: 37000 | J40: 193 | K40: 0 | L40: 246 | M40: 22 | N40: 547 | O40: 403 | P40: 1617 | Q40: 20 | R40: 68 | S40: 1970 | T40: 535 | U40: 0 | V40: 0 | W40: 478 | X40: 470 | Y40: 47 | Z40: 0 | AA40: 0 | AB40: 0 | AC40: 3080 | AD40: 222 | AE40: 15526 | AF40: 155 | AG40: 104 | AH40: 160 | AI40: 153 | AJ40: 230 | AK40: 33 | AL40: 186 | AM40: N/A | AN40: 294 | AO40: 186 | AP40: 1471 | AQ40: 1297 | AR40: 47 | AS40: 248 | AT40: 0 | AU40: 198 | AV40: 1015 | AW40: 608 | AX40: 588 | AY40: 86 | AZ40: 126 | BA40: 605 | BB40: 158 | BC40: 2138 | BD40: 880 | BE40: 428 | BF40: 0 | BG40: 0 | BH40: 162 | BI40: 0 | BJ40: 3717 | BK40: 237 | BL40: 184 | BM40: 210 | BN40: 37 | BO40: 334 | BP40: 313 | BQ40: 519 | BR40: 32 | BS40: 112 | BT40: 813 | BU40: 449 | BV40: 184 | BW40: 184 | BX40: 402 | BY40: 394 | BZ40: 78 | CA40: 184 | CB40: 184 | CC40: 184 | CD40: 1064 | CE40: 177 | CF40: 2811 | CG40: 165 | CH40: 145 | CI40: 258 | CJ40: 181 | CK40: 378 | CL40: 54 | CM40: 231 | CN40: N/A | CO40: 247 | CP40: 179 | CQ40: 510 | CR40: 649 | CS40: 79 | CT40: 223 | CU40: 184 | CV40: 267 | CW40: 569 | CX40: 301 | CY40: 757 | CZ40: 102 | DA40: 159 | DB40: 438 | DC40: 271 | DD40: 991 | DE40: 575 | DF40: 497 | DG40: 184 | DH40: 184 | DI40: 218 | DJ40: 184
B41: New Jersey | C41: 8719952 | D41: 4595 | E41: 7825661 | F41: 21158 | G41: 693380 | H41: 21063 | I41: 140194 | J41: 189 | K41: 1198 | L41: 3784 | M41: 57 | N41: 5986 | O41: 2203 | P41: 1924 | Q41: 2100 | R41: 781 | S41: 12907 | T41: 4268 | U41: 264 | V41: 256 | W41: 3690 | X41: 718 | Y41: 332 | Z41: 317 | AA41: 102 | AB41: 871 | AC41: 624 | AD41: 5335 | AE41: 4675 | AF41: 1889 | AG41: 1261 | AH41: 510 | AI41: 583 | AJ41: 49 | AK41: 312 | AL41: 899 | AM41: 499 | AN41: N/A | AO41: 355 | AP41: 40815 | AQ41: 2482 | AR41: 61 | AS41: 1121 | AT41: 773 | AU41: 360 | AV41: 19733 | AW41: 463 | AX41: 1586 | AY41: 0 | AZ41: 1412 | BA41: 3801 | BB41: 256 | BC41: 0 | BD41: 4458 | BE41: 2454 | BF41: 1252 | BG41: 214 | BH41: 15 | BI41: 4312 | BJ41: 8607 | BK41: 209 | BL41: 790 | BM41: 2287 | BN41: 97 | BO41: 1519 | BP41: 1931 | BQ41: 845 | BR41: 1025 | BS41: 409 | BT41: 3313 | BU41: 2025 | BV41: 307 | BW41: 262 | BX41: 1572 | BY41: 436 | BZ41: 441 | CA41: 306 | CB41: 125 | CC41: 590 | CD41: 629 | CE41: 2324 | CF41: 1356 | CG41: 1056 | CH41: 1200 | CI41: 677 | CJ41: 544 | CK41: 80 | CL41: 429 | CM41: 566 | CN41: 360 | CO41: N/A | CP41: 537 | CQ41: 4703 | CR41: 1416 | CS41: 103 | CT41: 608 | CU41: 707 | CV41: 331 | CW41: 2951 | CX41: 319 | CY41: 789 | CZ41: 198 | DA41: 782 | DB41: 1818 | DC41: 229 | DD41: 198 | DE41: 1750 | DF41: 1946 | DG41: 1293 | DH41: 259 | DI41: 29 | DJ41: 1535
B42: New Mexico | C42: 2055293 | D42: 2718 | E42: 1753413 | F42: 15690 | G42: 228218 | H42: 13801 | I42: 62130 | J42: 410 | K42: 416 | L42: 7444 | M42: 682 | N42: 7066 | O42: 5525 | P42: 0 | Q42: 0 | R42: 212 | S42: 2806 | T42: 676 | U42: 81 | V42: 355 | W42: 466 | X42: 2030 | Y42: 0 | Z42: 1333 | AA42: 87 | AB42: 184 | AC42: 510 | AD42: 2277 | AE42: 252 | AF42: 908 | AG42: 438 | AH42: 556 | AI42: 1183 | AJ42: 544 | AK42: 353 | AL42: 2099 | AM42: 114 | AN42: 245 | AO42: N/A | AP42: 1445 | AQ42: 522 | AR42: 264 | AS42: 1742 | AT42: 234 | AU42: 916 | AV42: 492 | AW42: 0 | AX42: 145 | AY42: 240 | AZ42: 899 | BA42: 13633 | BB42: 303 | BC42: 71 | BD42: 425 | BE42: 924 | BF42: 0 | BG42: 340 | BH42: 283 | BI42: 99 | BJ42: 7330 | BK42: 494 | BL42: 446 | BM42: 3409 | BN42: 607 | BO42: 2324 | BP42: 1537 | BQ42: 198 | BR42: 198 | BS42: 336 | BT42: 1557 | BU42: 406 | BV42: 128 | BW42: 326 | BX42: 315 | BY42: 2244 | BZ42: 198 | CA42: 1078 | CB42: 152 | CC42: 244 | CD42: 384 | CE42: 1964 | CF42: 213 | CG42: 699 | CH42: 435 | CI42: 553 | CJ42: 877 | CK42: 340 | CL42: 312 | CM42: 1159 | CN42: 130 | CO42: 229 | CP42: N/A | CQ42: 781 | CR42: 300 | CS42: 310 | CT42: 1115 | CU42: 203 | CV42: 655 | CW42: 284 | CX42: 198 | CY42: 204 | CZ42: 281 | DA42: 577 | DB42: 3724 | DC42: 218 | DD42: 120 | DE42: 337 | DF42: 616 | DG42: 198 | DH42: 342 | DI42: 313 | DJ42: 158
B43: New York | C43: 19248685 | D43: 7023 | E43: 17055260 | F43: 37016 | G43: 1756105 | H43: 32216 | I43: 282209 | J43: 1812 | K43: 6124 | L43: 2821 | M43: 1041 | N43: 25761 | O43: 3724 | P43: 15123 | Q43: 1124 | R43: 3702 | S43: 29344 | T43: 10584 | U43: 1002 | V43: 434 | W43: 6914 | X43: 2198 | Y43: 928 | Z43: 838 | AA43: 2414 | AB43: 1495 | AC43: 2915 | AD43: 5037 | AE43: 14646 | AF43: 3936 | AG43: 1824 | AH43: 401 | AI43: 1417 | AJ43: 391 | AK43: 579 | AL43: 1785 | AM43: 2972 | AN43: 41450 | AO43: 461 | AP43: N/A | AQ43: 9336 | AR43: 374 | AS43: 5191 | AT43: 1425 | AU43: 2189 | AV43: 26596 | AW43: 1393 | AX43: 6947 | AY43: 112 | AZ43: 2660 | BA43: 9151 | BB43: 773 | BC43: 3882 | BD43: 10800 | BE43: 2986 | BF43: 631 | BG43: 1878 | BH43: 688 | BI43: 10582 | BJ43: 11956 | BK43: 1002 | BL43: 2270 | BM43: 1100 | BN43: 734 | BO43: 3856 | BP43: 1151 | BQ43: 3667 | BR43: 588 | BS43: 1051 | BT43: 4718 | BU43: 2320 | BV43: 973 | BW43: 377 | BX43: 1720 | BY43: 958 | BZ43: 783 | CA43: 397 | CB43: 1223 | CC43: 916 | CD43: 1114 | CE43: 1192 | CF43: 2367 | CG43: 947 | CH43: 678 | CI43: 266 | CJ43: 595 | CK43: 282 | CL43: 553 | CM43: 1037 | CN43: 1172 | CO43: 4170 | CP43: 276 | CQ43: N/A | CR43: 1874 | CS43: 266 | CT43: 1717 | CU43: 887 | CV43: 977 | CW43: 3427 | CX43: 663 | CY43: 2791 | CZ43: 121 | DA43: 1051 | DB43: 2132 | DC43: 482 | DD43: 1242 | DE43: 2343 | DF43: 1367 | DG43: 470 | DH43: 1014 | DI43: 645 | DJ43: 3796
B44: North Carolina | C44: 9539412 | D44: 5364 | E44: 8070238 | F44: 36924 | G44: 1160510 | H44: 33476 | I44: 265291 | J44: 5420 | K44: 3991 | L44: 4286 | M44: 327 | N44: 15373 | O44: 3919 | P44: 1975 | Q44: 954 | R44: 1135 | S44: 28044 | T44: 16192 | U44: 1806 | V44: 675 | W44: 5971 | X44: 3228 | Y44: 654 | Z44: 4995 | AA44: 1637 | AB44: 2936 | AC44: 824 | AD44: 10485 | AE44: 9053 | AF44: 7530 | AG44: 1294 | AH44: 1273 | AI44: 2638 | AJ44: 563 | AK44: 1056 | AL44: 1048 | AM44: 2078 | AN44: 10374 | AO44: 1737 | AP44: 18321 | AQ44: N/A | AR44: 189 | AS44: 10187 | AT44: 1390 | AU44: 1175 | AV44: 9450 | AW44: 444 | AX44: 20427 | AY44: 565 | AZ44: 6057 | BA44: 6621 | BB44: 961 | BC44: 212 | BD44: 27302 | BE44: 3295 | BF44: 2780 | BG44: 2291 | BH44: 153 | BI44: 844 | BJ44: 16660 | BK44: 2338 | BL44: 2185 | BM44: 2860 | BN44: 322 | BO44: 5531 | BP44: 1645 | BQ44: 820 | BR44: 600 | BS44: 591 | BT44: 4471 | BU44: 3163 | BV44: 1362 | BW44: 615 | BX44: 2065 | BY44: 1379 | BZ44: 530 | CA44: 4644 | CB44: 786 | CC44: 1135 | CD44: 663 | CE44: 2304 | CF44: 4920 | CG44: 2879 | CH44: 825 | CI44: 829 | CJ44: 1150 | CK44: 549 | CL44: 1334 | CM44: 716 | CN44: 1738 | CO44: 2643 | CP44: 1297 | CQ44: 3621 | CR44: N/A | CS44: 272 | CT44: 3649 | CU44: 684 | CV44: 826 | CW44: 2770 | CX44: 384 | CY44: 3260 | CZ44: 609 | DA44: 2083 | DB44: 2034 | DC44: 692 | DD44: 345 | DE44: 4012 | DF44: 1566 | DG44: 1517 | DH44: 1192 | DI44: 228 | DJ44: 447
B45: North Dakota | C45: 675161 | D45: 1047 | E45: 559906 | F45: 6503 | G45: 79837 | H45: 6140 | I45: 32510 | J45: 97 | K45: 393 | L45: 1313 | M45: 249 | N45: 1356 | O45: 1229 | P45: 0 | Q45: 84 | R45: 0 | S45: 459 | T45: 364 | U45: 138 | V45: 1209 | W45: 571 | X45: 130 | Y45: 208 | Z45: 75 | AA45: 0 | AB45: 422 | AC45: 50 | AD45: 10 | AE45: 369 | AF45: 328 | AG45: 12244 | AH45: 80 | AI45: 330 | AJ45: 1227 | AK45: 218 | AL45: 845 | AM45: 0 | AN45: 183 | AO45: 99 | AP45: 264 | AQ45: 900 | AR45: N/A | AS45: 286 | AT45: 59 | AU45: 264 | AV45: 652 | AW45: 0 | AX45: 1 | AY45: 1293 | AZ45: 113 | BA45: 1862 | BB45: 429 | BC45: 0 | BD45: 166 | BE45: 404 | BF45: 0 | BG45: 1398 | BH45: 139 | BI45: 76 | BJ45: 3641 | BK45: 125 | BL45: 365 | BM45: 613 | BN45: 293 | BO45: 1011 | BP45: 612 | BQ45: 143 | BR45: 100 | BS45: 143 | BT45: 303 | BU45: 410 | BV45: 216 | BW45: 817 | BX45: 504 | BY45: 171 | BZ45: 178 | CA45: 96 | CB45: 143 | CC45: 441 | CD45: 72 | CE45: 16 | CF45: 359 | CG45: 324 | CH45: 2374 | CI45: 143 | CJ45: 284 | CK45: 612 | CL45: 170 | CM45: 860 | CN45: 143 | CO45: 306 | CP45: 112 | CQ45: 233 | CR45: 678 | CS45: N/A | CT45: 248 | CU45: 68 | CV45: 256 | CW45: 637 | CX45: 143 | CY45: 2 | CZ45: 714 | DA45: 120 | DB45: 1029 | DC45: 427 | DD45: 143 | DE45: 202 | DF45: 312 | DG45: 143 | DH45: 601 | DI45: 102 | DJ45: 110
B46: Ohio | C46: 11418944 | D46: 4418 | E46: 9764366 | F46: 32087 | G46: 1425709 | H46: 29701 | I46: 191778 | J46: 1567 | K46: 1637 | L46: 6763 | M46: 1952 | N46: 9032 | O46: 2690 | P46: 1189 | Q46: 263 | R46: 587 | S46: 16492 | T46: 4290 | U46: 1044 | V46: 312 | W46: 7027 | X46: 11588 | Y46: 1146 | Z46: 657 | AA46: 12744 | AB46: 1872 | AC46: 0 | AD46: 4982 | AE46: 2101 | AF46: 14330 | AG46: 1788 | AH46: 691 | AI46: 2003 | AJ46: 101 | AK46: 1176 | AL46: 1851 | AM46: 1992 | AN46: 3936 | AO46: 255 | AP46: 8784 | AQ46: 4572 | AR46: 204 | AS46: N/A | AT46: 2333 | AU46: 1326 | AV46: 14292 | AW46: 369 | AX46: 3826 | AY46: 34 | AZ46: 6468 | BA46: 11987 | BB46: 691 | BC46: 68 | BD46: 5425 | BE46: 1979 | BF46: 7548 | BG46: 2534 | BH46: 1280 | BI46: 1607 | BJ46: 11799 | BK46: 705 | BL46: 1579 | BM46: 3193 | BN46: 1128 | BO46: 1771 | BP46: 1023 | BQ46: 663 | BR46: 270 | BS46: 449 | BT46: 3173 | BU46: 1143 | BV46: 694 | BW46: 223 | BX46: 1504 | BY46: 2147 | BZ46: 614 | CA46: 519 | CB46: 3507 | CC46: 1784 | CD46: 187 | CE46: 1578 | CF46: 1008 | CG46: 2896 | CH46: 784 | CI46: 462 | CJ46: 873 | CK46: 172 | CL46: 616 | CM46: 1107 | CN46: 1509 | CO46: 1643 | CP46: 287 | CQ46: 2659 | CR46: 1270 | CS46: 270 | CT46: N/A | CU46: 1263 | CV46: 614 | CW46: 2842 | CX46: 353 | CY46: 1192 | CZ46: 68 | DA46: 2336 | DB46: 4302 | DC46: 469 | DD46: 77 | DE46: 2020 | DF46: 965 | DG46: 1866 | DH46: 1620 | DI46: 793 | DJ46: 1062
B47: Oklahoma | C47: 3742698 | D47: 2585 | E47: 3089041 | F47: 15209 | G47: 528498 | H47: 15584 | I47: 108878 | J47: 591 | K47: 1137 | L47: 3770 | M47: 6894 | N47: 8233 | O47: 3273 | P47: 97 | Q47: 66 | R47: 191 | S47: 6056 | T47: 3514 | U47: 140 | V47: 21 | W47: 2179 | X47: 2113 | Y47: 580 | Z47: 4626 | AA47: 1398 | AB47: 1934 | AC47: 271 | AD47: 432 | AE47: 160 | AF47: 1038 | AG47: 497 | AH47: 199 | AI47: 5781 | AJ47: 803 | AK47: 1979 | AL47: 705 | AM47: 0 | AN47: 391 | AO47: 403 | AP47: 1858 | AQ47: 1322 | AR47: 928 | AS47: 1608 | AT47: N/A | AU47: 917 | AV47: 1116 | AW47: 152 | AX47: 2015 | AY47: 600 | AZ47: 1700 | BA47: 31595 | BB47: 587 | BC47: 0 | BD47: 1013 | BE47: 1246 | BF47: 44 | BG47: 942 | BH47: 1763 | BI47: 105 | BJ47: 7998 | BK47: 368 | BL47: 857 | BM47: 1522 | BN47: 2060 | BO47: 2583 | BP47: 1511 | BQ47: 138 | BR47: 110 | BS47: 234 | BT47: 1588 | BU47: 1642 | BV47: 148 | BW47: 35 | BX47: 1297 | BY47: 1098 | BZ47: 536 | CA47: 1250 | CB47: 747 | CC47: 727 | CD47: 425 | CE47: 312 | CF47: 103 | CG47: 848 | CH47: 341 | CI47: 202 | CJ47: 1311 | CK47: 793 | CL47: 1196 | CM47: 532 | CN47: 163 | CO47: 333 | CP47: 259 | CQ47: 925 | CR47: 800 | CS47: 805 | CT47: 791 | CU47: N/A | CV47: 713 | CW47: 492 | CX47: 179 | CY47: 971 | CZ47: 379 | DA47: 1101 | DB47: 4987 | DC47: 450 | DD47: 163 | DE47: 610 | DF47: 620 | DG47: 68 | DH47: 474 | DI47: 1572 | DJ47: 139
B48: Oregon | C48: 3828714 | D48: 3857 | E48: 3128121 | F48: 20096 | G48: 549332 | H48: 19087 | I48: 127906 | J48: 758 | K48: 1935 | L48: 7911 | M48: 988 | N48: 34214 | O48: 2110 | P48: 949 | Q48: 251 | R48: 349 | S48: 3384 | T48: 1946 | U48: 2491 | V48: 6236 | W48: 1350 | X48: 1371 | Y48: 659 | Z48: 1263 | AA48: 71 | AB48: 0 | AC48: 269 | AD48: 453 | AE48: 1423 | AF48: 1652 | AG48: 1413 | AH48: 7 | AI48: 1172 | AJ48: 1079 | AK48: 324 | AL48: 7222 | AM48: 427 | AN48: 1322 | AO48: 537 | AP48: 2056 | AQ48: 1099 | AR48: 313 | AS48: 949 | AT48: 2034 | AU48: N/A | AV48: 1407 | AW48: 0 | AX48: 370 | AY48: 417 | AZ48: 673 | BA48: 4498 | BB48: 3443 | BC48: 176 | BD48: 1179 | BE48: 21862 | BF48: 66 | BG48: 914 | BH48: 914 | BI48: 4 | BJ48: 9071 | BK48: 1071 | BL48: 1062 | BM48: 3054 | BN48: 1155 | BO48: 4555 | BP48: 659 | BQ48: 564 | BR48: 264 | BS48: 291 | BT48: 1934 | BU48: 1914 | BV48: 1173 | BW48: 2097 | BX48: 663 | BY48: 1707 | BZ48: 627 | CA48: 1355 | CB48: 118 | CC48: 203 | CD48: 320 | CE48: 482 | CF48: 768 | CG48: 1174 | CH48: 863 | CI48: 14 | CJ48: 664 | CK48: 784 | CL48: 342 | CM48: 3426 | CN48: 404 | CO48: 771 | CP48: 449 | CQ48: 850 | CR48: 740 | CS48: 340 | CT48: 789 | CU48: 1244 | CV48: N/A | CW48: 775 | CX48: 203 | CY48: 292 | CZ48: 395 | DA48: 420 | DB48: 2398 | DC48: 1781 | DD48: 203 | DE48: 619 | DF48: 3732 | DG48: 115 | DH48: 697 | DI48: 880 | DJ48: 8
B49: Pennsylvania | C49: 12610486 | D49: 5092 | E49: 11099077 | F49: 27780 | G49: 1224564 | H49: 25195 | I49: 234291 | J49: 1332 | K49: 759 | L49: 2278 | M49: 582 | N49: 10672 | O49: 2491 | P49: 4150 | Q49: 5177 | R49: 1401 | S49: 19299 | T49: 4627 | U49: 495 | V49: 236 | W49: 3902 | X49: 4086 | Y49: 1176 | Z49: 2323 | AA49: 4013 | AB49: 615 | AC49: 608 | AD49: 17751 | AE49: 6284 | AF49: 4406 | AG49: 853 | AH49: 1238 | AI49: 1761 | AJ49: 338 | AK49: 582 | AL49: 1057 | AM49: 1326 | AN49: 36133 | AO49: 325 | AP49: 29436 | AQ49: 11254 | AR49: 195 | AS49: 13075 | AT49: 283 | AU49: 1594 | AV49: N/A | AW49: 799 | AX49: 3438 | AY49: 142 | AZ49: 3742 | BA49: 7006 | BB49: 1246 | BC49: 446 | BD49: 8419 | BE49: 3688 | BF49: 4631 | BG49: 2426 | BH49: 195 | BI49: 2723 | BJ49: 11246 | BK49: 684 | BL49: 664 | BM49: 917 | BN49: 601 | BO49: 2349 | BP49: 1027 | BQ49: 993 | BR49: 1304 | BS49: 584 | BT49: 3790 | BU49: 1185 | BV49: 369 | BW49: 223 | BX49: 1438 | BY49: 1429 | BZ49: 960 | CA49: 1449 | CB49: 1826 | CC49: 294 | CD49: 328 | CE49: 3723 | CF49: 1711 | CG49: 1278 | CH49: 592 | CI49: 943 | CJ49: 1063 | CK49: 308 | CL49: 439 | CM49: 501 | CN49: 520 | CO49: 4167 | CP49: 405 | CQ49: 3921 | CR49: 3103 | CS49: 208 | CT49: 2133 | CU49: 220 | CV49: 1022 | CW49: N/A | CX49: 558 | CY49: 1057 | CZ49: 140 | DA49: 1402 | DB49: 1441 | DC49: 776 | DD49: 327 | DE49: 1530 | DF49: 1533 | DG49: 1483 | DH49: 1046 | DI49: 237 | DJ49: 1294
B50: Rhode Island | C50: 1040022 | D50: 1440 | E50: 903786 | F50: 8645 | G50: 101689 | H50: 7813 | I50: 26769 | J50: 0 | K50: 0 | L50: 214 | M50: 0 | N50: 1949 | O50: 301 | P50: 2613 | Q50: 0 | R50: 0 | S50: 2230 | T50: 476 | U50: 0 | V50: 107 | W50: 373 | X50: 41 | Y50: 82 | Z50: 374 | AA50: 211 | AB50: 121 | AC50: 228 | AD50: 472 | AE50: 7715 | AF50: 178 | AG50: 27 | AH50: 0 | AI50: 109 | AJ50: 0 | AK50: 0 | AL50: 0 | AM50: 941 | AN50: 1224 | AO50: 93 | AP50: 2776 | AQ50: 259 | AR50: 0 | AS50: 60 | AT50: 0 | AU50: 57 | AV50: 1125 | AW50: N/A | AX50: 223 | AY50: 0 | AZ50: 210 | BA50: 207 | BB50: 181 | BC50: 621 | BD50: 485 | BE50: 262 | BF50: 199 | BG50: 2 | BH50: 23 | BI50: 293 | BJ50: 2836 | BK50: 207 | BL50: 207 | BM50: 348 | BN50: 207 | BO50: 734 | BP50: 271 | BQ50: 984 | BR50: 207 | BS50: 207 | BT50: 915 | BU50: 361 | BV50: 207 | BW50: 199 | BX50: 375 | BY50: 95 | BZ50: 145 | CA50: 433 | CB50: 318 | CC50: 185 | CD50: 177 | CE50: 323 | CF50: 1532 | CG50: 117 | CH50: 60 | CI50: 207 | CJ50: 163 | CK50: 207 | CL50: 207 | CM50: 207 | CN50: 745 | CO50: 501 | CP50: 153 | CQ50: 1118 | CR50: 212 | CS50: 207 | CT50: 89 | CU50: 207 | CV50: 94 | CW50: 725 | CX50: N/A | CY50: 232 | CZ50: 207 | DA50: 187 | DB50: 153 | DC50: 267 | DD50: 328 | DE50: 448 | DF50: 277 | DG50: 253 | DH50: 5 | DI50: 47 | DJ50: 292
B51: South Carolina | C51: 4624180 | D51: 3871 | E51: 3899705 | F51: 25459 | G51: 546666 | H51: 21151 | I51: 157644 | J51: 2999 | K51: 2421 | L51: 1971 | M51: 1333 | N51: 6592 | O51: 1000 | P51: 1752 | Q51: 841 | R51: 589 | S51: 15476 | T51: 16355 | U51: 712 | V51: 55 | W51: 2371 | X51: 3249 | Y51: 1379 | Z51: 1885 | AA51: 2454 | AB51: 878 | AC51: 652 | AD51: 3807 | AE51: 730 | AF51: 4483 | AG51: 471 | AH51: 2163 | AI51: 1522 | AJ51: 915 | AK51: 204 | AL51: 1017 | AM51: 372 | AN51: 4241 | AO51: 598 | AP51: 11317 | AQ51: 23102 | AR51: 271 | AS51: 6327 | AT51: 1008 | AU51: 833 | AV51: 3523 | AW51: 453 | AX51: N/A | AY51: 62 | AZ51: 3324 | BA51: 8623 | BB51: 181 | BC51: 91 | BD51: 7879 | BE51: 2510 | BF51: 1680 | BG51: 341 | BH51: 632 | BI51: 2166 | BJ51: 12647 | BK51: 1543 | BL51: 1281 | BM51: 1391 | BN51: 1301 | BO51: 1789 | BP51: 598 | BQ51: 1005 | BR51: 746 | BS51: 681 | BT51: 4230 | BU51: 2798 | BV51: 626 | BW51: 68 | BX51: 831 | BY51: 1601 | BZ51: 1468 | CA51: 1445 | CB51: 1692 | CC51: 486 | CD51: 566 | CE51: 1261 | CF51: 447 | CG51: 1737 | CH51: 393 | CI51: 1979 | CJ51: 1671 | CK51: 999 | CL51: 329 | CM51: 722 | CN51: 280 | CO51: 1445 | CP51: 609 | CQ51: 3991 | CR51: 4356 | CS51: 213 | CT51: 2177 | CU51: 934 | CV51: 583 | CW51: 1139 | CX51: 360 | CY51: N/A | CZ51: 107 | DA51: 1252 | DB51: 4005 | DC51: 188 | DD51: 115 | DE51: 2193 | DF51: 1257 | DG51: 1114 | DH51: 291 | DI51: 647 | DJ51: 1534
B52: South Dakota | C52: 814175 | D52: 1297 | E52: 688436 | F52: 7824 | G52: 94655 | H52: 6542 | I52: 27506 | J52: 0 | K52: 554 | L52: 1422 | M52: 659 | N52: 1286 | O52: 1021 | P52: 0 | Q52: 0 | R52: 0 | S52: 101 | T52: 69 | U52: 0 | V52: 186 | W52: 267 | X52: 285 | Y52: 4772 | Z52: 144 | AA52: 211 | AB52: 0 | AC52: 0 | AD52: 254 | AE52: 113 | AF52: 239 | AG52: 5342 | AH52: 129 | AI52: 354 | AJ52: 232 | AK52: 1695 | AL52: 110 | AM52: 0 | AN52: 441 | AO52: 513 | AP52: 6 | AQ52: 166 | AR52: 2060 | AS52: 84 | AT52: 40 | AU52: 15 | AV52: 57 | AW52: 7 | AX52: 529 | AY52: N/A | AZ52: 0 | BA52: 1156 | BB52: 560 | BC52: 0 | BD52: 79 | BE52: 557 | BF52: 0 | BG52: 481 | BH52: 1310 | BI52: 0 | BJ52: 3893 | BK52: 155 | BL52: 492 | BM52: 1445 | BN52: 778 | BO52: 622 | BP52: 604 | BQ52: 155 | BR52: 155 | BS52: 155 | BT52: 102 | BU52: 104 | BV52: 155 | BW52: 262 | BX52: 235 | BY52: 378 | BZ52: 1898 | CA52: 212 | CB52: 208 | CC52: 155 | CD52: 155 | CE52: 222 | CF52: 179 | CG52: 201 | CH52: 1981 | CI52: 155 | CJ52: 294 | CK52: 258 | CL52: 784 | CM52: 177 | CN52: 155 | CO52: 473 | CP52: 571 | CQ52: 11 | CR52: 257 | CS52: 1025 | CT52: 102 | CU52: 46 | CV52: 26 | CW52: 77 | CX52: 12 | CY52: 706 | CZ52: N/A | DA52: 155 | DB52: 384 | DC52: 567 | DD52: 155 | DE52: 92 | DF52: 780 | DG52: 155 | DH52: 594 | DI52: 880 | DJ52: 155
B53: Tennessee | C53: 6333466 | D53: 4450 | E53: 5342978 | F53: 29750 | G53: 794556 | H53: 26578 | I53: 170969 | J53: 9326 | K53: 531 | L53: 1346 | M53: 7393 | N53: 7130 | O53: 1372 | P53: 150 | Q53: 155 | R53: 307 | S53: 15491 | T53: 17507 | U53: 179 | V53: 0 | W53: 8593 | X53: 5645 | Y53: 387 | Z53: 1805 | AA53: 13884 | AB53: 1901 | AC53: 9 | AD53: 1135 | AE53: 1690 | AF53: 5983 | AG53: 445 | AH53: 9172 | AI53: 3795 | AJ53: 43 | AK53: 631 | AL53: 883 | AM53: 132 | AN53: 1396 | AO53: 381 | AP53: 4921 | AQ53: 9353 | AR53: 50 | AS53: 5944 | AT53: 3166 | AU53: 726 | AV53: 3360 | AW53: 14 | AX53: 5531 | AY53: 181 | AZ53: N/A | BA53: 7009 | BB53: 200 | BC53: 38 | BD53: 6098 | BE53: 2852 | BF53: 1385 | BG53: 1213 | BH53: 131 | BI53: 1083 | BJ53: 13046 | BK53: 2717 | BL53: 465 | BM53: 1176 | BN53: 3038 | BO53: 2041 | BP53: 902 | BQ53: 163 | BR53: 191 | BS53: 186 | BT53: 3282 | BU53: 4897 | BV53: 230 | BW53: 208 | BX53: 2245 | BY53: 1932 | BZ53: 432 | CA53: 1529 | CB53: 2654 | CC53: 908 | CD53: 17 | CE53: 675 | CF53: 1886 | CG53: 2441 | CH53: 315 | CI53: 2752 | CJ53: 1409 | CK53: 69 | CL53: 660 | CM53: 816 | CN53: 134 | CO53: 850 | CP53: 330 | CQ53: 1493 | CR53: 2989 | CS53: 92 | CT53: 2044 | CU53: 3444 | CV53: 610 | CW53: 1716 | CX53: 31 | CY53: 1883 | CZ53: 156 | DA53: N/A | DB53: 1999 | DC53: 223 | DD53: 64 | DE53: 1279 | DF53: 2746 | DG53: 764 | DH53: 631 | DI53: 214 | DJ53: 1191
B54: Texas | C54: 25327104 | D54: 10987 | E54: 20984855 | F54: 65490 | G54: 3648260 | H54: 63784 | I54: 514726 | J54: 8747 | K54: 6670 | L54: 20073 | M54: 16461 | N54: 58992 | O54: 19126 | P54: 2927 | Q54: 884 | R54: 2276 | S54: 35777 | T54: 17401 | U54: 6106 | V54: 4379 | W54: 15064 | X54: 10265 | Y54: 3236 | Z54: 12766 | AA54: 6616 | AB54: 25513 | AC54: 1357 | AD54: 9443 | AE54: 5035 | AF54: 15654 | AG54: 7691 | AH54: 6048 | AI54: 13473 | AJ54: 537 | AK54: 3837 | AL54: 7793 | AM54: 459 | AN54: 7578 | AO54: 15225 | AP54: 26155 | AQ54: 14956 | AR54: 809 | AS54: 12315 | AT54: 19302 | AU54: 3743 | AV54: 9107 | AW54: 1297 | AX54: 4075 | AY54: 1486 | AZ54: 10788 | BA54: N/A | BB54: 5234 | BC54: 349 | BD54: 13231 | BE54: 15325 | BF54: 663 | BG54: 5982 | BH54: 2500 | BI54: 5225 | BJ54: 23860 | BK54: 2609 | BL54: 2828 | BM54: 5295 | BN54: 3965 | BO54: 7044 | BP54: 3821 | BQ54: 1710 | BR54: 658 | BS54: 1540 | BT54: 6888 | BU54: 3608 | BV54: 2623 | BW54: 3119 | BX54: 3097 | BY54: 3693 | BZ54: 1628 | CA54: 4731 | CB54: 2648 | CC54: 5283 | CD54: 1052 | CE54: 3323 | CF54: 1644 | CG54: 4327 | CH54: 2576 | CI54: 2921 | CJ54: 3950 | CK54: 423 | CL54: 2060 | CM54: 2927 | CN54: 334 | CO54: 2982 | CP54: 2786 | CQ54: 6509 | CR54: 4396 | CS54: 652 | CT54: 2730 | CU54: 4804 | CV54: 1552 | CW54: 2433 | CX54: 1223 | CY54: 1969 | CZ54: 1045 | DA54: 3114 | DB54: N/A | DC54: 2551 | DD54: 344 | DE54: 3158 | DF54: 3090 | DG54: 563 | DH54: 2396 | DI54: 1485 | DJ54: 2173
B55: Utah | C55: 2769627 | D55: 2949 | E55: 2295961 | F55: 19215 | G55: 373984 | H55: 17246 | I55: 85217 | J55: 486 | K55: 2151 | L55: 6585 | M55: 422 | N55: 18237 | O55: 3986 | P55: 562 | Q55: 0 | R55: 132 | S55: 1643 | T55: 1052 | U55: 1701 | V55: 7538 | W55: 1447 | X55: 545 | Y55: 290 | Z55: 1146 | AA55: 611 | AB55: 494 | AC55: 0 | AD55: 342 | AE55: 959 | AF55: 1099 | AG55: 939 | AH55: 143 | AI55: 511 | AJ55: 1241 | AK55: 195 | AL55: 4315 | AM55: 34 | AN55: 506 | AO55: 1707 | AP55: 1937 | AQ55: 1653 | AR55: 2 | AS55: 2584 | AT55: 150 | AU55: 2037 | AV55: 1496 | AW55: 0 | AX55: 309 | AY55: 128 | AZ55: 549 | BA55: 4507 | BB55: N/A | BC55: 122 | BD55: 2413 | BE55: 4825 | BF55: 270 | BG55: 158 | BH55: 1058 | BI55: 0 | BJ55: 7587 | BK55: 558 | BL55: 1259 | BM55: 2560 | BN55: 455 | BO55: 4113 | BP55: 1191 | BQ55: 590 | BR55: 192 | BS55: 141 | BT55: 960 | BU55: 595 | BV55: 997 | BW55: 3248 | BX55: 825 | BY55: 398 | BZ55: 250 | CA55: 829 | CB55: 529 | CC55: 402 | CD55: 192 | CE55: 301 | CF55: 638 | CG55: 724 | CH55: 634 | CI55: 163 | CJ55: 372 | CK55: 623 | CL55: 178 | CM55: 1358 | CN55: 42 | CO55: 485 | CP55: 1068 | CQ55: 1299 | CR55: 1181 | CS55: 5 | CT55: 1124 | CU55: 218 | CV55: 1026 | CW55: 808 | CX55: 192 | CY55: 259 | CZ55: 146 | DA55: 419 | DB55: 1517 | DC55: N/A | DD55: 205 | DE55: 1459 | DF55: 2196 | DG55: 268 | DH55: 153 | DI55: 609 | DJ55: 192
B56: Vermont | C56: 621354 | D56: 940 | E56: 537304 | F56: 5021 | G56: 60719 | H56: 4634 | I56: 20463 | J56: 0 | K56: 580 | L56: 310 | M56: 0 | N56: 819 | O56: 529 | P56: 2105 | Q56: 107 | R56: 27 | S56: 366 | T56: 101 | U56: 143 | V56: 0 | W56: 386 | X56: 258 | Y56: 0 | Z56: 7 | AA56: 627 | AB56: 41 | AC56: 322 | AD56: 361 | AE56: 2378 | AF56: 335 | AG56: 206 | AH56: 0 | AI56: 69 | AJ56: 0 | AK56: 0 | AL56: 15 | AM56: 2244 | AN56: 962 | AO56: 56 | AP56: 3723 | AQ56: 250 | AR56: 0 | AS56: 383 | AT56: 0 | AU56: 124 | AV56: 389 | AW56: 401 | AX56: 21 | AY56: 0 | AZ56: 327 | BA56: 185 | BB56: 182 | BC56: N/A | BD56: 740 | BE56: 156 | BF56: 53 | BG56: 137 | BH56: 38 | BI56: 19 | BJ56: 1946 | BK56: 145 | BL56: 441 | BM56: 325 | BN56: 145 | BO56: 508 | BP56: 493 | BQ56: 608 | BR56: 135 | BS56: 53 | BT56: 199 | BU56: 99 | BV56: 85 | BW56: 145 | BX56: 245 | BY56: 210 | BZ56: 145 | CA56: 13 | CB56: 660 | CC56: 74 | CD56: 200 | CE56: 233 | CF56: 606 | CG56: 345 | CH56: 255 | CI56: 145 | CJ56: 86 | CK56: 145 | CL56: 145 | CM56: 26 | CN56: 783 | CO56: 305 | CP56: 105 | CQ56: 904 | CR56: 193 | CS56: 145 | CT56: 485 | CU56: 145 | CV56: 128 | CW56: 231 | CX56: 411 | CY56: 36 | CZ56: 145 | DA56: 498 | DB56: 147 | DC56: 212 | DD56: N/A | DE56: 420 | DF56: 159 | DG56: 81 | DH56: 115 | DI56: 62 | DJ56: 45
B57: Virginia | C57: 7996552 | D57: 5256 | E57: 6789620 | F57: 30962 | G57: 889751 | H57: 30111 | I57: 257130 | J57: 4930 | K57: 3202 | L57: 4679 | M57: 645 | N57: 19371 | O57: 4908 | P57: 5376 | Q57: 961 | R57: 6854 | S57: 17773 | T57: 8715 | U57: 2917 | V57: 434 | W57: 4000 | X57: 2703 | Y57: 1503 | Z57: 892 | AA57: 3630 | AB57: 2496 | AC57: 2855 | AD57: 22051 | AE57: 5386 | AF57: 7323 | AG57: 834 | AH57: 1682 | AI57: 2277 | AJ57: 617 | AK57: 256 | AL57: 1717 | AM57: 1344 | AN57: 7327 | AO57: 1014 | AP57: 12455 | AQ57: 22753 | AR57: 462 | AS57: 9570 | AT57: 853 | AU57: 3499 | AV57: 12009 | AW57: 1897 | AX57: 6612 | AY57: 908 | AZ57: 7482 | BA57: 11655 | BB57: 1426 | BC57: 173 | BD57: N/A | BE57: 4615 | BF57: 9041 | BG57: 858 | BH57: 190 | BI57: 1222 | BJ57: 14025 | BK57: 2057 | BL57: 1687 | BM57: 2151 | BN57: 606 | BO57: 4241 | BP57: 2334 | BQ57: 2730 | BR57: 652 | BS57: 1711 | BT57: 3494 | BU57: 1962 | BV57: 1400 | BW57: 430 | BX57: 1213 | BY57: 1067 | BZ57: 899 | CA57: 645 | CB57: 1551 | CC57: 1642 | CD57: 1930 | CE57: 3143 | CF57: 2316 | CG57: 3026 | CH57: 361 | CI57: 1191 | CJ57: 1178 | CK57: 714 | CL57: 289 | CM57: 961 | CN57: 798 | CO57: 2046 | CP57: 604 | CQ57: 2816 | CR57: 4584 | CS57: 729 | CT57: 2217 | CU57: 477 | CV57: 1935 | CW57: 2497 | CX57: 1477 | CY57: 2032 | CZ57: 841 | DA57: 2452 | DB57: 3004 | DC57: 641 | DD57: 138 | DE57: N/A | DF57: 1717 | DG57: 2596 | DH57: 745 | DI57: 274 | DJ57: 779
B58: Washington | C58: 6748474 | D58: 4248 | E58: 5565069 | F58: 27197 | G58: 919925 | H58: 27221 | I58: 208507 | J58: 1821 | K58: 5266 | L58: 12397 | M58: 756 | N58: 38421 | O58: 3938 | P58: 1026 | Q58: 0 | R58: 358 | S58: 6094 | T58: 8705 | U58: 5940 | V58: 10895 | W58: 2062 | X58: 2303 | Y58: 1000 | Z58: 2820 | AA58: 1271 | AB58: 1016 | AC58: 1313 | AD58: 1899 | AE58: 1580 | AF58: 3720 | AG58: 1543 | AH58: 1110 | AI58: 3307 | AJ58: 2125 | AK58: 673 | AL58: 4925 | AM58: 824 | AN58: 2006 | AO58: 1569 | AP58: 4512 | AQ58: 3870 | AR58: 189 | AS58: 2686 | AT58: 765 | AU58: 29168 | AV58: 2296 | AW58: 463 | AX58: 1519 | AY58: 227 | AZ58: 2342 | BA58: 15491 | BB58: 4789 | BC58: 119 | BD58: 4233 | BE58: N/A | BF58: 157 | BG58: 1491 | BH58: 1507 | BI58: 1083 | BJ58: 13639 | BK58: 1049 | BL58: 2233 | BM58: 3133 | BN58: 565 | BO58: 4474 | BP58: 1215 | BQ58: 533 | BR58: 201 | BS58: 254 | BT58: 1777 | BU58: 3348 | BV58: 2264 | BW58: 4263 | BX58: 821 | BY58: 1315 | BZ58: 465 | CA58: 1740 | CB58: 936 | CC58: 1018 | CD58: 1689 | CE58: 808 | CF58: 757 | CG58: 1212 | CH58: 898 | CI58: 762 | CJ58: 2181 | CK58: 934 | CL58: 441 | CM58: 1696 | CN58: 605 | CO58: 987 | CP58: 1254 | CQ58: 1322 | CR58: 1452 | CS58: 304 | CT58: 1217 | CU58: 573 | CV58: 5436 | CW58: 1378 | CX58: 319 | CY58: 1267 | CZ58: 225 | DA58: 1116 | DB58: 4361 | DC58: 1640 | DD58: 196 | DE58: 1698 | DF58: N/A | DG58: 186 | DH58: 892 | DI58: 870 | DJ58: 1061
B59: West Virginia | C59: 1836614 | D59: 1681 | E59: 1609110 | F59: 9854 | G59: 172262 | H59: 8430 | I59: 50068 | J59: 221 | K59: 598 | L59: 50 | M59: 225 | N59: 1442 | O59: 124 | P59: 594 | Q59: 89 | R59: 300 | S59: 2949 | T59: 1296 | U59: 147 | V59: 120 | W59: 1331 | X59: 210 | Y59: 0 | Z59: 0 | AA59: 515 | AB59: 326 | AC59: 45 | AD59: 7515 | AE59: 236 | AF59: 459 | AG59: 0 | AH59: 0 | AI59: 309 | AJ59: 60 | AK59: 78 | AL59: 293 | AM59: 160 | AN59: 1431 | AO59: 0 | AP59: 2017 | AQ59: 3865 | AR59: 0 | AS59: 8545 | AT59: 97 | AU59: 132 | AV59: 4205 | AW59: 284 | AX59: 1857 | AY59: 0 | AZ59: 546 | BA59: 1574 | BB59: 114 | BC59: 23 | BD59: 5561 | BE59: 83 | BF59: N/A | BG59: 42 | BH59: 0 | BI59: 680 | BJ59: 4934 | BK59: 228 | BL59: 566 | BM59: 95 | BN59: 361 | BO59: 1085 | BP59: 160 | BQ59: 401 | BR59: 102 | BS59: 231 | BT59: 1076 | BU59: 898 | BV59: 248 | BW59: 127 | BX59: 1134 | BY59: 200 | BZ59: 184 | CA59: 184 | CB59: 259 | CC59: 313 | CD59: 75 | CE59: 2257 | CF59: 196 | CG59: 263 | CH59: 184 | CI59: 184 | CJ59: 345 | CK59: 101 | CL59: 140 | CM59: 235 | CN59: 223 | CO59: 611 | CP59: 184 | CQ59: 866 | CR59: 1241 | CS59: 184 | CT59: 1913 | CU59: 113 | CV59: 203 | CW59: 1569 | CX59: 344 | CY59: 1316 | CZ59: 184 | DA59: 449 | DB59: 1047 | DC59: 216 | DD59: 33 | DE59: 1534 | DF59: 137 | DG59: N/A | DH59: 69 | DI59: 184 | DJ59: 450
B60: Wisconsin | C60: 5647213 | D60: 2653 | E60: 4846550 | F60: 18735 | G60: 675623 | H60: 19411 | I60: 109439 | J60: 708 | K60: 432 | L60: 4045 | M60: 335 | N60: 6637 | O60: 2592 | P60: 993 | Q60: 219 | R60: 123 | S60: 4338 | T60: 1745 | U60: 1108 | V60: 566 | W60: 25521 | X60: 4017 | Y60: 3306 | Z60: 418 | AA60: 1040 | AB60: 850 | AC60: 12 | AD60: 147 | AE60: 733 | AF60: 5623 | AG60: 17927 | AH60: 983 | AI60: 2090 | AJ60: 143 | AK60: 483 | AL60: 663 | AM60: 480 | AN60: 378 | AO60: 714 | AP60: 2213 | AQ60: 2120 | AR60: 1383 | AS60: 1358 | AT60: 118 | AU60: 1057 | AV60: 1294 | AW60: 368 | AX60: 377 | AY60: 590 | AZ60: 744 | BA60: 1984 | BB60: 890 | BC60: 342 | BD60: 2573 | BE60: 1555 | BF60: 1090 | BG60: N/A | BH60: 14 | BI60: 728 | BJ60: 8715 | BK60: 761 | BL60: 323 | BM60: 1532 | BN60: 285 | BO60: 2054 | BP60: 1457 | BQ60: 1397 | BR60: 276 | BS60: 170 | BT60: 1103 | BU60: 1106 | BV60: 1597 | BW60: 434 | BX60: 4568 | BY60: 2027 | BZ60: 1757 | CA60: 446 | CB60: 570 | CC60: 563 | CD60: 21 | CE60: 141 | CF60: 578 | CG60: 1353 | CH60: 2244 | CI60: 924 | CJ60: 1117 | CK60: 93 | CL60: 405 | CM60: 345 | CN60: 364 | CO60: 352 | CP60: 502 | CQ60: 835 | CR60: 967 | CS60: 1273 | CT60: 628 | CU60: 119 | CV60: 680 | CW60: 781 | CX60: 407 | CY60: 312 | CZ60: 487 | DA60: 527 | DB60: 836 | DC60: 652 | DD60: 311 | DE60: 1465 | DF60: 1071 | DG60: 1630 | DH60: N/A | DI60: 23 | DJ60: 715
B61: Wyoming | C61: 561389 | D61: 1021 | E61: 462808 | F61: 7194 | G61: 66648 | H61: 5771 | I61: 30651 | J61: 51 | K61: 761 | L61: 369 | M61: 174 | N61: 2539 | O61: 6905 | P61: 11 | Q61: 0 | R61: 0 | S61: 1525 | T61: 46 | U61: 0 | V61: 2140 | W61: 450 | X61: 6 | Y61: 342 | Z61: 286 | AA61: 83 | AB61: 114 | AC61: 0 | AD61: 0 | AE61: 152 | AF61: 849 | AG61: 357 | AH61: 70 | AI61: 241 | AJ61: 1105 | AK61: 1784 | AL61: 427 | AM61: 0 | AN61: 7 | AO61: 76 | AP61: 113 | AQ61: 395 | AR61: 237 | AS61: 22 | AT61: 462 | AU61: 960 | AV61: 284 | AW61: 13 | AX61: 219 | AY61: 1043 | AZ61: 69 | BA61: 1398 | BB61: 2140 | BC61: 4 | BD61: 451 | BE61: 1803 | BF61: 0 | BG61: 168 | BH61: N/A | BI61: 0 | BJ61: 4428 | BK61: 62 | BL61: 597 | BM61: 276 | BN61: 191 | BO61: 1151 | BP61: 2099 | BQ61: 22 | BR61: 189 | BS61: 189 | BT61: 1206 | BU61: 80 | BV61: 189 | BW61: 1161 | BX61: 409 | BY61: 14 | BZ61: 323 | CA61: 364 | CB61: 140 | CC61: 204 | CD61: 189 | CE61: 189 | CF61: 226 | CG61: 545 | CH61: 355 | CI61: 117 | CJ61: 274 | CK61: 531 | CL61: 957 | CM61: 656 | CN61: 189 | CO61: 16 | CP61: 101 | CQ61: 149 | CR61: 457 | CS61: 313 | CT61: 40 | CU61: 555 | CV61: 851 | CW61: 254 | CX61: 28 | CY61: 307 | CZ61: 1077 | DA61: 66 | DB61: 927 | DC61: 1003 | DD61: 8 | DE61: 634 | DF61: 1343 | DG61: 189 | DH61: 260 | DI61: N/A | DJ61: 189
B62: Puerto Rico | C62: 3669195 | D62: 3034 | E62: 3403602 | F62: 12450 | G62: 238263 | H62: 11889 | I62: 22649 | J62: 35 | K62: 378 | L62: 229 | M62: 0 | N62: 207 | O62: 0 | P62: 1849 | Q62: 13 | R62: 212 | S62: 6614 | T62: 247 | U62: 0 | V62: 13 | W62: 624 | X62: 784 | Y62: 0 | Z62: 38 | AA62: 0 | AB62: 0 | AC62: 0 | AD62: 70 | AE62: 1412 | AF62: 88 | AG62: 0 | AH62: 27 | AI62: 101 | AJ62: 0 | AK62: 0 | AL62: 0 | AM62: 0 | AN62: 2150 | AO62: 51 | AP62: 2615 | AQ62: 200 | AR62: 0 | AS62: 0 | AT62: 79 | AU62: 0 | AV62: 1978 | AW62: 490 | AX62: 3 | AY62: 113 | AZ62: 224 | BA62: 444 | BB62: 0 | BC62: 0 | BD62: 1077 | BE62: 41 | BF62: 14 | BG62: 229 | BH62: 0 | BI62: N/A | BJ62: 3662 | BK62: 59 | BL62: 457 | BM62: 363 | BN62: 210 | BO62: 222 | BP62: 210 | BQ62: 928 | BR62: 25 | BS62: 315 | BT62: 2336 | BU62: 195 | BV62: 210 | BW62: 24 | BX62: 537 | BY62: 895 | BZ62: 210 | CA62: 62 | CB62: 210 | CC62: 210 | CD62: 210 | CE62: 124 | CF62: 904 | CG62: 127 | CH62: 210 | CI62: 35 | CJ62: 165 | CK62: 210 | CL62: 210 | CM62: 210 | CN62: 210 | CO62: 1149 | CP62: 94 | CQ62: 1171 | CR62: 195 | CS62: 210 | CT62: 210 | CU62: 117 | CV62: 210 | CW62: 1059 | CX62: 718 | CY62: 6 | CZ62: 139 | DA62: 368 | DB62: 334 | DC62: 210 | DD62: 210 | DE62: 1097 | DF62: 42 | DG62: 25 | DH62: 373 | DI62: 210 | DJ62: N/A
J63: 106841 | K63: 89228 | L63: 212045 | M63: 77226 | N63: 562550 | O63: 160623 | P63: 93144 | Q63: 26644 | R63: 49944 | S63: 443816 | T63: 249139 | U63: 61940 | V63: 57844 | W63: 269632 | X63: 144012 | Y63: 74516 | Z63: 94218 | AA63: 99256 | AB63: 86593 | AC63: 33729 | AD63: 165111 | AE63: 147281 | AF63: 186593 | AG63: 103253 | AH63: 68624 | AI63: 138505 | AJ63: 31204 | AK63: 52809 | AL63: 115943 | AM63: 43277 | AN63: 218519 | AO63: 61482 | AP63: 380415 | AQ63: 225347 | AR63: 26563 | AS63: 206049 | AT63: 81088 | AU63: 109795 | AV63: 217105 | AW63: 31555 | AX63: 121429 | AY63: 29496 | AZ63: 154467 | BA63: 405283 | BB63: 73211 | BC63: 18172 | BD63: 230304 | BE63: 190685 | BF63: 45970 | BG63: 105599 | BH63: 31991 | BI63: 76218
J64: 24 | K64: 30 | L64: 11 | M64: 33 | N64: 1 | O64: 16 | P64: 29 | Q64: 50 | R64: 42 | S64: 2 | T64: 6 | U64: 38 | V64: 40 | W64: 5 | X64: 19 | Y64: 35 | Z64: 28 | AA64: 27 | AB64: 31 | AC64: 45 | AD64: 15 | AE64: 18 | AF64: 14 | AG64: 26 | AH64: 37 | AI64: 20 | AJ64: 48 | AK64: 41 | AL64: 22 | AM64: 44 | AN64: 9 | AO64: 39 | AP64: 4 | AQ64: 8 | AR64: 51 | AS64: 12 | AT64: 32 | AU64: 23 | AV64: 10 | AW64: 47 | AX64: 21 | AY64: 49 | AZ64: 17 | BA64: 3 | BB64: 36 | BC64: 52 | BD64: 7 | BE64: 13 | BF64: 43 | BG64: 25 | BH64: 46 | BI64: 34
I66: 1 | J66: 1.5 | K66: 2 | L66: 2.5 | M66: 3 | N66: 3.5 | O66: 4 | P66: 4.5 | Q66: 5 | R66: 5.5 | S66: 6 | T66: 6.5 | U66: 7 | V66: 7.5 | W66: 8 | X66: 8.5 | Y66: 9 | Z66: 9.5 | AA66: 10 | AB66: 10.5 | AC66: 11 | AD66: 11.5 | AE66: 12 | AF66: 12.5 | AG66: 13 | AH66: 13.5 | AI66: 14 | AJ66: 14.5 | AK66: 15 | AL66: 15.5 | AM66: 16 | AN66: 16.5 | AO66: 17 | AP66: 17.5 | AQ66: 18 | AR66: 18.5 | AS66: 19 | AT66: 19.5 | AU66: 20 | AV66: 20.5 | AW66: 21 | AX66: 21.5 | AY66: 22 | AZ66: 22.5 | BA66: 23 | BB66: 23.5 | BC66: 24 | BD66: 24.5 | BE66: 25 | BF66: 25.5 | BG66: 26 | BH66: 26.5 | BI66: 27 | BJ66: 27.5 | BK66: 28 | BL66: 28.5 | BM66: 29 | BN66: 29.5 | BO66: 30 | BP66: 30.5 | BQ66: 31 | BR66: 31.5 | BS66: 32 | BT66: 32.5 | BU66: 33 | BV66: 33.5 | BW66: 34 | BX66: 34.5 | BY66: 35 | BZ66: 35.5 | CA66: 36 | CB66: 36.5 | CC66: 37 | CD66: 37.5 | CE66: 38 | CF66: 38.5 | CG66: 39 | CH66: 39.5 | CI66: 40 | CJ66: 40.5 | CK66: 41 | CL66: 41.5 | CM66: 42 | CN66: 42.5 | CO66: 43 | CP66: 43.5 | CQ66: 44 | CR66: 44.5 | CS66: 45 | CT66: 45.5 | CU66: 46 | CV66: 46.5 | CW66: 47 | CX66: 47.5 | CY66: 48 | CZ66: 48.5 | DA66: 49 | DB66: 49.5 | DC66: 50 | DD66: 50.5 | DE66: 51 | DF66: 51.5 | DG66: 52 | DH66: 52.5 | DI66: 53 | DJ66: 53.5
I67: Estimate | J67: MOE | K67: Estimate | L67: MOE | M67: Estimate | N67: MOE | O67: Estimate | P67: MOE | Q67: Estimate | R67: MOE | S67: Estimate | T67: MOE | U67: Estimate | V67: MOE | W67: Estimate | X67: MOE | Y67: Estimate | Z67: MOE | AA67: Estimate | AB67: MOE | AC67: Estimate | AD67: MOE | AE67: Estimate | AF67: MOE | AG67: Estimate | AH67: MOE | AI67: Estimate | AJ67: MOE | AK67: Estimate | AL67: MOE | AM67: Estimate | AN67: MOE | AO67: Estimate | AP67: MOE | AQ67: Estimate | AR67: MOE | AS67: Estimate | AT67: MOE | AU67: Estimate | AV67: MOE | AW67: Estimate | AX67: MOE | AY67: Estimate | AZ67: MOE | BA67: Estimate | BB67: MOE | BC67: Estimate | BD67: MOE | BE67: Estimate | BF67: MOE | BG67: Estimate | BH67: MOE | BI67: Estimate | BJ67: MOE | BK67: Estimate | BL67: MOE | BM67: Estimate | BN67: MOE | BO67: Estimate | BP67: MOE | BQ67: Estimate | BR67: MOE | BS67: Estimate | BT67: MOE | BU67: Estimate | BV67: MOE | BW67: Estimate | BX67: MOE | BY67: Estimate | BZ67: MOE | CA67: Estimate | CB67: MOE | CC67: Estimate | CD67: MOE | CE67: Estimate | CF67: MOE | CG67: Estimate | CH67: MOE | CI67: Estimate | CJ67: MOE | CK67: Estimate | CL67: MOE | CM67: Estimate | CN67: MOE | CO67: Estimate | CP67: MOE | CQ67: Estimate | CR67: MOE | CS67: Estimate | CT67: MOE | CU67: Estimate | CV67: MOE | CW67: Estimate | CX67: MOE | CY67: Estimate | CZ67: MOE | DA67: Estimate | DB67: MOE | DC67: Estimate | DD67: MOE | DE67: Estimate | DF67: MOE | DG67: Estimate | DH67: MOE | DI67: Estimate | DJ67: MOE
I68: 6987416 | J68: 77858 | K68: 106806 | L68: 10575 | M68: 88850 | N68: 10161 | O68: 211816 | P68: 17644 | Q68: 77226 | R68: 6899 | S68: 562343 | T68: 20646 | U68: 160623 | V68: 10427 | W68: 91295 | X68: 7653 | Y68: 26631 | Z68: 3629 | AA68: 49732 | AB68: 4949 | AC68: 437202 | AD68: 19015 | AE68: 248892 | AF68: 13318 | AG68: 61940 | AH68: 7295 | AI68: 57831 | AJ68: 7401 | AK68: 269008 | AL68: 13750 | AM68: 143228 | AN68: 10568 | AO68: 74516 | AP68: 6398 | AQ68: 94180 | AR68: 10699 | AS68: 99256 | AT68: 7329 | AU68: 86593 | AV68: 8952 | AW68: 33729 | AX68: 4154 | AY68: 165041 | AZ68: 11278 | BA68: 145869 | BB68: 10414 | BC68: 186505 | BD68: 13304 | BE68: 103253 | BF68: 6978 | BG68: 68597 | BH68: 7559 | BI68: 138404 | BJ68: 11145 | BK68: 31204 | BL68: 4179 | BM68: 52809 | BN68: 6362 | BO68: 115943 | BP68: 8686 | BQ68: 43277 | BR68: 4875 | BS68: 216369 | BT68: 12474 | BU68: 61431 | BV68: 5579 | BW68: 377800 | BX68: 15333 | BY68: 225147 | BZ68: 14191 | CA68: 26563 | CB68: 3090 | CC68: 206049 | CD68: 11406 | CE68: 81009 | CF68: 8616 | CG68: 109795 | CH68: 8590 | CI68: 215127 | CJ68: 11482 | CK68: 31065 | CL68: 4192 | CM68: 121426 | CN68: 9952 | CO68: 29383 | CP68: 4358 | CQ68: 154243 | CR68: 9679 | CS68: 404839 | CT68: 17998 | CU68: 73211 | CV68: 7130 | CW68: 18172 | CX68: 2845 | CY68: 229227 | CZ68: 11582 | DA68: 190644 | DB68: 11567 | DC68: 45956 | DD68: 5684 | DE68: 105370 | DF68: 8011 | DG68: 31991 | DH68: 4631 | DI68: 76218 | DJ68: 8799
I69: 117726 | J69: 9414 | K69: N/A | L69: N/A | M69: 1771 | N69: 1098 | O69: 1677 | P69: 1060 | Q69: 1642 | R69: 1063 | S69: 3389 | T69: 1286 | U69: 348 | V69: 295 | W69: 2921 | X69: 3231 | Y69: 232 | Z69: 301 | AA69: 399 | AB69: 359 | AC69: 20063 | AD69: 4141 | AE69: 19346 | AF69: 3711 | AG69: 1259 | AH69: 1292 | AI69: 137 | AJ69: 173 | AK69: 6991 | AL69: 3376 | AM69: 1434 | AN69: 634 | AO69: 30 | AP69: 52 | AQ69: 842 | AR69: 632 | AS69: 2686 | AT69: 856 | AU69: 2413 | AV69: 972 | AW69: 626 | AX69: 378 | AY69: 1606 | AZ69: 987 | BA69: 112 | BB69: 146 | BC69: 2797 | BD69: 1250 | BE69: 327 | BF69: 342 | BG69: 3945 | BH69: 1492 | BI69: 1086 | BJ69: 536 | BK69: 317 | BL69: 463 | BM69: 770 | BN69: 638 | BO69: 257 | BP69: 333 | BQ69: 64 | BR69: 109 | BS69: 1996 | BT69: 2284 | BU69: 119 | BV69: 184 | BW69: 1108 | BX69: 442 | BY69: 2697 | BZ69: 1820 | CA69: 284 | CB69: 333 | CC69: 2596 | CD69: 958 | CE69: 973 | CF69: 840 | CG69: 169 | CH69: 182 | CI69: 1075 | CJ69: 474 | CK69: 0 | CL69: 190 | CM69: 2036 | CN69: 973 | CO69: 90 | CP69: 98 | CQ69: 8710 | CR69: 2300 | CS69: 7973 | CT69: 2240 | CU69: 300 | CV69: 390 | CW69: 66 | CX69: 108 | CY69: 4935 | CZ69: 2151 | DA69: 2621 | DB69: 1272 | DC69: 65 | DD69: 110 | DE69: 417 | DF69: 457 | DG69: 9 | DH69: 15 | DI69: 569 | DJ69: 601
I70: 35084 | J70: 4168 | K70: 93 | L70: 113 | M70: N/A | N70: N/A | O70: 2467 | P70: 1902 | Q70: 190 | R70: 258 | S70: 3098 | T70: 1921 | U70: 1583 | V70: 727 | W70: 138 | X70: 167 | Y70: 11 | Z70: 24 | AA70: 140 | AB70: 220 | AC70: 1188 | AD70: 476 | AE70: 556 | AF70: 419 | AG70: 1366 | AH70: 703 | AI70: 475 | AJ70: 253 | AK70: 985 | AL70: 686 | AM70: 181 | AN70: 156 | AO70: 319 | AP70: 374 | AQ70: 750 | AR70: 741 | AS70: 237 | AT70: 354 | AU70: 1077 | AV70: 1276 | AW70: 0 | AX70: 149 | AY70: 216 | AZ70: 155 | BA70: 141 | BB70: 120 | BC70: 771 | BD70: 435 | BE70: 593 | BF70: 568 | BG70: 554 | BH70: 904 | BI70: 921 | BJ70: 1014 | BK70: 248 | BL70: 185 | BM70: 5 | BN70: 12 | BO70: 532 | BP70: 485 | BQ70: 520 | BR70: 744 | BS70: 128 | BT70: 136 | BU70: 226 | BV70: 188 | BW70: 940 | BX70: 613 | BY70: 470 | BZ70: 404 | CA70: 0 | CB70: 149 | CC70: 319 | CD70: 286 | CE70: 616 | CF70: 733 | CG70: 2161 | CH70: 841 | CI70: 378 | CJ70: 371 | CK70: 0 | CL70: 149 | CM70: 186 | CN70: 182 | CO70: 301 | CP70: 343 | CQ70: 388 | CR70: 308 | CS70: 2492 | CT70: 1105 | CU70: 662 | CV70: 731 | CW70: 68 | CX70: 105 | CY70: 1488 | CZ70: 1112 | DA70: 4548 | DB70: 1520 | DC70: 89 | DD70: 75 | DE70: 23 | DF70: 35 | DG70: 246 | DH70: 272 | DI70: 1044 | DJ70: 962
I71: 222877 | J71: 14358 | K71: 833 | L71: 587 | M71: 5001 | N71: 2214 | O71: N/A | P71: N/A | Q71: 1066 | R71: 740 | S71: 49635 | T71: 8755 | U71: 10189 | V71: 2958 | W71: 1875 | X71: 1213 | Y71: 0 | Z71: 229 | AA71: 389 | AB71: 389 | AC71: 3732 | AD71: 1842 | AE71: 2206 | AF71: 1147 | AG71: 2199 | AH71: 1109 | AI71: 2190 | AJ71: 1183 | AK71: 10035 | AL71: 4129 | AM71: 5855 | AN71: 1956 | AO71: 4526 | AP71: 1745 | AQ71: 1708 | AR71: 883 | AS71: 2134 | AT71: 1257 | AU71: 844 | AV71: 867 | AW71: 0 | AX71: 229 | AY71: 1918 | AZ71: 1096 | BA71: 743 | BB71: 430 | BC71: 9396 | BD71: 5283 | BE71: 3297 | BF71: 1064 | BG71: 1226 | BH71: 1492 | BI71: 3872 | BJ71: 1689 | BK71: 2431 | BL71: 1191 | BM71: 1393 | BN71: 798 | BO71: 8756 | BP71: 3417 | BQ71: 228 | BR71: 229 | BS71: 3379 | BT71: 1757 | BU71: 4610 | BV71: 1448 | BW71: 3880 | BX71: 1363 | BY71: 2548 | BZ71: 1269 | CA71: 1159 | CB71: 891 | CC71: 4682 | CD71: 2116 | CE71: 3219 | CF71: 1761 | CG71: 4613 | CH71: 1465 | CI71: 3436 | CJ71: 1476 | CK71: 72 | CL71: 131 | CM71: 1774 | CN71: 1932 | CO71: 1657 | CP71: 1589 | CQ71: 1680 | CR71: 647 | CS71: 12688 | CT71: 2976 | CU71: 10577 | CV71: 3336 | CW71: 0 | CX71: 229 | CY71: 2233 | CZ71: 1094 | DA71: 13940 | DB71: 5479 | DC71: 70 | DD71: 118 | DE71: 6473 | DF71: 2066 | DG71: 2510 | DH71: 1288 | DI71: 871 | DJ71: 639
I72: 69845 | J72: 7292 | K72: 691 | L72: 573 | M72: 560 | N72: 669 | O72: 439 | P72: 381 | Q72: N/A | R72: N/A | S72: 4077 | T72: 2327 | U72: 746 | V72: 451 | W72: 519 | X72: 654 | Y72: 79 | Z72: 141 | AA72: 0 | AB72: 192 | AC72: 3067 | AD72: 1273 | AE72: 1446 | AF72: 759 | AG72: 13 | AH72: 27 | AI72: 179 | AJ72: 271 | AK72: 3684 | AL72: 2143 | AM72: 1362 | AN72: 1007 | AO72: 851 | AP72: 773 | AQ72: 2008 | AR72: 1142 | AS72: 213 | AT72: 311 | AU72: 2120 | AV72: 1015 | AW72: 30 | AX72: 53 | AY72: 133 | AZ72: 176 | BA72: 781 | BB72: 901 | BC72: 1881 | BD72: 1130 | BE72: 232 | BF72: 396 | BG72: 1731 | BH72: 864 | BI72: 7314 | BJ72: 2602 | BK72: 713 | BL72: 858 | BM72: 332 | BN72: 417 | BO72: 641 | BP72: 525 | BQ72: 52 | BR72: 69 | BS72: 341 | BT72: 220 | BU72: 775 | BV72: 680 | BW72: 674 | BX72: 362 | BY72: 1664 | BZ72: 1220 | CA72: 214 | CB72: 248 | CC72: 174 | CD72: 176 | CE72: 3761 | CF72: 1456 | CG72: 632 | CH72: 587 | CI72: 567 | CJ72: 628 | CK72: 0 | CL72: 192 | CM72: 235 | CN72: 269 | CO72: 0 | CP72: 192 | CQ72: 6462 | CR72: 2269 | CS72: 14767 | CT72: 2746 | CU72: 0 | CV72: 192 | CW72: 0 | CX72: 192 | CY72: 1245 | CZ72: 769 | DA72: 1477 | DB72: 636 | DC72: 24 | DD72: 45 | DE72: 687 | DF72: 632 | DG72: 252 | DH72: 399 | DI72: 529 | DJ72: 507
I73: 468428 | J73: 17921 | K73: 2087 | L73: 927 | M73: 7358 | N73: 2501 | O73: 35650 | P73: 4362 | Q73: 2648 | R73: 1019 | S73: N/A | T73: N/A | U73: 21245 | V73: 3867 | W73: 3073 | X73: 1222 | Y73: 1302 | Z73: 1343 | AA73: 3240 | AB73: 1457 | AC73: 22094 | AD73: 4333 | AE73: 13303 | AF73: 3042 | AG73: 9864 | AH73: 2683 | AI73: 4796 | AJ73: 1560 | AK73: 20834 | AL73: 3496 | AM73: 4673 | AN73: 1297 | AO73: 3324 | AP73: 1701 | AQ73: 2810 | AR73: 1256 | AS73: 1201 | AT73: 507 | AU73: 3600 | AV73: 1751 | AW73: 1658 | AX73: 1175 | AY73: 7793 | AZ73: 1924 | BA73: 10244 | BB73: 2069 | BC73: 12069 | BD73: 4117 | BE73: 5687 | BF73: 1375 | BG73: 2092 | BH73: 896 | BI73: 7677 | BJ73: 1995 | BK73: 2599 | BL73: 1492 | BM73: 1955 | BN73: 821 | BO73: 36159 | BP73: 5100 | BQ73: 1222 | BR73: 869 | BS73: 8053 | BT73: 2169 | BU73: 5904 | BV73: 2207 | BW73: 25629 | BX73: 3287 | BY73: 8708 | BZ73: 2611 | CA73: 1392 | CB73: 898 | CC73: 10474 | CD73: 3555 | CE73: 5113 | CF73: 1763 | CG73: 18165 | CH73: 2845 | CI73: 8550 | CJ73: 2017 | CK73: 1103 | CL73: 545 | CM73: 5758 | CN73: 2383 | CO73: 1004 | CP73: 686 | CQ73: 8761 | CR73: 2325 | CS73: 37087 | CT73: 5877 | CU73: 8944 | CV73: 2725 | CW73: 745 | CX73: 504 | CY73: 15753 | CZ73: 2373 | DA73: 36481 | DB73: 6266 | DC73: 832 | DD73: 463 | DE73: 5668 | DF73: 1495 | DG73: 2047 | DH73: 1810 | DI73: 1344 | DJ73: 635
I74: 202124 | J74: 11431 | K74: 2340 | L74: 1681 | M74: 3191 | N74: 1622 | O74: 12338 | P74: 3704 | Q74: 1615 | R74: 1191 | S74: 23234 | T74: 3742 | U74: N/A | V74: N/A | W74: 1567 | X74: 838 | Y74: 501 | Z74: 556 | AA74: 298 | AB74: 301 | AC74: 8075 | AD74: 2090 | AE74: 3250 | AF74: 1254 | AG74: 1852 | AH74: 832 | AI74: 1578 | AJ74: 766 | AK74: 6027 | AL74: 1536 | AM74: 2116 | AN74: 1289 | AO74: 3510 | AP74: 1495 | AQ74: 3718 | AR74: 1495 | AS74: 1361 | AT74: 1028 | AU74: 908 | AV74: 550 | AW74: 1358 | AX74: 1235 | AY74: 3303 | AZ74: 1416 | BA74: 2157 | BB74: 1085 | BC74: 3225 | BD74: 1061 | BE74: 3055 | BF74: 1092 | BG74: 879 | BH74: 621 | BI74: 4552 | BJ74: 1382 | BK74: 4079 | BL74: 1579 | BM74: 4582 | BN74: 1961 | BO74: 4061 | BP74: 1432 | BQ74: 489 | BR74: 396 | BS74: 2863 | BT74: 1788 | BU74: 8797 | BV74: 2308 | BW74: 3998 | BX74: 1621 | BY74: 4756 | BZ74: 1686 | CA74: 2249 | CB74: 1245 | CC74: 5527 | CD74: 2388 | CE74: 3824 | CF74: 2137 | CG74: 5543 | CH74: 2105 | CI74: 3348 | CJ74: 1302 | CK74: 435 | CL74: 560 | CM74: 718 | CN74: 480 | CO74: 1340 | CP74: 1037 | CQ74: 3193 | CR74: 1472 | CS74: 22390 | CT74: 4287 | CU74: 3856 | CV74: 1446 | CW74: 914 | CX74: 772 | CY74: 6281 | CZ74: 2671 | DA74: 5524 | DB74: 2092 | DC74: 412 | DD74: 490 | DE74: 3995 | DF74: 1774 | DG74: 2942 | DH74: 923 | DI74: 476 | DJ74: 556
I75: 71502 | J75: 6552 | K75: 101 | L75: 120 | M75: 180 | N75: 299 | O75: 1387 | P75: 939 | Q75: 84 | R75: 178 | S75: 3699 | T75: 1455 | U75: 1502 | V75: 618 | W75: N/A | X75: N/A | Y75: 62 | Z75: 132 | AA75: 607 | AB75: 373 | AC75: 4771 | AD75: 1275 | AE75: 2000 | AF75: 988 | AG75: 587 | AH75: 523 | AI75: 133 | AJ75: 224 | AK75: 1843 | AL75: 965 | AM75: 168 | AN75: 214 | AO75: 67 | AP75: 120 | AQ75: 16 | AR75: 36 | AS75: 0 | AT75: 198 | AU75: 315 | AV75: 238 | AW75: 259 | AX75: 193 | AY75: 1267 | AZ75: 744 | BA75: 8691 | BB75: 1998 | BC75: 692 | BD75: 736 | BE75: 76 | BF75: 120 | BG75: 69 | BH75: 116 | BI75: 365 | BJ75: 297 | BK75: 206 | BL75: 277 | BM75: 62 | BN75: 103 | BO75: 160 | BP75: 189 | BQ75: 1221 | BR75: 803 | BS75: 3809 | BT75: 1324 | BU75: 265 | BV75: 225 | BW75: 20015 | BX75: 4005 | BY75: 1029 | BZ75: 593 | CA75: 0 | CB75: 198 | CC75: 1383 | CD75: 791 | CE75: 217 | CF75: 211 | CG75: 117 | CH75: 161 | CI75: 3668 | CJ75: 1639 | CK75: 1488 | CL75: 645 | CM75: 997 | CN75: 476 | CO75: 0 | CP75: 198 | CQ75: 123 | CR75: 141 | CS75: 1214 | CT75: 646 | CU75: 398 | CV75: 359 | CW75: 608 | CX75: 354 | CY75: 2555 | CZ75: 1053 | DA75: 2255 | DB75: 1469 | DC75: 46 | DD75: 77 | DE75: 660 | DF75: 898 | DG75: 65 | DH75: 110 | DI75: 2105 | DJ75: 1756
I76: 33912 | J76: 3955 | K76: 81 | L76: 135 | M76: 329 | N76: 544 | O76: 541 | P76: 728 | Q76: 0 | R76: 192 | S76: 699 | T76: 594 | U76: 169 | V76: 218 | W76: 66 | X76: 94 | Y76: N/A | Z76: N/A | AA76: 154 | AB76: 144 | AC76: 810 | AD76: 449 | AE76: 639 | AF76: 422 | AG76: 201 | AH76: 171 | AI76: 441 | AJ76: 347 | AK76: 34 | AL76: 35 | AM76: 210 | AN76: 235 | AO76: 0 | AP76: 192 | AQ76: 7 | AR76: 17 | AS76: 305 | AT76: 391 | AU76: 0 | AV76: 192 | AW76: 0 | AX76: 192 | AY76: 4238 | AZ76: 1274 | BA76: 806 | BB76: 558 | BC76: 43 | BD76: 71 | BE76: 201 | BF76: 299 | BG76: 0 | BH76: 192 | BI76: 713 | BJ76: 684 | BK76: 0 | BL76: 192 | BM76: 12 | BN76: 28 | BO76: 0 | BP76: 192 | BQ76: 0 | BR76: 192 | BS76: 6297 | BT76: 1765 | BU76: 0 | BV76: 192 | BW76: 3141 | BX76: 1083 | BY76: 388 | BZ76: 256 | CA76: 0 | CB76: 192 | CC76: 664 | CD76: 608 | CE76: 27 | CF76: 45 | CG76: 0 | CH76: 192 | CI76: 8571 | CJ76: 1728 | CK76: 131 | CL76: 217 | CM76: 153 | CN76: 179 | CO76: 0 | CP76: 192 | CQ76: 221 | CR76: 259 | CS76: 883 | CT76: 755 | CU76: 475 | CV76: 738 | CW76: 0 | CX76: 192 | CY76: 1064 | CZ76: 512 | DA76: 482 | DB76: 530 | DC76: 198 | DD76: 174 | DE76: 55 | DF76: 96 | DG76: 463 | DH76: 527 | DI76: 1008 | DJ76: 971
I77: 48066 | J77: 4295 | K77: 13 | L77: 29 | M77: 135 | N77: 217 | O77: 43 | P77: 71 | Q77: 81 | R77: 93 | S77: 3797 | T77: 1233 | U77: 452 | V77: 321 | W77: 981 | X77: 472 | Y77: 128 | Z77: 125 | AA77: N/A | AB77: N/A | AC77: 1254 | AD77: 651 | AE77: 937 | AF77: 572 | AG77: 372 | AH77: 396 | AI77: 68 | AJ77: 113 | AK77: 1397 | AL77: 814 | AM77: 128 | AN77: 147 | AO77: 241 | AP77: 284 | AQ77: 6 | AR77: 19 | AS77: 297 | AT77: 260 | AU77: 0 | AV77: 200 | AW77: 0 | AX77: 200 | AY77: 14129 | AZ77: 2971 | BA77: 2048 | BB77: 789 | BC77: 1108 | BD77: 554 | BE77: 409 | BF77: 457 | BG77: 83 | BH77: 99 | BI77: 112 | BJ77: 184 | BK77: 38 | BL77: 64 | BM77: 79 | BN77: 110 | BO77: 238 | BP77: 282 | BQ77: 145 | BR77: 139 | BS77: 1035 | BT77: 605 | BU77: 0 | BV77: 200 | BW77: 2313 | BX77: 697 | BY77: 1716 | BZ77: 760 | CA77: 285 | CB77: 360 | CC77: 306 | CD77: 224 | CE77: 0 | CF77: 200 | CG77: 51 | CH77: 64 | CI77: 1589 | CJ77: 757 | CK77: 50 | CL77: 63 | CM77: 357 | CN77: 329 | CO77: 104 | CP77: 129 | CQ77: 421 | CR77: 358 | CS77: 1083 | CT77: 491 | CU77: 75 | CV77: 118 | CW77: 445 | CX77: 489 | CY77: 7975 | CZ77: 1285 | DA77: 476 | DB77: 300 | DC77: 120 | DD77: 138 | DE77: 946 | DF77: 668 | DG77: 0 | DH77: 200 | DI77: 0 | DJ77: 200
I78: 498597 | J78: 22483 | K78: 12635 | L78: 3566 | M78: 7405 | N78: 3412 | O78: 8451 | P78: 3258 | Q78: 3025 | R78: 1241 | S78: 22420 | T78: 4065 | U78: 9383 | V78: 2988 | W78: 11704 | X78: 3121 | Y78: 1264 | Z78: 949 | AA78: 891 | AB78: 495 | AC78: N/A | AD78: N/A | AE78: 38658 | AF78: 6270 | AG78: 3639 | AH78: 2081 | AI78: 312 | AJ78: 268 | AK78: 19152 | AL78: 3962 | AM78: 11472 | AN78: 3254 | AO78: 1846 | AP78: 1137 | AQ78: 2661 | AR78: 1410 | AS78: 5441 | AT78: 1674 | AU78: 6094 | AV78: 2316 | AW78: 4689 | AX78: 2049 | AY78: 15410 | AZ78: 3515 | BA78: 13701 | BB78: 3380 | BC78: 19640 | BD78: 3920 | BE78: 4663 | BF78: 1888 | BG78: 5175 | BH78: 1968 | BI78: 7114 | BJ78: 2753 | BK78: 559 | BL78: 424 | BM78: 3857 | BN78: 2208 | BO78: 3527 | BP78: 1810 | BQ78: 4324 | BR78: 1798 | BS78: 25206 | BT78: 6219 | BU78: 1376 | BV78: 781 | BW78: 59288 | BX78: 7171 | BY78: 23983 | BZ78: 5251 | CA78: 514 | CB78: 600 | CC78: 18191 | CD78: 3264 | CE78: 2600 | CF78: 1168 | CG78: 3315 | CH78: 2046 | CI78: 20821 | CJ78: 4267 | CK78: 5002 | CL78: 2668 | CM78: 11953 | CN78: 2956 | CO78: 716 | CP78: 1027 | CQ78: 10451 | CR78: 4102 | CS78: 25532 | CT78: 4638 | CU78: 2343 | CV78: 1891 | CW78: 2019 | CX78: 1616 | CY78: 16614 | CZ78: 3087 | DA78: 6339 | DB78: 2687 | DC78: 4964 | DD78: 2202 | DE78: 7412 | DF78: 2467 | DG78: 846 | DH78: 725 | DI78: 21611 | DJ78: 5621
I79: 271077 | J79: 15123 | K79: 18799 | L79: 5015 | M79: 1079 | N79: 765 | O79: 4292 | P79: 1849 | Q79: 2112 | R79: 1366 | S79: 14949 | T79: 3387 | U79: 2325 | V79: 1399 | W79: 709 | X79: 455 | Y79: 619 | Z79: 606 | AA79: 364 | AB79: 283 | AC79: 42666 | AD79: 5232 | AE79: N/A | AF79: N/A | AG79: 1006 | AH79: 883 | AI79: 126 | AJ79: 139 | AK79: 6080 | AL79: 1774 | AM79: 2442 | AN79: 1297 | AO79: 950 | AP79: 528 | AQ79: 4513 | AR79: 2909 | AS79: 3686 | AT79: 1708 | AU79: 6541 | AV79: 3121 | AW79: 408 | AX79: 269 | AY79: 3708 | AZ79: 1807 | BA79: 4436 | BB79: 1979 | BC79: 6992 | BD79: 2441 | BE79: 1808 | BF79: 1416 | BG79: 5380 | BH79: 3077 | BI79: 2514 | BJ79: 989 | BK79: 246 | BL79: 211 | BM79: 4144 | BN79: 3300 | BO79: 774 | BP79: 559 | BQ79: 132 | BR79: 150 | BS79: 8371 | BT79: 3016 | BU79: 791 | BV79: 421 | BW79: 14454 | BX79: 4681 | BY79: 19138 | BZ79: 3931 | CA79: 201 | CB79: 221 | CC79: 6863 | CD79: 1986 | CE79: 1632 | CF79: 1107 | CG79: 727 | CH79: 472 | CI79: 5791 | CJ79: 1896 | CK79: 337 | CL79: 504 | CM79: 16914 | CN79: 5257 | CO79: 536 | CP79: 730 | CQ79: 16898 | CR79: 3610 | CS79: 15760 | CT79: 3421 | CU79: 793 | CV79: 1061 | CW79: 361 | CX79: 334 | CY79: 9438 | CZ79: 3336 | DA79: 3701 | DB79: 1532 | DC79: 1340 | DD79: 778 | DE79: 2727 | DF79: 1401 | DG79: 504 | DH79: 775 | DI79: 1635 | DJ79: 841
I80: 57542 | J80: 5083 | K80: 1268 | L80: 846 | M80: 844 | N80: 670 | O80: 2900 | P80: 1208 | Q80: 242 | R80: 260 | S80: 10173 | T80: 2201 | U80: 950 | V80: 493 | W80: 731 | X80: 739 | Y80: 784 | Z80: 877 | AA80: 222 | AB80: 275 | AC80: 3160 | AD80: 1311 | AE80: 2519 | AF80: 956 | AG80: N/A | AH80: N/A | AI80: 112 | AJ80: 199 | AK80: 1884 | AL80: 728 | AM80: 402 | AN80: 280 | AO80: 478 | AP80: 504 | AQ80: 125 | AR80: 154 | AS80: 18 | AT80: 36 | AU80: 179 | AV80: 270 | AW80: 106 | AX80: 161 | AY80: 341 | AZ80: 212 | BA80: 92 | BB80: 123 | BC80: 1303 | BD80: 1067 | BE80: 933 | BF80: 750 | BG80: 371 | BH80: 391 | BI80: 308 | BJ80: 219 | BK80: 85 | BL80: 140 | BM80: 91 | BN80: 95 | BO80: 1548 | BP80: 795 | BQ80: 107 | BR80: 141 | BS80: 564 | BT80: 697 | BU80: 354 | BV80: 366 | BW80: 4246 | BX80: 2556 | BY80: 2307 | BZ80: 1256 | CA80: 32 | CB80: 54 | CC80: 970 | CD80: 677 | CE80: 685 | CF80: 502 | CG80: 2030 | CH80: 1378 | CI80: 870 | CJ80: 468 | CK80: 58 | CL80: 70 | CM80: 1681 | CN80: 919 | CO80: 0 | CP80: 187 | CQ80: 636 | CR80: 1018 | CS80: 3007 | CT80: 1122 | CU80: 1040 | CV80: 872 | CW80: 0 | CX80: 187 | CY80: 2523 | CZ80: 1318 | DA80: 3790 | DB80: 1075 | DC80: 312 | DD80: 306 | DE80: 147 | DF80: 159 | DG80: 14 | DH80: 23 | DI80: 238 | DJ80: 398
I81: 60336 | J81: 6293 | K81: 263 | L81: 259 | M81: 4510 | N81: 2938 | O81: 3543 | P81: 1771 | Q81: 224 | R81: 188 | S81: 9021 | T81: 2484 | U81: 1813 | V81: 1022 | W81: 0 | X81: 195 | Y81: 0 | Z81: 195 | AA81: 0 | AB81: 195 | AC81: 1733 | AD81: 1210 | AE81: 275 | AF81: 234 | AG81: 254 | AH81: 314 | AI81: N/A | AJ81: N/A | AK81: 390 | AL81: 342 | AM81: 296 | AN81: 352 | AO81: 318 | AP81: 424 | AQ81: 479 | AR81: 503 | AS81: 120 | AT81: 170 | AU81: 51 | AV81: 110 | AW81: 0 | AX81: 195 | AY81: 0 | AZ81: 195 | BA81: 396 | BB81: 625 | BC81: 615 | BD81: 524 | BE81: 566 | BF81: 352 | BG81: 62 | BH81: 106 | BI81: 384 | BJ81: 304 | BK81: 1602 | BL81: 828 | BM81: 439 | BN81: 591 | BO81: 3581 | BP81: 1400 | BQ81: 129 | BR81: 123 | BS81: 84 | BT81: 78 | BU81: 141 | BV81: 229 | BW81: 419 | BX81: 399 | BY81: 263 | BZ81: 435 | CA81: 1201 | CB81: 1099 | CC81: 260 | CD81: 212 | CE81: 288 | CF81: 243 | CG81: 7170 | CH81: 1894 | CI81: 343 | CJ81: 265 | CK81: 0 | CL81: 195 | CM81: 55 | CN81: 90 | CO81: 842 | CP81: 1132 | CQ81: 296 | CR81: 356 | CS81: 1303 | CT81: 952 | CU81: 6059 | CV81: 2187 | CW81: 0 | CX81: 195 | CY81: 905 | CZ81: 707 | DA81: 8991 | DB81: 2313 | DC81: 0 | DD81: 195 | DE81: 165 | DF81: 174 | DG81: 487 | DH81: 340 | DI81: 249 | DJ81: 412
I82: 216204 | J82: 11862 | K82: 2823 | L82: 1526 | M82: 4119 | N82: 3153 | O82: 7657 | P82: 1987 | Q82: 3185 | R82: 1513 | S82: 13930 | T82: 2863 | U82: 3271 | V82: 1390 | W82: 1819 | X82: 959 | Y82: 277 | Z82: 303 | AA82: 1440 | AB82: 708 | AC82: 17548 | AD82: 3370 | AE82: 6042 | AF82: 2192 | AG82: 1269 | AH82: 735 | AI82: 393 | AJ82: 356 | AK82: N/A | AL82: N/A | AM82: 23491 | AN82: 5269 | AO82: 8420 | AP82: 1581 | AQ82: 2533 | AR82: 1130 | AS82: 5569 | AT82: 1718 | AU82: 1315 | AV82: 761 | AW82: 693 | AX82: 510 | AY82: 2565 | AZ82: 916 | BA82: 3507 | BB82: 1540 | BC82: 10274 | BD82: 2032 | BE82: 4496 | BF82: 1177 | BG82: 1521 | BH82: 581 | BI82: 13889 | BJ82: 2736 | BK82: 304 | BL82: 275 | BM82: 827 | BN82: 520 | BO82: 2454 | BP82: 1187 | BQ82: 590 | BR82: 334 | BS82: 3009 | BT82: 1033 | BU82: 1573 | BV82: 1619 | BW82: 6412 | BX82: 1874 | BY82: 4057 | BZ82: 1663 | CA82: 105 | CB82: 115 | CC82: 8384 | CD82: 1627 | CE82: 1002 | CF82: 552 | CG82: 792 | CH82: 426 | CI82: 3012 | CJ82: 1197 | CK82: 278 | CL82: 266 | CM82: 1582 | CN82: 783 | CO82: 1318 | CP82: 1474 | CQ82: 3223 | CR82: 1222 | CS82: 11011 | CT82: 2803 | CU82: 951 | CV82: 595 | CW82: 49 | CX82: 81 | CY82: 5233 | CZ82: 2524 | DA82: 3075 | DB82: 1254 | DC82: 352 | DD82: 288 | DE82: 14507 | DF82: 2936 | DG82: 58 | DH82: 76 | DI82: 2387 | DJ82: 715
I83: 127874 | J83: 8918 | K83: 1562 | L83: 1293 | M83: 371 | N83: 324 | O83: 3975 | P83: 1427 | Q83: 2016 | R83: 1321 | S83: 7649 | T83: 2229 | U83: 1930 | V83: 759 | W83: 1227 | X83: 698 | Y83: 79 | Z83: 134 | AA83: 0 | AB83: 190 | AC83: 8595 | AD83: 3053 | AE83: 2543 | AF83: 1176 | AG83: 1057 | AH83: 717 | AI83: 1368 | AJ83: 1278 | AK83: 23071 | AL83: 4221 | AM83: N/A | AN83: N/A | AO83: 916 | AP83: 468 | AQ83: 1321 | AR83: 946 | AS83: 10177 | AT83: 2220 | AU83: 2241 | AV83: 1537 | AW83: 275 | AX83: 388 | AY83: 480 | AZ83: 256 | BA83: 952 | BB83: 703 | BC83: 7896 | BD83: 1777 | BE83: 1168 | BF83: 568 | BG83: 469 | BH83: 366 | BI83: 1824 | BJ83: 1033 | BK83: 34 | BL83: 62 | BM83: 622 | BN83: 491 | BO83: 511 | BP83: 338 | BQ83: 90 | BR83: 152 | BS83: 651 | BT83: 348 | BU83: 504 | BV83: 410 | BW83: 2518 | BX83: 816 | BY83: 3038 | BZ83: 1840 | CA83: 70 | CB83: 94 | CC83: 11109 | CD83: 2141 | CE83: 844 | CF83: 522 | CG83: 505 | CH83: 617 | CI83: 3998 | CJ83: 1871 | CK83: 49 | CL83: 84 | CM83: 3306 | CN83: 1917 | CO83: 235 | CP83: 231 | CQ83: 3879 | CR83: 1292 | CS83: 6326 | CT83: 2074 | CU83: 123 | CV83: 127 | CW83: 530 | CX83: 349 | CY83: 1486 | CZ83: 853 | DA83: 1028 | DB83: 744 | DC83: 216 | DD83: 194 | DE83: 2923 | DF83: 1307 | DG83: 117 | DH83: 170 | DI83: 132 | DJ83: 220
I84: 70405 | J84: 5539 | K84: 207 | L84: 259 | M84: 967 | N84: 651 | O84: 1411 | P84: 726 | Q84: 433 | R84: 317 | S84: 3297 | T84: 1022 | U84: 2891 | V84: 1129 | W84: 424 | X84: 628 | Y84: 0 | Z84: 155 | AA84: 0 | AB84: 155 | AC84: 707 | AD84: 455 | AE84: 1938 | AF84: 1485 | AG84: 299 | AH84: 454 | AI84: 161 | AJ84: 175 | AK84: 13725 | AL84: 2238 | AM84: 349 | AN84: 204 | AO84: N/A | AP84: N/A | AQ84: 1776 | AR84: 819 | AS84: 387 | AT84: 303 | AU84: 228 | AV84: 223 | AW84: 26 | AX84: 43 | AY84: 487 | AZ84: 319 | BA84: 466 | BB84: 632 | BC84: 1687 | BD84: 954 | BE84: 5634 | BF84: 1117 | BG84: 408 | BH84: 306 | BI84: 3649 | BJ84: 1188 | BK84: 370 | BL84: 338 | BM84: 6490 | BN84: 1780 | BO84: 2009 | BP84: 1634 | BQ84: 0 | BR84: 155 | BS84: 185 | BT84: 209 | BU84: 421 | BV84: 347 | BW84: 2361 | BX84: 1104 | BY84: 1760 | BZ84: 1268 | CA84: 604 | CB84: 377 | CC84: 993 | CD84: 482 | CE84: 532 | CF84: 417 | CG84: 811 | CH84: 476 | CI84: 388 | CJ84: 292 | CK84: 65 | CL84: 108 | CM84: 172 | CN84: 200 | CO84: 2842 | CP84: 965 | CQ84: 623 | CR84: 529 | CS84: 2334 | CT84: 1235 | CU84: 1482 | CV84: 940 | CW84: 38 | CX84: 71 | CY84: 720 | CZ84: 854 | DA84: 856 | DB84: 577 | DC84: 115 | DD84: 181 | DE84: 2537 | DF84: 850 | DG84: 140 | DH84: 117 | DI84: 57 | DJ84: 115
I85: 83640 | J85: 7144 | K85: 434 | L85: 310 | M85: 108 | N85: 84 | O85: 2028 | P85: 858 | Q85: 998 | R85: 697 | S85: 4743 | T85: 2121 | U85: 5030 | V85: 1611 | W85: 412 | X85: 519 | Y85: 74 | Z85: 85 | AA85: 128 | AB85: 141 | AC85: 1581 | AD85: 790 | AE85: 1146 | AF85: 666 | AG85: 287 | AH85: 282 | AI85: 264 | AJ85: 358 | AK85: 2760 | AL85: 1019 | AM85: 863 | AN85: 458 | AO85: 1715 | AP85: 888 | AQ85: N/A | AR85: N/A | AS85: 1167 | AT85: 770 | AU85: 519 | AV85: 338 | AW85: 481 | AX85: 527 | AY85: 3180 | AZ85: 2454 | BA85: 28 | BB85: 49 | BC85: 1947 | BD85: 1003 | BE85: 679 | BF85: 418 | BG85: 1517 | BH85: 1370 | BI85: 22033 | BJ85: 4568 | BK85: 270 | BL85: 255 | BM85: 1648 | BN85: 701 | BO85: 657 | BP85: 359 | BQ85: 27 | BR85: 37 | BS85: 1189 | BT85: 724 | BU85: 769 | BV85: 810 | BW85: 780 | BX85: 411 | BY85: 1223 | BZ85: 840 | CA85: 379 | CB85: 558 | CC85: 1616 | CD85: 901 | CE85: 5022 | CF85: 1204 | CG85: 285 | CH85: 284 | CI85: 1494 | CJ85: 1815 | CK85: 180 | CL85: 261 | CM85: 1102 | CN85: 670 | CO85: 104 | CP85: 147 | CQ85: 1066 | CR85: 496 | CS85: 6575 | CT85: 1436 | CU85: 196 | CV85: 265 | CW85: 0 | CX85: 168 | CY85: 1986 | CZ85: 1018 | DA85: 772 | DB85: 459 | DC85: 0 | DD85: 168 | DE85: 893 | DF85: 575 | DG85: 1285 | DH85: 791 | DI85: 775 | DJ85: 1013
I86: 110031 | J86: 9177 | K86: 925 | L86: 441 | M86: 0 | N86: 189 | O86: 1818 | P86: 916 | Q86: 1058 | R86: 778 | S86: 2130 | T86: 1154 | U86: 221 | V86: 197 | W86: 176 | X86: 251 | Y86: 0 | Z86: 189 | AA86: 201 | AB86: 248 | AC86: 7400 | AD86: 1965 | AE86: 2725 | AF86: 892 | AG86: 63 | AH86: 80 | AI86: 36 | AJ86: 69 | AK86: 4273 | AL86: 1415 | AM86: 11071 | AN86: 2846 | AO86: 536 | AP86: 410 | AQ86: 253 | AR86: 212 | AS86: N/A | AT86: N/A | AU86: 1399 | AV86: 906 | AW86: 71 | AX86: 137 | AY86: 2076 | AZ86: 1444 | BA86: 1019 | BB86: 885 | BC86: 3178 | BD86: 1248 | BE86: 475 | BF86: 415 | BG86: 1248 | BH86: 868 | BI86: 2793 | BJ86: 1158 | BK86: 216 | BL86: 238 | BM86: 471 | BN86: 517 | BO86: 1358 | BP86: 976 | BQ86: 52 | BR86: 84 | BS86: 1289 | BT86: 1472 | BU86: 553 | BV86: 370 | BW86: 2174 | BX86: 1660 | BY86: 3916 | BZ86: 1965 | CA86: 117 | CB86: 195 | CC86: 19617 | CD86: 3115 | CE86: 1256 | CF86: 853 | CG86: 459 | CH86: 328 | CI86: 1490 | CJ86: 598 | CK86: 640 | CL86: 876 | CM86: 1387 | CN86: 814 | CO86: 0 | CP86: 189 | CQ86: 16852 | CR86: 3762 | CS86: 4661 | CT86: 1468 | CU86: 140 | CV86: 202 | CW86: 151 | CX86: 152 | CY86: 5154 | CZ86: 1719 | DA86: 1121 | DB86: 614 | DC86: 1174 | DD86: 566 | DE86: 581 | DF86: 414 | DG86: 57 | DH86: 93 | DI86: 192 | DJ86: 262
I87: 99138 | J87: 7082 | K87: 3065 | L87: 1401 | M87: 288 | N87: 266 | O87: 2010 | P87: 1529 | Q87: 2774 | R87: 1144 | S87: 3957 | T87: 898 | U87: 1202 | V87: 983 | W87: 358 | X87: 264 | Y87: 0 | Z87: 198 | AA87: 195 | AB87: 168 | AC87: 5193 | AD87: 2120 | AE87: 4425 | AF87: 1541 | AG87: 688 | AH87: 808 | AI87: 230 | AJ87: 269 | AK87: 1189 | AL87: 417 | AM87: 1549 | AN87: 827 | AO87: 468 | AP87: 441 | AQ87: 312 | AR87: 466 | AS87: 1520 | AT87: 1286 | AU87: N/A | AV87: N/A | AW87: 120 | AX87: 163 | AY87: 1221 | AZ87: 1058 | BA87: 439 | BB87: 255 | BC87: 1163 | BD87: 875 | BE87: 698 | BF87: 445 | BG87: 10255 | BH87: 2829 | BI87: 1375 | BJ87: 565 | BK87: 278 | BL87: 364 | BM87: 176 | BN87: 198 | BO87: 994 | BP87: 623 | BQ87: 15 | BR87: 26 | BS87: 453 | BT87: 269 | BU87: 1028 | BV87: 867 | BW87: 1360 | BX87: 849 | BY87: 2134 | BZ87: 1242 | CA87: 277 | CB87: 359 | CC87: 2641 | CD87: 2281 | CE87: 4235 | CF87: 3044 | CG87: 1531 | CH87: 1577 | CI87: 455 | CJ87: 473 | CK87: 268 | CL87: 395 | CM87: 1573 | CN87: 1149 | CO87: 37 | CP87: 47 | CQ87: 2495 | CR87: 938 | CS87: 30292 | CT87: 5028 | CU87: 179 | CV87: 275 | CW87: 87 | CX87: 149 | CY87: 2055 | CZ87: 1060 | DA87: 1075 | DB87: 504 | DC87: 110 | DD87: 123 | DE87: 339 | DF87: 372 | DG87: 357 | DH87: 541 | DI87: 393 | DJ87: 384
I88: 33818 | J88: 4248 | K88: 634 | L88: 541 | M88: 37 | N88: 43 | O88: 325 | P88: 301 | Q88: 38 | R88: 67 | S88: 829 | T88: 428 | U88: 290 | V88: 222 | W88: 2481 | X88: 668 | Y88: 238 | Z88: 228 | AA88: 239 | AB88: 177 | AC88: 4304 | AD88: 1908 | AE88: 507 | AF88: 415 | AG88: 177 | AH88: 214 | AI88: 0 | AJ88: 157 | AK88: 675 | AL88: 358 | AM88: 164 | AN88: 157 | AO88: 275 | AP88: 452 | AQ88: 523 | AR88: 641 | AS88: 158 | AT88: 217 | AU88: 138 | AV88: 218 | AW88: N/A | AX88: N/A | AY88: 52 | AZ88: 105 | BA88: 4439 | BB88: 1293 | BC88: 702 | BD88: 703 | BE88: 296 | BF88: 307 | BG88: 0 | BH88: 157 | BI88: 325 | BJ88: 228 | BK88: 10 | BL88: 18 | BM88: 0 | BN88: 157 | BO88: 150 | BP88: 250 | BQ88: 4302 | BR88: 1394 | BS88: 694 | BT88: 498 | BU88: 144 | BV88: 191 | BW88: 2589 | BX88: 1633 | BY88: 1439 | BZ88: 1059 | CA88: 19 | CB88: 31 | CC88: 483 | CD88: 530 | CE88: 25 | CF88: 48 | CG88: 471 | CH88: 406 | CI88: 915 | CJ88: 418 | CK88: 234 | CL88: 282 | CM88: 587 | CN88: 429 | CO88: 42 | CP88: 89 | CQ88: 394 | CR88: 513 | CS88: 1637 | CT88: 1115 | CU88: 182 | CV88: 202 | CW88: 612 | CX88: 341 | CY88: 570 | CZ88: 337 | DA88: 88 | DB88: 131 | DC88: 43 | DD88: 73 | DE88: 321 | DF88: 408 | DG88: 21 | DH88: 37 | DI88: 65 | DJ88: 64
I89: 153979 | J89: 9033 | K89: 228 | L89: 128 | M89: 671 | N89: 493 | O89: 945 | P89: 604 | Q89: 423 | R89: 528 | S89: 8595 | T89: 1773 | U89: 1796 | V89: 837 | W89: 1608 | X89: 903 | Y89: 6652 | Z89: 1916 | AA89: 18492 | AB89: 3025 | AC89: 7825 | AD89: 1691 | AE89: 7113 | AF89: 1789 | AG89: 1170 | AH89: 815 | AI89: 389 | AJ89: 366 | AK89: 2392 | AL89: 1052 | AM89: 1318 | AN89: 791 | AO89: 110 | AP89: 146 | AQ89: 689 | AR89: 551 | AS89: 848 | AT89: 671 | AU89: 860 | AV89: 484 | AW89: 1526 | AX89: 1245 | AY89: N/A | AZ89: N/A | BA89: 3470 | BB89: 1341 | BC89: 2077 | BD89: 1273 | BE89: 810 | BF89: 503 | BG89: 1109 | BH89: 825 | BI89: 1469 | BJ89: 944 | BK89: 73 | BL89: 103 | BM89: 0 | BN89: 204 | BO89: 1105 | BP89: 1033 | BQ89: 232 | BR89: 160 | BS89: 9627 | BT89: 1880 | BU89: 797 | BV89: 676 | BW89: 9222 | BX89: 2041 | BY89: 6686 | BZ89: 2008 | CA89: 0 | CB89: 204 | CC89: 3396 | CD89: 1110 | CE89: 845 | CF89: 592 | CG89: 276 | CH89: 247 | CI89: 14158 | CJ89: 3380 | CK89: 197 | CL89: 162 | CM89: 2882 | CN89: 1696 | CO89: 0 | CP89: 204 | CQ89: 1942 | CR89: 1093 | CS89: 3619 | CT89: 1102 | CU89: 223 | CV89: 230 | CW89: 40 | CX89: 69 | CY89: 22089 | CZ89: 3805 | DA89: 1525 | DB89: 611 | DC89: 2027 | DD89: 859 | DE89: 353 | DF89: 514 | DG89: 80 | DH89: 132 | DI89: 779 | DJ89: 654
I90: 139830 | J90: 8282 | K90: 1201 | L90: 1083 | M90: 225 | N90: 345 | O90: 1017 | P90: 518 | Q90: 167 | R90: 201 | S90: 11556 | T90: 2290 | U90: 1388 | V90: 972 | W90: 9445 | X90: 1884 | Y90: 399 | Z90: 579 | AA90: 676 | AB90: 358 | AC90: 11396 | AD90: 2715 | AE90: 3264 | AF90: 1666 | AG90: 733 | AH90: 860 | AI90: 412 | AJ90: 695 | AK90: 2991 | AL90: 899 | AM90: 640 | AN90: 456 | AO90: 138 | AP90: 136 | AQ90: 969 | AR90: 867 | AS90: 180 | AT90: 203 | AU90: 977 | AV90: 1200 | AW90: 4006 | AX90: 1526 | AY90: 2762 | AZ90: 2048 | BA90: N/A | BB90: N/A | BC90: 2629 | BD90: 1245 | BE90: 862 | BF90: 537 | BG90: 356 | BH90: 567 | BI90: 1261 | BJ90: 654 | BK90: 596 | BL90: 719 | BM90: 637 | BN90: 727 | BO90: 163 | BP90: 158 | BQ90: 12010 | BR90: 2630 | BS90: 8332 | BT90: 1949 | BU90: 199 | BV90: 276 | BW90: 19431 | BX90: 3914 | BY90: 3964 | BZ90: 1384 | CA90: 61 | CB90: 111 | CC90: 1757 | CD90: 681 | CE90: 90 | CF90: 123 | CG90: 178 | CH90: 220 | CI90: 6538 | CJ90: 1883 | CK90: 10182 | CL90: 2144 | CM90: 1621 | CN90: 989 | CO90: 44 | CP90: 72 | CQ90: 371 | CR90: 355 | CS90: 5203 | CT90: 1491 | CU90: 548 | CV90: 411 | CW90: 2246 | CX90: 944 | CY90: 2984 | CZ90: 1241 | DA90: 1673 | DB90: 741 | DC90: 911 | DD90: 855 | DE90: 441 | DF90: 311 | DG90: 0 | DH90: 204 | DI90: 4413 | DJ90: 1542
I91: 139158 | J91: 8465 | K91: 3527 | L91: 2060 | M91: 3456 | N91: 1793 | O91: 3840 | P91: 1382 | Q91: 2054 | R91: 1024 | S91: 7793 | T91: 1752 | U91: 3425 | V91: 1462 | W91: 1656 | X91: 1087 | Y91: 0 | Z91: 167 | AA91: 256 | AB91: 259 | AC91: 17712 | AD91: 3844 | AE91: 4254 | AF91: 1566 | AG91: 630 | AH91: 469 | AI91: 882 | AJ91: 675 | AK91: 9897 | AL91: 1863 | AM91: 7668 | AN91: 1841 | AO91: 1709 | AP91: 1026 | AQ91: 1148 | AR91: 867 | AS91: 2578 | AT91: 1158 | AU91: 955 | AV91: 556 | AW91: 599 | AX91: 735 | AY91: 1035 | AZ91: 431 | BA91: 2861 | BB91: 1135 | BC91: N/A | BD91: N/A | BE91: 2671 | BF91: 1085 | BG91: 715 | BH91: 558 | BI91: 2509 | BJ91: 1200 | BK91: 84 | BL91: 105 | BM91: 439 | BN91: 312 | BO91: 1215 | BP91: 610 | BQ91: 73 | BR91: 120 | BS91: 1849 | BT91: 779 | BU91: 508 | BV91: 367 | BW91: 6087 | BX91: 2170 | BY91: 3405 | BZ91: 1427 | CA91: 159 | CB91: 164 | CC91: 11224 | CD91: 2069 | CE91: 917 | CF91: 570 | CG91: 647 | CH91: 324 | CI91: 2864 | CJ91: 1095 | CK91: 385 | CL91: 377 | CM91: 2185 | CN91: 1094 | CO91: 571 | CP91: 599 | CQ91: 3106 | CR91: 973 | CS91: 9935 | CT91: 2208 | CU91: 642 | CV91: 582 | CW91: 0 | CX91: 167 | CY91: 2327 | CZ91: 834 | DA91: 1430 | DB91: 669 | DC91: 417 | DD91: 301 | DE91: 4018 | DF91: 1002 | DG91: 841 | DH91: 655 | DI91: 908 | DJ91: 857
I92: 101029 | J92: 7052 | K92: 123 | L92: 150 | M92: 893 | N92: 619 | O92: 2314 | P92: 1071 | Q92: 951 | R92: 599 | S92: 6638 | T92: 2072 | U92: 2662 | V92: 1023 | W92: 74 | X92: 131 | Y92: 86 | Z92: 143 | AA92: 367 | AB92: 391 | AC92: 2820 | AD92: 806 | AE92: 840 | AF92: 467 | AG92: 901 | AH92: 634 | AI92: 402 | AJ92: 328 | AK92: 8209 | AL92: 2632 | AM92: 786 | AN92: 470 | AO92: 6175 | AP92: 1326 | AQ92: 606 | AR92: 324 | AS92: 755 | AT92: 580 | AU92: 573 | AV92: 599 | AW92: 321 | AX92: 343 | AY92: 424 | AZ92: 382 | BA92: 970 | BB92: 422 | BC92: 5164 | BD92: 2149 | BE92: N/A | BF92: N/A | BG92: 549 | BH92: 593 | BI92: 1345 | BJ92: 712 | BK92: 1457 | BL92: 859 | BM92: 1936 | BN92: 821 | BO92: 2682 | BP92: 1858 | BQ92: 21 | BR92: 26 | BS92: 631 | BT92: 522 | BU92: 540 | BV92: 319 | BW92: 2416 | BX92: 913 | BY92: 845 | BZ92: 520 | CA92: 7574 | CB92: 1390 | CC92: 1961 | CD92: 1059 | CE92: 546 | CF92: 399 | CG92: 1800 | CH92: 1169 | CI92: 870 | CJ92: 509 | CK92: 0 | CL92: 143 | CM92: 447 | CN92: 428 | CO92: 5305 | CP92: 1596 | CQ92: 874 | CR92: 489 | CS92: 3062 | CT92: 1108 | CU92: 919 | CV92: 742 | CW92: 177 | CX92: 161 | CY92: 1034 | CZ92: 420 | DA92: 1413 | DB92: 656 | DC92: 92 | DD92: 98 | DE92: 19255 | DF92: 2960 | DG92: 224 | DH92: 178 | DI92: 54 | DJ92: 91
I93: 68511 | J93: 5606 | K93: 8922 | L93: 2639 | M93: 117 | N93: 102 | O93: 556 | P93: 405 | Q93: 2315 | R93: 1360 | S93: 4723 | T93: 1290 | U93: 484 | V93: 453 | W93: 54 | X93: 74 | Y93: 0 | Z93: 206 | AA93: 415 | AB93: 434 | AC93: 6152 | AD93: 2463 | AE93: 3136 | AF93: 1397 | AG93: 369 | AH93: 429 | AI93: 55 | AJ93: 82 | AK93: 2068 | AL93: 853 | AM93: 611 | AN93: 411 | AO93: 650 | AP93: 603 | AQ93: 66 | AR93: 90 | AS93: 1626 | AT93: 841 | AU93: 7139 | AV93: 1767 | AW93: 0 | AX93: 206 | AY93: 265 | AZ93: 239 | BA93: 1445 | BB93: 1561 | BC93: 1610 | BD93: 900 | BE93: 614 | BF93: 615 | BG93: N/A | BH93: N/A | BI93: 1581 | BJ93: 973 | BK93: 0 | BL93: 206 | BM93: 118 | BN93: 198 | BO93: 84 | BP93: 141 | BQ93: 65 | BR93: 135 | BS93: 269 | BT93: 293 | BU93: 1075 | BV93: 1040 | BW93: 364 | BX93: 449 | BY93: 483 | BZ93: 299 | CA93: 0 | CB93: 206 | CC93: 991 | CD93: 536 | CE93: 566 | CF93: 362 | CG93: 74 | CH93: 107 | CI93: 2568 | CJ93: 1700 | CK93: 41 | CL93: 89 | CM93: 398 | CN93: 320 | CO93: 6 | CP93: 15 | CQ93: 7683 | CR93: 2248 | CS93: 5243 | CT93: 1807 | CU93: 332 | CV93: 520 | CW93: 0 | CX93: 206 | CY93: 1453 | CZ93: 805 | DA93: 286 | DB93: 252 | DC93: 303 | DD93: 411 | DE93: 1136 | DF93: 1061 | DG93: 0 | DH93: 206 | DI93: 318 | DJ93: 411
I94: 149439 | J94: 9288 | K94: 1395 | L94: 654 | M94: 2043 | N94: 2471 | O94: 2356 | P94: 1028 | Q94: 6168 | R94: 1528 | S94: 8386 | T94: 1909 | U94: 3144 | V94: 1163 | W94: 1516 | X94: 1078 | Y94: 0 | Z94: 184 | AA94: 215 | AB94: 254 | AC94: 4513 | AD94: 1398 | AE94: 2964 | AF94: 972 | AG94: 871 | AH94: 517 | AI94: 560 | AJ94: 439 | AK94: 20161 | AL94: 3086 | AM94: 4404 | AN94: 1588 | AO94: 4811 | AP94: 1405 | AQ94: 20884 | AR94: 4170 | AS94: 1993 | AT94: 803 | AU94: 1728 | AV94: 905 | AW94: 291 | AX94: 295 | AY94: 716 | AZ94: 317 | BA94: 463 | BB94: 306 | BC94: 2830 | BD94: 1176 | BE94: 2026 | BF94: 809 | BG94: 1641 | BH94: 884 | BI94: N/A | BJ94: N/A | BK94: 845 | BL94: 541 | BM94: 4860 | BN94: 1645 | BO94: 1544 | BP94: 830 | BQ94: 769 | BR94: 750 | BS94: 1114 | BT94: 755 | BU94: 1016 | BV94: 718 | BW94: 2904 | BX94: 1260 | BY94: 3669 | BZ94: 1527 | CA94: 977 | CB94: 446 | CC94: 3240 | CD94: 1684 | CE94: 6073 | CF94: 2312 | CG94: 777 | CH94: 538 | CI94: 1810 | CJ94: 1085 | CK94: 359 | CL94: 424 | CM94: 267 | CN94: 237 | CO94: 361 | CP94: 296 | CQ94: 2676 | CR94: 1056 | CS94: 10293 | CT94: 2994 | CU94: 1697 | CV94: 946 | CW94: 88 | CX94: 195 | CY94: 2684 | CZ94: 1493 | DA94: 2518 | DB94: 843 | DC94: 196 | DD94: 214 | DE94: 1503 | DF94: 671 | DG94: 1120 | DH94: 900 | DI94: 709 | DJ94: 463
I95: 33553 | J95: 4015 | K95: 449 | L95: 318 | M95: 1118 | N95: 921 | O95: 1971 | P95: 1358 | Q95: 49 | R95: 70 | S95: 3033 | T95: 1110 | U95: 2856 | V95: 1265 | W95: 58 | X95: 72 | Y95: 365 | Z95: 392 | AA95: 0 | AB95: 165 | AC95: 291 | AD95: 235 | AE95: 231 | AF95: 193 | AG95: 32 | AH95: 35 | AI95: 1543 | AJ95: 1005 | AK95: 765 | AL95: 526 | AM95: 646 | AN95: 646 | AO95: 417 | AP95: 307 | AQ95: 845 | AR95: 492 | AS95: 0 | AT95: 165 | AU95: 0 | AV95: 165 | AW95: 71 | AX95: 127 | AY95: 57 | AZ95: 71 | BA95: 10 | BB95: 18 | BC95: 353 | BD95: 295 | BE95: 969 | BF95: 634 | BG95: 0 | BH95: 165 | BI95: 158 | BJ95: 220 | BK95: N/A | BL95: N/A | BM95: 384 | BN95: 392 | BO95: 688 | BP95: 543 | BQ95: 0 | BR95: 165 | BS95: 889 | BT95: 589 | BU95: 264 | BV95: 389 | BW95: 422 | BX95: 377 | BY95: 1173 | BZ95: 982 | CA95: 360 | CB95: 250 | CC95: 321 | CD95: 409 | CE95: 96 | CF95: 127 | CG95: 1959 | CH95: 914 | CI95: 840 | CJ95: 640 | CK95: 0 | CL95: 165 | CM95: 77 | CN95: 92 | CO95: 227 | CP95: 233 | CQ95: 266 | CR95: 237 | CS95: 1329 | CT95: 643 | CU95: 1232 | CV95: 623 | CW95: 53 | CX95: 71 | CY95: 278 | CZ95: 288 | DA95: 3835 | DB95: 1160 | DC95: 14 | DD95: 28 | DE95: 146 | DF95: 184 | DG95: 2413 | DH95: 1709 | DI95: 353 | DJ95: 522
I96: 52070 | J96: 5507 | K96: 169 | L96: 271 | M96: 721 | N96: 785 | O96: 1646 | P96: 898 | Q96: 161 | R96: 146 | S96: 5124 | T96: 1727 | U96: 3245 | V96: 962 | W96: 381 | X96: 372 | Y96: 0 | Z96: 155 | AA96: 29 | AB96: 48 | AC96: 1105 | AD96: 499 | AE96: 434 | AF96: 358 | AG96: 275 | AH96: 215 | AI96: 506 | AJ96: 464 | AK96: 1415 | AL96: 777 | AM96: 615 | AN96: 541 | AO96: 9575 | AP96: 2602 | AQ96: 3040 | AR96: 1210 | AS96: 352 | AT96: 457 | AU96: 222 | AV96: 253 | AW96: 122 | AX96: 127 | AY96: 318 | AZ96: 344 | BA96: 0 | BB96: 155 | BC96: 683 | BD96: 435 | BE96: 1455 | BF96: 1009 | BG96: 424 | BH96: 430 | BI96: 1848 | BJ96: 771 | BK96: 64 | BL96: 88 | BM96: N/A | BN96: N/A | BO96: 240 | BP96: 165 | BQ96: 0 | BR96: 155 | BS96: 119 | BT96: 101 | BU96: 242 | BV96: 326 | BW96: 544 | BX96: 349 | BY96: 829 | BZ96: 872 | CA96: 292 | CB96: 213 | CC96: 268 | CD96: 250 | CE96: 1255 | CF96: 884 | CG96: 1556 | CH96: 1249 | CI96: 252 | CJ96: 179 | CK96: 0 | CL96: 155 | CM96: 243 | CN96: 285 | CO96: 2999 | CP96: 1280 | CQ96: 226 | CR96: 244 | CS96: 5343 | CT96: 2737 | CU96: 734 | CV96: 507 | CW96: 0 | CX96: 155 | CY96: 615 | CZ96: 478 | DA96: 835 | DB96: 593 | DC96: 24 | DD96: 40 | DE96: 560 | DF96: 427 | DG96: 965 | DH96: 421 | DI96: 0 | DJ96: 155
I97: 110345 | J97: 9419 | K97: 280 | L97: 330 | M97: 597 | N97: 525 | O97: 10142 | P97: 4338 | Q97: 310 | R97: 358 | S97: 40114 | T97: 5354 | U97: 2714 | V97: 1470 | W97: 189 | X97: 163 | Y97: 184 | Z97: 226 | AA97: 983 | AB97: 1261 | AC97: 2923 | AD97: 1608 | AE97: 1731 | AF97: 909 | AG97: 4093 | AH97: 2643 | AI97: 3929 | AJ97: 1734 | AK97: 1668 | AL97: 1031 | AM97: 855 | AN97: 781 | AO97: 114 | AP97: 188 | AQ97: 602 | AR97: 734 | AS97: 628 | AT97: 620 | AU97: 78 | AV97: 128 | AW97: 49 | AX97: 80 | AY97: 931 | AZ97: 701 | BA97: 256 | BB97: 255 | BC97: 1663 | BD97: 831 | BE97: 1055 | BF97: 1329 | BG97: 203 | BH97: 279 | BI97: 335 | BJ97: 237 | BK97: 1137 | BL97: 740 | BM97: 32 | BN97: 37 | BO97: N/A | BP97: N/A | BQ97: 0 | BR97: 234 | BS97: 2118 | BT97: 1709 | BU97: 2136 | BV97: 1429 | BW97: 1516 | BX97: 819 | BY97: 1333 | BZ97: 895 | CA97: 0 | CB97: 234 | CC97: 1354 | CD97: 894 | CE97: 258 | CF97: 254 | CG97: 1691 | CH97: 695 | CI97: 570 | CJ97: 581 | CK97: 86 | CL97: 148 | CM97: 165 | CN97: 273 | CO97: 588 | CP97: 557 | CQ97: 96 | CR97: 150 | CS97: 7249 | CT97: 3923 | CU97: 3365 | CV97: 2105 | CW97: 0 | CX97: 234 | CY97: 1740 | CZ97: 1369 | DA97: 4680 | DB97: 1646 | DC97: 0 | DD97: 234 | DE97: 2672 | DF97: 2369 | DG97: 933 | DH97: 702 | DI97: 153 | DJ97: 258
I98: 37000 | J98: 3717 | K98: 193 | L98: 237 | M98: 0 | N98: 184 | O98: 246 | P98: 210 | Q98: 22 | R98: 37 | S98: 547 | T98: 334 | U98: 403 | V98: 313 | W98: 1617 | X98: 519 | Y98: 20 | Z98: 32 | AA98: 68 | AB98: 112 | AC98: 1970 | AD98: 813 | AE98: 535 | AF98: 449 | AG98: 0 | AH98: 184 | AI98: 0 | AJ98: 184 | AK98: 478 | AL98: 402 | AM98: 470 | AN98: 394 | AO98: 47 | AP98: 78 | AQ98: 0 | AR98: 184 | AS98: 0 | AT98: 184 | AU98: 0 | AV98: 184 | AW98: 3080 | AX98: 1064 | AY98: 222 | AZ98: 177 | BA98: 15526 | BB98: 2811 | BC98: 155 | BD98: 165 | BE98: 104 | BF98: 145 | BG98: 160 | BH98: 258 | BI98: 153 | BJ98: 181 | BK98: 230 | BL98: 378 | BM98: 33 | BN98: 54 | BO98: 186 | BP98: 231 | BQ98: N/A | BR98: N/A | BS98: 294 | BT98: 247 | BU98: 186 | BV98: 179 | BW98: 1471 | BX98: 510 | BY98: 1297 | BZ98: 649 | CA98: 47 | CB98: 79 | CC98: 248 | CD98: 223 | CE98: 0 | CF98: 184 | CG98: 198 | CH98: 267 | CI98: 1015 | CJ98: 569 | CK98: 608 | CL98: 301 | CM98: 588 | CN98: 757 | CO98: 86 | CP98: 102 | CQ98: 126 | CR98: 159 | CS98: 605 | CT98: 438 | CU98: 158 | CV98: 271 | CW98: 2138 | CX98: 991 | CY98: 880 | CZ98: 575 | DA98: 428 | DB98: 497 | DC98: 0 | DD98: 184 | DE98: 0 | DF98: 184 | DG98: 162 | DH98: 218 | DI98: 0 | DJ98: 184
I99: 140194 | J99: 8607 | K99: 189 | L99: 209 | M99: 1198 | N99: 790 | O99: 3784 | P99: 2287 | Q99: 57 | R99: 97 | S99: 5986 | T99: 1519 | U99: 2203 | V99: 1931 | W99: 1924 | X99: 845 | Y99: 2100 | Z99: 1025 | AA99: 781 | AB99: 409 | AC99: 12907 | AD99: 3313 | AE99: 4268 | AF99: 2025 | AG99: 264 | AH99: 307 | AI99: 256 | AJ99: 262 | AK99: 3690 | AL99: 1572 | AM99: 718 | AN99: 436 | AO99: 332 | AP99: 441 | AQ99: 317 | AR99: 306 | AS99: 102 | AT99: 125 | AU99: 871 | AV99: 590 | AW99: 624 | AX99: 629 | AY99: 5335 | AZ99: 2324 | BA99: 4675 | BB99: 1356 | BC99: 1889 | BD99: 1056 | BE99: 1261 | BF99: 1200 | BG99: 510 | BH99: 677 | BI99: 583 | BJ99: 544 | BK99: 49 | BL99: 80 | BM99: 312 | BN99: 429 | BO99: 899 | BP99: 566 | BQ99: 499 | BR99: 360 | BS99: N/A | BT99: N/A | BU99: 355 | BV99: 537 | BW99: 40815 | BX99: 4703 | BY99: 2482 | BZ99: 1416 | CA99: 61 | CB99: 103 | CC99: 1121 | CD99: 608 | CE99: 773 | CF99: 707 | CG99: 360 | CH99: 331 | CI99: 19733 | CJ99: 2951 | CK99: 463 | CL99: 319 | CM99: 1586 | CN99: 789 | CO99: 0 | CP99: 198 | CQ99: 1412 | CR99: 782 | CS99: 3801 | CT99: 1818 | CU99: 256 | CV99: 229 | CW99: 0 | CX99: 198 | CY99: 4458 | CZ99: 1750 | DA99: 2454 | DB99: 1946 | DC99: 1252 | DD99: 1293 | DE99: 214 | DF99: 259 | DG99: 15 | DH99: 29 | DI99: 4312 | DJ99: 1535
I100: 62130 | J100: 7330 | K100: 410 | L100: 494 | M100: 416 | N100: 446 | O100: 7444 | P100: 3409 | Q100: 682 | R100: 607 | S100: 7066 | T100: 2324 | U100: 5525 | V100: 1537 | W100: 0 | X100: 198 | Y100: 0 | Z100: 198 | AA100: 212 | AB100: 336 | AC100: 2806 | AD100: 1557 | AE100: 676 | AF100: 406 | AG100: 81 | AH100: 128 | AI100: 355 | AJ100: 326 | AK100: 466 | AL100: 315 | AM100: 2030 | AN100: 2244 | AO100: 0 | AP100: 198 | AQ100: 1333 | AR100: 1078 | AS100: 87 | AT100: 152 | AU100: 184 | AV100: 244 | AW100: 510 | AX100: 384 | AY100: 2277 | AZ100: 1964 | BA100: 252 | BB100: 213 | BC100: 908 | BD100: 699 | BE100: 438 | BF100: 435 | BG100: 556 | BH100: 553 | BI100: 1183 | BJ100: 877 | BK100: 544 | BL100: 340 | BM100: 353 | BN100: 312 | BO100: 2099 | BP100: 1159 | BQ100: 114 | BR100: 130 | BS100: 245 | BT100: 229 | BU100: N/A | BV100: N/A | BW100: 1445 | BX100: 781 | BY100: 522 | BZ100: 300 | CA100: 264 | CB100: 310 | CC100: 1742 | CD100: 1115 | CE100: 234 | CF100: 203 | CG100: 916 | CH100: 655 | CI100: 492 | CJ100: 284 | CK100: 0 | CL100: 198 | CM100: 145 | CN100: 204 | CO100: 240 | CP100: 281 | CQ100: 899 | CR100: 577 | CS100: 13633 | CT100: 3724 | CU100: 303 | CV100: 218 | CW100: 71 | CX100: 120 | CY100: 425 | CZ100: 337 | DA100: 924 | DB100: 616 | DC100: 0 | DD100: 198 | DE100: 340 | DF100: 342 | DG100: 283 | DH100: 313 | DI100: 99 | DJ100: 158
I101: 282209 | J101: 11956 | K101: 1812 | L101: 1002 | M101: 6124 | N101: 2270 | O101: 2821 | P101: 1100 | Q101: 1041 | R101: 734 | S101: 25761 | T101: 3856 | U101: 3724 | V101: 1151 | W101: 15123 | X101: 3667 | Y101: 1124 | Z101: 588 | AA101: 3702 | AB101: 1051 | AC101: 29344 | AD101: 4718 | AE101: 10584 | AF101: 2320 | AG101: 1002 | AH101: 973 | AI101: 434 | AJ101: 377 | AK101: 6914 | AL101: 1720 | AM101: 2198 | AN101: 958 | AO101: 928 | AP101: 783 | AQ101: 838 | AR101: 397 | AS101: 2414 | AT101: 1223 | AU101: 1495 | AV101: 916 | AW101: 2915 | AX101: 1114 | AY101: 5037 | AZ101: 1192 | BA101: 14646 | BB101: 2367 | BC101: 3936 | BD101: 947 | BE101: 1824 | BF101: 678 | BG101: 401 | BH101: 266 | BI101: 1417 | BJ101: 595 | BK101: 391 | BL101: 282 | BM101: 579 | BN101: 553 | BO101: 1785 | BP101: 1037 | BQ101: 2972 | BR101: 1172 | BS101: 41450 | BT101: 4170 | BU101: 461 | BV101: 276 | BW101: N/A | BX101: N/A | BY101: 9336 | BZ101: 1874 | CA101: 374 | CB101: 266 | CC101: 5191 | CD101: 1717 | CE101: 1425 | CF101: 887 | CG101: 2189 | CH101: 977 | CI101: 26596 | CJ101: 3427 | CK101: 1393 | CL101: 663 | CM101: 6947 | CN101: 2791 | CO101: 112 | CP101: 121 | CQ101: 2660 | CR101: 1051 | CS101: 9151 | CT101: 2132 | CU101: 773 | CV101: 482 | CW101: 3882 | CX101: 1242 | CY101: 10800 | CZ101: 2343 | DA101: 2986 | DB101: 1367 | DC101: 631 | DD101: 470 | DE101: 1878 | DF101: 1014 | DG101: 688 | DH101: 645 | DI101: 10582 | DJ101: 3796
I102: 265291 | J102: 16660 | K102: 5420 | L102: 2338 | M102: 3991 | N102: 2185 | O102: 4286 | P102: 2860 | Q102: 327 | R102: 322 | S102: 15373 | T102: 5531 | U102: 3919 | V102: 1645 | W102: 1975 | X102: 820 | Y102: 954 | Z102: 600 | AA102: 1135 | AB102: 591 | AC102: 28044 | AD102: 4471 | AE102: 16192 | AF102: 3163 | AG102: 1806 | AH102: 1362 | AI102: 675 | AJ102: 615 | AK102: 5971 | AL102: 2065 | AM102: 3228 | AN102: 1379 | AO102: 654 | AP102: 530 | AQ102: 4995 | AR102: 4644 | AS102: 1637 | AT102: 786 | AU102: 2936 | AV102: 1135 | AW102: 824 | AX102: 663 | AY102: 10485 | AZ102: 2304 | BA102: 9053 | BB102: 4920 | BC102: 7530 | BD102: 2879 | BE102: 1294 | BF102: 825 | BG102: 1273 | BH102: 829 | BI102: 2638 | BJ102: 1150 | BK102: 563 | BL102: 549 | BM102: 1056 | BN102: 1334 | BO102: 1048 | BP102: 716 | BQ102: 2078 | BR102: 1738 | BS102: 10374 | BT102: 2643 | BU102: 1737 | BV102: 1297 | BW102: 18321 | BX102: 3621 | BY102: N/A | BZ102: N/A | CA102: 189 | CB102: 272 | CC102: 10187 | CD102: 3649 | CE102: 1390 | CF102: 684 | CG102: 1175 | CH102: 826 | CI102: 9450 | CJ102: 2770 | CK102: 444 | CL102: 384 | CM102: 20427 | CN102: 3260 | CO102: 565 | CP102: 609 | CQ102: 6057 | CR102: 2083 | CS102: 6621 | CT102: 2034 | CU102: 961 | CV102: 692 | CW102: 212 | CX102: 345 | CY102: 27302 | CZ102: 4012 | DA102: 3295 | DB102: 1566 | DC102: 2780 | DD102: 1517 | DE102: 2291 | DF102: 1192 | DG102: 153 | DH102: 228 | DI102: 844 | DJ102: 447
I103: 32510 | J103: 3641 | K103: 97 | L103: 125 | M103: 393 | N103: 365 | O103: 1313 | P103: 613 | Q103: 249 | R103: 293 | S103: 1356 | T103: 1011 | U103: 1229 | V103: 612 | W103: 0 | X103: 143 | Y103: 84 | Z103: 100 | AA103: 0 | AB103: 143 | AC103: 459 | AD103: 303 | AE103: 364 | AF103: 410 | AG103: 138 | AH103: 216 | AI103: 1209 | AJ103: 817 | AK103: 571 | AL103: 504 | AM103: 130 | AN103: 171 | AO103: 208 | AP103: 178 | AQ103: 75 | AR103: 96 | AS103: 0 | AT103: 143 | AU103: 422 | AV103: 441 | AW103: 50 | AX103: 72 | AY103: 10 | AZ103: 16 | BA103: 369 | BB103: 359 | BC103: 328 | BD103: 324 | BE103: 12244 | BF103: 2374 | BG103: 80 | BH103: 143 | BI103: 330 | BJ103: 284 | BK103: 1227 | BL103: 612 | BM103: 218 | BN103: 170 | BO103: 845 | BP103: 860 | BQ103: 0 | BR103: 143 | BS103: 183 | BT103: 306 | BU103: 99 | BV103: 112 | BW103: 264 | BX103: 233 | BY103: 900 | BZ103: 678 | CA103: N/A | CB103: N/A | CC103: 286 | CD103: 248 | CE103: 59 | CF103: 68 | CG103: 264 | CH103: 256 | CI103: 652 | CJ103: 637 | CK103: 0 | CL103: 143 | CM103: 1 | CN103: 2 | CO103: 1293 | CP103: 714 | CQ103: 113 | CR103: 120 | CS103: 1862 | CT103: 1029 | CU103: 429 | CV103: 427 | CW103: 0 | CX103: 143 | CY103: 166 | CZ103: 202 | DA103: 404 | DB103: 312 | DC103: 0 | DD103: 143 | DE103: 1398 | DF103: 601 | DG103: 139 | DH103: 102 | DI103: 76 | DJ103: 110
I104: 191778 | J104: 11799 | K104: 1567 | L104: 705 | M104: 1637 | N104: 1579 | O104: 6763 | P104: 3193 | Q104: 1952 | R104: 1128 | S104: 9032 | T104: 1771 | U104: 2690 | V104: 1023 | W104: 1189 | X104: 663 | Y104: 263 | Z104: 270 | AA104: 587 | AB104: 449 | AC104: 16492 | AD104: 3173 | AE104: 4290 | AF104: 1143 | AG104: 1044 | AH104: 694 | AI104: 312 | AJ104: 223 | AK104: 7027 | AL104: 1504 | AM104: 11588 | AN104: 2147 | AO104: 1146 | AP104: 614 | AQ104: 657 | AR104: 519 | AS104: 12744 | AT104: 3507 | AU104: 1872 | AV104: 1784 | AW104: 0 | AX104: 187 | AY104: 4982 | AZ104: 1578 | BA104: 2101 | BB104: 1008 | BC104: 14330 | BD104: 2896 | BE104: 1788 | BF104: 784 | BG104: 691 | BH104: 462 | BI104: 2003 | BJ104: 873 | BK104: 101 | BL104: 172 | BM104: 1176 | BN104: 616 | BO104: 1851 | BP104: 1107 | BQ104: 1992 | BR104: 1509 | BS104: 3936 | BT104: 1643 | BU104: 255 | BV104: 287 | BW104: 8784 | BX104: 2659 | BY104: 4572 | BZ104: 1270 | CA104: 204 | CB104: 270 | CC104: N/A | CD104: N/A | CE104: 2333 | CF104: 1263 | CG104: 1326 | CH104: 614 | CI104: 14292 | CJ104: 2842 | CK104: 369 | CL104: 353 | CM104: 3826 | CN104: 1192 | CO104: 34 | CP104: 68 | CQ104: 6468 | CR104: 2336 | CS104: 11987 | CT104: 4302 | CU104: 691 | CV104: 469 | CW104: 68 | CX104: 77 | CY104: 5425 | CZ104: 2020 | DA104: 1979 | DB104: 965 | DC104: 7548 | DD104: 1866 | DE104: 2534 | DF104: 1620 | DG104: 1280 | DH104: 793 | DI104: 1607 | DJ104: 1062
I105: 108878 | J105: 7998 | K105: 591 | L105: 368 | M105: 1137 | N105: 857 | O105: 3770 | P105: 1522 | Q105: 6894 | R105: 2060 | S105: 8233 | T105: 2583 | U105: 3273 | V105: 1511 | W105: 97 | X105: 138 | Y105: 66 | Z105: 110 | AA105: 191 | AB105: 234 | AC105: 6056 | AD105: 1588 | AE105: 3514 | AF105: 1642 | AG105: 140 | AH105: 148 | AI105: 21 | AJ105: 35 | AK105: 2179 | AL105: 1297 | AM105: 2113 | AN105: 1098 | AO105: 580 | AP105: 536 | AQ105: 4626 | AR105: 1250 | AS105: 1398 | AT105: 747 | AU105: 1934 | AV105: 727 | AW105: 271 | AX105: 425 | AY105: 432 | AZ105: 312 | BA105: 160 | BB105: 103 | BC105: 1038 | BD105: 848 | BE105: 497 | BF105: 341 | BG105: 199 | BH105: 202 | BI105: 5781 | BJ105: 1311 | BK105: 803 | BL105: 793 | BM105: 1979 | BN105: 1196 | BO105: 705 | BP105: 532 | BQ105: 0 | BR105: 163 | BS105: 391 | BT105: 333 | BU105: 403 | BV105: 259 | BW105: 1858 | BX105: 925 | BY105: 1322 | BZ105: 800 | CA105: 928 | CB105: 805 | CC105: 1608 | CD105: 791 | CE105: N/A | CF105: N/A | CG105: 917 | CH105: 713 | CI105: 1116 | CJ105: 492 | CK105: 152 | CL105: 179 | CM105: 2015 | CN105: 971 | CO105: 600 | CP105: 379 | CQ105: 1700 | CR105: 1101 | CS105: 31595 | CT105: 4987 | CU105: 587 | CV105: 450 | CW105: 0 | CX105: 163 | CY105: 1013 | CZ105: 610 | DA105: 1246 | DB105: 620 | DC105: 44 | DD105: 68 | DE105: 942 | DF105: 474 | DG105: 1763 | DH105: 1572 | DI105: 105 | DJ105: 139
I106: 127906 | J106: 9071 | K106: 758 | L106: 1071 | M106: 1935 | N106: 1062 | O106: 7911 | P106: 3054 | Q106: 988 | R106: 1155 | S106: 34214 | T106: 4555 | U106: 2110 | V106: 659 | W106: 949 | X106: 564 | Y106: 251 | Z106: 264 | AA106: 349 | AB106: 291 | AC106: 3384 | AD106: 1934 | AE106: 1946 | AF106: 1914 | AG106: 2491 | AH106: 1173 | AI106: 6236 | AJ106: 2097 | AK106: 1350 | AL106: 663 | AM106: 1371 | AN106: 1707 | AO106: 659 | AP106: 627 | AQ106: 1263 | AR106: 1355 | AS106: 71 | AT106: 118 | AU106: 0 | AV106: 203 | AW106: 269 | AX106: 320 | AY106: 453 | AZ106: 482 | BA106: 1423 | BB106: 768 | BC106: 1652 | BD106: 1174 | BE106: 1413 | BF106: 863 | BG106: 7 | BH106: 14 | BI106: 1172 | BJ106: 664 | BK106: 1079 | BL106: 784 | BM106: 324 | BN106: 342 | BO106: 7222 | BP106: 3426 | BQ106: 427 | BR106: 404 | BS106: 1322 | BT106: 771 | BU106: 537 | BV106: 449 | BW106: 2056 | BX106: 850 | BY106: 1099 | BZ106: 740 | CA106: 313 | CB106: 340 | CC106: 949 | CD106: 789 | CE106: 2034 | CF106: 1244 | CG106: N/A | CH106: N/A | CI106: 1407 | CJ106: 775 | CK106: 0 | CL106: 203 | CM106: 370 | CN106: 292 | CO106: 417 | CP106: 395 | CQ106: 673 | CR106: 420 | CS106: 4498 | CT106: 2398 | CU106: 3443 | CV106: 1781 | CW106: 176 | CX106: 203 | CY106: 1179 | CZ106: 619 | DA106: 21862 | DB106: 3732 | DC106: 66 | DD106: 115 | DE106: 914 | DF106: 697 | DG106: 914 | DH106: 880 | DI106: 4 | DJ106: 8
I107: 234291 | J107: 11246 | K107: 1332 | L107: 684 | M107: 759 | N107: 664 | O107: 2278 | P107: 917 | Q107: 582 | R107: 601 | S107: 10672 | T107: 2349 | U107: 2491 | V107: 1027 | W107: 4150 | X107: 993 | Y107: 5177 | Z107: 1304 | AA107: 1401 | AB107: 584 | AC107: 19299 | AD107: 3790 | AE107: 4627 | AF107: 1185 | AG107: 495 | AH107: 369 | AI107: 236 | AJ107: 223 | AK107: 3902 | AL107: 1438 | AM107: 4086 | AN107: 1429 | AO107: 1176 | AP107: 960 | AQ107: 2323 | AR107: 1449 | AS107: 4013 | AT107: 1826 | AU107: 615 | AV107: 294 | AW107: 608 | AX107: 328 | AY107: 17751 | AZ107: 3723 | BA107: 6284 | BB107: 1711 | BC107: 4406 | BD107: 1278 | BE107: 853 | BF107: 592 | BG107: 1238 | BH107: 943 | BI107: 1761 | BJ107: 1063 | BK107: 338 | BL107: 308 | BM107: 582 | BN107: 439 | BO107: 1057 | BP107: 501 | BQ107: 1326 | BR107: 520 | BS107: 36133 | BT107: 4167 | BU107: 325 | BV107: 405 | BW107: 29436 | BX107: 3921 | BY107: 11254 | BZ107: 3103 | CA107: 195 | CB107: 208 | CC107: 13075 | CD107: 2133 | CE107: 283 | CF107: 220 | CG107: 1594 | CH107: 1022 | CI107: N/A | CJ107: N/A | CK107: 799 | CL107: 558 | CM107: 3438 | CN107: 1057 | CO107: 142 | CP107: 140 | CQ107: 3742 | CR107: 1402 | CS107: 7006 | CT107: 1441 | CU107: 1246 | CV107: 776 | CW107: 446 | CX107: 327 | CY107: 8419 | CZ107: 1530 | DA107: 3688 | DB107: 1533 | DC107: 4631 | DD107: 1483 | DE107: 2426 | DF107: 1046 | DG107: 195 | DH107: 237 | DI107: 2723 | DJ107: 1294
I108: 26769 | J108: 2836 | K108: 0 | L108: 207 | M108: 0 | N108: 207 | O108: 214 | P108: 348 | Q108: 0 | R108: 207 | S108: 1949 | T108: 734 | U108: 301 | V108: 271 | W108: 2613 | X108: 984 | Y108: 0 | Z108: 207 | AA108: 0 | AB108: 207 | AC108: 2230 | AD108: 915 | AE108: 476 | AF108: 361 | AG108: 0 | AH108: 207 | AI108: 107 | AJ108: 199 | AK108: 373 | AL108: 375 | AM108: 41 | AN108: 95 | AO108: 82 | AP108: 145 | AQ108: 374 | AR108: 433 | AS108: 211 | AT108: 318 | AU108: 121 | AV108: 185 | AW108: 228 | AX108: 177 | AY108: 472 | AZ108: 323 | BA108: 7715 | BB108: 1532 | BC108: 178 | BD108: 117 | BE108: 27 | BF108: 60 | BG108: 0 | BH108: 207 | BI108: 109 | BJ108: 163 | BK108: 0 | BL108: 207 | BM108: 0 | BN108: 207 | BO108: 0 | BP108: 207 | BQ108: 941 | BR108: 745 | BS108: 1224 | BT108: 501 | BU108: 93 | BV108: 153 | BW108: 2776 | BX108: 1118 | BY108: 259 | BZ108: 212 | CA108: 0 | CB108: 207 | CC108: 60 | CD108: 89 | CE108: 0 | CF108: 207 | CG108: 57 | CH108: 94 | CI108: 1125 | CJ108: 725 | CK108: N/A | CL108: N/A | CM108: 223 | CN108: 232 | CO108: 0 | CP108: 207 | CQ108: 210 | CR108: 187 | CS108: 207 | CT108: 153 | CU108: 181 | CV108: 267 | CW108: 621 | CX108: 328 | CY108: 485 | CZ108: 448 | DA108: 262 | DB108: 277 | DC108: 199 | DD108: 253 | DE108: 2 | DF108: 5 | DG108: 23 | DH108: 47 | DI108: 293 | DJ108: 292
I109: 157644 | J109: 12647 | K109: 2999 | L109: 1543 | M109: 2421 | N109: 1281 | O109: 1971 | P109: 1391 | Q109: 1333 | R109: 1301 | S109: 6592 | T109: 1789 | U109: 1000 | V109: 598 | W109: 1752 | X109: 1005 | Y109: 841 | Z109: 746 | AA109: 589 | AB109: 681 | AC109: 15476 | AD109: 4230 | AE109: 16355 | AF109: 2798 | AG109: 712 | AH109: 626 | AI109: 55 | AJ109: 68 | AK109: 2371 | AL109: 831 | AM109: 3249 | AN109: 1601 | AO109: 1379 | AP109: 1468 | AQ109: 1885 | AR109: 1445 | AS109: 2454 | AT109: 1692 | AU109: 878 | AV109: 486 | AW109: 652 | AX109: 566 | AY109: 3807 | AZ109: 1261 | BA109: 730 | BB109: 447 | BC109: 4483 | BD109: 1737 | BE109: 471 | BF109: 393 | BG109: 2163 | BH109: 1979 | BI109: 1522 | BJ109: 1671 | BK109: 915 | BL109: 999 | BM109: 204 | BN109: 329 | BO109: 1017 | BP109: 722 | BQ109: 372 | BR109: 280 | BS109: 4241 | BT109: 1445 | BU109: 598 | BV109: 609 | BW109: 11317 | BX109: 3991 | BY109: 23102 | BZ109: 4356 | CA109: 271 | CB109: 213 | CC109: 6327 | CD109: 2177 | CE109: 1008 | CF109: 934 | CG109: 833 | CH109: 583 | CI109: 3523 | CJ109: 1139 | CK109: 453 | CL109: 360 | CM109: N/A | CN109: N/A | CO109: 62 | CP109: 107 | CQ109: 3324 | CR109: 1252 | CS109: 8623 | CT109: 4005 | CU109: 181 | CV109: 188 | CW109: 91 | CX109: 115 | CY109: 7879 | CZ109: 2193 | DA109: 2510 | DB109: 1257 | DC109: 1680 | DD109: 1114 | DE109: 341 | DF109: 291 | DG109: 632 | DH109: 647 | DI109: 2166 | DJ109: 1534
I110: 27506 | J110: 3893 | K110: 0 | L110: 155 | M110: 554 | N110: 492 | O110: 1422 | P110: 1445 | Q110: 659 | R110: 778 | S110: 1286 | T110: 622 | U110: 1021 | V110: 604 | W110: 0 | X110: 155 | Y110: 0 | Z110: 155 | AA110: 0 | AB110: 155 | AC110: 101 | AD110: 102 | AE110: 69 | AF110: 104 | AG110: 0 | AH110: 155 | AI110: 186 | AJ110: 262 | AK110: 267 | AL110: 235 | AM110: 285 | AN110: 378 | AO110: 4772 | AP110: 1898 | AQ110: 144 | AR110: 212 | AS110: 211 | AT110: 208 | AU110: 0 | AV110: 155 | AW110: 0 | AX110: 155 | AY110: 254 | AZ110: 222 | BA110: 113 | BB110: 179 | BC110: 239 | BD110: 201 | BE110: 5342 | BF110: 1981 | BG110: 129 | BH110: 155 | BI110: 354 | BJ110: 294 | BK110: 232 | BL110: 258 | BM110: 1695 | BN110: 784 | BO110: 110 | BP110: 177 | BQ110: 0 | BR110: 155 | BS110: 441 | BT110: 473 | BU110: 513 | BV110: 571 | BW110: 6 | BX110: 11 | BY110: 166 | BZ110: 257 | CA110: 2060 | CB110: 1025 | CC110: 84 | CD110: 102 | CE110: 40 | CF110: 46 | CG110: 15 | CH110: 26 | CI110: 57 | CJ110: 77 | CK110: 7 | CL110: 12 | CM110: 529 | CN110: 706 | CO110: N/A | CP110: N/A | CQ110: 0 | CR110: 155 | CS110: 1156 | CT110: 384 | CU110: 560 | CV110: 567 | CW110: 0 | CX110: 155 | CY110: 79 | CZ110: 92 | DA110: 557 | DB110: 780 | DC110: 0 | DD110: 155 | DE110: 481 | DF110: 594 | DG110: 1310 | DH110: 880 | DI110: 0 | DJ110: 155
I111: 170969 | J111: 13046 | K111: 9326 | L111: 2717 | M111: 531 | N111: 465 | O111: 1346 | P111: 1176 | Q111: 7393 | R111: 3038 | S111: 7130 | T111: 2041 | U111: 1372 | V111: 902 | W111: 150 | X111: 163 | Y111: 155 | Z111: 191 | AA111: 307 | AB111: 186 | AC111: 15491 | AD111: 3282 | AE111: 17507 | AF111: 4897 | AG111: 179 | AH111: 230 | AI111: 0 | AJ111: 208 | AK111: 8593 | AL111: 2245 | AM111: 5645 | AN111: 1932 | AO111: 387 | AP111: 432 | AQ111: 1805 | AR111: 1529 | AS111: 13884 | AT111: 2654 | AU111: 1901 | AV111: 908 | AW111: 9 | AX111: 17 | AY111: 1135 | AZ111: 675 | BA111: 1690 | BB111: 1886 | BC111: 5983 | BD111: 2441 | BE111: 445 | BF111: 315 | BG111: 9172 | BH111: 2752 | BI111: 3795 | BJ111: 1409 | BK111: 43 | BL111: 69 | BM111: 631 | BN111: 660 | BO111: 883 | BP111: 816 | BQ111: 132 | BR111: 134 | BS111: 1396 | BT111: 850 | BU111: 381 | BV111: 330 | BW111: 4921 | BX111: 1493 | BY111: 9353 | BZ111: 2989 | CA111: 50 | CB111: 92 | CC111: 5944 | CD111: 2044 | CE111: 3166 | CF111: 3444 | CG111: 726 | CH111: 610 | CI111: 3360 | CJ111: 1716 | CK111: 14 | CL111: 31 | CM111: 5531 | CN111: 1883 | CO111: 181 | CP111: 156 | CQ111: N/A | CR111: N/A | CS111: 7009 | CT111: 1999 | CU111: 200 | CV111: 223 | CW111: 38 | CX111: 64 | CY111: 6098 | CZ111: 1279 | DA111: 2852 | DB111: 2746 | DC111: 1385 | DD111: 764 | DE111: 1213 | DF111: 631 | DG111: 131 | DH111: 214 | DI111: 1083 | DJ111: 1191
I112: 514726 | J112: 23860 | K112: 8747 | L112: 2609 | M112: 6670 | N112: 2828 | O112: 20073 | P112: 5295 | Q112: 16461 | R112: 3965 | S112: 58992 | T112: 7044 | U112: 19126 | V112: 3821 | W112: 2927 | X112: 1710 | Y112: 884 | Z112: 658 | AA112: 2276 | AB112: 1540 | AC112: 35777 | AD112: 6888 | AE112: 17401 | AF112: 3608 | AG112: 6106 | AH112: 2623 | AI112: 4379 | AJ112: 3119 | AK112: 15064 | AL112: 3097 | AM112: 10265 | AN112: 3693 | AO112: 3236 | AP112: 1628 | AQ112: 12766 | AR112: 4731 | AS112: 6616 | AT112: 2648 | AU112: 25513 | AV112: 5283 | AW112: 1357 | AX112: 1052 | AY112: 9443 | AZ112: 3323 | BA112: 5035 | BB112: 1644 | BC112: 15654 | BD112: 4327 | BE112: 7691 | BF112: 2576 | BG112: 6048 | BH112: 2921 | BI112: 13473 | BJ112: 3950 | BK112: 537 | BL112: 423 | BM112: 3837 | BN112: 2060 | BO112: 7793 | BP112: 2927 | BQ112: 459 | BR112: 334 | BS112: 7578 | BT112: 2982 | BU112: 15225 | BV112: 2786 | BW112: 26155 | BX112: 6509 | BY112: 14956 | BZ112: 4396 | CA112: 809 | CB112: 652 | CC112: 12315 | CD112: 2730 | CE112: 19302 | CF112: 4804 | CG112: 3743 | CH112: 1552 | CI112: 9107 | CJ112: 2433 | CK112: 1297 | CL112: 1223 | CM112: 4075 | CN112: 1969 | CO112: 1486 | CP112: 1045 | CQ112: 10788 | CR112: 3114 | CS112: N/A | CT112: N/A | CU112: 5234 | CV112: 2551 | CW112: 349 | CX112: 344 | CY112: 13231 | CZ112: 3158 | DA112: 15325 | DB112: 3090 | DC112: 663 | DD112: 563 | DE112: 5982 | DF112: 2396 | DG112: 2500 | DH112: 1485 | DI112: 5225 | DJ112: 2173
I113: 85217 | J113: 7587 | K113: 486 | L113: 558 | M113: 2151 | N113: 1259 | O113: 6585 | P113: 2560 | Q113: 422 | R113: 455 | S113: 18237 | T113: 4113 | U113: 3986 | V113: 1191 | W113: 562 | X113: 590 | Y113: 0 | Z113: 192 | AA113: 132 | AB113: 141 | AC113: 1643 | AD113: 960 | AE113: 1052 | AF113: 595 | AG113: 1701 | AH113: 997 | AI113: 7538 | AJ113: 3248 | AK113: 1447 | AL113: 825 | AM113: 545 | AN113: 398 | AO113: 290 | AP113: 250 | AQ113: 1146 | AR113: 829 | AS113: 611 | AT113: 529 | AU113: 494 | AV113: 402 | AW113: 0 | AX113: 192 | AY113: 342 | AZ113: 301 | BA113: 959 | BB113: 638 | BC113: 1099 | BD113: 724 | BE113: 939 | BF113: 634 | BG113: 143 | BH113: 163 | BI113: 511 | BJ113: 372 | BK113: 1241 | BL113: 623 | BM113: 195 | BN113: 178 | BO113: 4315 | BP113: 1358 | BQ113: 34 | BR113: 42 | BS113: 506 | BT113: 485 | BU113: 1707 | BV113: 1068 | BW113: 1937 | BX113: 1299 | BY113: 1653 | BZ113: 1181 | CA113: 2 | CB113: 5 | CC113: 2584 | CD113: 1124 | CE113: 150 | CF113: 218 | CG113: 2037 | CH113: 1026 | CI113: 1496 | CJ113: 808 | CK113: 0 | CL113: 192 | CM113: 309 | CN113: 259 | CO113: 128 | CP113: 146 | CQ113: 549 | CR113: 419 | CS113: 4507 | CT113: 1517 | CU113: N/A | CV113: N/A | CW113: 122 | CX113: 205 | CY113: 2413 | CZ113: 1459 | DA113: 4825 | DB113: 2196 | DC113: 270 | DD113: 268 | DE113: 158 | DF113: 153 | DG113: 1058 | DH113: 609 | DI113: 0 | DJ113: 192
I114: 20463 | J114: 1946 | K114: 0 | L114: 145 | M114: 580 | N114: 441 | O114: 310 | P114: 325 | Q114: 0 | R114: 145 | S114: 819 | T114: 508 | U114: 529 | V114: 493 | W114: 2105 | X114: 608 | Y114: 107 | Z114: 135 | AA114: 27 | AB114: 53 | AC114: 366 | AD114: 199 | AE114: 101 | AF114: 99 | AG114: 143 | AH114: 85 | AI114: 0 | AJ114: 145 | AK114: 386 | AL114: 245 | AM114: 258 | AN114: 210 | AO114: 0 | AP114: 145 | AQ114: 7 | AR114: 13 | AS114: 627 | AT114: 660 | AU114: 41 | AV114: 74 | AW114: 322 | AX114: 200 | AY114: 361 | AZ114: 233 | BA114: 2378 | BB114: 606 | BC114: 335 | BD114: 345 | BE114: 206 | BF114: 255 | BG114: 0 | BH114: 145 | BI114: 69 | BJ114: 86 | BK114: 0 | BL114: 145 | BM114: 0 | BN114: 145 | BO114: 15 | BP114: 26 | BQ114: 2244 | BR114: 783 | BS114: 962 | BT114: 305 | BU114: 56 | BV114: 105 | BW114: 3723 | BX114: 904 | BY114: 250 | BZ114: 193 | CA114: 0 | CB114: 145 | CC114: 383 | CD114: 485 | CE114: 0 | CF114: 145 | CG114: 124 | CH114: 128 | CI114: 389 | CJ114: 231 | CK114: 401 | CL114: 411 | CM114: 21 | CN114: 36 | CO114: 0 | CP114: 145 | CQ114: 327 | CR114: 498 | CS114: 185 | CT114: 147 | CU114: 182 | CV114: 212 | CW114: N/A | CX114: N/A | CY114: 740 | CZ114: 420 | DA114: 156 | DB114: 159 | DC114: 53 | DD114: 81 | DE114: 137 | DF114: 115 | DG114: 38 | DH114: 62 | DI114: 19 | DJ114: 45
I115: 257130 | J115: 14025 | K115: 4930 | L115: 2057 | M115: 3202 | N115: 1687 | O115: 4679 | P115: 2151 | Q115: 645 | R115: 606 | S115: 19371 | T115: 4241 | U115: 4908 | V115: 2334 | W115: 5376 | X115: 2730 | Y115: 961 | Z115: 652 | AA115: 6854 | AB115: 1711 | AC115: 17773 | AD115: 3494 | AE115: 8715 | AF115: 1962 | AG115: 2917 | AH115: 1400 | AI115: 434 | AJ115: 430 | AK115: 4000 | AL115: 1213 | AM115: 2703 | AN115: 1067 | AO115: 1503 | AP115: 899 | AQ115: 892 | AR115: 645 | AS115: 3630 | AT115: 1551 | AU115: 2496 | AV115: 1642 | AW115: 2855 | AX115: 1930 | AY115: 22051 | AZ115: 3143 | BA115: 5386 | BB115: 2316 | BC115: 7323 | BD115: 3026 | BE115: 834 | BF115: 361 | BG115: 1682 | BH115: 1191 | BI115: 2277 | BJ115: 1178 | BK115: 617 | BL115: 714 | BM115: 256 | BN115: 289 | BO115: 1717 | BP115: 961 | BQ115: 1344 | BR115: 798 | BS115: 7327 | BT115: 2046 | BU115: 1014 | BV115: 604 | BW115: 12455 | BX115: 2816 | BY115: 22753 | BZ115: 4584 | CA115: 462 | CB115: 729 | CC115: 9570 | CD115: 2217 | CE115: 853 | CF115: 477 | CG115: 3499 | CH115: 1935 | CI115: 12009 | CJ115: 2497 | CK115: 1897 | CL115: 1477 | CM115: 6612 | CN115: 2032 | CO115: 908 | CP115: 841 | CQ115: 7482 | CR115: 2452 | CS115: 11655 | CT115: 3004 | CU115: 1426 | CV115: 641 | CW115: 173 | CX115: 138 | CY115: N/A | CZ115: N/A | DA115: 4615 | DB115: 1717 | DC115: 9041 | DD115: 2596 | DE115: 858 | DF115: 745 | DG115: 190 | DH115: 274 | DI115: 1222 | DJ115: 779
